{"text_format":"1","workbook":"xlsx","n_sheets":17,"sheets":["Notes","Summary","Region (Local Office) Q1","Trusts Q1","Sites Q1","Region (Local Office) Q2","Trusts Q2","Sites Q2","Region (Local Office) Q3","Trusts Q3","Sites Q3","Region (Local Office) Q4","Trusts Q4","BSQ1","BSQ2","BSQ3","BSQ4"],"not_rendered":{"charts":0,"images":0,"macros":1,"external_links":0,"defined_names":15,"comments":0,"pivot_tables":0},"unopened":[],"bounds":{"document_bytes":16777216,"sheet_cells":100000,"rows_first":2000,"rows_last":500,"rows_between":2000,"halvings":0,"cell_chars":16384,"cell_head_chars":4096},"cells_cut":0,"cells_raw":0,"read":"whole","date_system":"1900"}

{"sheet":"Notes","index":0,"n_rows":2,"n_cols":1,"rows_kept":2,"cut":false,"hidden":false,"merged":[[1,8,3,14]]}
[]
["Maternity Friends and Family Test (FFT) Data - May 2017"]

{"sheet":"Summary","index":1,"n_rows":23,"n_cols":12,"rows_kept":23,"cut":false,"hidden":false,"merged":[[6,1,7,1],[6,4,6,5],[6,6,6,7],[6,8,6,9],[6,10,6,11]]}
[]
[]
[]
[]
[]
[]
[null,"FFT","Number of organisations submitting","Total responses to date","Responses",null,"Response Rate",null,"Score (% recommend)",null,"Score (% not recommend)"]
[null,null,"2017-05-01","2017-05-01","2017-05-01","2017-04-26","2017-05-01","2017-04-26","2017-05-01","2017-04-26","2017-05-01","2017-04-26"]
[null,"Maternity Total","NA",1637596,37593,34498,"NA","NA",0.96164179501502944,0.96167893790944403,1.4976192376240257E-2,1.3623978201634877E-2]
[null,"Maternity NHS Total","NA",1637074,37475,34367,"NA","NA",0.96157438292194797,0.96162015887333785,1.5023348899266178E-2,1.364681234905578E-2]
[null,"Maternity IS Total","NA",522,118,131,"NA","NA",0.98305084745762716,0.97709923664122134,0,7.6335877862595417E-3]
[null,"Antenatal Total",135,320495,7043,6296,"NA","NA",0.96492971744995026,0.96664548919949178,1.2352690614794833E-2,1.6518424396442185E-2]
[null,"Antenatal NHS ",134,320290,6995,6239,"NA","NA",0.96468906361686924,0.96650104183362717,1.2437455325232308E-2,1.6509055938451676E-2]
[null,"Antenatal IS",1,205,48,57,"NA","NA",1,0.98245614035087714,0,1.7543859649122806E-2]
[null,"Birth Total",135,514261,12482,11601,0.23931132328693586,0.23901846052414702,0.96555039256529407,0.96362382553228165,1.4821342733536292E-2,1.0430135333160935E-2]
[null,"Birth NHS",134,514196,12468,11580,0.23917130251294841,0.23873827440470055,0.9656721206288098,0.9635578583765112,1.4837985242220084E-2,1.0449050086355785E-2]
[null,"Birth IS",1,65,14,21,0.5,0.67741935483870963,0.8571428571428571,1,0,0]
[null,"Postnatal Ward Total",134,549095,12541,11535,"NA","NA",0.94689418706642214,0.95058517555266575,1.9854876006698031E-2,1.8638925010836586E-2]
[null,"Postnatal Ward Total NHS",134,549095,12541,11535,"NA","NA",0.94689418706642214,0.95058517555266575,1.9854876006698031E-2,1.8638925010836586E-2]
[null,"Postnatal Ward Total IS","NA","NA","NA","NA","NA","NA","NA","NA","NA","NA"]
[null,"Postnatal Community Total",135,253745,5527,5066,"NA","NA",0.98208793197032751,0.9763126727200947,7.5990591641034921E-3,5.9218318199763123E-3]
[null,"Postnatal Community NHS",134,253493,5471,5013,"NA","NA",0.98190458782672274,0.97646120087771793,7.676841528057028E-3,5.9844404548174742E-3]
[null,"Postnatal Community IS",1,252,56,53,"NA","NA",1,0.96226415094339623,0,0]

{"sheet":"Region (Local Office) Q1","index":2,"n_rows":28,"n_cols":11,"rows_kept":28,"cut":false,"hidden":false,"merged":[[8,5,8,10],[8,0,9,0],[8,1,9,1],[8,2,9,2],[8,3,9,3],[8,4,9,4]]}
[]
[]
[]
[]
[]
[null,"   Sort data by:           "]
[]
[]
["Region (LO) Code","Region (Local Office)","Total Responses","Percentage Recommended","Percentage Not  Recommended","Breakdown of Responses"]
[null,null,null,null,null,"Extremely Likely","Likely","Neither","Unlikely","Extremely Unlikely","Don't Know"]
[null,"England (including Independent Sector providers)",7043,0.96492971744995026,1.2352690614794833E-2,5321,1475,113,41,46,47]
[null,"England (excluding Independent Sector providers)",6995,0.96468906361686924,1.2437455325232308E-2,5278,1470,113,41,46,47]
[null,"Selection (excluding suppressed data)",{"$f":"SUBTOTAL(9,C14:C40)","v":7043},{"$f":"IFERROR((F13+G13)/SUM(F13:K13), \"-\")","v":0.96492971744995026},{"$f":"IFERROR((I13+J13)/SUM(F13:K13), \"-\")","v":1.2352690614794833E-2},{"$f":"SUBTOTAL(9,F14:F40)","v":5321},1475,113,41,46,47]
["Q70","NHS England Wessex",379,0.94195250659630603,2.1108179419525065E-2,277,80,9,4,4,5]
["Q71","NHS England London",1235,0.95222672064777325,1.4574898785425101E-2,863,313,26,7,11,15]
["Q72","NHS England Yorkshire & Humber",688,0.97093023255813948,5.8139534883720929E-3,517,151,14,1,3,2]
["Q74","NHS England Cumbria & North East",350,0.99142857142857144,0,294,53,2,0,0,1]
["Q75","NHS England Cheshire & Merseyside",181,0.97790055248618779,0,137,40,2,0,0,2]
["Q76","NHS England North Midlands",354,0.98870056497175141,0,294,56,4,0,0,0]
["Q77","NHS England West Midlands",748,0.93983957219251335,3.2085561497326207E-2,511,192,17,10,14,4]
["Q78","NHS England Central Midlands",502,0.96215139442231079,7.9681274900398405E-3,368,115,9,2,2,6]
["Q79","NHS England East",952,0.97899159663865543,6.3025210084033615E-3,767,165,8,5,1,6]
["Q80","NHS England South West",356,0.9803370786516854,5.6179775280898875E-3,278,71,3,2,0,2]
["Q81","NHS England South East",340,0.95588235294117652,2.6470588235294117E-2,277,48,5,4,5,1]
["Q82","NHS England South Central",336,0.9642857142857143,1.488095238095238E-2,251,73,7,4,1,0]
["Q83","NHS England Greater Manchester",360,0.96944444444444444,1.3888888888888888E-2,272,77,4,1,4,2]
["Q84","NHS England Lancashire",214,0.9719626168224299,9.3457943925233638E-3,172,36,3,1,1,1]
["zIS1","Independent Sector Provider",48,1,0,43,5,0,0,0,0]

{"sheet":"Trusts Q1","index":3,"n_rows":148,"n_cols":19,"rows_kept":148,"cut":false,"hidden":false,"merged":[[8,6,8,11],[8,12,8,18],[8,0,9,0],[8,1,9,1],[8,2,9,2],[8,3,9,3],[8,4,9,4],[8,5,9,5]]}
[]
[]
[]
[]
[]
[null,"   Sort data by:           "]
[]
[]
["Region (LO) Code","Trust Code","Trust Name","Total Responses","Percentage Recommended","Percentage Not  Recommended","Breakdown of Responses",null,null,null,null,null,"Mode of Collection"]
[null,null,null,null,null,null,"Extremely Likely","Likely","Neither","Unlikely","Extremely Unlikely","Don't Know","SMS/Text / Smartphone App","Electronic tablet/kiosk at point of discharge","Paper / postcard at point of discharge","Paper survey sent to the patients home","Telephone survey once patient is home","Online survey once patient is home","Other"]
[null,null,"England (including Independent Sector providers)",7043,0.96492971744995026,1.2352690614794833E-2,5321,1475,113,41,46,47,213,927,5574,188,3,88,50]
[null,null,"England (excluding Independent Sector providers)",6995,0.96468906361686924,1.2437455325232308E-2,5278,1470,113,41,46,47,213,879,5574,188,3,88,50]
[null,null,"Selection (excluding suppressed data)",{"$f":"SUBTOTAL(9,D14:D298)","v":7043},{"$f":"IFERROR((G13+H13)/SUM(G13:L13), \"-\")","v":0.96493487906111353},{"$f":"IFERROR((J13+K13)/SUM(G13:L13), \"-\")","v":1.24516960068699E-2},{"$f":"SUBTOTAL(9,G14:G298)","v":5276},1466,111,41,46,47,203,926,5531,186,3,88,50]
["Q70","RBD","DORSET COUNTY HOSPITAL NHS FOUNDATION TRUST",25,0.88,0.04,19,3,0,1,0,2,25,0,0,0,0,0,0]
["Q70","RN5","HAMPSHIRE HOSPITALS NHS FOUNDATION TRUST",55,0.96363636363636362,0,46,7,2,0,0,0,6,0,49,0,0,0,0]
["Q70","R1F","ISLE OF WIGHT NHS TRUST",1,"*","*","*","*","*","*","*","*","*","*","*","*","*","*","*"]
["Q70","RD3","POOLE HOSPITAL NHS FOUNDATION TRUST",9,0.88888888888888884,0,"*","*","*","*","*","*","*","*","*","*","*","*","*"]
["Q70","RHU","PORTSMOUTH HOSPITALS NHS TRUST",34,0.94117647058823528,0,29,3,2,0,0,0,0,0,34,0,0,0,0]
["Q70","RDZ","THE ROYAL BOURNEMOUTH AND CHRISTCHURCH HOSPITALS NHS FOUNDATION TRUST",104,0.92307692307692313,4.807692307692308E-2,67,29,3,3,2,0,0,0,104,0,0,0,0]
["Q70","RHM","UNIVERSITY HOSPITAL SOUTHAMPTON NHS FOUNDATION TRUST",151,0.96026490066225167,1.3245033112582781E-2,108,37,1,0,2,3,0,0,149,0,0,0,2]
["Q71","RF4","BARKING, HAVERING AND REDBRIDGE UNIVERSITY HOSPITALS NHS TRUST",221,0.98642533936651589,4.5248868778280547E-3,179,39,0,0,1,2,0,10,211,0,0,0,0]
["Q71","R1H","BARTS HEALTH NHS TRUST",90,0.96666666666666667,0,60,27,1,0,0,2,0,2,87,0,0,1,0]
["Q71","RQM","CHELSEA AND WESTMINSTER HOSPITAL NHS FOUNDATION TRUST",100,0.88,7.0000000000000007E-2,71,17,5,2,5,0,85,0,12,0,1,2,0]
["Q71","RJ6","CROYDON HEALTH SERVICES NHS TRUST",25,1,0,17,8,0,0,0,0,0,0,25,0,0,0,0]
["Q71","RVR","EPSOM AND ST HELIER UNIVERSITY HOSPITALS NHS TRUST",11,1,0,11,0,0,0,0,0,0,0,10,0,0,1,0]
["Q71","RJ1","GUY'S AND ST THOMAS' NHS FOUNDATION TRUST",0,"NA","NA",0,0,0,0,0,0,0,0,0,0,0,0,0]
["Q71","RQX","HOMERTON UNIVERSITY HOSPITAL NHS FOUNDATION TRUST",107,0.93457943925233644,1.8691588785046728E-2,80,20,3,1,1,2,0,33,72,0,0,2,0]
["Q71","RYJ","IMPERIAL COLLEGE HEALTHCARE NHS TRUST",83,0.96385542168674698,0,44,36,2,0,0,1,1,26,56,0,0,0,0]
["Q71","RJZ","KING'S COLLEGE HOSPITAL NHS FOUNDATION TRUST",35,0.88571428571428568,2.8571428571428571E-2,23,8,3,0,1,0,0,35,0,0,0,0,0]
["Q71","RAX","KINGSTON HOSPITAL NHS FOUNDATION TRUST",29,1,0,19,10,0,0,0,0,0,29,0,0,0,0,0]
["Q71","RJ2","LEWISHAM AND GREENWICH NHS TRUST",101,1,0,64,37,0,0,0,0,0,0,101,0,0,0,0]
["Q71","R1K","LONDON NORTH WEST HEALTHCARE NHS TRUST",77,0.90909090909090906,1.2987012987012988E-2,40,30,4,1,0,2,0,7,70,0,0,0,0]
["Q71","RAP","NORTH MIDDLESEX UNIVERSITY HOSPITAL NHS TRUST",13,1,0,10,3,0,0,0,0,0,13,0,0,0,0,0]
["Q71","RAL","ROYAL FREE LONDON NHS FOUNDATION TRUST",50,0.98,0,28,21,1,0,0,0,0,0,50,0,0,0,0]
["Q71","RJ7","ST GEORGE'S UNIVERSITY HOSPITALS NHS FOUNDATION TRUST",7,0.8571428571428571,0,3,3,0,0,0,1,0,7,0,0,0,0,0]
["Q71","RAS","THE HILLINGDON HOSPITALS NHS FOUNDATION TRUST",61,0.96721311475409832,0,53,6,1,0,0,1,0,0,60,0,0,1,0]
["Q71","RKE","THE WHITTINGTON HOSPITAL NHS TRUST",21,0.90476190476190477,9.5238095238095233E-2,19,0,0,2,0,0,0,8,13,0,0,0,0]
["Q71","RRV","UNIVERSITY COLLEGE LONDON HOSPITALS NHS FOUNDATION TRUST",204,0.93137254901960786,1.9607843137254902E-2,142,48,6,1,3,4,0,0,203,0,0,1,0]
["Q72","RCF","AIREDALE NHS FOUNDATION TRUST",5,1,0,4,1,0,0,0,0,0,0,5,0,0,0,0]
["Q72","RFF","BARNSLEY HOSPITAL NHS FOUNDATION TRUST",55,0.98181818181818181,0,46,8,1,0,0,0,0,0,55,0,0,0,0]
["Q72","RAE","BRADFORD TEACHING HOSPITALS NHS FOUNDATION TRUST",8,0.75,0,5,1,2,0,0,0,0,0,8,0,0,0,0]
["Q72","RWY","CALDERDALE AND HUDDERSFIELD NHS FOUNDATION TRUST",126,0.97619047619047616,7.9365079365079361E-3,96,27,2,0,1,0,0,126,0,0,0,0,0]
["Q72","RP5","DONCASTER AND BASSETLAW TEACHING HOSPITALS NHS FOUNDATION TRUST",38,1,0,32,6,0,0,0,0,0,0,38,0,0,0,0]
["Q72","RCD","HARROGATE AND DISTRICT NHS FOUNDATION TRUST",51,0.96078431372549022,0,38,11,2,0,0,0,0,0,51,0,0,0,0]
["Q72","RWA","HULL AND EAST YORKSHIRE HOSPITALS NHS TRUST",48,0.95833333333333337,0,31,15,2,0,0,0,0,0,48,0,0,0,0]
["Q72","RR8","LEEDS TEACHING HOSPITALS NHS TRUST",0,"NA","NA",0,0,0,0,0,0,0,0,0,0,0,0,0]
["Q72","RXF","MID YORKSHIRE HOSPITALS NHS TRUST",110,0.98181818181818181,9.0909090909090905E-3,84,24,1,0,1,0,0,0,110,0,0,0,0]
["Q72","RJL","NORTHERN LINCOLNSHIRE AND GOOLE NHS FOUNDATION TRUST",9,1,0,5,4,0,0,0,0,0,0,0,9,0,0,0]
["Q72","RHQ","SHEFFIELD TEACHING HOSPITALS NHS FOUNDATION TRUST",100,0.95,0.01,64,31,2,0,1,2,0,0,100,0,0,0,0]
["Q72","RFR","THE ROTHERHAM NHS FOUNDATION TRUST",57,0.98245614035087714,1.7543859649122806E-2,46,10,0,1,0,0,0,0,57,0,0,0,0]
["Q72","RCB","YORK TEACHING HOSPITAL NHS FOUNDATION TRUST",81,0.97530864197530864,0,66,13,2,0,0,0,0,0,81,0,0,0,0]
["Q74","RLN","CITY HOSPITALS SUNDERLAND NHS FOUNDATION TRUST",21,1,0,14,7,0,0,0,0,0,0,21,0,0,0,0]
["Q74","RXP","COUNTY DURHAM AND DARLINGTON NHS FOUNDATION TRUST",41,1,0,34,7,0,0,0,0,0,0,41,0,0,0,0]
["Q74","RR7","GATESHEAD HEALTH NHS FOUNDATION TRUST",2,"*","*","*","*","*","*","*","*","*","*","*","*","*","*","*"]
["Q74","RNL","NORTH CUMBRIA UNIVERSITY HOSPITALS NHS TRUST",57,1,0,50,7,0,0,0,0,0,0,57,0,0,0,0]
["Q74","RVW","NORTH TEES AND HARTLEPOOL NHS FOUNDATION TRUST",33,0.96969696969696972,0,29,3,1,0,0,0,0,0,33,0,0,0,0]
["Q74","RTF","NORTHUMBRIA HEALTHCARE NHS FOUNDATION TRUST",138,0.99275362318840576,0,127,10,1,0,0,0,0,0,138,0,0,0,0]
["Q74","RTR","SOUTH TEES HOSPITALS NHS FOUNDATION TRUST",8,1,0,"*","*","*","*","*","*","*","*","*","*","*","*","*"]
["Q74","RE9","SOUTH TYNESIDE NHS FOUNDATION TRUST",23,0.95652173913043481,0,10,12,0,0,0,1,0,0,23,0,0,0,0]
["Q74","RTD","THE NEWCASTLE UPON TYNE HOSPITALS NHS FOUNDATION TRUST",0,"NA","NA",0,0,0,0,0,0,0,0,0,0,0,0,0]
["Q74","RTX","UNIVERSITY HOSPITALS OF MORECAMBE BAY NHS FOUNDATION TRUST",27,1,0,23,4,0,0,0,0,0,0,27,0,0,0,0]
["Q75","RJR","COUNTESS OF CHESTER HOSPITAL NHS FOUNDATION TRUST",21,0.90476190476190477,0,17,2,0,0,0,2,6,0,15,0,0,0,0]
["Q75","RJN","EAST CHESHIRE NHS TRUST",17,1,0,15,2,0,0,0,0,0,0,17,0,0,0,0]
["Q75","REP","LIVERPOOL WOMEN'S NHS FOUNDATION TRUST",4,"*","*","*","*","*","*","*","*","*","*","*","*","*","*","*"]
["Q75","RBT","MID CHESHIRE HOSPITALS NHS FOUNDATION TRUST",75,0.97333333333333338,0,42,31,2,0,0,0,0,0,75,0,0,0,0]
["Q75","RVY","SOUTHPORT AND ORMSKIRK HOSPITAL NHS TRUST",0,"NA","NA",0,0,0,0,0,0,0,0,0,0,0,0,0]
["Q75","RBN","ST HELENS AND KNOWSLEY HOSPITAL SERVICES NHS TRUST",1,"*","*","*","*","*","*","*","*","*","*","*","*","*","*","*"]
["Q75","RWW","WARRINGTON AND HALTON HOSPITALS NHS FOUNDATION TRUST",59,1,0,55,4,0,0,0,0,0,0,59,0,0,0,0]
["Q75","RBL","WIRRAL UNIVERSITY TEACHING HOSPITAL NHS FOUNDATION TRUST",4,"*","*","*","*","*","*","*","*","*","*","*","*","*","*","*"]
["Q76","RJF","BURTON HOSPITALS NHS FOUNDATION TRUST",13,1,0,8,5,0,0,0,0,0,0,13,0,0,0,0]
["Q76","RFS","CHESTERFIELD ROYAL HOSPITAL NHS FOUNDATION TRUST",67,0.97014925373134331,0,48,17,2,0,0,0,0,0,67,0,0,0,0]
["Q76","RTG","DERBY TEACHING HOSPITALS NHS FOUNDATION TRUST",95,1,0,81,14,0,0,0,0,1,0,94,0,0,0,0]
["Q76","RX1","NOTTINGHAM UNIVERSITY HOSPITALS NHS TRUST",108,1,0,101,7,0,0,0,0,0,0,108,0,0,0,0]
["Q76","RK5","SHERWOOD FOREST HOSPITALS NHS FOUNDATION TRUST",20,0.9,0,12,6,2,0,0,0,0,0,20,0,0,0,0]
["Q76","RXW","SHREWSBURY AND TELFORD HOSPITAL NHS TRUST",5,1,0,4,1,0,0,0,0,0,0,5,0,0,0,0]
["Q76","RJE","UNIVERSITY HOSPITALS OF NORTH MIDLANDS NHS TRUST",46,1,0,40,6,0,0,0,0,0,0,46,0,0,0,0]
["Q77","RQ3","BIRMINGHAM WOMEN'S AND CHILDREN'S NHS FOUNDATION TRUST",280,0.90357142857142858,7.4999999999999997E-2,186,67,6,8,13,0,0,0,278,0,0,2,0]
["Q77","RLT","GEORGE ELIOT HOSPITAL NHS TRUST",32,0.96875,0,21,10,1,0,0,0,18,0,14,0,0,0,0]
["Q77","RR1","HEART OF ENGLAND NHS FOUNDATION TRUST",8,0.75,0,5,1,2,0,0,0,0,0,8,0,0,0,0]
["Q77","RXK","SANDWELL AND WEST BIRMINGHAM HOSPITALS NHS TRUST",42,0.90476190476190477,0,17,21,3,0,0,1,0,42,0,0,0,0,0]
["Q77","RJC","SOUTH WARWICKSHIRE NHS FOUNDATION TRUST",26,1,0,20,6,0,0,0,0,0,0,25,0,0,1,0]
["Q77","RNA","THE DUDLEY GROUP NHS FOUNDATION TRUST",141,0.98581560283687941,7.0921985815602835E-3,98,41,0,1,0,1,4,0,137,0,0,0,0]
["Q77","RL4","THE ROYAL WOLVERHAMPTON NHS TRUST",6,1,0,3,3,0,0,0,0,0,0,6,0,0,0,0]
["Q77","RKB","UNIVERSITY HOSPITALS COVENTRY AND WARWICKSHIRE NHS TRUST",89,0.9887640449438202,0,63,25,0,0,0,1,0,0,89,0,0,0,0]
["Q77","RBK","WALSALL HEALTHCARE NHS TRUST",24,0.70833333333333337,8.3333333333333329E-2,9,8,4,1,1,1,24,0,0,0,0,0,0]
["Q77","RWP","WORCESTERSHIRE ACUTE HOSPITALS NHS TRUST",74,1,0,67,7,0,0,0,0,0,0,74,0,0,0,0]
["Q77","RLQ","WYE VALLEY NHS TRUST",26,0.96153846153846156,0,22,3,1,0,0,0,0,26,0,0,0,0,0]
["Q78","RC1","BEDFORD HOSPITAL NHS TRUST",2,"*","*","*","*","*","*","*","*","*","*","*","*","*","*","*"]
["Q78","RWH","EAST AND NORTH HERTFORDSHIRE NHS TRUST",31,0.93548387096774188,3.2258064516129031E-2,16,13,0,1,0,1,0,31,0,0,0,0,0]
["Q78","RNQ","KETTERING GENERAL HOSPITAL NHS FOUNDATION TRUST",43,1,0,35,8,0,0,0,0,0,0,43,0,0,0,0]
["Q78","RC9","LUTON AND DUNSTABLE UNIVERSITY HOSPITAL NHS FOUNDATION TRUST",53,0.96226415094339623,0,36,15,0,0,0,2,0,42,11,0,0,0,0]
["Q78","RD8","MILTON KEYNES UNIVERSITY HOSPITAL NHS FOUNDATION TRUST",12,0.91666666666666663,0,"*","*","*","*","*","*","*","*","*","*","*","*","*"]
["Q78","RNS","NORTHAMPTON GENERAL HOSPITAL NHS TRUST",66,0.93939393939393945,3.0303030303030304E-2,54,8,0,0,2,2,0,0,2,0,0,64,0]
["Q78","RWD","UNITED LINCOLNSHIRE HOSPITALS NHS TRUST",20,0.95,0,16,3,1,0,0,0,0,0,20,0,0,0,0]
["Q78","RWE","UNIVERSITY HOSPITALS OF LEICESTER NHS TRUST",216,0.97685185185185186,4.6296296296296294E-3,167,44,3,1,0,1,0,91,125,0,0,0,0]
["Q78","RWG","WEST HERTFORDSHIRE HOSPITALS NHS TRUST",59,0.93220338983050843,0,34,21,4,0,0,0,0,0,59,0,0,0,0]
["Q79","RDD","BASILDON AND THURROCK UNIVERSITY HOSPITALS NHS FOUNDATION TRUST",86,1,0,78,8,0,0,0,0,0,0,86,0,0,0,0]
["Q79","RGT","CAMBRIDGE UNIVERSITY HOSPITALS NHS FOUNDATION TRUST",42,0.97619047619047616,2.3809523809523808E-2,22,19,0,1,0,0,0,42,0,0,0,0,0]
["Q79","RDE","COLCHESTER HOSPITAL UNIVERSITY NHS FOUNDATION TRUST",0,"NA","NA",0,0,0,0,0,0,0,0,0,0,0,0,0]
["Q79","RGQ","IPSWICH HOSPITAL NHS TRUST",129,0.99224806201550386,7.7519379844961239E-3,110,18,0,1,0,0,0,129,0,0,0,0,0]
["Q79","RGP","JAMES PAGET UNIVERSITY HOSPITALS NHS FOUNDATION TRUST",47,0.97872340425531912,0,42,4,1,0,0,0,0,0,47,0,0,0,0]
["Q79","RQ8","MID ESSEX HOSPITAL SERVICES NHS TRUST",3,"*","*","*","*","*","*","*","*","*","*","*","*","*","*","*"]
["Q79","RM1","NORFOLK AND NORWICH UNIVERSITY HOSPITALS NHS FOUNDATION TRUST",24,0.95833333333333337,0,16,7,1,0,0,0,0,0,24,0,0,0,0]
["Q79","RGN","NORTH WEST ANGLIA NHS FOUNDATION TRUST",315,0.97460317460317458,3.1746031746031746E-3,252,55,3,1,0,4,0,0,315,0,0,0,0]
["Q79","RAJ","SOUTHEND UNIVERSITY HOSPITAL NHS FOUNDATION TRUST",3,"*","*","*","*","*","*","*","*","*","*","*","*","*","*","*"]
["Q79","RQW","THE PRINCESS ALEXANDRA HOSPITAL NHS TRUST",48,1,0,48,0,0,0,0,0,0,0,0,0,0,0,48]
["Q79","RCX","THE QUEEN ELIZABETH HOSPITAL, KING'S LYNN, NHS FOUNDATION TRUST",196,0.9642857142857143,1.020408163265306E-2,146,43,3,2,0,2,0,39,157,0,0,0,0]
["Q79","RGR","WEST SUFFOLK NHS FOUNDATION TRUST",59,0.98305084745762716,1.6949152542372881E-2,47,11,0,0,1,0,0,59,0,0,0,0,0]
["Q80","RVJ","NORTH BRISTOL NHS TRUST",11,1,0,8,3,0,0,0,0,0,0,11,0,0,0,0]
["Q80","RBZ","NORTHERN DEVON HEALTHCARE NHS TRUST",1,"*","*","*","*","*","*","*","*","*","*","*","*","*","*","*"]
["Q80","RK9","PLYMOUTH HOSPITALS NHS TRUST",107,0.95327102803738317,9.3457943925233638E-3,80,22,3,1,0,1,0,1,106,0,0,0,0]
["Q80","REF","ROYAL CORNWALL HOSPITALS NHS TRUST",22,0.95454545454545459,4.5454545454545456E-2,16,5,0,1,0,0,0,0,22,0,0,0,0]
["Q80","RH8","ROYAL DEVON AND EXETER NHS FOUNDATION TRUST",1,"*","*","*","*","*","*","*","*","*","*","*","*","*","*","*"]
["Q80","RBA","TAUNTON AND SOMERSET NHS FOUNDATION TRUST",3,"*","*","*","*","*","*","*","*","*","*","*","*","*","*","*"]
["Q80","RA9","TORBAY AND SOUTH DEVON NHS FOUNDATION TRUST",21,1,0,20,1,0,0,0,0,0,0,21,0,0,0,0]
["Q80","RA7","UNIVERSITY HOSPITALS BRISTOL NHS FOUNDATION TRUST",74,1,0,57,17,0,0,0,0,0,0,74,0,0,0,0]
["Q80","RA3","WESTON AREA HEALTH NHS TRUST",21,1,0,18,3,0,0,0,0,0,0,21,0,0,0,0]
["Q80","RA4","YEOVIL DISTRICT HOSPITAL NHS FOUNDATION TRUST",95,0.98947368421052628,0,75,19,0,0,0,1,0,0,95,0,0,0,0]
["Q81","RTK","ASHFORD AND ST PETER'S HOSPITALS NHS FOUNDATION TRUST",0,"NA","NA",0,0,0,0,0,0,0,0,0,0,0,0,0]
["Q81","RXH","BRIGHTON AND SUSSEX UNIVERSITY HOSPITALS NHS TRUST",1,"*","*","*","*","*","*","*","*","*","*","*","*","*","*","*"]
["Q81","RN7","DARTFORD AND GRAVESHAM NHS TRUST",1,"*","*","*","*","*","*","*","*","*","*","*","*","*","*","*"]
["Q81","RVV","EAST KENT HOSPITALS UNIVERSITY NHS FOUNDATION TRUST",6,1,0,6,0,0,0,0,0,0,0,0,6,0,0,0]
["Q81","RXC","EAST SUSSEX HEALTHCARE NHS TRUST",10,1,0,8,2,0,0,0,0,0,10,0,0,0,0,0]
["Q81","RDU","FRIMLEY HEALTH NHS FOUNDATION TRUST",103,0.92233009708737868,4.8543689320388349E-2,74,21,3,1,4,0,0,0,38,64,0,1,0]
["Q81","RWF","MAIDSTONE AND TUNBRIDGE WELLS NHS TRUST",13,0.92307692307692313,7.6923076923076927E-2,10,2,0,1,0,0,0,0,12,0,0,1,0]
["Q81","RPA","MEDWAY NHS FOUNDATION TRUST",82,1,0,77,5,0,0,0,0,0,0,82,0,0,0,0]
["Q81","RA2","ROYAL SURREY COUNTY HOSPITAL NHS FOUNDATION TRUST",65,0.9538461538461539,1.5384615384615385E-2,54,8,1,1,0,1,0,0,65,0,0,0,0]
["Q81","RTP","SURREY AND SUSSEX HEALTHCARE NHS TRUST",38,0.94736842105263153,2.6315789473684209E-2,29,7,1,1,0,0,0,0,35,0,0,3,0]
["Q81","RYR","WESTERN SUSSEX HOSPITALS NHS FOUNDATION TRUST",21,0.95238095238095233,4.7619047619047616E-2,17,3,0,0,1,0,0,0,21,0,0,0,0]
["Q82","RXQ","BUCKINGHAMSHIRE HEALTHCARE NHS TRUST",31,1,0,28,3,0,0,0,0,0,0,31,0,0,0,0]
["Q82","RTE","GLOUCESTERSHIRE HOSPITALS NHS FOUNDATION TRUST",0,"NA","NA",0,0,0,0,0,0,0,0,0,0,0,0,0]
["Q82","RN3","GREAT WESTERN HOSPITALS NHS FOUNDATION TRUST",13,1,0,10,3,0,0,0,0,0,0,13,0,0,0,0]
["Q82","RTH","OXFORD UNIVERSITY HOSPITALS NHS FOUNDATION TRUST",68,0.94117647058823528,2.9411764705882353E-2,38,26,2,2,0,0,0,0,68,0,0,0,0]
["Q82","RHW","ROYAL BERKSHIRE NHS FOUNDATION TRUST",104,0.98076923076923073,0,77,25,2,0,0,0,0,0,103,0,0,1,0]
["Q82","RD1","ROYAL UNITED HOSPITALS BATH NHS FOUNDATION TRUST",110,0.95454545454545459,2.7272727272727271E-2,90,15,2,2,1,0,0,0,110,0,0,0,0]
["Q82","RNZ","SALISBURY NHS FOUNDATION TRUST",10,0.9,0,8,1,1,0,0,0,0,0,10,0,0,0,0]
["Q83","RMC","BOLTON NHS FOUNDATION TRUST",107,0.99065420560747663,0,88,18,1,0,0,0,0,0,0,107,0,0,0]
["Q83","RY2","BRIDGEWATER COMMUNITY HEALTHCARE NHS FOUNDATION TRUST",24,1,0,24,0,0,0,0,0,0,0,24,0,0,0,0]
["Q83","RW3","CENTRAL MANCHESTER UNIVERSITY HOSPITALS NHS FOUNDATION TRUST",130,0.96153846153846156,1.5384615384615385E-2,91,34,2,1,1,1,0,4,119,0,0,7,0]
["Q83","RW6","PENNINE ACUTE HOSPITALS NHS TRUST",23,0.91304347826086951,4.3478260869565216E-2,17,4,0,0,1,1,0,0,23,0,0,0,0]
["Q83","RWJ","STOCKPORT NHS FOUNDATION TRUST",29,0.93103448275862066,3.4482758620689655E-2,17,10,1,0,1,0,0,0,29,0,0,0,0]
["Q83","RMP","TAMESIDE AND GLOSSOP INTEGRATED CARE NHS FOUNDATION TRUST",8,1,0,4,4,0,0,0,0,0,0,8,0,0,0,0]
["Q83","RM2","UNIVERSITY HOSPITAL OF SOUTH MANCHESTER NHS FOUNDATION TRUST",34,0.97058823529411764,2.9411764705882353E-2,28,5,0,0,1,0,0,0,34,0,0,0,0]
["Q83","RRF","WRIGHTINGTON, WIGAN AND LEIGH NHS FOUNDATION TRUST",5,1,0,3,2,0,0,0,0,2,0,3,0,0,0,0]
["Q84","RXL","BLACKPOOL TEACHING HOSPITALS NHS FOUNDATION TRUST",88,0.95454545454545459,1.1363636363636364E-2,62,22,2,1,0,1,0,66,22,0,0,0,0]
["Q84","RXR","EAST LANCASHIRE HOSPITALS NHS TRUST",93,1,0,85,8,0,0,0,0,0,0,93,0,0,0,0]
["Q84","RXN","LANCASHIRE TEACHING HOSPITALS NHS FOUNDATION TRUST",33,0.93939393939393945,3.0303030303030304E-2,25,6,1,0,1,0,31,0,0,0,2,0,0]
["zIS1","NDE","ONE TO ONE (NORTH WEST) LIMITED",48,1,0,43,5,0,0,0,0,0,48,0,0,0,0,0]

{"sheet":"Sites Q1","index":4,"n_rows":231,"n_cols":14,"rows_kept":231,"cut":false,"hidden":false,"merged":[[8,6,9,6],[8,7,9,7],[8,8,8,13],[8,0,9,0],[8,1,9,1],[8,2,9,2],[8,3,9,3],[8,4,9,4],[8,5,9,5]]}
[]
[]
[]
[]
[]
[null,"   Sort data by:           "]
[]
[]
["Region (LO) Code","Trust Code","Trust Name","Site Code","Site Name","Total Responses","Percentage Recommended","Percentage Not  Recommended","Breakdown of Responses"]
[null,null,null,null,null,null,null,null,"Extremely Likely","Likely","Neither","Unlikely","Extremely Unlikely","Don't Know"]
[null,null,null,null,"England (including Independent Sector providers)",7043,0.96492971744995026,1.2352690614794833E-2,5321,1475,113,41,46,47]
[null,null,null,null,"England (excluding Independent Sector providers)",6995,0.96468906361686924,1.2437455325232308E-2,5278,1470,113,41,46,47]
[null,null,null,null,"Selection (excluding suppressed data)",{"$f":"SUBTOTAL(9,F14:F297)","v":7043},{"$f":"IFERROR((I13+J13)/SUM(I13:N13), \"-\")","v":0.96530763528539654},{"$f":"IFERROR((L13+M13)/SUM(I13:N13), \"-\")","v":1.2453669384729429E-2},{"$f":"SUBTOTAL(9,I14:I297)","v":5110},1401,104,38,46,46]
["Q70","RN5","HAMPSHIRE HOSPITALS NHS FOUNDATION TRUST","RN542","Andover War Memorial Hospital - RN542",13,1,0,12,1,0,0,0,0]
["Q70","RN5","HAMPSHIRE HOSPITALS NHS FOUNDATION TRUST","RN506","Basingstoke and North Hampshire Hospital - RN506",27,0.96296296296296291,0,22,4,1,0,0,0]
["Q70","RBD","DORSET COUNTY HOSPITAL NHS FOUNDATION TRUST","RBD01","Dorset County Hospital - RBD01",25,0.88,0.04,19,3,0,1,0,2]
["Q70","RHU","PORTSMOUTH HOSPITALS NHS TRUST","RHU10","Gosport War Memorial Hospital - RHU10",23,0.95652173913043481,0,21,1,1,0,0,0]
["Q70","RHU","PORTSMOUTH HOSPITALS NHS TRUST","RHU04","Petersfield Community Hospital - RHU04",8,0.875,0,5,2,1,0,0,0]
["Q70","RD3","POOLE HOSPITAL NHS FOUNDATION TRUST","RD304","Poole General Hospital NHS Trust HQ - RD304",9,0.88888888888888884,0,"*","*","*","*","*","*"]
["Q70","RHU","PORTSMOUTH HOSPITALS NHS TRUST","RHU03","Queen Alexandra Hospital - RHU03",1,"*","*","*","*","*","*","*","*"]
["Q70","RDZ","THE ROYAL BOURNEMOUTH AND CHRISTCHURCH HOSPITALS NHS FOUNDATION TRUST","RDZ20","Royal Bournemouth General Hospital - RDZ20",104,0.92307692307692313,4.807692307692308E-2,67,29,3,3,2,0]
["Q70","RN5","HAMPSHIRE HOSPITALS NHS FOUNDATION TRUST","RN541","Royal Hampshire County Hospital - RN541",15,0.93333333333333335,0,12,2,1,0,0,0]
["Q70","RHM","UNIVERSITY HOSPITAL SOUTHAMPTON NHS FOUNDATION TRUST","RHM01","Southampton General Hospital - RHM01",151,0.96026490066225167,1.3245033112582781E-2,108,37,1,0,2,3]
["Q70","R1F","ISLE OF WIGHT NHS TRUST","R1F01","St Mary's Hospital - R1F01",1,"*","*","*","*","*","*","*","*"]
["Q70","RHU","PORTSMOUTH HOSPITALS NHS TRUST","RHU02","St Mary's Hospital - RHU02",2,"*","*","*","*","*","*","*","*"]
["Q71","RAL","ROYAL FREE LONDON NHS FOUNDATION TRUST","RAL26","Barnet Hospital - RAL26",38,0.97368421052631582,0,24,13,1,0,0,0]
["Q71","R1K","LONDON NORTH WEST HEALTHCARE NHS TRUST","R1K02","Central Middlesex Hospital - R1K02",2,"*","*","*","*","*","*","*","*"]
["Q71","RQM","CHELSEA AND WESTMINSTER HOSPITAL NHS FOUNDATION TRUST","RQM01","Chelsea and Westminster Hospital - RQM01",42,0.83333333333333337,9.5238095238095233E-2,27,8,3,2,2,0]
["Q71","RJ6","CROYDON HEALTH SERVICES NHS TRUST","RJ611","Croydon University Hospital - RJ611",25,1,0,17,8,0,0,0,0]
["Q71","R1K","LONDON NORTH WEST HEALTHCARE NHS TRUST","R1K04","Ealing Hospital - R1K04",1,"*","*","*","*","*","*","*","*"]
["Q71","RVR","EPSOM AND ST HELIER UNIVERSITY HOSPITALS NHS TRUST","RVR50","Epsom Hospital - RVR50",4,"*","*","*","*","*","*","*","*"]
["Q71","RAS","THE HILLINGDON HOSPITALS NHS FOUNDATION TRUST","RAS01","Hillingdon Hospital - RAS01",61,0.96721311475409832,0,53,6,1,0,0,1]
["Q71","RQX","HOMERTON UNIVERSITY HOSPITAL NHS FOUNDATION TRUST","RQXM1","Homerton University Hospital - RQXM1",107,0.93457943925233644,1.8691588785046728E-2,80,20,3,1,1,2]
["Q71","RJZ","KING'S COLLEGE HOSPITAL NHS FOUNDATION TRUST","RJZ01","King's College Hospital (Denmark Hill) - RJZ01",30,0.9,0,19,8,3,0,0,0]
["Q71","RAX","KINGSTON HOSPITAL NHS FOUNDATION TRUST","RAX01","Kingston Hospital - RAX01",17,1,0,10,7,0,0,0,0]
["Q71","R1H","BARTS HEALTH NHS TRUST","R1HNH","Newham General Hospital - R1HNH",10,1,0,8,2,0,0,0,0]
["Q71","R1K","LONDON NORTH WEST HEALTHCARE NHS TRUST","R1KXXX","Non-hospital site - R1KXXX",13,1,0,11,2,0,0,0,0]
["Q71","RAX","KINGSTON HOSPITAL NHS FOUNDATION TRUST","RAXXXX","Non-hospital site - RAXXXX",12,1,0,9,3,0,0,0,0]
["Q71","RJ2","LEWISHAM AND GREENWICH NHS TRUST","RJ2XXX","Non-hospital site - RJ2XXX",84,1,0,56,28,0,0,0,0]
["Q71","RJ7","ST GEORGE'S UNIVERSITY HOSPITALS NHS FOUNDATION TRUST","RJ7XXX","Non-hospital site - RJ7XXX",0,"NA","NA",0,0,0,0,0,0]
["Q71","RKE","THE WHITTINGTON HOSPITAL NHS TRUST","RKEXXX","Non-hospital site - RKEXXX",20,0.95,0.05,"*","*","*","*","*","*"]
["Q71","RVR","EPSOM AND ST HELIER UNIVERSITY HOSPITALS NHS TRUST","RVRXXX","Non-hospital site - RVRXXX",2,"*","*","*","*","*","*","*","*"]
["Q71","RAP","NORTH MIDDLESEX UNIVERSITY HOSPITAL NHS TRUST","RAPNM","North Middlesex Hospital - RAPNM",13,1,0,10,3,0,0,0,0]
["Q71","R1K","LONDON NORTH WEST HEALTHCARE NHS TRUST","R1K01","Northwick Park Hospital - R1K01",61,0.88524590163934425,1.6393442622950821E-2,28,26,4,1,0,2]
["Q71","RJZ","KING'S COLLEGE HOSPITAL NHS FOUNDATION TRUST","RJZ30","Princess Royal University Hospital - RJZ30",5,0.8,0.2,4,0,0,0,1,0]
["Q71","RYJ","IMPERIAL COLLEGE HEALTHCARE NHS TRUST","RYJ04","Queen Charlotte's Hospital - RYJ04",56,0.9464285714285714,0,32,21,2,0,0,1]
["Q71","RJ2","LEWISHAM AND GREENWICH NHS TRUST","RJ231","Queen Elizabeth Hospital - RJ231",2,"*","*","*","*","*","*","*","*"]
["Q71","RF4","BARKING, HAVERING AND REDBRIDGE UNIVERSITY HOSPITALS NHS TRUST","RF4QH","Queen's Hospital - RF4QH",221,0.98642533936651589,4.5248868778280547E-3,179,39,0,0,1,2]
["Q71","RAL","ROYAL FREE LONDON NHS FOUNDATION TRUST","RAL01","Royal Free Hospital - RAL01",12,1,0,4,8,0,0,0,0]
["Q71","RJ7","ST GEORGE'S UNIVERSITY HOSPITALS NHS FOUNDATION TRUST","RJ701","St George's Hospital (Tooting) - RJ701",7,0.8571428571428571,0,3,3,0,0,0,1]
["Q71","RVR","EPSOM AND ST HELIER UNIVERSITY HOSPITALS NHS TRUST","RVR05","St Helier Hospital - RVR05",5,1,0,5,0,0,0,0,0]
["Q71","RYJ","IMPERIAL COLLEGE HEALTHCARE NHS TRUST","RYJ01","St Mary's Hospital (HQ) - RYJ01",27,1,0,12,15,0,0,0,0]
["Q71","RJ1","GUY'S AND ST THOMAS' NHS FOUNDATION TRUST","RJ122","St Thomas' Hospital - RJ122",0,"NA","NA",0,0,0,0,0,0]
["Q71","R1H","BARTS HEALTH NHS TRUST","R1H12","The Royal London Hospital - R1H12",80,0.96250000000000002,0,52,25,1,0,0,2]
["Q71","RKE","THE WHITTINGTON HOSPITAL NHS TRUST","RKEQ4","The Whittington Hospital - RKEQ4",1,"*","*","*","*","*","*","*","*"]
["Q71","RRV","UNIVERSITY COLLEGE LONDON HOSPITALS NHS FOUNDATION TRUST","RRV03","University College Hospital - RRV03",204,0.93137254901960786,1.9607843137254902E-2,142,48,6,1,3,4]
["Q71","RJ2","LEWISHAM AND GREENWICH NHS TRUST","RJ224","University Hospital Lewisham - RJ224",15,1,0,"*","*","*","*","*","*"]
["Q71","RQM","CHELSEA AND WESTMINSTER HOSPITAL NHS FOUNDATION TRUST","RQM91","West Middlesex University Hospital - RQM91",58,0.91379310344827591,5.1724137931034482E-2,44,9,2,0,3,0]
["Q71","R1H","BARTS HEALTH NHS TRUST","R1HKH","Whipps Cross University Hospital - R1HKH",0,"NA","NA",0,0,0,0,0,0]
["Q72","RCF","AIREDALE NHS FOUNDATION TRUST","RCF22","Airedale General Hospital - RCF22",5,1,0,4,1,0,0,0,0]
["Q72","RFF","BARNSLEY HOSPITAL NHS FOUNDATION TRUST","RFFAA","Barnsley Hospital NHS Foundation Trust HQ - RFFAA",55,0.98181818181818181,0,46,8,1,0,0,0]
["Q72","RP5","DONCASTER AND BASSETLAW TEACHING HOSPITALS NHS FOUNDATION TRUST","RP5BA","Bassetlaw Hospital - RP5BA",0,"NA","NA",0,0,0,0,0,0]
["Q72","RAE","BRADFORD TEACHING HOSPITALS NHS FOUNDATION TRUST","RAE01","Bradford Royal Infirmary - RAE01",8,0.75,0,5,1,2,0,0,0]
["Q72","RXF","MID YORKSHIRE HOSPITALS NHS TRUST","RXF10","Dewsbury and District Hospital - RXF10",8,1,0,5,3,0,0,0,0]
["Q72","RJL","NORTHERN LINCOLNSHIRE AND GOOLE NHS FOUNDATION TRUST","RJL30","Diana, Princess Of Wales Hospital - RJL30",9,1,0,5,4,0,0,0,0]
["Q72","RP5","DONCASTER AND BASSETLAW TEACHING HOSPITALS NHS FOUNDATION TRUST","RP5DR","Doncaster Royal Infirmary - RP5DR",11,1,0,9,2,0,0,0,0]
["Q72","RCD","HARROGATE AND DISTRICT NHS FOUNDATION TRUST","RCD01","Harrogate District Hospital - RCD01",10,1,0,9,1,0,0,0,0]
["Q72","RWA","HULL AND EAST YORKSHIRE HOSPITALS NHS TRUST","RWA01","Hull Royal Infirmary - RWA01",48,0.95833333333333337,0,31,15,2,0,0,0]
["Q72","RR8","LEEDS TEACHING HOSPITALS NHS TRUST","RR801","Leeds General Infirmary - RR801",0,"NA","NA",0,0,0,0,0,0]
["Q72","RAE","BRADFORD TEACHING HOSPITALS NHS FOUNDATION TRUST","RAEXXX","Non-hospital site - RAEXXX",0,"NA","NA",0,0,0,0,0,0]
["Q72","RCD","HARROGATE AND DISTRICT NHS FOUNDATION TRUST","RCDXXX","Non-hospital site - RCDXXX",41,0.95121951219512191,0,29,10,2,0,0,0]
["Q72","RP5","DONCASTER AND BASSETLAW TEACHING HOSPITALS NHS FOUNDATION TRUST","RP5XXX","Non-hospital site - RP5XXX",27,1,0,23,4,0,0,0,0]
["Q72","RR8","LEEDS TEACHING HOSPITALS NHS TRUST","RR8XXX","Non-Hospital Site - RR8XXX",0,"NA","NA",0,0,0,0,0,0]
["Q72","RWY","CALDERDALE AND HUDDERSFIELD NHS FOUNDATION TRUST","RWYXXX","Non-hospital site - RWYXXX",126,0.97619047619047616,7.9365079365079361E-3,96,27,2,0,1,0]
["Q72","RXF","MID YORKSHIRE HOSPITALS NHS TRUST","RXFXXX","Non-hospital site - RXFXXX",59,0.98305084745762716,1.6949152542372881E-2,52,6,0,0,1,0]
["Q72","RXF","MID YORKSHIRE HOSPITALS NHS TRUST","RXF05","Pinderfields General Hospital - RXF05",31,0.967741935483871,0,18,12,1,0,0,0]
["Q72","RXF","MID YORKSHIRE HOSPITALS NHS TRUST","RXF03","Pontefract General Infirmary - RXF03",12,1,0,9,3,0,0,0,0]
["Q72","RFR","THE ROTHERHAM NHS FOUNDATION TRUST","RFRPA","Rotherham District General Hospital - RFRPA",57,0.98245614035087714,1.7543859649122806E-2,46,10,0,1,0,0]
["Q72","RHQ","SHEFFIELD TEACHING HOSPITALS NHS FOUNDATION TRUST","RHQHH","Royal Hallamshire Hospital - RHQHH",100,0.95,0.01,64,31,2,0,1,2]
["Q72","RCB","YORK TEACHING HOSPITAL NHS FOUNDATION TRUST","RCBCA","Scarborough General Hospital - RCBCA",49,1,0,45,4,0,0,0,0]
["Q72","RJL","NORTHERN LINCOLNSHIRE AND GOOLE NHS FOUNDATION TRUST","RJL32","Scunthorpe General Hospital - RJL32",0,"NA","NA",0,0,0,0,0,0]
["Q72","RR8","LEEDS TEACHING HOSPITALS NHS TRUST","RR813","St James's University Hospital - RR813",0,"NA","NA",0,0,0,0,0,0]
["Q72","RCB","YORK TEACHING HOSPITAL NHS FOUNDATION TRUST","RCB55","York Hospital - RCB55",32,0.9375,0,21,9,2,0,0,0]
["Q74","RXP","COUNTY DURHAM AND DARLINGTON NHS FOUNDATION TRUST","RXPDA","Darlington Memorial Hospital - RXPDA",4,"*","*","*","*","*","*","*","*"]
["Q74","RTX","UNIVERSITY HOSPITALS OF MORECAMBE BAY NHS FOUNDATION TRUST","RTXBU","Furness General Hospital - RTXBU",13,1,0,12,1,0,0,0,0]
["Q74","RNL","NORTH CUMBRIA UNIVERSITY HOSPITALS NHS TRUST","RNLXXX","Non-hospital site - RNLXXX",57,1,0,50,7,0,0,0,0]
["Q74","RTF","NORTHUMBRIA HEALTHCARE NHS FOUNDATION TRUST","RTFXXX","Non-hospital site - RTFXXX",138,0.99275362318840576,0,127,10,1,0,0,0]
["Q74","RTR","SOUTH TEES HOSPITALS NHS FOUNDATION TRUST","RTRXXX","Non-hospital site - RTRXXX",8,1,0,"*","*","*","*","*","*"]
["Q74","RVW","NORTH TEES AND HARTLEPOOL NHS FOUNDATION TRUST","RVWXXX","Non-hospital site - RVWXXX",33,0.96969696969696972,0,29,3,1,0,0,0]
["Q74","RR7","GATESHEAD HEALTH NHS FOUNDATION TRUST","RR7EN","Queen Elizabeth Hospital - RR7EN",2,"*","*","*","*","*","*","*","*"]
["Q74","RTX","UNIVERSITY HOSPITALS OF MORECAMBE BAY NHS FOUNDATION TRUST","RTX02","Royal Lancaster Infirmary - RTX02",14,1,0,11,3,0,0,0,0]
["Q74","RE9","SOUTH TYNESIDE NHS FOUNDATION TRUST","RE9GA","South Tyneside District Hospital - RE9GA",23,0.95652173913043481,0,10,12,0,0,0,1]
["Q74","RLN","CITY HOSPITALS SUNDERLAND NHS FOUNDATION TRUST","RLNGL","Sunderland Royal Hospital - RLNGL",21,1,0,14,7,0,0,0,0]
["Q74","RTD","THE NEWCASTLE UPON TYNE HOSPITALS NHS FOUNDATION TRUST","RTD02","The Royal Victoria Infirmary - RTD02",0,"NA","NA",0,0,0,0,0,0]
["Q74","RXP","COUNTY DURHAM AND DARLINGTON NHS FOUNDATION TRUST","RXPCP","University Hospital Of North Durham - RXPCP",37,1,0,"*","*","*","*","*","*"]
["Q75","RBL","WIRRAL UNIVERSITY TEACHING HOSPITAL NHS FOUNDATION TRUST","RBL14","Arrowe Park Hospital - RBL14",4,"*","*","*","*","*","*","*","*"]
["Q75","RJR","COUNTESS OF CHESTER HOSPITAL NHS FOUNDATION TRUST","RJR05","Countess Of Chester Hospital - RJR05",21,0.90476190476190477,0,17,2,0,0,0,2]
["Q75","RBT","MID CHESHIRE HOSPITALS NHS FOUNDATION TRUST","RBT20","Leighton Hospital - RBT20",75,0.97333333333333338,0,42,31,2,0,0,0]
["Q75","REP","LIVERPOOL WOMEN'S NHS FOUNDATION TRUST","REP01","Liverpool Womens Hospital - REP01",4,"*","*","*","*","*","*","*","*"]
["Q75","RJN","EAST CHESHIRE NHS TRUST","RJN71","Macclesfield District General Hospital - RJN71",17,1,0,15,2,0,0,0,0]
["Q75","RJR","COUNTESS OF CHESTER HOSPITAL NHS FOUNDATION TRUST","RJRXXX","Non-hospital site - RJRXXX",0,"NA","NA",0,0,0,0,0,0]
["Q75","RVY","SOUTHPORT AND ORMSKIRK HOSPITAL NHS TRUST","RVYXXX","Non-hospital site - RVYXXX",0,"NA","NA",0,0,0,0,0,0]
["Q75","RWW","WARRINGTON AND HALTON HOSPITALS NHS FOUNDATION TRUST","RWWWH","Warrington Hospital - RWWWH",59,1,0,55,4,0,0,0,0]
["Q75","RBN","ST HELENS AND KNOWSLEY HOSPITAL SERVICES NHS TRUST","RBN01","Whiston Hospital - RBN01",1,"*","*","*","*","*","*","*","*"]
["Q76","RFS","CHESTERFIELD ROYAL HOSPITAL NHS FOUNDATION TRUST","RFSDA","Chesterfield Royal Hospital - RFSDA",67,0.97014925373134331,0,48,17,2,0,0,0]
["Q76","RJE","UNIVERSITY HOSPITALS OF NORTH MIDLANDS NHS TRUST","RJE09","County Hospital - RJE09",24,1,0,22,2,0,0,0,0]
["Q76","RK5","SHERWOOD FOREST HOSPITALS NHS FOUNDATION TRUST","RK5BC","King's Mill Hospital - RK5BC",20,0.9,0,12,6,2,0,0,0]
["Q76","RX1","NOTTINGHAM UNIVERSITY HOSPITALS NHS TRUST","RX1XXX","Non-hospital site - RX1XXX",108,1,0,101,7,0,0,0,0]
["Q76","RXW","SHREWSBURY AND TELFORD HOSPITAL NHS TRUST","RXWXXX","Non-hospital site - RXWXXX",5,1,0,4,1,0,0,0,0]
["Q76","RJF","BURTON HOSPITALS NHS FOUNDATION TRUST","RJF02","Queen's Hospital, Burton Upon Trent - RJF02",13,1,0,8,5,0,0,0,0]
["Q76","RTG","DERBY TEACHING HOSPITALS NHS FOUNDATION TRUST","RTGFG","Royal Derby Hospital - RTGFG",95,1,0,81,14,0,0,0,0]
["Q76","RJE","UNIVERSITY HOSPITALS OF NORTH MIDLANDS NHS TRUST","RJE01","Royal Stoke University Hospital - RJE01",22,1,0,18,4,0,0,0,0]
["Q77","RWP","WORCESTERSHIRE ACUTE HOSPITALS NHS TRUST","RWP01","Alexandra Hospital - RWP01",24,1,0,22,2,0,0,0,0]
["Q77","RQ3","BIRMINGHAM WOMEN'S AND CHILDREN'S NHS FOUNDATION TRUST","RQ370","Birmingham Women's Hospital - RQ370",280,0.90357142857142858,7.4999999999999997E-2,186,67,6,8,13,0]
["Q77","RXK","SANDWELL AND WEST BIRMINGHAM HOSPITALS NHS TRUST","RXK02","City Hospital - RXK02",41,0.90243902439024393,0,"*","*","*","*","*","*"]
["Q77","RLT","GEORGE ELIOT HOSPITAL NHS TRUST","RLT01","George Eliot Hospital - Acute Services - RLT01",32,0.96875,0,21,10,1,0,0,0]
["Q77","RR1","HEART OF ENGLAND NHS FOUNDATION TRUST","RR105","Good Hope Hospital - RR105",8,0.75,0,5,1,2,0,0,0]
["Q77","RR1","HEART OF ENGLAND NHS FOUNDATION TRUST","RR101","Heartlands Hospital - RR101",0,"NA","NA",0,0,0,0,0,0]
["Q77","RLQ","WYE VALLEY NHS TRUST","RLQ01","Hereford County Hospital - RLQ01",26,0.96153846153846156,0,22,3,1,0,0,0]
["Q77","RKB","UNIVERSITY HOSPITALS COVENTRY AND WARWICKSHIRE NHS TRUST","RKB03","Hospital Of St Cross - RKB03",0,"NA","NA",0,0,0,0,0,0]
["Q77","RWP","WORCESTERSHIRE ACUTE HOSPITALS NHS TRUST","RWP31","Kidderminster Hospital - RWP31",13,1,0,11,2,0,0,0,0]
["Q77","RBK","WALSALL HEALTHCARE NHS TRUST","RBK02","Manor Hospital - RBK02",24,0.70833333333333337,8.3333333333333329E-2,9,8,4,1,1,1]
["Q77","RL4","THE ROYAL WOLVERHAMPTON NHS TRUST","RL403","New Cross Hospital - RL403",6,1,0,3,3,0,0,0,0]
["Q77","RJC","SOUTH WARWICKSHIRE NHS FOUNDATION TRUST","RJCXXX","Non-hospital site - RJCXXX",26,1,0,20,6,0,0,0,0]
["Q77","RKB","UNIVERSITY HOSPITALS COVENTRY AND WARWICKSHIRE NHS TRUST","RKBXXX","Non-hospital site - RKBXXX",78,0.98717948717948723,0,55,22,0,0,0,1]
["Q77","RNA","THE DUDLEY GROUP NHS FOUNDATION TRUST","RNAXXX","Non-hospital site - RNAXXX",28,1,0,23,5,0,0,0,0]
["Q77","RNA","THE DUDLEY GROUP NHS FOUNDATION TRUST","RNA01","Russells Hall Hospital - RNA01",113,0.98230088495575218,8.8495575221238937E-3,75,36,0,1,0,1]
["Q77","RXK","SANDWELL AND WEST BIRMINGHAM HOSPITALS NHS TRUST","RXK01","Sandwell General Hospital - RXK01",1,"*","*","*","*","*","*","*","*"]
["Q77","RR1","HEART OF ENGLAND NHS FOUNDATION TRUST","RR109","Solihull Hospital - RR109",0,"NA","NA",0,0,0,0,0,0]
["Q77","RKB","UNIVERSITY HOSPITALS COVENTRY AND WARWICKSHIRE NHS TRUST","RKB01","University Hospital (Coventry) - RKB01",11,1,0,8,3,0,0,0,0]
["Q77","RWP","WORCESTERSHIRE ACUTE HOSPITALS NHS TRUST","RWP50","Worcestershire Royal Hospital - RWP50",37,1,0,34,3,0,0,0,0]
["Q78","RC1","BEDFORD HOSPITAL NHS TRUST","RC110","Bedford Hospital South Wing - RC110",2,"*","*","*","*","*","*","*","*"]
["Q78","RWD","UNITED LINCOLNSHIRE HOSPITALS NHS TRUST","RWDLP","Grantham and District Hospital - RWDLP",0,"NA","NA",0,0,0,0,0,0]
["Q78","RNQ","KETTERING GENERAL HOSPITAL NHS FOUNDATION TRUST","RNQ51","Kettering General Hospital - RNQ51",43,1,0,35,8,0,0,0,0]
["Q78","RWE","UNIVERSITY HOSPITALS OF LEICESTER NHS TRUST","RWEAK","Leicester General Hospital - RWEAK",39,0.94871794871794868,0,29,8,2,0,0,0]
["Q78","RWE","UNIVERSITY HOSPITALS OF LEICESTER NHS TRUST","RWEAA","Leicester Royal Infirmary - RWEAA",41,0.95121951219512191,2.4390243902439025E-2,28,11,0,1,0,1]
["Q78","RWD","UNITED LINCOLNSHIRE HOSPITALS NHS TRUST","RWDDA","Lincoln County Hospital - RWDDA",20,0.95,0,16,3,1,0,0,0]
["Q78","RWH","EAST AND NORTH HERTFORDSHIRE NHS TRUST","RWH01","Lister Hospital - RWH01",31,0.93548387096774188,3.2258064516129031E-2,16,13,0,1,0,1]
["Q78","RC9","LUTON AND DUNSTABLE UNIVERSITY HOSPITAL NHS FOUNDATION TRUST","RC971","Luton and Dunstable Hospital - RC971",53,0.96226415094339623,0,36,15,0,0,0,2]
["Q78","RD8","MILTON KEYNES UNIVERSITY HOSPITAL NHS FOUNDATION TRUST","RD816","Milton Keynes Hospital - RD816",12,0.91666666666666663,0,"*","*","*","*","*","*"]
["Q78","RWD","UNITED LINCOLNSHIRE HOSPITALS NHS TRUST","RWDXXX","Non-hospital site - RWDXXX",0,"NA","NA",0,0,0,0,0,0]
["Q78","RWE","UNIVERSITY HOSPITALS OF LEICESTER NHS TRUST","RWEXXX","Non-hospital site - RWEXXX",136,0.99264705882352944,0,110,25,1,0,0,0]
["Q78","RWH","EAST AND NORTH HERTFORDSHIRE NHS TRUST","RWHXXX","Non-hospital site - RWHXXX",0,"NA","NA",0,0,0,0,0,0]
["Q78","RNS","NORTHAMPTON GENERAL HOSPITAL NHS TRUST","RNS01","Northampton General Hospital (Acute) - RNS01",66,0.93939393939393945,3.0303030303030304E-2,54,8,0,0,2,2]
["Q78","RWD","UNITED LINCOLNSHIRE HOSPITALS NHS TRUST","RWDLA","Pilgrim Hospital - RWDLA",0,"NA","NA",0,0,0,0,0,0]
["Q78","RWG","WEST HERTFORDSHIRE HOSPITALS NHS TRUST","RWG03","St Albans City Hospital - RWG03",1,"*","*","*","*","*","*","*","*"]
["Q78","RWG","WEST HERTFORDSHIRE HOSPITALS NHS TRUST","RWG02","Watford General Hospital - RWG02",58,0.94827586206896552,0,"*","*","*","*","*","*"]
["Q79","RDD","BASILDON AND THURROCK UNIVERSITY HOSPITALS NHS FOUNDATION TRUST","RDDH0","Basildon University Hospital - RDDH0",86,1,0,78,8,0,0,0,0]
["Q79","RQ8","MID ESSEX HOSPITAL SERVICES NHS TRUST","RQ8L0","Broomfield Hospital - RQ8L0",3,"*","*","*","*","*","*","*","*"]
["Q79","RDE","COLCHESTER HOSPITAL UNIVERSITY NHS FOUNDATION TRUST","RDEE2","Clacton and District Hospital - RDEE2",0,"NA","NA",0,0,0,0,0,0]
["Q79","RDE","COLCHESTER HOSPITAL UNIVERSITY NHS FOUNDATION TRUST","RDEE4","Colchester General Hospital - RDEE4",0,"NA","NA",0,0,0,0,0,0]
["Q79","RDE","COLCHESTER HOSPITAL UNIVERSITY NHS FOUNDATION TRUST","RDEEE","Harwich Maternity - RDEEE",0,"NA","NA",0,0,0,0,0,0]
["Q79","RGN","NORTH WEST ANGLIA NHS FOUNDATION TRUST","RGN90","Hinchingbrooke Hospital - RGN90",7,1,0,7,0,0,0,0,0]
["Q79","RGP","JAMES PAGET UNIVERSITY HOSPITALS NHS FOUNDATION TRUST","RGP75","James Paget University Hospital - RGP75",47,0.97872340425531912,0,42,4,1,0,0,0]
["Q79","RCX","THE QUEEN ELIZABETH HOSPITAL, KING'S LYNN, NHS FOUNDATION TRUST","RCXXXX","Non-hospital site - RCXXXX",30,1,0,25,5,0,0,0,0]
["Q79","RDE","COLCHESTER HOSPITAL UNIVERSITY NHS FOUNDATION TRUST","RDEXXX","Non-hospital site - RDEXXX",0,"NA","NA",0,0,0,0,0,0]
["Q79","RM1","NORFOLK AND NORWICH UNIVERSITY HOSPITALS NHS FOUNDATION TRUST","RM102","Norfolk and Norwich University Hospital - RM102",24,0.95833333333333337,0,16,7,1,0,0,0]
["Q79","RCX","THE QUEEN ELIZABETH HOSPITAL, KING'S LYNN, NHS FOUNDATION TRUST","RCX66","North Cambridgeshire Hospital - RCX66",14,1,0,11,3,0,0,0,0]
["Q79","RGN","NORTH WEST ANGLIA NHS FOUNDATION TRUST","RGN80","Peterborough City Hospital - RGN80",308,0.97402597402597402,3.246753246753247E-3,245,55,3,1,0,4]
["Q79","RQW","THE PRINCESS ALEXANDRA HOSPITAL NHS TRUST","RQWG0","Princess Alexandra Hospital - RQWG0",48,1,0,48,0,0,0,0,0]
["Q79","RGT","CAMBRIDGE UNIVERSITY HOSPITALS NHS FOUNDATION TRUST","RGT32","Rosie Hospital - RGT32",42,0.97619047619047616,2.3809523809523808E-2,22,19,0,1,0,0]
["Q79","RAJ","SOUTHEND UNIVERSITY HOSPITAL NHS FOUNDATION TRUST","RAJ01","Southend Hospital - RAJ01",3,"*","*","*","*","*","*","*","*"]
["Q79","RGQ","IPSWICH HOSPITAL NHS TRUST","RGQ02","The Ipswich Hospital NHS Trust - RGQ02",129,0.99224806201550386,7.7519379844961239E-3,110,18,0,1,0,0]
["Q79","RCX","THE QUEEN ELIZABETH HOSPITAL, KING'S LYNN, NHS FOUNDATION TRUST","RCX70","The Queen Elizabeth Hospital - RCX70",152,0.95394736842105265,1.3157894736842105E-2,110,35,3,2,0,2]
["Q79","RGR","WEST SUFFOLK NHS FOUNDATION TRUST","RGR50","West Suffolk Hospital - RGR50",59,0.98305084745762716,1.6949152542372881E-2,47,11,0,0,1,0]
["Q80","RBA","TAUNTON AND SOMERSET NHS FOUNDATION TRUST","RBAC3","Bridgwater Hospital - RBAC3",0,"NA","NA",0,0,0,0,0,0]
["Q80","RK9","PLYMOUTH HOSPITALS NHS TRUST","RK950","Derriford Hospital - RK950",6,0.83333333333333337,0,2,3,1,0,0,0]
["Q80","RH8","ROYAL DEVON AND EXETER NHS FOUNDATION TRUST","RH854","Honiton Hospital - RH 854",0,"NA","NA",0,0,0,0,0,0]
["Q80","RBA","TAUNTON AND SOMERSET NHS FOUNDATION TRUST","RBA11","Musgrove Park Hospital - RBA11",3,"*","*","*","*","*","*","*","*"]
["Q80","RBA","TAUNTON AND SOMERSET NHS FOUNDATION TRUST","RBAXXX","Non-hospital site - RBAXXX",0,"NA","NA",0,0,0,0,0,0]
["Q80","RK9","PLYMOUTH HOSPITALS NHS TRUST","RK9XXX","Non-hospital site - RK9XXX",101,0.96039603960396036,9.9009900990099011E-3,78,19,2,1,0,1]
["Q80","RBZ","NORTHERN DEVON HEALTHCARE NHS TRUST","RBZ12","North Devon District Hospital - RBZ12",1,"*","*","*","*","*","*","*","*"]
["Q80","RH8","ROYAL DEVON AND EXETER NHS FOUNDATION TRUST","RH833","Okehampton Community Hospital - RH833",0,"NA","NA",0,0,0,0,0,0]
["Q80","REF","ROYAL CORNWALL HOSPITALS NHS TRUST","REF12","Royal Cornwall Hospital (Treliske) - REF12",22,0.95454545454545459,4.5454545454545456E-2,16,5,0,1,0,0]
["Q80","RH8","ROYAL DEVON AND EXETER NHS FOUNDATION TRUST","RH801","Royal Devon and Exeter Hospital (Wonford) - RH801",1,"*","*","*","*","*","*","*","*"]
["Q80","RVJ","NORTH BRISTOL NHS TRUST","RVJ01","Southmead Hospital - RVJ01",11,1,0,8,3,0,0,0,0]
["Q80","RA7","UNIVERSITY HOSPITALS BRISTOL NHS FOUNDATION TRUST","RA707","St Michael's Hospital - RA707",74,1,0,57,17,0,0,0,0]
["Q80","RH8","ROYAL DEVON AND EXETER NHS FOUNDATION TRUST","RH853","Tiverton and District Hospital - RH853",0,"NA","NA",0,0,0,0,0,0]
["Q80","RA9","TORBAY AND SOUTH DEVON NHS FOUNDATION TRUST","RA901","Torbay Hospital - RA901",21,1,0,20,1,0,0,0,0]
["Q80","RA3","WESTON AREA HEALTH NHS TRUST","RA301","Weston General Hospital - RA301",21,1,0,18,3,0,0,0,0]
["Q80","RA4","YEOVIL DISTRICT HOSPITAL NHS FOUNDATION TRUST","RA430","Yeovil District Hospital - RA430",95,0.98947368421052628,0,75,19,0,0,0,1]
["Q81","RTK","ASHFORD AND ST PETER'S HOSPITALS NHS FOUNDATION TRUST","RTK02","Ashford Hospital - RTK02",0,"NA","NA",0,0,0,0,0,0]
["Q81","RXC","EAST SUSSEX HEALTHCARE NHS TRUST","RXC01","Conquest Hospital - RXC01",0,"NA","NA",0,0,0,0,0,0]
["Q81","RXC","EAST SUSSEX HEALTHCARE NHS TRUST","RXC14","Crowborough Birthing Centre - RXC14",0,"NA","NA",0,0,0,0,0,0]
["Q81","RN7","DARTFORD AND GRAVESHAM NHS TRUST","RN707","Darent Valley Hospital - RN707",1,"*","*","*","*","*","*","*","*"]
["Q81","RTP","SURREY AND SUSSEX HEALTHCARE NHS TRUST","RTP04","East Surrey Hospital - RTP04",38,0.94736842105263153,2.6315789473684209E-2,29,7,1,1,0,0]
["Q81","RXC","EAST SUSSEX HEALTHCARE NHS TRUST","RXC02","Eastbourne District General Hospital - RXC02",10,1,0,8,2,0,0,0,0]
["Q81","RDU","FRIMLEY HEALTH NHS FOUNDATION TRUST","RDU01","Frimley Park Hospital - RDU01",51,0.98039215686274506,0,41,9,1,0,0,0]
["Q81","RWF","MAIDSTONE AND TUNBRIDGE WELLS NHS TRUST","RWF03","Maidstone District General Hospital - RWF03",3,"*","*","*","*","*","*","*","*"]
["Q81","RPA","MEDWAY NHS FOUNDATION TRUST","RPA02","Medway Maritime Hospital - RPA02",82,1,0,77,5,0,0,0,0]
["Q81","RDU","FRIMLEY HEALTH NHS FOUNDATION TRUST","RDUXXX","Non-hospital site - RDUXXX",13,1,0,12,1,0,0,0,0]
["Q81","RVV","EAST KENT HOSPITALS UNIVERSITY NHS FOUNDATION TRUST","RVVXXX","Non-hospital site - RVVXXX",6,1,0,6,0,0,0,0,0]
["Q81","RWF","MAIDSTONE AND TUNBRIDGE WELLS NHS TRUST","RWFXXX","Non-hospital site - RWFXXX",10,1,0,"*","*","*","*","*","*"]
["Q81","RXC","EAST SUSSEX HEALTHCARE NHS TRUST","RXCXXX","Non-hospital site - RXCXXX",0,"NA","NA",0,0,0,0,0,0]
["Q81","RA2","ROYAL SURREY COUNTY HOSPITAL NHS FOUNDATION TRUST","RA201","Royal Surrey County Hospital - RA201",65,0.9538461538461539,1.5384615384615385E-2,54,8,1,1,0,1]
["Q81","RYR","WESTERN SUSSEX HOSPITALS NHS FOUNDATION TRUST","RYR16","St Richard's Hospital - RYR16",13,0.92307692307692313,7.6923076923076927E-2,10,2,0,0,1,0]
["Q81","RXH","BRIGHTON AND SUSSEX UNIVERSITY HOSPITALS NHS TRUST","RXH07","Sussex Eye Hospital - RXH07",1,"*","*","*","*","*","*","*","*"]
["Q81","RWF","MAIDSTONE AND TUNBRIDGE WELLS NHS TRUST","RWFTW","The Tunbridge Wells Hospital - RWFTW",0,"NA","NA",0,0,0,0,0,0]
["Q81","RDU","FRIMLEY HEALTH NHS FOUNDATION TRUST","RDU50","Wexham Park Hospital - RDU50",39,0.82051282051282048,0.12820512820512819,21,11,2,1,4,0]
["Q81","RYR","WESTERN SUSSEX HOSPITALS NHS FOUNDATION TRUST","RYR18","Worthing Hospital - RYR18",8,1,0,7,1,0,0,0,0]
["Q82","RTE","GLOUCESTERSHIRE HOSPITALS NHS FOUNDATION TRUST","RTE01","Cheltenham General Hospital - RTE01",0,"NA","NA",0,0,0,0,0,0]
["Q82","RD1","ROYAL UNITED HOSPITALS BATH NHS FOUNDATION TRUST","RD102","Chippenham Community Hospital -RD102",36,1,0,33,3,0,0,0,0]
["Q82","RD1","ROYAL UNITED HOSPITALS BATH NHS FOUNDATION TRUST","RD121","Frome Community Hospital  - RD121",9,1,0,7,2,0,0,0,0]
["Q82","RTE","GLOUCESTERSHIRE HOSPITALS NHS FOUNDATION TRUST","RTE03","Gloucestershire Royal Hospital - RTE03",0,"NA","NA",0,0,0,0,0,0]
["Q82","RTH","OXFORD UNIVERSITY HOSPITALS NHS FOUNDATION TRUST","RTH08","John Radcliffe Hospital - RTH08",68,0.94117647058823528,2.9411764705882353E-2,38,26,2,2,0,0]
["Q82","RN3","GREAT WESTERN HOSPITALS NHS FOUNDATION TRUST","RN3XXX","Non-hospital site - RN3XXX",3,"*","*","*","*","*","*","*","*"]
["Q82","RTE","GLOUCESTERSHIRE HOSPITALS NHS FOUNDATION TRUST","RTEXXX","Non-hospital site - RTEXXX",0,"NA","NA",0,0,0,0,0,0]
["Q82","RD1","ROYAL UNITED HOSPITALS BATH NHS FOUNDATION TRUST","RD129","Paulton Memorial Hospital  - RD129",6,1,0,6,0,0,0,0,0]
["Q82","RD1","ROYAL UNITED HOSPITALS BATH NHS FOUNDATION TRUST","RD130","Princess Anne Wing RUH  - RD130",11,0.90909090909090906,9.0909090909090912E-2,9,1,0,0,1,0]
["Q82","RHW","ROYAL BERKSHIRE NHS FOUNDATION TRUST","RHW01","Royal Berkshire Hospital - RHW01",104,0.98076923076923073,0,77,25,2,0,0,0]
["Q82","RNZ","SALISBURY NHS FOUNDATION TRUST","RNZ02","Salisbury District Hospital - RNZ02",10,0.9,0,8,1,1,0,0,0]
["Q82","RD1","ROYAL UNITED HOSPITALS BATH NHS FOUNDATION TRUST","RD167","Shepton Mallet Community Hospital  - RD167",0,"NA","NA",0,0,0,0,0,0]
["Q82","RXQ","BUCKINGHAMSHIRE HEALTHCARE NHS TRUST","RXQ02","Stoke Mandeville Hospital - RXQ02",31,1,0,28,3,0,0,0,0]
["Q82","RN3","GREAT WESTERN HOSPITALS NHS FOUNDATION TRUST","RN325","The Great Western Hospital - RN325",10,1,0,"*","*","*","*","*","*"]
["Q82","RD1","ROYAL UNITED HOSPITALS BATH NHS FOUNDATION TRUST","RD108","Trowbridge Community Hospital  - RD108",48,0.91666666666666663,4.1666666666666664E-2,35,9,2,2,0,0]
["Q83","RW6","PENNINE ACUTE HOSPITALS NHS TRUST","RW601","Fairfield General Hospital - RW601",0,"NA","NA",0,0,0,0,0,0]
["Q83","RY2","BRIDGEWATER COMMUNITY HEALTHCARE NHS FOUNDATION TRUST","RY28P","Health Care Resource Centre - RY28P",1,"*","*","*","*","*","*","*","*"]
["Q83","RY2","BRIDGEWATER COMMUNITY HEALTHCARE NHS FOUNDATION TRUST","RY2XXX","Non-hospital site - RY2XXX",23,1,0,"*","*","*","*","*","*"]
["Q83","RW6","PENNINE ACUTE HOSPITALS NHS TRUST","RW604","Rochdale Infirmary - RW604",15,1,0,13,2,0,0,0,0]
["Q83","RRF","WRIGHTINGTON, WIGAN AND LEIGH NHS FOUNDATION TRUST","RRF02","Royal Albert Edward Infirmary - RRF02",5,1,0,3,2,0,0,0,0]
["Q83","RMC","BOLTON NHS FOUNDATION TRUST","RMC01","Royal Bolton Hospital - RMC01",107,0.99065420560747663,0,88,18,1,0,0,0]
["Q83","RW6","PENNINE ACUTE HOSPITALS NHS TRUST","RW603","Royal Oldham Hospital - RW603",8,0.75,0.125,4,2,0,0,1,1]
["Q83","RW3","CENTRAL MANCHESTER UNIVERSITY HOSPITALS NHS FOUNDATION TRUST","RW3SM","St Mary's Hospital - RW3SM",130,0.96153846153846156,1.5384615384615385E-2,91,34,2,1,1,1]
["Q83","RWJ","STOCKPORT NHS FOUNDATION TRUST","RWJ09","Stepping Hill Hospital - RWJ09",29,0.93103448275862066,3.4482758620689655E-2,17,10,1,0,1,0]
["Q83","RMP","TAMESIDE AND GLOSSOP INTEGRATED CARE NHS FOUNDATION TRUST","RMP01","Tameside General Hospital - RMP01",8,1,0,4,4,0,0,0,0]
["Q83","RM2","UNIVERSITY HOSPITAL OF SOUTH MANCHESTER NHS FOUNDATION TRUST","RM202","Wythenshawe Hospital - RM202",34,0.97058823529411764,2.9411764705882353E-2,28,5,0,0,1,0]
["Q84","RXL","BLACKPOOL TEACHING HOSPITALS NHS FOUNDATION TRUST","RXL01","Blackpool Victoria Hospital - RXL01",8,1,0,7,1,0,0,0,0]
["Q84","RXL","BLACKPOOL TEACHING HOSPITALS NHS FOUNDATION TRUST","RXLXXX","Non-hospital site - RXLXXX",80,0.95,1.2500000000000001E-2,55,21,2,1,0,1]
["Q84","RXR","EAST LANCASHIRE HOSPITALS NHS TRUST","RXR20","Royal Blackburn Hospital - RXR20",93,1,0,85,8,0,0,0,0]
["Q84","RXN","LANCASHIRE TEACHING HOSPITALS NHS FOUNDATION TRUST","RXN02","Royal Preston Hospital - RXN02",33,0.93939393939393945,3.0303030303030304E-2,25,6,1,0,1,0]
["zIS1","NDE","ONE TO ONE (NORTH WEST) LIMITED","NDEXXX","Non-hospital site - NDEXXX",48,1,0,43,5,0,0,0,0]

{"sheet":"Region (Local Office) Q2","index":5,"n_rows":28,"n_cols":13,"rows_kept":28,"cut":false,"hidden":false,"merged":[[8,6,9,6],[8,7,8,12],[8,0,9,0],[8,1,9,1],[8,2,9,2],[8,3,9,3],[8,4,9,4],[8,5,9,5]]}
[]
[]
[]
[]
[]
[null,"   Sort data by:           "]
[]
[]
["Region (LO) Code","Region (Local Office)","Total Responses","Total Eligible","Response Rate","Percentage Recommended","Percentage Not  Recommended","Breakdown of Responses"]
[null,null,null,null,null,null,null,"Extremely Likely","Likely","Neither","Unlikely","Extremely Unlikely","Don't Know"]
[null,"England (including Independent Sector providers)",12482,52158,0.23931132328693586,0.96555039256529407,1.4821342733536292E-2,10050,2002,170,81,104,75]
[null,"England (excluding Independent Sector providers)",12468,52130,0.23917130251294841,0.9656721206288098,1.4837985242220084E-2,10039,2001,170,81,104,73]
[null,"Selection (excluding suppressed data)",{"$f":"SUBTOTAL(9,C14:C40)","v":12482},{"$f":"SUBTOTAL(9,D14:D40)","v":52158},{"$f":"IFERROR(C13/D13, \"NA\")","v":0.23931132328693586},{"$f":"IFERROR((H13+I13)/SUM(H13:M13), \"-\")","v":0.96555039256529407},{"$f":"IFERROR((K13+L13)/SUM(H13:M13), \"-\")","v":1.4821342733536292E-2},{"$f":"SUBTOTAL(9,H14:H40)","v":10050},2002,170,81,104,75]
["Q70","NHS England Wessex",603,2023,0.29807217004448838,0.97512437810945274,1.1608623548922056E-2,515,73,7,3,4,1]
["Q71","NHS England London",2901,10457,0.27742182270249593,0.94208893485005174,2.481902792140641E-2,2003,730,71,35,37,25]
["Q72","NHS England Yorkshire & Humber",1329,5230,0.25411089866156789,0.97291196388261847,1.2039127163280662E-2,1140,153,19,6,10,1]
["Q74","NHS England Cumbria & North East",642,2774,0.23143475126171592,0.98753894080996885,7.7881619937694704E-3,549,85,2,4,1,1]
["Q75","NHS England Cheshire & Merseyside",306,2439,0.12546125461254612,0.98039215686274506,6.5359477124183009E-3,267,33,1,1,1,3]
["Q76","NHS England North Midlands",704,3029,0.23241994057444701,0.97443181818181823,1.1363636363636364E-2,591,95,7,6,2,3]
["Q77","NHS England West Midlands",739,4188,0.17645654250238776,0.96075778078484442,1.6238159675236806E-2,600,110,11,5,7,6]
["Q78","NHS England Central Midlands",1101,3602,0.30566352026651861,0.95731153496821075,2.0890099909173478E-2,854,200,12,7,16,12]
["Q79","NHS England East",932,3831,0.24327851735839207,0.98605150214592274,3.2188841201716738E-3,832,87,4,0,3,6]
["Q80","NHS England South West",400,2731,0.14646649578908824,0.97,1.2500000000000001E-2,336,52,2,0,5,5]
["Q81","NHS England South East",1209,4692,0.25767263427109977,0.97270471464019848,1.0752688172043012E-2,994,182,13,5,8,7]
["Q82","NHS England South Central",694,2856,0.24299719887955182,0.97550432276657062,1.0086455331412104E-2,584,93,10,2,5,0]
["Q83","NHS England Greater Manchester",639,3206,0.19931378665003119,0.96870109546165883,1.7214397496087636E-2,533,86,8,6,5,1]
["Q84","NHS England Lancashire",269,1072,0.25093283582089554,0.97769516728624539,3.7174721189591076E-3,241,22,3,1,0,2]
["zIS1","Independent Sector Provider",14,28,0.5,0.8571428571428571,0,11,1,0,0,0,2]

{"sheet":"Trusts Q2","index":6,"n_rows":148,"n_cols":21,"rows_kept":148,"cut":false,"hidden":false,"merged":[[8,6,9,6],[8,7,9,7],[8,8,8,13],[8,14,8,20],[8,0,9,0],[8,1,9,1],[8,2,9,2],[8,3,9,3],[8,4,9,4],[8,5,9,5]]}
[]
[]
[]
[]
[]
[null,"   Sort data by:           "]
[]
[]
["Region (LO) Code","Trust Code","Trust Name","Total Responses","Total Eligible","Response Rate","Percentage Recommended","Percentage Not  Recommended","Breakdown of Responses",null,null,null,null,null,"Mode of Collection"]
[null,null,null,null,null,null,null,null,"Extremely Likely","Likely","Neither","Unlikely","Extremely Unlikely","Don't Know","SMS/Text / Smartphone App","Electronic tablet/kiosk at point of discharge","Paper / postcard at point of discharge","Paper survey sent to the patients home","Telephone survey once patient is home","Online survey once patient is home","Other"]
[null,null,"England (including Independent Sector providers)",12482,52158,0.23931132328693586,0.96555039256529407,1.4821342733536292E-2,10050,2002,170,81,104,75,1419,2991,7609,231,7,58,167]
[null,null,"England (excluding Independent Sector providers)",12468,52130,0.23917130251294841,0.9656721206288098,1.4837985242220084E-2,10039,2001,170,81,104,73,1419,2977,7609,231,7,58,167]
[null,null,"Selection (excluding suppressed data)",{"$f":"SUBTOTAL(9,D14:D299)","v":12482},{"$f":"SUBTOTAL(9,E14:E299)","v":52158},{"$f":"IFERROR(D13/E13, \"NA\")","v":0.23931132328693586},{"$f":"IFERROR((I13+J13)/SUM(I13:N13), \"-\")","v":0.96546449847045568},{"$f":"IFERROR((L13+M13)/SUM(I13:N13), \"-\")","v":1.4812429560457254E-2},{"$f":"SUBTOTAL(9,I14:I299)","v":9998},1995,170,80,104,75,{"$f":"SUBTOTAL(9,O14:O299)","v":1419},2987,7554,231,7,57,{"$f":"SUBTOTAL(9,U14:U299)","v":167}]
["Q70","RBD","DORSET COUNTY HOSPITAL NHS FOUNDATION TRUST",55,148,0.3716216216216216,0.98181818181818181,1.8181818181818181E-2,52,2,0,1,0,0,55,0,0,0,0,0,0]
["Q70","RN5","HAMPSHIRE HOSPITALS NHS FOUNDATION TRUST",177,438,0.4041095890410959,0.98870056497175141,0,157,18,2,0,0,0,0,0,177,0,0,0,0]
["Q70","R1F","ISLE OF WIGHT NHS TRUST",18,99,0.18181818181818182,1,0,16,2,0,0,0,0,0,0,18,0,0,0,0]
["Q70","RD3","POOLE HOSPITAL NHS FOUNDATION TRUST",102,357,0.2857142857142857,0.92156862745098034,3.9215686274509803E-2,91,3,3,1,3,1,66,0,36,0,0,0,0]
["Q70","RHU","PORTSMOUTH HOSPITALS NHS TRUST",90,473,0.19027484143763213,0.98888888888888893,0,77,12,1,0,0,0,0,0,90,0,0,0,0]
["Q70","RDZ","THE ROYAL BOURNEMOUTH AND CHRISTCHURCH HOSPITALS NHS FOUNDATION TRUST",11,24,0.45833333333333331,1,0,11,0,0,0,0,0,0,0,11,0,0,0,0]
["Q70","RHM","UNIVERSITY HOSPITAL SOUTHAMPTON NHS FOUNDATION TRUST",150,484,0.30991735537190085,0.98,1.3333333333333334E-2,111,36,1,1,1,0,0,0,148,0,0,0,2]
["Q71","RF4","BARKING, HAVERING AND REDBRIDGE UNIVERSITY HOSPITALS NHS TRUST",258,696,0.37068965517241381,0.98449612403100772,3.875968992248062E-3,217,37,0,0,1,3,0,38,220,0,0,0,0]
["Q71","R1H","BARTS HEALTH NHS TRUST",439,1382,0.31765557163531116,0.92938496583143504,2.9612756264236904E-2,284,124,15,8,5,3,0,292,144,0,0,3,0]
["Q71","RQM","CHELSEA AND WESTMINSTER HOSPITAL NHS FOUNDATION TRUST",178,744,0.239247311827957,0.949438202247191,4.49438202247191E-2,146,23,1,4,4,0,141,0,30,0,0,7,0]
["Q71","RJ6","CROYDON HEALTH SERVICES NHS TRUST",45,348,0.12931034482758622,0.93333333333333335,4.4444444444444446E-2,39,3,1,1,1,0,0,0,45,0,0,0,0]
["Q71","RVR","EPSOM AND ST HELIER UNIVERSITY HOSPITALS NHS TRUST",85,405,0.20987654320987653,0.9882352941176471,1.1764705882352941E-2,75,9,0,1,0,0,42,0,42,0,0,1,0]
["Q71","RJ1","GUY'S AND ST THOMAS' NHS FOUNDATION TRUST",37,542,6.8265682656826573E-2,0.94594594594594594,0,29,6,1,0,0,1,0,0,37,0,0,0,0]
["Q71","RQX","HOMERTON UNIVERSITY HOSPITAL NHS FOUNDATION TRUST",27,500,5.3999999999999999E-2,0.92592592592592593,7.407407407407407E-2,22,3,0,0,2,0,0,24,2,0,0,1,0]
["Q71","RYJ","IMPERIAL COLLEGE HEALTHCARE NHS TRUST",239,765,0.31241830065359477,0.93305439330543938,2.9288702928870293E-2,162,61,5,3,4,4,0,212,27,0,0,0,0]
["Q71","RJZ","KING'S COLLEGE HOSPITAL NHS FOUNDATION TRUST",62,623,9.9518459069020862E-2,0.90322580645161288,6.4516129032258063E-2,40,16,2,3,1,0,0,62,0,0,0,0,0]
["Q71","RAX","KINGSTON HOSPITAL NHS FOUNDATION TRUST",54,476,0.1134453781512605,1,0,43,11,0,0,0,0,0,54,0,0,0,0,0]
["Q71","RJ2","LEWISHAM AND GREENWICH NHS TRUST",395,723,0.54633471645919773,0.9341772151898734,1.7721518987341773E-2,277,92,13,6,1,6,0,0,395,0,0,0,0]
["Q71","R1K","LONDON NORTH WEST HEALTHCARE NHS TRUST",354,436,0.81192660550458717,0.90112994350282483,3.954802259887006E-2,169,150,18,6,8,3,0,86,268,0,0,0,0]
["Q71","RAP","NORTH MIDDLESEX UNIVERSITY HOSPITAL NHS TRUST",165,405,0.40740740740740738,0.87878787878787878,6.0606060606060608E-2,97,48,6,2,8,4,0,165,0,0,0,0,0]
["Q71","RAL","ROYAL FREE LONDON NHS FOUNDATION TRUST",178,726,0.24517906336088155,0.97752808988764039,0,121,53,3,0,0,1,0,0,178,0,0,0,0]
["Q71","RJ7","ST GEORGE'S UNIVERSITY HOSPITALS NHS FOUNDATION TRUST",10,432,2.3148148148148147E-2,1,0,8,2,0,0,0,0,0,10,0,0,0,0,0]
["Q71","RAS","THE HILLINGDON HOSPITALS NHS FOUNDATION TRUST",166,420,0.39523809523809522,0.98192771084337349,6.024096385542169E-3,119,44,2,0,1,0,0,0,166,0,0,0,0]
["Q71","RKE","THE WHITTINGTON HOSPITAL NHS TRUST",108,321,0.3364485981308411,0.95370370370370372,9.2592592592592587E-3,68,35,4,1,0,0,0,108,0,0,0,0,0]
["Q71","RRV","UNIVERSITY COLLEGE LONDON HOSPITALS NHS FOUNDATION TRUST",101,513,0.19688109161793371,0.99009900990099009,9.9009900990099011E-3,87,13,0,0,1,0,0,0,100,0,0,1,0]
["Q72","RCF","AIREDALE NHS FOUNDATION TRUST",34,176,0.19318181818181818,0.91176470588235292,2.9411764705882353E-2,29,2,2,1,0,0,1,1,30,0,0,2,0]
["Q72","RFF","BARNSLEY HOSPITAL NHS FOUNDATION TRUST",46,250,0.184,1,0,43,3,0,0,0,0,0,0,46,0,0,0,0]
["Q72","RAE","BRADFORD TEACHING HOSPITALS NHS FOUNDATION TRUST",63,449,0.14031180400890869,1,0,63,0,0,0,0,0,0,2,61,0,0,0,0]
["Q72","RWY","CALDERDALE AND HUDDERSFIELD NHS FOUNDATION TRUST",171,445,0.38426966292134829,0.98245614035087714,5.8479532163742687E-3,142,26,2,1,0,0,0,171,0,0,0,0,0]
["Q72","RP5","DONCASTER AND BASSETLAW TEACHING HOSPITALS NHS FOUNDATION TRUST",113,442,0.25565610859728505,0.97345132743362828,8.8495575221238937E-3,101,9,1,1,0,1,0,0,113,0,0,0,0]
["Q72","RCD","HARROGATE AND DISTRICT NHS FOUNDATION TRUST",55,165,0.33333333333333331,0.98181818181818181,0,51,3,1,0,0,0,0,0,55,0,0,0,0]
["Q72","RWA","HULL AND EAST YORKSHIRE HOSPITALS NHS TRUST",5,432,1.1574074074074073E-2,0.8,0,3,1,1,0,0,0,0,0,5,0,0,0,0]
["Q72","RR8","LEEDS TEACHING HOSPITALS NHS TRUST",259,853,0.30363423212192264,0.95366795366795365,3.0888030888030889E-2,209,38,4,0,8,0,199,0,60,0,0,0,0]
["Q72","RXF","MID YORKSHIRE HOSPITALS NHS TRUST",209,511,0.4090019569471624,0.97607655502392343,9.5693779904306216E-3,176,28,3,2,0,0,176,28,3,2,0,0,0]
["Q72","RJL","NORTHERN LINCOLNSHIRE AND GOOLE NHS FOUNDATION TRUST",24,354,6.7796610169491525E-2,1,0,24,0,0,0,0,0,0,0,0,24,0,0,0]
["Q72","RHQ","SHEFFIELD TEACHING HOSPITALS NHS FOUNDATION TRUST",182,569,0.31985940246045697,0.95604395604395609,1.6483516483516484E-2,143,31,5,1,2,0,0,0,181,0,0,1,0]
["Q72","RFR","THE ROTHERHAM NHS FOUNDATION TRUST",70,210,0.33333333333333331,1,0,66,4,0,0,0,0,0,0,70,0,0,0,0]
["Q72","RCB","YORK TEACHING HOSPITAL NHS FOUNDATION TRUST",98,374,0.26203208556149732,1,0,90,8,0,0,0,0,0,0,98,0,0,0,0]
["Q74","RLN","CITY HOSPITALS SUNDERLAND NHS FOUNDATION TRUST",108,252,0.42857142857142855,1,0,97,11,0,0,0,0,0,0,108,0,0,0,0]
["Q74","RXP","COUNTY DURHAM AND DARLINGTON NHS FOUNDATION TRUST",70,424,0.1650943396226415,1,0,52,18,0,0,0,0,0,0,70,0,0,0,0]
["Q74","RR7","GATESHEAD HEALTH NHS FOUNDATION TRUST",48,149,0.32214765100671139,0.97916666666666663,0,40,7,1,0,0,0,0,13,35,0,0,0,0]
["Q74","RNL","NORTH CUMBRIA UNIVERSITY HOSPITALS NHS TRUST",86,224,0.38392857142857145,1,0,70,16,0,0,0,0,0,0,86,0,0,0,0]
["Q74","RVW","NORTH TEES AND HARTLEPOOL NHS FOUNDATION TRUST",12,228,5.2631578947368418E-2,0.91666666666666663,8.3333333333333329E-2,8,3,0,1,0,0,0,0,12,0,0,0,0]
["Q74","RTF","NORTHUMBRIA HEALTHCARE NHS FOUNDATION TRUST",47,188,0.25,0.95744680851063835,4.2553191489361701E-2,38,7,0,2,0,0,0,0,47,0,0,0,0]
["Q74","RTR","SOUTH TEES HOSPITALS NHS FOUNDATION TRUST",45,432,0.10416666666666667,0.97777777777777775,2.2222222222222223E-2,38,6,0,0,1,0,0,0,45,0,0,0,0]
["Q74","RE9","SOUTH TYNESIDE NHS FOUNDATION TRUST",26,93,0.27956989247311825,1,0,25,1,0,0,0,0,0,0,26,0,0,0,0]
["Q74","RTD","THE NEWCASTLE UPON TYNE HOSPITALS NHS FOUNDATION TRUST",170,536,0.31716417910447764,0.98235294117647054,5.8823529411764705E-3,155,12,1,1,0,1,0,1,169,0,0,0,0]
["Q74","RTX","UNIVERSITY HOSPITALS OF MORECAMBE BAY NHS FOUNDATION TRUST",30,248,0.12096774193548387,1,0,26,4,0,0,0,0,0,0,30,0,0,0,0]
["Q75","RJR","COUNTESS OF CHESTER HOSPITAL NHS FOUNDATION TRUST",77,267,0.28838951310861421,0.93506493506493504,2.5974025974025976E-2,66,6,1,1,1,2,40,0,37,0,0,0,0]
["Q75","RJN","EAST CHESHIRE NHS TRUST",49,130,0.37692307692307692,0.97959183673469385,0,44,4,0,0,0,1,0,0,49,0,0,0,0]
["Q75","REP","LIVERPOOL WOMEN'S NHS FOUNDATION TRUST",1,770,1.2987012987012987E-3,"*","*","*","*","*","*","*","*","*","*","*","*","*","*","*"]
["Q75","RBT","MID CHESHIRE HOSPITALS NHS FOUNDATION TRUST",27,240,0.1125,1,0,24,3,0,0,0,0,0,0,27,0,0,0,0]
["Q75","RVY","SOUTHPORT AND ORMSKIRK HOSPITAL NHS TRUST",13,207,6.280193236714976E-2,1,0,"*","*","*","*","*","*","*","*","*","*","*","*","*"]
["Q75","RBN","ST HELENS AND KNOWSLEY HOSPITAL SERVICES NHS TRUST",32,319,0.10031347962382445,1,0,27,5,0,0,0,0,0,0,32,0,0,0,0]
["Q75","RWW","WARRINGTON AND HALTON HOSPITALS NHS FOUNDATION TRUST",26,213,0.12206572769953052,1,0,25,1,0,0,0,0,0,0,26,0,0,0,0]
["Q75","RBL","WIRRAL UNIVERSITY TEACHING HOSPITAL NHS FOUNDATION TRUST",81,293,0.2764505119453925,1,0,70,11,0,0,0,0,0,0,81,0,0,0,0]
["Q76","RJF","BURTON HOSPITALS NHS FOUNDATION TRUST",91,247,0.36842105263157893,0.98901098901098905,1.098901098901099E-2,86,4,0,1,0,0,1,0,90,0,0,0,0]
["Q76","RFS","CHESTERFIELD ROYAL HOSPITAL NHS FOUNDATION TRUST",61,246,0.24796747967479674,0.95081967213114749,1.6393442622950821E-2,41,17,0,1,0,2,0,61,0,0,0,0,0]
["Q76","RTG","DERBY TEACHING HOSPITALS NHS FOUNDATION TRUST",238,478,0.497907949790795,0.97899159663865543,8.4033613445378148E-3,181,52,2,1,1,1,0,0,238,0,0,0,0]
["Q76","RX1","NOTTINGHAM UNIVERSITY HOSPITALS NHS TRUST",108,801,0.1348314606741573,0.98148148148148151,0,96,10,2,0,0,0,0,0,108,0,0,0,0]
["Q76","RK5","SHERWOOD FOREST HOSPITALS NHS FOUNDATION TRUST",81,288,0.28125,0.92592592592592593,4.9382716049382713E-2,65,10,2,3,1,0,0,0,80,0,0,1,0]
["Q76","RXW","SHREWSBURY AND TELFORD HOSPITAL NHS TRUST",40,429,9.3240093240093247E-2,1,0,39,1,0,0,0,0,0,0,40,0,0,0,0]
["Q76","RJE","UNIVERSITY HOSPITALS OF NORTH MIDLANDS NHS TRUST",85,540,0.15740740740740741,0.9882352941176471,0,83,1,1,0,0,0,0,0,85,0,0,0,0]
["Q77","RQ3","BIRMINGHAM WOMEN'S AND CHILDREN'S NHS FOUNDATION TRUST",80,647,0.12364760432766615,0.95,2.5000000000000001E-2,59,17,1,0,2,1,0,0,77,0,0,3,0]
["Q77","RLT","GEORGE ELIOT HOSPITAL NHS TRUST",83,159,0.5220125786163522,0.96385542168674698,3.614457831325301E-2,69,11,0,1,2,0,55,0,28,0,0,0,0]
["Q77","RR1","HEART OF ENGLAND NHS FOUNDATION TRUST",34,843,4.0332147093712932E-2,1,0,32,2,0,0,0,0,0,0,34,0,0,0,0]
["Q77","RXK","SANDWELL AND WEST BIRMINGHAM HOSPITALS NHS TRUST",65,497,0.13078470824949698,0.83076923076923082,6.1538461538461542E-2,30,24,7,2,2,0,0,65,0,0,0,0,0]
["Q77","RJC","SOUTH WARWICKSHIRE NHS FOUNDATION TRUST",42,264,0.15909090909090909,0.90476190476190477,0,27,11,0,0,0,4,0,0,41,0,0,1,0]
["Q77","RNA","THE DUDLEY GROUP NHS FOUNDATION TRUST",171,338,0.50591715976331364,0.98830409356725146,5.8479532163742687E-3,145,24,1,0,1,0,0,0,171,0,0,0,0]
["Q77","RL4","THE ROYAL WOLVERHAMPTON NHS TRUST",45,380,0.11842105263157894,1,0,44,1,0,0,0,0,0,0,45,0,0,0,0]
["Q77","RKB","UNIVERSITY HOSPITALS COVENTRY AND WARWICKSHIRE NHS TRUST",76,519,0.1464354527938343,0.98684210526315785,0,72,3,0,0,0,1,0,0,76,0,0,0,0]
["Q77","RBK","WALSALL HEALTHCARE NHS TRUST",20,196,0.10204081632653061,0.95,0.05,18,1,0,1,0,0,20,0,0,0,0,0,0]
["Q77","RWP","WORCESTERSHIRE ACUTE HOSPITALS NHS TRUST",61,200,0.30499999999999999,1,0,58,3,0,0,0,0,0,0,61,0,0,0,0]
["Q77","RLQ","WYE VALLEY NHS TRUST",62,145,0.42758620689655175,0.95161290322580649,1.6129032258064516E-2,46,13,2,1,0,0,0,62,0,0,0,0,0]
["Q78","RC1","BEDFORD HOSPITAL NHS TRUST",43,86,0.5,1,0,40,3,0,0,0,0,43,0,0,0,0,0,0]
["Q78","RWH","EAST AND NORTH HERTFORDSHIRE NHS TRUST",232,477,0.48637316561844862,0.97413793103448276,8.6206896551724137E-3,169,57,4,1,1,0,0,232,0,0,0,0,0]
["Q78","RNQ","KETTERING GENERAL HOSPITAL NHS FOUNDATION TRUST",67,270,0.24814814814814815,1,0,62,5,0,0,0,0,0,0,67,0,0,0,0]
["Q78","RC9","LUTON AND DUNSTABLE UNIVERSITY HOSPITAL NHS FOUNDATION TRUST",50,389,0.12853470437017994,0.96,0.02,33,15,0,0,1,1,0,34,16,0,0,0,0]
["Q78","RD8","MILTON KEYNES UNIVERSITY HOSPITAL NHS FOUNDATION TRUST",5,295,1.6949152542372881E-2,1,0,4,1,0,0,0,0,0,0,2,0,0,3,0]
["Q78","RNS","NORTHAMPTON GENERAL HOSPITAL NHS TRUST",39,389,0.10025706940874037,1,0,36,3,0,0,0,0,0,0,37,0,0,2,0]
["Q78","RWD","UNITED LINCOLNSHIRE HOSPITALS NHS TRUST",62,445,0.1393258426966292,0.967741935483871,3.2258064516129031E-2,52,8,0,0,2,0,0,0,62,0,0,0,0]
["Q78","RWE","UNIVERSITY HOSPITALS OF LEICESTER NHS TRUST",479,823,0.58201701093560143,0.93110647181628392,3.5490605427974949E-2,367,79,5,5,12,11,0,479,0,0,0,0,0]
["Q78","RWG","WEST HERTFORDSHIRE HOSPITALS NHS TRUST",124,428,0.28971962616822428,0.967741935483871,8.0645161290322578E-3,91,29,3,1,0,0,0,0,123,0,0,1,0]
["Q79","RDD","BASILDON AND THURROCK UNIVERSITY HOSPITALS NHS FOUNDATION TRUST",15,169,8.8757396449704137E-2,1,0,15,0,0,0,0,0,0,0,15,0,0,0,0]
["Q79","RGT","CAMBRIDGE UNIVERSITY HOSPITALS NHS FOUNDATION TRUST",268,429,0.62470862470862476,0.99626865671641796,0,230,37,1,0,0,0,0,252,16,0,0,0,0]
["Q79","RDE","COLCHESTER HOSPITAL UNIVERSITY NHS FOUNDATION TRUST",29,273,0.10622710622710622,1,0,25,4,0,0,0,0,0,0,29,0,0,0,0]
["Q79","RGQ","IPSWICH HOSPITAL NHS TRUST",131,308,0.42532467532467533,0.96183206106870234,7.6335877862595417E-3,107,19,3,0,1,1,0,129,1,0,0,1,0]
["Q79","RGP","JAMES PAGET UNIVERSITY HOSPITALS NHS FOUNDATION TRUST",36,189,0.19047619047619047,1,0,35,1,0,0,0,0,0,0,36,0,0,0,0]
["Q79","RQ8","MID ESSEX HOSPITAL SERVICES NHS TRUST",59,363,0.16253443526170799,0.98305084745762716,1.6949152542372881E-2,51,7,0,0,1,0,54,0,0,0,5,0,0]
["Q79","RM1","NORFOLK AND NORWICH UNIVERSITY HOSPITALS NHS FOUNDATION TRUST",29,459,6.3180827886710242E-2,1,0,27,2,0,0,0,0,0,27,2,0,0,0,0]
["Q79","RGN","NORTH WEST ANGLIA NHS FOUNDATION TRUST",106,573,0.18499127399650961,0.98113207547169812,0,96,8,0,0,0,2,0,0,106,0,0,0,0]
["Q79","RAJ","SOUTHEND UNIVERSITY HOSPITAL NHS FOUNDATION TRUST",31,322,9.627329192546584E-2,1,0,31,0,0,0,0,0,0,0,30,0,0,1,0]
["Q79","RQW","THE PRINCESS ALEXANDRA HOSPITAL NHS TRUST",165,360,0.45833333333333331,0.97575757575757571,6.0606060606060606E-3,155,6,0,0,1,3,0,0,0,0,0,0,165]
["Q79","RCX","THE QUEEN ELIZABETH HOSPITAL, KING'S LYNN, NHS FOUNDATION TRUST",32,177,0.1807909604519774,1,0,29,3,0,0,0,0,0,0,31,0,0,1,0]
["Q79","RGR","WEST SUFFOLK NHS FOUNDATION TRUST",31,209,0.14832535885167464,1,0,31,0,0,0,0,0,0,0,31,0,0,0,0]
["Q80","RVJ","NORTH BRISTOL NHS TRUST",76,527,0.1442125237191651,0.94736842105263153,3.9473684210526314E-2,62,10,0,0,3,1,76,0,0,0,0,0,0]
["Q80","RBZ","NORTHERN DEVON HEALTHCARE NHS TRUST",3,110,2.7272727272727271E-2,"*","*","*","*","*","*","*","*","*","*","*","*","*","*","*"]
["Q80","RK9","PLYMOUTH HOSPITALS NHS TRUST",124,350,0.35428571428571426,0.99193548387096775,0,107,16,1,0,0,0,0,87,37,0,0,0,0]
["Q80","REF","ROYAL CORNWALL HOSPITALS NHS TRUST",66,358,0.18435754189944134,0.96969696969696972,1.5151515151515152E-2,54,10,1,0,1,0,0,0,66,0,0,0,0]
["Q80","RH8","ROYAL DEVON AND EXETER NHS FOUNDATION TRUST",1,324,3.0864197530864196E-3,"*","*","*","*","*","*","*","*","*","*","*","*","*","*","*"]
["Q80","RBA","TAUNTON AND SOMERSET NHS FOUNDATION TRUST",33,261,0.12643678160919541,1,0,30,3,0,0,0,0,0,0,33,0,0,0,0]
["Q80","RA9","TORBAY AND SOUTH DEVON NHS FOUNDATION TRUST",17,199,8.5427135678391955E-2,1,0,15,2,0,0,0,0,0,0,17,0,0,0,0]
["Q80","RA7","UNIVERSITY HOSPITALS BRISTOL NHS FOUNDATION TRUST",70,448,0.15625,0.9285714285714286,1.4285714285714285E-2,57,8,0,0,1,4,0,0,70,0,0,0,0]
["Q80","RA3","WESTON AREA HEALTH NHS TRUST",6,14,0.42857142857142855,1,0,5,1,0,0,0,0,0,0,6,0,0,0,0]
["Q80","RA4","YEOVIL DISTRICT HOSPITAL NHS FOUNDATION TRUST",4,140,2.8571428571428571E-2,"*","*","*","*","*","*","*","*","*","*","*","*","*","*","*"]
["Q81","RTK","ASHFORD AND ST PETER'S HOSPITALS NHS FOUNDATION TRUST",138,308,0.44805194805194803,0.91304347826086951,3.6231884057971016E-2,87,39,4,0,5,3,0,0,137,0,0,1,0]
["Q81","RXH","BRIGHTON AND SUSSEX UNIVERSITY HOSPITALS NHS TRUST",111,462,0.24025974025974026,0.98198198198198194,9.0090090090090089E-3,95,14,0,0,1,1,111,0,0,0,0,0,0]
["Q81","RN7","DARTFORD AND GRAVESHAM NHS TRUST",69,375,0.184,1,0,66,3,0,0,0,0,0,0,69,0,0,0,0]
["Q81","RVV","EAST KENT HOSPITALS UNIVERSITY NHS FOUNDATION TRUST",135,577,0.2339688041594454,0.97777777777777775,7.4074074074074077E-3,119,13,1,1,0,1,0,0,0,135,0,0,0]
["Q81","RXC","EAST SUSSEX HEALTHCARE NHS TRUST",115,274,0.41970802919708028,0.99130434782608701,0,82,32,1,0,0,0,0,115,0,0,0,0,0]
["Q81","RDU","FRIMLEY HEALTH NHS FOUNDATION TRUST",173,800,0.21625,0.95375722543352603,1.7341040462427744E-2,142,23,4,3,0,1,0,0,172,0,0,1,0]
["Q81","RWF","MAIDSTONE AND TUNBRIDGE WELLS NHS TRUST",66,519,0.12716763005780346,0.95454545454545459,1.5151515151515152E-2,55,8,1,1,0,1,0,0,65,0,0,1,0]
["Q81","RPA","MEDWAY NHS FOUNDATION TRUST",117,302,0.38741721854304634,1,0,114,3,0,0,0,0,0,0,117,0,0,0,0]
["Q81","RA2","ROYAL SURREY COUNTY HOSPITAL NHS FOUNDATION TRUST",46,244,0.18852459016393441,1,0,44,2,0,0,0,0,11,0,35,0,0,0,0]
["Q81","RTP","SURREY AND SUSSEX HEALTHCARE NHS TRUST",22,376,5.8510638297872342E-2,1,0,21,1,0,0,0,0,0,0,18,0,0,4,0]
["Q81","RYR","WESTERN SUSSEX HOSPITALS NHS FOUNDATION TRUST",217,455,0.47692307692307695,0.98156682027649766,9.2165898617511521E-3,169,44,2,0,2,0,0,3,198,0,0,16,0]
["Q82","RXQ","BUCKINGHAMSHIRE HEALTHCARE NHS TRUST",209,519,0.40269749518304432,0.97607655502392343,9.5693779904306216E-3,171,33,3,0,2,0,0,0,209,0,0,0,0]
["Q82","RTE","GLOUCESTERSHIRE HOSPITALS NHS FOUNDATION TRUST",124,441,0.28117913832199548,0.967741935483871,1.6129032258064516E-2,116,4,2,0,2,0,122,0,0,0,2,0,0]
["Q82","RN3","GREAT WESTERN HOSPITALS NHS FOUNDATION TRUST",24,371,6.4690026954177901E-2,1,0,23,1,0,0,0,0,0,0,24,0,0,0,0]
["Q82","RTH","OXFORD UNIVERSITY HOSPITALS NHS FOUNDATION TRUST",59,537,0.10986964618249534,0.96610169491525422,1.6949152542372881E-2,48,9,1,1,0,0,0,0,58,0,0,1,0]
["Q82","RHW","ROYAL BERKSHIRE NHS FOUNDATION TRUST",193,421,0.45843230403800472,0.97927461139896377,5.1813471502590676E-3,149,40,3,1,0,0,0,69,123,0,0,1,0]
["Q82","RD1","ROYAL UNITED HOSPITALS BATH NHS FOUNDATION TRUST",73,378,0.19312169312169311,0.98630136986301364,1.3698630136986301E-2,68,4,0,0,1,0,0,0,73,0,0,0,0]
["Q82","RNZ","SALISBURY NHS FOUNDATION TRUST",12,189,6.3492063492063489E-2,0.91666666666666663,0,9,2,1,0,0,0,0,0,12,0,0,0,0]
["Q83","RMC","BOLTON NHS FOUNDATION TRUST",131,572,0.22902097902097901,0.96183206106870234,1.5267175572519083E-2,116,10,3,1,1,0,61,0,0,70,0,0,0]
["Q83","RY2","BRIDGEWATER COMMUNITY HEALTHCARE NHS FOUNDATION TRUST",0,0,"NA","NA","NA",0,0,0,0,0,0,0,0,0,0,0,0,0]
["Q83","RW3","CENTRAL MANCHESTER UNIVERSITY HOSPITALS NHS FOUNDATION TRUST",1,800,1.25E-3,"*","*","*","*","*","*","*","*","*","*","*","*","*","*","*"]
["Q83","RW6","PENNINE ACUTE HOSPITALS NHS TRUST",134,736,0.18206521739130435,0.96268656716417911,2.2388059701492536E-2,108,21,2,0,3,0,30,0,104,0,0,0,0]
["Q83","RWJ","STOCKPORT NHS FOUNDATION TRUST",136,305,0.4459016393442623,0.97058823529411764,2.2058823529411766E-2,110,22,0,2,1,1,0,0,136,0,0,0,0]
["Q83","RMP","TAMESIDE AND GLOSSOP INTEGRATED CARE NHS FOUNDATION TRUST",59,192,0.30729166666666669,0.98305084745762716,1.6949152542372881E-2,41,17,0,1,0,0,0,51,8,0,0,0,0]
["Q83","RM2","UNIVERSITY HOSPITAL OF SOUTH MANCHESTER NHS FOUNDATION TRUST",37,362,0.10220994475138122,1,0,"*","*","*","*","*","*","*","*","*","*","*","*","*"]
["Q83","RRF","WRIGHTINGTON, WIGAN AND LEIGH NHS FOUNDATION TRUST",141,239,0.58995815899581594,0.97163120567375882,7.0921985815602835E-3,123,14,3,1,0,0,0,0,139,0,0,2,0]
["Q84","RXL","BLACKPOOL TEACHING HOSPITALS NHS FOUNDATION TRUST",83,264,0.31439393939393939,0.95180722891566261,1.2048192771084338E-2,66,13,2,1,0,1,0,40,43,0,0,0,0]
["Q84","RXR","EAST LANCASHIRE HOSPITALS NHS TRUST",148,565,0.26194690265486725,0.98648648648648651,0,140,6,1,0,0,1,77,0,71,0,0,0,0]
["Q84","RXN","LANCASHIRE TEACHING HOSPITALS NHS FOUNDATION TRUST",38,243,0.15637860082304528,1,0,35,3,0,0,0,0,38,0,0,0,0,0,0]
["zIS1","NDE","ONE TO ONE (NORTH WEST) LIMITED",14,28,0.5,0.8571428571428571,0,11,1,0,0,0,2,0,14,0,0,0,0,0]

{"sheet":"Sites Q2","index":7,"n_rows":262,"n_cols":16,"rows_kept":262,"cut":false,"hidden":false,"merged":[[8,5,9,5],[8,0,9,0],[8,1,9,1],[8,2,9,2],[8,3,9,3],[8,4,9,4],[8,6,9,6],[8,7,9,7],[8,8,9,8],[8,9,9,9],[8,10,8,15]]}
[]
[]
[]
[]
[]
[null,"   Sort data by:           "]
[]
[]
["Region (LO) Code","Trust Code","Trust Name","Site Code","Site Name","Total Responses","Total Eligible","Response Rate","Percentage Recommended","Percentage Not  Recommended","Breakdown of Responses"]
[null,null,null,null,null,null,null,null,null,null,"Extremely Likely","Likely","Neither","Unlikely","Extremely Unlikely","Don't Know"]
[null,null,null,null,"England (including Independent Sector providers)",12482,52158,0.23931132328693586,0.96555039256529407,1.4821342733536292E-2,10050,2002,170,81,104,75]
[null,null,null,null,"England (excluding Independent Sector providers)",12468,52130,0.23917130251294841,0.9656721206288098,1.4837985242220084E-2,10039,2001,170,81,104,73]
[null,null,null,null,"Selection (excluding suppressed data)",{"$f":"SUBTOTAL(9,F14:F299)","v":12482},{"$f":"SUBTOTAL(9,G14:G299)","v":52158},{"$f":"IFERROR(F13/G13, \"NA\")","v":0.23931132328693586},{"$f":"IFERROR((K13+L13)/SUM(K13:P13), \"-\")","v":0.96471524584365054},{"$f":"IFERROR((N13+O13)/SUM(K13:P13), \"-\")","v":1.5033604527767952E-2},{"$f":"SUBTOTAL(9,K14:K299)","v":9081},{"$f":"SUBTOTAL(9,L14:L299)","v":1828},156,69,101,73]
["Q70","RBD","DORSET COUNTY HOSPITAL NHS FOUNDATION TRUST","RBD01","Dorset County Hospital - RBD01",55,148,0.3716216216216216,0.98181818181818181,1.8181818181818181E-2,52,2,0,1,0,0]
["Q70","RN5","HAMPSHIRE HOSPITALS NHS FOUNDATION TRUST","RN542","Andover War Memorial Hospital - RN542",4,4,1,"*","*","*","*","*","*","*","*"]
["Q70","RN5","HAMPSHIRE HOSPITALS NHS FOUNDATION TRUST","RN506","Basingstoke and North Hampshire Hospital - RN506",127,238,0.53361344537815125,0.98425196850393704,0,109,16,2,0,0,0]
["Q70","RN5","HAMPSHIRE HOSPITALS NHS FOUNDATION TRUST","RN541","Royal Hampshire County Hospital - RN541",46,196,0.23469387755102042,1,0,"*","*","*","*","*","*"]
["Q70","R1F","ISLE OF WIGHT NHS TRUST","R1F01","St Mary's Hospital - R1F01",18,99,0.18181818181818182,1,0,16,2,0,0,0,0]
["Q70","RD3","POOLE HOSPITAL NHS FOUNDATION TRUST","RD304","Poole General Hospital NHS Trust HQ - RD304",102,357,0.2857142857142857,0.92156862745098034,3.9215686274509803E-2,91,3,3,1,3,1]
["Q70","RHU","PORTSMOUTH HOSPITALS NHS TRUST","RHU10","Gosport War Memorial Hospital - RHU10",0,2,0,"NA","NA",0,0,0,0,0,0]
["Q70","RHU","PORTSMOUTH HOSPITALS NHS TRUST","RHU04","Petersfield Community Hospital - RHU04",0,4,0,"NA","NA",0,0,0,0,0,0]
["Q70","RHU","PORTSMOUTH HOSPITALS NHS TRUST","RHU03","Queen Alexandra Hospital - RHU03",89,464,0.19181034482758622,0.9887640449438202,0,"*","*","*","*","*","*"]
["Q70","RHU","PORTSMOUTH HOSPITALS NHS TRUST","RHU02","St Mary's Hospital - RHU02",1,3,0.33333333333333331,"*","*","*","*","*","*","*","*"]
["Q70","RDZ","THE ROYAL BOURNEMOUTH AND CHRISTCHURCH HOSPITALS NHS FOUNDATION TRUST","RDZ20","Royal Bournemouth General Hospital - RDZ20",11,24,0.45833333333333331,1,0,11,0,0,0,0,0]
["Q70","RHM","UNIVERSITY HOSPITAL SOUTHAMPTON NHS FOUNDATION TRUST","RHM01","Southampton General Hospital - RHM01",150,484,0.30991735537190085,0.98,1.3333333333333334E-2,111,36,1,1,1,0]
["Q71","RF4","BARKING, HAVERING AND REDBRIDGE UNIVERSITY HOSPITALS NHS TRUST","RF4QH","Queen's Hospital - RF4QH",258,696,0.37068965517241381,0.98449612403100772,3.875968992248062E-3,217,37,0,0,1,3]
["Q71","R1H","BARTS HEALTH NHS TRUST","R1HNH","Newham General Hospital - R1HNH",340,516,0.65891472868217049,0.92352941176470593,3.5294117647058823E-2,213,101,13,8,4,1]
["Q71","R1H","BARTS HEALTH NHS TRUST","R1H12","The Royal London Hospital - R1H12",55,431,0.12761020881670534,0.90909090909090906,1.8181818181818181E-2,36,14,2,0,1,2]
["Q71","R1H","BARTS HEALTH NHS TRUST","R1HKH","Whipps Cross University Hospital - R1HKH",44,435,0.10114942528735632,1,0,35,9,0,0,0,0]
["Q71","RQM","CHELSEA AND WESTMINSTER HOSPITAL NHS FOUNDATION TRUST","RQM01","Chelsea and Westminster Hospital - RQM01",81,285,0.28421052631578947,0.96296296296296291,3.7037037037037035E-2,69,9,0,2,1,0]
["Q71","RQM","CHELSEA AND WESTMINSTER HOSPITAL NHS FOUNDATION TRUST","RQM91","West Middlesex University Hospital - RQM91",97,459,0.2113289760348584,0.93814432989690721,5.1546391752577317E-2,77,14,1,2,3,0]
["Q71","RJ6","CROYDON HEALTH SERVICES NHS TRUST","RJ611","Croydon University Hospital - RJ611",45,348,0.12931034482758622,0.93333333333333335,4.4444444444444446E-2,39,3,1,1,1,0]
["Q71","RVR","EPSOM AND ST HELIER UNIVERSITY HOSPITALS NHS TRUST","RVR50","Epsom Hospital - RVR50",22,173,0.12716763005780346,1,0,"*","*","*","*","*","*"]
["Q71","RVR","EPSOM AND ST HELIER UNIVERSITY HOSPITALS NHS TRUST","RVRXXX","Non-hospital site - RVRXXX",1,8,0.125,"*","*","*","*","*","*","*","*"]
["Q71","RVR","EPSOM AND ST HELIER UNIVERSITY HOSPITALS NHS TRUST","RVR05","St Helier Hospital - RVR05",62,224,0.2767857142857143,0.9838709677419355,1.6129032258064516E-2,55,6,0,1,0,0]
["Q71","RJ1","GUY'S AND ST THOMAS' NHS FOUNDATION TRUST","RJ1XXX","Non-hospital site - RJ1XXX",0,7,0,"NA","NA",0,0,0,0,0,0]
["Q71","RJ1","GUY'S AND ST THOMAS' NHS FOUNDATION TRUST","RJ122","St Thomas' Hospital - RJ122",37,535,6.9158878504672894E-2,0.94594594594594594,0,29,6,1,0,0,1]
["Q71","RQX","HOMERTON UNIVERSITY HOSPITAL NHS FOUNDATION TRUST","RQXM1","Homerton University Hospital - RQXM1",27,500,5.3999999999999999E-2,0.92592592592592593,7.407407407407407E-2,22,3,0,0,2,0]
["Q71","RYJ","IMPERIAL COLLEGE HEALTHCARE NHS TRUST","RYJ04","Queen Charlotte's Hospital - RYJ04",90,475,0.18947368421052632,0.97777777777777775,0,78,10,1,0,0,1]
["Q71","RYJ","IMPERIAL COLLEGE HEALTHCARE NHS TRUST","RYJ01","St Mary's Hospital (HQ) - RYJ01",149,290,0.51379310344827589,0.90604026845637586,4.6979865771812082E-2,84,51,4,3,4,3]
["Q71","RJZ","KING'S COLLEGE HOSPITAL NHS FOUNDATION TRUST","RJZ01","King's College Hospital (Denmark Hill) - RJZ01",3,480,6.2500000000000003E-3,"*","*","*","*","*","*","*","*"]
["Q71","RJZ","KING'S COLLEGE HOSPITAL NHS FOUNDATION TRUST","RJZ30","Princess Royal University Hospital - RJZ30",59,143,0.41258741258741261,0.93220338983050843,3.3898305084745763E-2,"*","*","*","*","*","*"]
["Q71","RAX","KINGSTON HOSPITAL NHS FOUNDATION TRUST","RAX01","Kingston Hospital - RAX01",54,476,0.1134453781512605,1,0,43,11,0,0,0,0]
["Q71","RJ2","LEWISHAM AND GREENWICH NHS TRUST","RJ2XXX","Non-hospital site - RJ2XXX",1,16,6.25E-2,"*","*","*","*","*","*","*","*"]
["Q71","RJ2","LEWISHAM AND GREENWICH NHS TRUST","RJ231","Queen Elizabeth Hospital - RJ231",142,393,0.361323155216285,0.95070422535211263,1.4084507042253521E-2,"*","*","*","*","*","*"]
["Q71","RJ2","LEWISHAM AND GREENWICH NHS TRUST","RJ224","University Hospital Lewisham - RJ224",252,314,0.80254777070063699,0.92460317460317465,1.984126984126984E-2,175,58,9,4,1,5]
["Q71","R1K","LONDON NORTH WEST HEALTHCARE NHS TRUST","R1K04","Ealing Hospital - R1K04",0,0,"NA","NA","NA",0,0,0,0,0,0]
["Q71","R1K","LONDON NORTH WEST HEALTHCARE NHS TRUST","R1KXXX","Non-hospital site - R1KXXX",0,5,0,"NA","NA",0,0,0,0,0,0]
["Q71","R1K","LONDON NORTH WEST HEALTHCARE NHS TRUST","R1K01","Northwick Park Hospital - R1K01",354,431,0.82134570765661252,0.90112994350282483,3.954802259887006E-2,169,150,18,6,8,3]
["Q71","RAP","NORTH MIDDLESEX UNIVERSITY HOSPITAL NHS TRUST","RAPNM","North Middlesex Hospital - RAPNM",165,405,0.40740740740740738,0.87878787878787878,6.0606060606060608E-2,97,48,6,2,8,4]
["Q71","RAL","ROYAL FREE LONDON NHS FOUNDATION TRUST","RAL26","Barnet Hospital - RAL26",102,485,0.21030927835051547,0.97058823529411764,0,58,41,2,0,0,1]
["Q71","RAL","ROYAL FREE LONDON NHS FOUNDATION TRUST","RAL01","Royal Free Hospital - RAL01",76,241,0.31535269709543567,0.98684210526315785,0,63,12,1,0,0,0]
["Q71","RJ7","ST GEORGE'S UNIVERSITY HOSPITALS NHS FOUNDATION TRUST","RJ7XXX","Non-hospital site - RJ7XXX",0,0,"NA","NA","NA",0,0,0,0,0,0]
["Q71","RJ7","ST GEORGE'S UNIVERSITY HOSPITALS NHS FOUNDATION TRUST","RJ701","St George's Hospital (Tooting) - RJ701",10,432,2.3148148148148147E-2,1,0,8,2,0,0,0,0]
["Q71","RAS","THE HILLINGDON HOSPITALS NHS FOUNDATION TRUST","RAS01","Hillingdon Hospital - RAS01",165,417,0.39568345323741005,0.98181818181818181,6.0606060606060606E-3,"*","*","*","*","*","*"]
["Q71","RAS","THE HILLINGDON HOSPITALS NHS FOUNDATION TRUST","RASXXX","Non-hospital site - RASXXX",1,3,0.33333333333333331,"*","*","*","*","*","*","*","*"]
["Q71","RKE","THE WHITTINGTON HOSPITAL NHS TRUST","RKEXXX","Non-hospital site - RKEXXX",0,4,0,"NA","NA",0,0,0,0,0,0]
["Q71","RKE","THE WHITTINGTON HOSPITAL NHS TRUST","RKEQ4","The Whittington Hospital - RKEQ4",108,317,0.34069400630914826,0.95370370370370372,9.2592592592592587E-3,68,35,4,1,0,0]
["Q71","RRV","UNIVERSITY COLLEGE LONDON HOSPITALS NHS FOUNDATION TRUST","RRV03","University College Hospital - RRV03",101,513,0.19688109161793371,0.99009900990099009,9.9009900990099011E-3,87,13,0,0,1,0]
["Q72","RCF","AIREDALE NHS FOUNDATION TRUST","RCF22","Airedale General Hospital - RCF22",34,176,0.19318181818181818,0.91176470588235292,2.9411764705882353E-2,29,2,2,1,0,0]
["Q72","RFF","BARNSLEY HOSPITAL NHS FOUNDATION TRUST","RFFAA","Barnsley Hospital NHS Foundation Trust HQ - RFFAA",46,250,0.184,1,0,43,3,0,0,0,0]
["Q72","RAE","BRADFORD TEACHING HOSPITALS NHS FOUNDATION TRUST","RAE01","Bradford Royal Infirmary - RAE01",63,449,0.14031180400890869,1,0,63,0,0,0,0,0]
["Q72","RWY","CALDERDALE AND HUDDERSFIELD NHS FOUNDATION TRUST","RWY02","Calderdale Royal Hospital - RWY02",151,410,0.36829268292682926,0.98675496688741726,6.6225165562913907E-3,124,25,1,1,0,0]
["Q72","RWY","CALDERDALE AND HUDDERSFIELD NHS FOUNDATION TRUST","RWY01","Huddersfield Royal Infirmary - RWY01",20,35,0.5714285714285714,0.95,0,18,1,1,0,0,0]
["Q72","RWY","CALDERDALE AND HUDDERSFIELD NHS FOUNDATION TRUST","RWYXXX","Non-hospital site - RWYXXX",0,0,"NA","NA","NA",0,0,0,0,0,0]
["Q72","RP5","DONCASTER AND BASSETLAW TEACHING HOSPITALS NHS FOUNDATION TRUST","RP5BA","Bassetlaw Hospital - RP5BA",47,152,0.30921052631578949,1,0,43,4,0,0,0,0]
["Q72","RP5","DONCASTER AND BASSETLAW TEACHING HOSPITALS NHS FOUNDATION TRUST","RP5DR","Doncaster Royal Infirmary - RP5DR",66,290,0.22758620689655173,0.95454545454545459,1.5151515151515152E-2,58,5,1,1,0,1]
["Q72","RP5","DONCASTER AND BASSETLAW TEACHING HOSPITALS NHS FOUNDATION TRUST","RP5XXX","Non-hospital site - RP5XXX",0,0,"NA","NA","NA",0,0,0,0,0,0]
["Q72","RCD","HARROGATE AND DISTRICT NHS FOUNDATION TRUST","RCD01","Harrogate District Hospital - RCD01",55,165,0.33333333333333331,0.98181818181818181,0,51,3,1,0,0,0]
["Q72","RWA","HULL AND EAST YORKSHIRE HOSPITALS NHS TRUST","RWA01","Hull Royal Infirmary - RWA01",5,432,1.1574074074074073E-2,0.8,0,3,1,1,0,0,0]
["Q72","RR8","LEEDS TEACHING HOSPITALS NHS TRUST","RR801","Leeds General Infirmary - RR801",147,433,0.33949191685912239,0.96598639455782309,2.7210884353741496E-2,122,20,1,0,4,0]
["Q72","RR8","LEEDS TEACHING HOSPITALS NHS TRUST","RR8XXX","Non-Hospital Site - RR8XXX",0,12,0,"NA","NA",0,0,0,0,0,0]
["Q72","RR8","LEEDS TEACHING HOSPITALS NHS TRUST","RR813","St James's University Hospital - RR813",112,408,0.27450980392156865,0.9375,3.5714285714285712E-2,87,18,3,0,4,0]
["Q72","RXF","MID YORKSHIRE HOSPITALS NHS TRUST","RXF10","Dewsbury and District Hospital - RXF10",25,29,0.86206896551724133,1,0,21,4,0,0,0,0]
["Q72","RXF","MID YORKSHIRE HOSPITALS NHS TRUST","RXFXXX","Non-hospital site - RXFXXX",1,5,0.2,"*","*","*","*","*","*","*","*"]
["Q72","RXF","MID YORKSHIRE HOSPITALS NHS TRUST","RXF05","Pinderfields General Hospital - RXF05",169,459,0.36819172113289761,0.97041420118343191,1.1834319526627219E-2,140,24,3,2,0,0]
["Q72","RXF","MID YORKSHIRE HOSPITALS NHS TRUST","RXF03","Pontefract General Infirmary - RXF03",14,18,0.77777777777777779,1,0,"*","*","*","*","*","*"]
["Q72","RJL","NORTHERN LINCOLNSHIRE AND GOOLE NHS FOUNDATION TRUST","RJL30","Diana, Princess Of Wales Hospital - RJL30",23,219,0.1050228310502283,1,0,"*","*","*","*","*","*"]
["Q72","RJL","NORTHERN LINCOLNSHIRE AND GOOLE NHS FOUNDATION TRUST","RJL32","Scunthorpe General Hospital - RJL32",1,135,7.4074074074074077E-3,"*","*","*","*","*","*","*","*"]
["Q72","RHQ","SHEFFIELD TEACHING HOSPITALS NHS FOUNDATION TRUST","RHQHH","Royal Hallamshire Hospital - RHQHH",182,569,0.31985940246045697,0.95604395604395609,1.6483516483516484E-2,143,31,5,1,2,0]
["Q72","RFR","THE ROTHERHAM NHS FOUNDATION TRUST","RFRPA","Rotherham District General Hospital - RFRPA",70,210,0.33333333333333331,1,0,66,4,0,0,0,0]
["Q72","RCB","YORK TEACHING HOSPITAL NHS FOUNDATION TRUST","RCBCA","Scarborough General Hospital - RCBCA",4,118,3.3898305084745763E-2,"*","*","*","*","*","*","*","*"]
["Q72","RCB","YORK TEACHING HOSPITAL NHS FOUNDATION TRUST","RCB55","York Hospital - RCB55",94,256,0.3671875,1,0,"*","*","*","*","*","*"]
["Q74","RLN","CITY HOSPITALS SUNDERLAND NHS FOUNDATION TRUST","RLNGL","Sunderland Royal Hospital - RLNGL",108,252,0.42857142857142855,1,0,97,11,0,0,0,0]
["Q74","RXP","COUNTY DURHAM AND DARLINGTON NHS FOUNDATION TRUST","RXPDA","Darlington Memorial Hospital - RXPDA",66,164,0.40243902439024393,1,0,48,18,0,0,0,0]
["Q74","RXP","COUNTY DURHAM AND DARLINGTON NHS FOUNDATION TRUST","RXPXXX","Non-hospital site - RXPXXX",2,6,0.33333333333333331,"*","*","*","*","*","*","*","*"]
["Q74","RXP","COUNTY DURHAM AND DARLINGTON NHS FOUNDATION TRUST","RXPCP","University Hospital Of North Durham - RXPCP",2,254,7.874015748031496E-3,"*","*","*","*","*","*","*","*"]
["Q74","RR7","GATESHEAD HEALTH NHS FOUNDATION TRUST","RR7EN","Queen Elizabeth Hospital - RR7EN",48,149,0.32214765100671139,0.97916666666666663,0,40,7,1,0,0,0]
["Q74","RNL","NORTH CUMBRIA UNIVERSITY HOSPITALS NHS TRUST","RNLAY","Cumberland Infirmary - RNLAY",14,123,0.11382113821138211,1,0,"*","*","*","*","*","*"]
["Q74","RNL","NORTH CUMBRIA UNIVERSITY HOSPITALS NHS TRUST","RNLBE","Penrith Hospital - RNLBE",1,2,0.5,"*","*","*","*","*","*","*","*"]
["Q74","RNL","NORTH CUMBRIA UNIVERSITY HOSPITALS NHS TRUST","RNLBX","West Cumberland Hospital - RNLBX",71,99,0.71717171717171713,1,0,58,13,0,0,0,0]
["Q74","RVW","NORTH TEES AND HARTLEPOOL NHS FOUNDATION TRUST","RVWAE","University Hospital Of North Tees - RVWAE",12,228,5.2631578947368418E-2,0.91666666666666663,8.3333333333333329E-2,8,3,0,1,0,0]
["Q74","RTF","NORTHUMBRIA HEALTHCARE NHS FOUNDATION TRUST","RTFDJ","Alnwick Infirmary - RTFDJ",0,0,"NA","NA","NA",0,0,0,0,0,0]
["Q74","RTF","NORTHUMBRIA HEALTHCARE NHS FOUNDATION TRUST","RTFDH","Berwick Infirmary - RTFDH",0,0,"NA","NA","NA",0,0,0,0,0,0]
["Q74","RTF","NORTHUMBRIA HEALTHCARE NHS FOUNDATION TRUST","RTFDR","Hexham General Hospital - RTFDR",2,0,"NA","*","*","*","*","*","*","*","*"]
["Q74","RTF","NORTHUMBRIA HEALTHCARE NHS FOUNDATION TRUST","RTFXXX","Non-hospital site - RTFXXX",0,0,"NA","NA","NA",0,0,0,0,0,0]
["Q74","RTF","NORTHUMBRIA HEALTHCARE NHS FOUNDATION TRUST","RTF86","The Northumbria - RTF86",45,188,0.23936170212765959,0.9555555555555556,4.4444444444444446E-2,"*","*","*","*","*","*"]
["Q74","RTR","SOUTH TEES HOSPITALS NHS FOUNDATION TRUST","RTR45","Friarage Hospital Site - RTR45",0,22,0,"NA","NA",0,0,0,0,0,0]
["Q74","RTR","SOUTH TEES HOSPITALS NHS FOUNDATION TRUST","RTRAT","The James Cook University Hospital - RTRAT",45,410,0.10975609756097561,0.97777777777777775,2.2222222222222223E-2,38,6,0,0,1,0]
["Q74","RE9","SOUTH TYNESIDE NHS FOUNDATION TRUST","RE9GA","South Tyneside District Hospital - RE9GA",26,93,0.27956989247311825,1,0,25,1,0,0,0,0]
["Q74","RTD","THE NEWCASTLE UPON TYNE HOSPITALS NHS FOUNDATION TRUST","RTD02","The Royal Victoria Infirmary - RTD02",170,536,0.31716417910447764,0.98235294117647054,5.8823529411764705E-3,155,12,1,1,0,1]
["Q74","RTX","UNIVERSITY HOSPITALS OF MORECAMBE BAY NHS FOUNDATION TRUST","RTXBU","Furness General Hospital - RTXBU",28,81,0.34567901234567899,1,0,"*","*","*","*","*","*"]
["Q74","RTX","UNIVERSITY HOSPITALS OF MORECAMBE BAY NHS FOUNDATION TRUST","RTX02","Royal Lancaster Infirmary - RTX02",2,166,1.2048192771084338E-2,"*","*","*","*","*","*","*","*"]
["Q74","RTX","UNIVERSITY HOSPITALS OF MORECAMBE BAY NHS FOUNDATION TRUST","RTXBW","Westmorland General Hospital - RTXBW",0,1,0,"NA","NA",0,0,0,0,0,0]
["Q75","RJR","COUNTESS OF CHESTER HOSPITAL NHS FOUNDATION TRUST","RJR05","Countess Of Chester Hospital - RJR05",77,267,0.28838951310861421,0.93506493506493504,2.5974025974025976E-2,66,6,1,1,1,2]
["Q75","RJN","EAST CHESHIRE NHS TRUST","RJN71","Macclesfield District General Hospital - RJN71",49,130,0.37692307692307692,0.97959183673469385,0,44,4,0,0,0,1]
["Q75","REP","LIVERPOOL WOMEN'S NHS FOUNDATION TRUST","REP01","Liverpool Womens Hospital - REP01",1,770,1.2987012987012987E-3,"*","*","*","*","*","*","*","*"]
["Q75","RBT","MID CHESHIRE HOSPITALS NHS FOUNDATION TRUST","RBT20","Leighton Hospital - RBT20",27,240,0.1125,1,0,24,3,0,0,0,0]
["Q75","RVY","SOUTHPORT AND ORMSKIRK HOSPITAL NHS TRUST","RVY02","Ormskirk and District General Hospital - RVY02",13,207,6.280193236714976E-2,1,0,"*","*","*","*","*","*"]
["Q75","RBN","ST HELENS AND KNOWSLEY HOSPITAL SERVICES NHS TRUST","RBN01","Whiston Hospital - RBN01",32,319,0.10031347962382445,1,0,27,5,0,0,0,0]
["Q75","RWW","WARRINGTON AND HALTON HOSPITALS NHS FOUNDATION TRUST","RWWWH","Warrington Hospital - RWWWH",26,213,0.12206572769953052,1,0,25,1,0,0,0,0]
["Q75","RBL","WIRRAL UNIVERSITY TEACHING HOSPITAL NHS FOUNDATION TRUST","RBL14","Arrowe Park Hospital - RBL14",81,293,0.2764505119453925,1,0,70,11,0,0,0,0]
["Q76","RJF","BURTON HOSPITALS NHS FOUNDATION TRUST","RJF02","Queen's Hospital, Burton Upon Trent - RJF02",91,247,0.36842105263157893,0.98901098901098905,1.098901098901099E-2,86,4,0,1,0,0]
["Q76","RFS","CHESTERFIELD ROYAL HOSPITAL NHS FOUNDATION TRUST","RFSDA","Chesterfield Royal Hospital - RFSDA",61,246,0.24796747967479674,0.95081967213114749,1.6393442622950821E-2,41,17,0,1,0,2]
["Q76","RTG","DERBY TEACHING HOSPITALS NHS FOUNDATION TRUST","RTGFG","Royal Derby Hospital - RTGFG",238,478,0.497907949790795,0.97899159663865543,8.4033613445378148E-3,181,52,2,1,1,1]
["Q76","RX1","NOTTINGHAM UNIVERSITY HOSPITALS NHS TRUST","RX1XXX","Non-hospital site - RX1XXX",0,14,0,"NA","NA",0,0,0,0,0,0]
["Q76","RX1","NOTTINGHAM UNIVERSITY HOSPITALS NHS TRUST","RX1CC","Nottingham University Hospitals NHS Trust - City Campus - RX1CC",92,417,0.22062350119904076,0.98913043478260865,0,83,8,1,0,0,0]
["Q76","RX1","NOTTINGHAM UNIVERSITY HOSPITALS NHS TRUST","RX1RA","Nottingham University Hospitals NHS Trust - Queen's Medical Centre Campus - RX1RA",16,370,4.3243243243243246E-2,0.9375,0,13,2,1,0,0,0]
["Q76","RK5","SHERWOOD FOREST HOSPITALS NHS FOUNDATION TRUST","RK5BC","King's Mill Hospital - RK5BC",81,280,0.28928571428571431,0.92592592592592593,4.9382716049382713E-2,65,10,2,3,1,0]
["Q76","RK5","SHERWOOD FOREST HOSPITALS NHS FOUNDATION TRUST","RK5XXX","Non-hospital site - RK5XXX",0,8,0,"NA","NA",0,0,0,0,0,0]
["Q76","RXW","SHREWSBURY AND TELFORD HOSPITAL NHS TRUST","RXWMB","Bridgnorth Hospital (Maternity) - RXWMB",5,7,0.7142857142857143,1,0,5,0,0,0,0,0]
["Q76","RXW","SHREWSBURY AND TELFORD HOSPITAL NHS TRUST","RXWML","Ludlow Hospital (Maternity) - RXWML",2,3,0.66666666666666663,"*","*","*","*","*","*","*","*"]
["Q76","RXW","SHREWSBURY AND TELFORD HOSPITAL NHS TRUST","RXWXXX","Non-hospital site - RXWXXX",0,8,0,"NA","NA",0,0,0,0,0,0]
["Q76","RXW","SHREWSBURY AND TELFORD HOSPITAL NHS TRUST","RXWMJ","Robert Jones & Agnes Hunt Orthopaedic & District Hospital - RXWMJ",4,4,1,"*","*","*","*","*","*","*","*"]
["Q76","RXW","SHREWSBURY AND TELFORD HOSPITAL NHS TRUST","RXWAS","Royal Shrewsbury Hospital - RXWAS",4,15,0.26666666666666666,"*","*","*","*","*","*","*","*"]
["Q76","RXW","SHREWSBURY AND TELFORD HOSPITAL NHS TRUST","RXWAT","The Princess Royal Hospital - RXWAT",25,392,6.3775510204081634E-2,1,0,24,1,0,0,0,0]
["Q76","RJE","UNIVERSITY HOSPITALS OF NORTH MIDLANDS NHS TRUST","RJE09","County Hospital - RJE09",13,15,0.8666666666666667,1,0,13,0,0,0,0,0]
["Q76","RJE","UNIVERSITY HOSPITALS OF NORTH MIDLANDS NHS TRUST","RJEXXX","Non-hospital site - RJEXXX",0,7,0,"NA","NA",0,0,0,0,0,0]
["Q76","RJE","UNIVERSITY HOSPITALS OF NORTH MIDLANDS NHS TRUST","RJE01","Royal Stoke University Hospital - RJE01",72,518,0.138996138996139,0.98611111111111116,0,70,1,1,0,0,0]
["Q77","RQ3","BIRMINGHAM WOMEN'S AND CHILDREN'S NHS FOUNDATION TRUST","RQ370","Birmingham Women's Hospital - RQ370",80,647,0.12364760432766615,0.95,2.5000000000000001E-2,59,17,1,0,2,1]
["Q77","RLT","GEORGE ELIOT HOSPITAL NHS TRUST","RLT01","George Eliot Hospital - Acute Services - RLT01",83,159,0.5220125786163522,0.96385542168674698,3.614457831325301E-2,69,11,0,1,2,0]
["Q77","RR1","HEART OF ENGLAND NHS FOUNDATION TRUST","RR105","Good Hope Hospital - RR105",14,305,4.5901639344262293E-2,1,0,"*","*","*","*","*","*"]
["Q77","RR1","HEART OF ENGLAND NHS FOUNDATION TRUST","RR101","Heartlands Hospital - RR101",4,507,7.889546351084813E-3,"*","*","*","*","*","*","*","*"]
["Q77","RR1","HEART OF ENGLAND NHS FOUNDATION TRUST","RR109","Solihull Hospital - RR109",16,31,0.5161290322580645,1,0,16,0,0,0,0,0]
["Q77","RXK","SANDWELL AND WEST BIRMINGHAM HOSPITALS NHS TRUST","RXK02","City Hospital - RXK02",65,497,0.13078470824949698,0.83076923076923082,6.1538461538461542E-2,30,24,7,2,2,0]
["Q77","RJC","SOUTH WARWICKSHIRE NHS FOUNDATION TRUST","RJCXXX","Non-hospital site - RJCXXX",0,5,0,"NA","NA",0,0,0,0,0,0]
["Q77","RJC","SOUTH WARWICKSHIRE NHS FOUNDATION TRUST","RJC02","Warwick Hospital - RJC02",42,259,0.16216216216216217,0.90476190476190477,0,27,11,0,0,0,4]
["Q77","RNA","THE DUDLEY GROUP NHS FOUNDATION TRUST","RNA01","Russells Hall Hospital - RNA01",171,338,0.50591715976331364,0.98830409356725146,5.8479532163742687E-3,145,24,1,0,1,0]
["Q77","RL4","THE ROYAL WOLVERHAMPTON NHS TRUST","RL403","New Cross Hospital - RL403",45,380,0.11842105263157894,1,0,44,1,0,0,0,0]
["Q77","RKB","UNIVERSITY HOSPITALS COVENTRY AND WARWICKSHIRE NHS TRUST","RKB03","Hospital Of St Cross - RKB03",0,0,"NA","NA","NA",0,0,0,0,0,0]
["Q77","RKB","UNIVERSITY HOSPITALS COVENTRY AND WARWICKSHIRE NHS TRUST","RKBXXX","Non-hospital site - RKBXXX",1,3,0.33333333333333331,"*","*","*","*","*","*","*","*"]
["Q77","RKB","UNIVERSITY HOSPITALS COVENTRY AND WARWICKSHIRE NHS TRUST","RKB01","University Hospital (Coventry) - RKB01",75,516,0.14534883720930233,0.98666666666666669,0,"*","*","*","*","*","*"]
["Q77","RBK","WALSALL HEALTHCARE NHS TRUST","RBK02","Manor Hospital - RBK02",20,196,0.10204081632653061,0.95,0.05,18,1,0,1,0,0]
["Q77","RWP","WORCESTERSHIRE ACUTE HOSPITALS NHS TRUST","RWP50","Worcestershire Royal Hospital - RWP50",61,200,0.30499999999999999,1,0,58,3,0,0,0,0]
["Q77","RLQ","WYE VALLEY NHS TRUST","RLQ01","Hereford County Hospital - RLQ01",62,145,0.42758620689655175,0.95161290322580649,1.6129032258064516E-2,46,13,2,1,0,0]
["Q78","RC1","BEDFORD HOSPITAL NHS TRUST","RC110","Bedford Hospital South Wing - RC110",43,86,0.5,1,0,40,3,0,0,0,0]
["Q78","RWH","EAST AND NORTH HERTFORDSHIRE NHS TRUST","RWH01","Lister Hospital - RWH01",232,463,0.5010799136069114,0.97413793103448276,8.6206896551724137E-3,169,57,4,1,1,0]
["Q78","RWH","EAST AND NORTH HERTFORDSHIRE NHS TRUST","RWHXXX","Non-hospital site - RWHXXX",0,14,0,"NA","NA",0,0,0,0,0,0]
["Q78","RNQ","KETTERING GENERAL HOSPITAL NHS FOUNDATION TRUST","RNQ51","Kettering General Hospital - RNQ51",67,270,0.24814814814814815,1,0,62,5,0,0,0,0]
["Q78","RC9","LUTON AND DUNSTABLE UNIVERSITY HOSPITAL NHS FOUNDATION TRUST","RC971","Luton and Dunstable Hospital - RC971",50,389,0.12853470437017994,0.96,0.02,33,15,0,0,1,1]
["Q78","RD8","MILTON KEYNES UNIVERSITY HOSPITAL NHS FOUNDATION TRUST","RD816","Milton Keynes Hospital - RD816",5,295,1.6949152542372881E-2,1,0,4,1,0,0,0,0]
["Q78","RNS","NORTHAMPTON GENERAL HOSPITAL NHS TRUST","RNS01","Northampton General Hospital (Acute) - RNS01",39,389,0.10025706940874037,1,0,36,3,0,0,0,0]
["Q78","RWD","UNITED LINCOLNSHIRE HOSPITALS NHS TRUST","RWDLP","Grantham and District Hospital - RWDLP",0,6,0,"NA","NA",0,0,0,0,0,0]
["Q78","RWD","UNITED LINCOLNSHIRE HOSPITALS NHS TRUST","RWDDA","Lincoln County Hospital - RWDDA",40,260,0.15384615384615385,0.95,0.05,34,4,0,0,2,0]
["Q78","RWD","UNITED LINCOLNSHIRE HOSPITALS NHS TRUST","RWDXXX","Non-hospital site - RWDXXX",0,0,"NA","NA","NA",0,0,0,0,0,0]
["Q78","RWD","UNITED LINCOLNSHIRE HOSPITALS NHS TRUST","RWDLA","Pilgrim Hospital - RWDLA",22,179,0.12290502793296089,1,0,18,4,0,0,0,0]
["Q78","RWE","UNIVERSITY HOSPITALS OF LEICESTER NHS TRUST","RWEAK","Leicester General Hospital - RWEAK",172,305,0.56393442622950818,0.92441860465116277,3.4883720930232558E-2,143,16,3,1,5,4]
["Q78","RWE","UNIVERSITY HOSPITALS OF LEICESTER NHS TRUST","RWEAA","Leicester Royal Infirmary - RWEAA",271,478,0.56694560669456062,0.95202952029520294,2.9520295202952029E-2,203,55,2,3,5,3]
["Q78","RWE","UNIVERSITY HOSPITALS OF LEICESTER NHS TRUST","RWEXXX","Non-hospital site - RWEXXX",21,26,0.80769230769230771,0.7142857142857143,9.5238095238095233E-2,9,6,0,0,2,4]
["Q78","RWE","UNIVERSITY HOSPITALS OF LEICESTER NHS TRUST","RWE10","St Mary's Hospital - RWE10",15,14,1.0714285714285714,0.93333333333333335,6.6666666666666666E-2,12,2,0,1,0,0]
["Q78","RWG","WEST HERTFORDSHIRE HOSPITALS NHS TRUST","RWG02","Watford General Hospital - RWG02",124,428,0.28971962616822428,0.967741935483871,8.0645161290322578E-3,91,29,3,1,0,0]
["Q79","RDD","BASILDON AND THURROCK UNIVERSITY HOSPITALS NHS FOUNDATION TRUST","RDDH0","Basildon University Hospital - RDDH0",15,169,8.8757396449704137E-2,1,0,15,0,0,0,0,0]
["Q79","RGT","CAMBRIDGE UNIVERSITY HOSPITALS NHS FOUNDATION TRUST","RGT32","Rosie Hospital - RGT32",268,429,0.62470862470862476,0.99626865671641796,0,230,37,1,0,0,0]
["Q79","RDE","COLCHESTER HOSPITAL UNIVERSITY NHS FOUNDATION TRUST","RDEE2","Clacton and District Hospital - RDEE2",0,4,0,"NA","NA",0,0,0,0,0,0]
["Q79","RDE","COLCHESTER HOSPITAL UNIVERSITY NHS FOUNDATION TRUST","RDEE4","Colchester General Hospital - RDEE4",29,262,0.11068702290076336,1,0,25,4,0,0,0,0]
["Q79","RDE","COLCHESTER HOSPITAL UNIVERSITY NHS FOUNDATION TRUST","RDEEE","Harwich Maternity - RDEEE",0,0,"NA","NA","NA",0,0,0,0,0,0]
["Q79","RDE","COLCHESTER HOSPITAL UNIVERSITY NHS FOUNDATION TRUST","RDEXXX","Non-hospital site - RDEXXX",0,7,0,"NA","NA",0,0,0,0,0,0]
["Q79","RGQ","IPSWICH HOSPITAL NHS TRUST","RGQ02","The Ipswich Hospital NHS Trust - RGQ02",131,308,0.42532467532467533,0.96183206106870234,7.6335877862595417E-3,107,19,3,0,1,1]
["Q79","RGP","JAMES PAGET UNIVERSITY HOSPITALS NHS FOUNDATION TRUST","RGP75","James Paget University Hospital - RGP75",36,189,0.19047619047619047,1,0,35,1,0,0,0,0]
["Q79","RQ8","MID ESSEX HOSPITAL SERVICES NHS TRUST","RQ8L0","Broomfield Hospital - RQ8L0",59,363,0.16253443526170799,0.98305084745762716,1.6949152542372881E-2,51,7,0,0,1,0]
["Q79","RM1","NORFOLK AND NORWICH UNIVERSITY HOSPITALS NHS FOUNDATION TRUST","RM102","Norfolk and Norwich University Hospital - RM102",29,459,6.3180827886710242E-2,1,0,27,2,0,0,0,0]
["Q79","RGN","NORTH WEST ANGLIA NHS FOUNDATION TRUST","RGN90","Hinchingbrooke Hospital - RGN90",44,162,0.27160493827160492,0.97727272727272729,0,41,2,0,0,0,1]
["Q79","RGN","NORTH WEST ANGLIA NHS FOUNDATION TRUST","RGN80","Peterborough City Hospital - RGN80",62,411,0.15085158150851583,0.9838709677419355,0,55,6,0,0,0,1]
["Q79","RAJ","SOUTHEND UNIVERSITY HOSPITAL NHS FOUNDATION TRUST","RAJ01","Southend Hospital - RAJ01",31,322,9.627329192546584E-2,1,0,31,0,0,0,0,0]
["Q79","RQW","THE PRINCESS ALEXANDRA HOSPITAL NHS TRUST","RQWG0","Princess Alexandra Hospital - RQWG0",165,360,0.45833333333333331,0.97575757575757571,6.0606060606060606E-3,155,6,0,0,1,3]
["Q79","RCX","THE QUEEN ELIZABETH HOSPITAL, KING'S LYNN, NHS FOUNDATION TRUST","RCXXXX","Non-hospital site - RCXXXX",0,4,0,"NA","NA",0,0,0,0,0,0]
["Q79","RCX","THE QUEEN ELIZABETH HOSPITAL, KING'S LYNN, NHS FOUNDATION TRUST","RCX70","The Queen Elizabeth Hospital - RCX70",32,173,0.18497109826589594,1,0,29,3,0,0,0,0]
["Q79","RGR","WEST SUFFOLK NHS FOUNDATION TRUST","RGR50","West Suffolk Hospital - RGR50",31,209,0.14832535885167464,1,0,31,0,0,0,0,0]
["Q80","RVJ","NORTH BRISTOL NHS TRUST","RVJ21","Cossham Hospital - RVJ21",6,39,0.15384615384615385,0.83333333333333337,0,5,0,0,0,0,1]
["Q80","RVJ","NORTH BRISTOL NHS TRUST","RVJXXX","Non-hospital site - RVJXXX",0,2,0,"NA","NA",0,0,0,0,0,0]
["Q80","RVJ","NORTH BRISTOL NHS TRUST","RVJ01","Southmead Hospital - RVJ01",70,486,0.1440329218106996,0.95714285714285718,4.2857142857142858E-2,57,10,0,0,3,0]
["Q80","RBZ","NORTHERN DEVON HEALTHCARE NHS TRUST","RBZ12","North Devon District Hospital - RBZ12",3,110,2.7272727272727271E-2,"*","*","*","*","*","*","*","*"]
["Q80","RK9","PLYMOUTH HOSPITALS NHS TRUST","RK950","Derriford Hospital - RK950",111,332,0.33433734939759036,0.99099099099099097,0,95,15,1,0,0,0]
["Q80","RK9","PLYMOUTH HOSPITALS NHS TRUST","RK9XXX","Non-hospital site - RK9XXX",13,18,0.72222222222222221,1,0,12,1,0,0,0,0]
["Q80","REF","ROYAL CORNWALL HOSPITALS NHS TRUST","REFXXX","Non-hospital site - REFXXX",1,39,2.564102564102564E-2,"*","*","*","*","*","*","*","*"]
["Q80","REF","ROYAL CORNWALL HOSPITALS NHS TRUST","REF12","Royal Cornwall Hospital (Treliske) - REF12",65,319,0.20376175548589343,0.96923076923076923,1.5384615384615385E-2,"*","*","*","*","*","*"]
["Q80","RH8","ROYAL DEVON AND EXETER NHS FOUNDATION TRUST","RH854","Honiton Hospital - RH 854",0,4,0,"NA","NA",0,0,0,0,0,0]
["Q80","RH8","ROYAL DEVON AND EXETER NHS FOUNDATION TRUST","RH833","Okehampton Community Hospital - RH833",0,3,0,"NA","NA",0,0,0,0,0,0]
["Q80","RH8","ROYAL DEVON AND EXETER NHS FOUNDATION TRUST","RH801","Royal Devon and Exeter Hospital (Wonford) - RH801",1,309,3.2362459546925568E-3,"*","*","*","*","*","*","*","*"]
["Q80","RH8","ROYAL DEVON AND EXETER NHS FOUNDATION TRUST","RH853","Tiverton and District Hospital - RH853",0,8,0,"NA","NA",0,0,0,0,0,0]
["Q80","RBA","TAUNTON AND SOMERSET NHS FOUNDATION TRUST","RBAC3","Bridgwater Hospital - RBAC3",7,6,1.1666666666666667,1,0,5,2,0,0,0,0]
["Q80","RBA","TAUNTON AND SOMERSET NHS FOUNDATION TRUST","RBA11","Musgrove Park Hospital - RBA11",26,244,0.10655737704918032,1,0,25,1,0,0,0,0]
["Q80","RBA","TAUNTON AND SOMERSET NHS FOUNDATION TRUST","RBAXXX","Non-hospital site - RBAXXX",0,11,0,"NA","NA",0,0,0,0,0,0]
["Q80","RA9","TORBAY AND SOUTH DEVON NHS FOUNDATION TRUST","RA957","Newton Abbot Community Hospital - RA957",0,0,"NA","NA","NA",0,0,0,0,0,0]
["Q80","RA9","TORBAY AND SOUTH DEVON NHS FOUNDATION TRUST","RA9XXX","Non-hospital site - RA9XXX",1,12,8.3333333333333329E-2,"*","*","*","*","*","*","*","*"]
["Q80","RA9","TORBAY AND SOUTH DEVON NHS FOUNDATION TRUST","RA901","Torbay Hospital - RA901",16,187,8.5561497326203204E-2,1,0,"*","*","*","*","*","*"]
["Q80","RA7","UNIVERSITY HOSPITALS BRISTOL NHS FOUNDATION TRUST","RA707","St Michael's Hospital - RA707",70,448,0.15625,0.9285714285714286,1.4285714285714285E-2,57,8,0,0,1,4]
["Q80","RA3","WESTON AREA HEALTH NHS TRUST","RA301","Weston General Hospital - RA301",6,14,0.42857142857142855,1,0,5,1,0,0,0,0]
["Q80","RA4","YEOVIL DISTRICT HOSPITAL NHS FOUNDATION TRUST","RA430","Yeovil District Hospital - RA430",4,140,2.8571428571428571E-2,"*","*","*","*","*","*","*","*"]
["Q81","RTK","ASHFORD AND ST PETER'S HOSPITALS NHS FOUNDATION TRUST","RTK01","St Peter's Hospital - RTK01",138,308,0.44805194805194803,0.91304347826086951,3.6231884057971016E-2,87,39,4,0,5,3]
["Q81","RXH","BRIGHTON AND SUSSEX UNIVERSITY HOSPITALS NHS TRUST","RXHXXX","Non-hospital site - RXHXXX",0,23,0,"NA","NA",0,0,0,0,0,0]
["Q81","RXH","BRIGHTON AND SUSSEX UNIVERSITY HOSPITALS NHS TRUST","RXH09","Princess Royal Hospital - RXH09",42,179,0.23463687150837989,1,0,35,7,0,0,0,0]
["Q81","RXH","BRIGHTON AND SUSSEX UNIVERSITY HOSPITALS NHS TRUST","RXH01","Royal Sussex County Hospital - RXH01",69,260,0.26538461538461539,0.97101449275362317,1.4492753623188406E-2,60,7,0,0,1,1]
["Q81","RN7","DARTFORD AND GRAVESHAM NHS TRUST","RN707","Darent Valley Hospital - RN707",69,375,0.184,1,0,66,3,0,0,0,0]
["Q81","RVV","EAST KENT HOSPITALS UNIVERSITY NHS FOUNDATION TRUST","RVVXXX","Non-hospital site - RVVXXX",0,24,0,"NA","NA",0,0,0,0,0,0]
["Q81","RVV","EAST KENT HOSPITALS UNIVERSITY NHS FOUNDATION TRUST","RVV09","Queen Elizabeth The Queen Mother Hospital - RVV09",51,213,0.23943661971830985,0.98039215686274506,0,48,2,1,0,0,0]
["Q81","RVV","EAST KENT HOSPITALS UNIVERSITY NHS FOUNDATION TRUST","RVV01","William Harvey Hospital (Ashford) - RVV01",84,340,0.24705882352941178,0.97619047619047616,1.1904761904761904E-2,71,11,0,1,0,1]
["Q81","RXC","EAST SUSSEX HEALTHCARE NHS TRUST","RXC01","Conquest Hospital - RXC01",96,244,0.39344262295081966,0.98958333333333337,0,63,32,1,0,0,0]
["Q81","RXC","EAST SUSSEX HEALTHCARE NHS TRUST","RXC02","Eastbourne District General Hospital - RXC02",18,22,0.81818181818181823,1,0,"*","*","*","*","*","*"]
["Q81","RXC","EAST SUSSEX HEALTHCARE NHS TRUST","RXCXXX","Non-hospital site - RXCXXX",1,8,0.125,"*","*","*","*","*","*","*","*"]
["Q81","RDU","FRIMLEY HEALTH NHS FOUNDATION TRUST","RDU01","Frimley Park Hospital - RDU01",131,440,0.29772727272727273,0.98473282442748089,0,111,18,1,0,0,1]
["Q81","RDU","FRIMLEY HEALTH NHS FOUNDATION TRUST","RDUXXX","Non-hospital site - RDUXXX",1,7,0.14285714285714285,"*","*","*","*","*","*","*","*"]
["Q81","RDU","FRIMLEY HEALTH NHS FOUNDATION TRUST","RDU50","Wexham Park Hospital - RDU50",41,353,0.11614730878186968,0.85365853658536583,7.3170731707317069E-2,"*","*","*","*","*","*"]
["Q81","RWF","MAIDSTONE AND TUNBRIDGE WELLS NHS TRUST","RWF03","Maidstone District General Hospital - RWF03",25,31,0.80645161290322576,1,0,21,4,0,0,0,0]
["Q81","RWF","MAIDSTONE AND TUNBRIDGE WELLS NHS TRUST","RWFXXX","Non-hospital site - RWFXXX",9,16,0.5625,1,0,9,0,0,0,0,0]
["Q81","RWF","MAIDSTONE AND TUNBRIDGE WELLS NHS TRUST","RWFTW","The Tunbridge Wells Hospital - RWFTW",32,472,6.7796610169491525E-2,0.90625,3.125E-2,25,4,1,1,0,1]
["Q81","RPA","MEDWAY NHS FOUNDATION TRUST","RPA02","Medway Maritime Hospital - RPA02",117,302,0.38741721854304634,1,0,114,3,0,0,0,0]
["Q81","RA2","ROYAL SURREY COUNTY HOSPITAL NHS FOUNDATION TRUST","RA201","Royal Surrey County Hospital - RA201",46,244,0.18852459016393441,1,0,44,2,0,0,0,0]
["Q81","RTP","SURREY AND SUSSEX HEALTHCARE NHS TRUST","RTP04","East Surrey Hospital - RTP04",22,376,5.8510638297872342E-2,1,0,21,1,0,0,0,0]
["Q81","RYR","WESTERN SUSSEX HOSPITALS NHS FOUNDATION TRUST","RYR16","St Richard's Hospital - RYR16",104,242,0.42975206611570249,1,0,90,14,0,0,0,0]
["Q81","RYR","WESTERN SUSSEX HOSPITALS NHS FOUNDATION TRUST","RYR18","Worthing Hospital - RYR18",113,213,0.53051643192488263,0.96460176991150437,1.7699115044247787E-2,79,30,2,0,2,0]
["Q82","RXQ","BUCKINGHAMSHIRE HEALTHCARE NHS TRUST","RXQ02","Stoke Mandeville Hospital - RXQ02",204,494,0.41295546558704455,0.97549019607843135,9.8039215686274508E-3,167,32,3,0,2,0]
["Q82","RXQ","BUCKINGHAMSHIRE HEALTHCARE NHS TRUST","RXQ50","Wycombe Hospital - RXQ50",5,25,0.2,1,0,4,1,0,0,0,0]
["Q82","RTE","GLOUCESTERSHIRE HOSPITALS NHS FOUNDATION TRUST","RTE01","Cheltenham General Hospital - RTE01",12,25,0.48,1,0,12,0,0,0,0,0]
["Q82","RTE","GLOUCESTERSHIRE HOSPITALS NHS FOUNDATION TRUST","RTE03","Gloucestershire Royal Hospital - RTE03",99,385,0.25714285714285712,0.95959595959595956,2.0202020202020204E-2,94,1,2,0,2,0]
["Q82","RTE","GLOUCESTERSHIRE HOSPITALS NHS FOUNDATION TRUST","RTEXXX","Non-hospital site - RTEXXX",0,0,"NA","NA","NA",0,0,0,0,0,0]
["Q82","RTE","GLOUCESTERSHIRE HOSPITALS NHS FOUNDATION TRUST","RTE27","Stroud Maternity Hospital - RTE27",13,31,0.41935483870967744,1,0,10,3,0,0,0,0]
["Q82","RN3","GREAT WESTERN HOSPITALS NHS FOUNDATION TRUST","RN3XXX","Non-hospital site - RN3XXX",0,7,0,"NA","NA",0,0,0,0,0,0]
["Q82","RN3","GREAT WESTERN HOSPITALS NHS FOUNDATION TRUST","RN325","The Great Western Hospital - RN325",24,364,6.5934065934065936E-2,1,0,23,1,0,0,0,0]
["Q82","RTH","OXFORD UNIVERSITY HOSPITALS NHS FOUNDATION TRUST","RTH19","Chipping Norton Community Hospital - RTH19",0,3,0,"NA","NA",0,0,0,0,0,0]
["Q82","RTH","OXFORD UNIVERSITY HOSPITALS NHS FOUNDATION TRUST","RTH05","Horton General Hospital - RTH05",0,10,0,"NA","NA",0,0,0,0,0,0]
["Q82","RTH","OXFORD UNIVERSITY HOSPITALS NHS FOUNDATION TRUST","RTH08","John Radcliffe Hospital - RTH08",55,499,0.11022044088176353,0.96363636363636362,1.8181818181818181E-2,"*","*","*","*","*","*"]
["Q82","RTH","OXFORD UNIVERSITY HOSPITALS NHS FOUNDATION TRUST","RTHXXX","Non-hospital site - RTHXXX",4,16,0.25,"*","*","*","*","*","*","*","*"]
["Q82","RTH","OXFORD UNIVERSITY HOSPITALS NHS FOUNDATION TRUST","RTH16","Wallingford Community Hospital - RTH16",0,7,0,"NA","NA",0,0,0,0,0,0]
["Q82","RTH","OXFORD UNIVERSITY HOSPITALS NHS FOUNDATION TRUST","RTH21","Wantage Community Hospital - RTH21",0,2,0,"NA","NA",0,0,0,0,0,0]
["Q82","RHW","ROYAL BERKSHIRE NHS FOUNDATION TRUST","RHW01","Royal Berkshire Hospital - RHW01",193,421,0.45843230403800472,0.97927461139896377,5.1813471502590676E-3,149,40,3,1,0,0]
["Q82","RD1","ROYAL UNITED HOSPITALS BATH NHS FOUNDATION TRUST","RD102","Chippenham Community Hospital -RD102",9,19,0.47368421052631576,1,0,9,0,0,0,0,0]
["Q82","RD1","ROYAL UNITED HOSPITALS BATH NHS FOUNDATION TRUST","RD121","Frome Community Hospital  - RD121",1,19,5.2631578947368418E-2,"*","*","*","*","*","*","*","*"]
["Q82","RD1","ROYAL UNITED HOSPITALS BATH NHS FOUNDATION TRUST","RD1XXX","Non Hospital Site - RD1XXX",1,10,0.1,"*","*","*","*","*","*","*","*"]
["Q82","RD1","ROYAL UNITED HOSPITALS BATH NHS FOUNDATION TRUST","RD129","Paulton Memorial Hospital  - RD129",0,8,0,"NA","NA",0,0,0,0,0,0]
["Q82","RD1","ROYAL UNITED HOSPITALS BATH NHS FOUNDATION TRUST","RD130","Princess Anne Wing RUH  - RD130",57,315,0.18095238095238095,0.98245614035087714,1.7543859649122806E-2,53,3,0,0,1,0]
["Q82","RD1","ROYAL UNITED HOSPITALS BATH NHS FOUNDATION TRUST","RD108","Trowbridge Community Hospital  - RD108",5,7,0.7142857142857143,1,0,4,1,0,0,0,0]
["Q82","RNZ","SALISBURY NHS FOUNDATION TRUST","RNZXXX","Non-hospital site - RNZXXX",0,8,0,"NA","NA",0,0,0,0,0,0]
["Q82","RNZ","SALISBURY NHS FOUNDATION TRUST","RNZ02","Salisbury District Hospital - RNZ02",12,181,6.6298342541436461E-2,0.91666666666666663,0,9,2,1,0,0,0]
["Q83","RMC","BOLTON NHS FOUNDATION TRUST","RMC01","Royal Bolton Hospital - RMC01",131,572,0.22902097902097901,0.96183206106870234,1.5267175572519083E-2,116,10,3,1,1,0]
["Q83","RY2","BRIDGEWATER COMMUNITY HEALTHCARE NHS FOUNDATION TRUST","RY28P","Health Care Resource Centre - RY28P",0,0,"NA","NA","NA",0,0,0,0,0,0]
["Q83","RY2","BRIDGEWATER COMMUNITY HEALTHCARE NHS FOUNDATION TRUST","RY2XXX","Non-hospital site - RY2XXX",0,0,"NA","NA","NA",0,0,0,0,0,0]
["Q83","RW3","CENTRAL MANCHESTER UNIVERSITY HOSPITALS NHS FOUNDATION TRUST","RW3XXX","Non-hospital site - RW3XXX",0,9,0,"NA","NA",0,0,0,0,0,0]
["Q83","RW3","CENTRAL MANCHESTER UNIVERSITY HOSPITALS NHS FOUNDATION TRUST","RW3SM","St Mary's Hospital - RW3SM",1,791,1.2642225031605564E-3,"*","*","*","*","*","*","*","*"]
["Q83","RW6","PENNINE ACUTE HOSPITALS NHS TRUST","RW6XXX","Non-hospital site - RW6XXX",20,21,0.95238095238095233,0.95,0.05,14,5,0,0,1,0]
["Q83","RW6","PENNINE ACUTE HOSPITALS NHS TRUST","RW602","North Manchester General Hospital - RW602",40,308,0.12987012987012986,1,0,37,3,0,0,0,0]
["Q83","RW6","PENNINE ACUTE HOSPITALS NHS TRUST","RW603","Royal Oldham Hospital - RW603",74,407,0.18181818181818182,0.94594594594594594,2.7027027027027029E-2,57,13,2,0,2,0]
["Q83","RWJ","STOCKPORT NHS FOUNDATION TRUST","RWJXXX","Non-hospital site - RWJXXX",0,6,0,"NA","NA",0,0,0,0,0,0]
["Q83","RWJ","STOCKPORT NHS FOUNDATION TRUST","RWJ09","Stepping Hill Hospital - RWJ09",136,299,0.45484949832775917,0.97058823529411764,2.2058823529411766E-2,110,22,0,2,1,1]
["Q83","RMP","TAMESIDE AND GLOSSOP INTEGRATED CARE NHS FOUNDATION TRUST","RMP01","Tameside General Hospital - RMP01",59,192,0.30729166666666669,0.98305084745762716,1.6949152542372881E-2,41,17,0,1,0,0]
["Q83","RM2","UNIVERSITY HOSPITAL OF SOUTH MANCHESTER NHS FOUNDATION TRUST","RM202","Wythenshawe Hospital - RM202",37,362,0.10220994475138122,1,0,"*","*","*","*","*","*"]
["Q83","RRF","WRIGHTINGTON, WIGAN AND LEIGH NHS FOUNDATION TRUST","RRF02","Royal Albert Edward Infirmary - RRF02",141,239,0.58995815899581594,0.97163120567375882,7.0921985815602835E-3,123,14,3,1,0,0]
["Q84","RXL","BLACKPOOL TEACHING HOSPITALS NHS FOUNDATION TRUST","RXL01","Blackpool Victoria Hospital - RXL01",83,264,0.31439393939393939,0.95180722891566261,1.2048192771084338E-2,66,13,2,1,0,1]
["Q84","RXR","EAST LANCASHIRE HOSPITALS NHS TRUST","RXR20","Royal Blackburn Hospital - RXR20",148,565,0.26194690265486725,0.98648648648648651,0,140,6,1,0,0,1]
["Q84","RXN","LANCASHIRE TEACHING HOSPITALS NHS FOUNDATION TRUST","RXN01","Chorley and South Ribble Hospital - RXN01",4,12,0.33333333333333331,"*","*","*","*","*","*","*","*"]
["Q84","RXN","LANCASHIRE TEACHING HOSPITALS NHS FOUNDATION TRUST","RXN02","Royal Preston Hospital - RXN02",34,231,0.1471861471861472,1,0,"*","*","*","*","*","*"]
["zIS1","NDE","ONE TO ONE (NORTH WEST) LIMITED","NDEXXX","Non-hospital site - NDEXXX",14,28,0.5,0.8571428571428571,0,11,1,0,0,0,2]

{"sheet":"Region (Local Office) Q3","index":8,"n_rows":28,"n_cols":11,"rows_kept":28,"cut":false,"hidden":false,"merged":[[8,5,8,10],[8,0,9,0],[8,1,9,1],[8,2,9,2],[8,3,9,3],[8,4,9,4]]}
[]
[]
[]
[]
[]
[null,"   Sort data by:           "]
[]
[]
["Region (LO) Code","Region (Local Office)","Total Responses","Percentage Recommended","Percentage Not  Recommended","Breakdown of Responses"]
[null,null,null,null,null,"Extremely Likely","Likely","Neither","Unlikely","Extremely Unlikely","Don't Know"]
[null,"England (including Independent Sector providers)",12541,0.94689418706642214,1.9854876006698031E-2,9189,2686,284,146,103,133]
[null,"England (excluding Independent Sector providers)",12541,0.94689418706642214,1.9854876006698031E-2,9189,2686,284,146,103,133]
[null,"Selection (excluding suppressed data)",{"$f":"SUBTOTAL(9,C14:C40)","v":12541},{"$f":"IFERROR((F13+G13)/SUM(F13:K13), \"-\")","v":0.94689418706642214},{"$f":"IFERROR((I13+J13)/SUM(F13:K13), \"-\")","v":1.9854876006698031E-2},{"$f":"SUBTOTAL(9,F14:F40)","v":9189},2686,284,146,103,133]
["Q70","NHS England Wessex",498,0.96385542168674698,8.0321285140562242E-3,380,100,9,2,2,5]
["Q71","NHS England London",2332,0.90094339622641506,3.687821612349914E-2,1390,711,103,49,37,42]
["Q72","NHS England Yorkshire & Humber",1066,0.96153846153846156,1.0318949343339587E-2,833,192,22,7,4,8]
["Q74","NHS England Cumbria & North East",688,0.98401162790697672,5.8139534883720929E-3,572,105,3,2,2,4]
["Q75","NHS England Cheshire & Merseyside",361,0.96675900277008309,1.1080332409972299E-2,300,49,5,3,1,3]
["Q76","NHS England North Midlands",662,0.97280966767371602,1.0574018126888218E-2,514,130,7,5,2,4]
["Q77","NHS England West Midlands",1278,0.94209702660406891,1.9561815336463225E-2,914,290,33,14,11,16]
["Q78","NHS England Central Midlands",1107,0.93766937669376693,2.4390243902439025E-2,771,267,29,15,12,13]
["Q79","NHS England East",1142,0.968476357267951,1.5761821366024518E-2,906,200,11,12,6,7]
["Q80","NHS England South West",565,0.95221238938053099,2.831858407079646E-2,413,125,8,9,7,3]
["Q81","NHS England South East",1190,0.95378151260504207,1.5966386554621848E-2,942,193,20,12,7,16]
["Q82","NHS England South Central",521,0.96545105566218814,5.7581573896353169E-3,374,129,9,3,0,6]
["Q83","NHS England Greater Manchester",915,0.94972677595628419,2.185792349726776E-2,705,164,21,11,9,5]
["Q84","NHS England Lancashire",216,0.95370370370370372,2.3148148148148147E-2,175,31,4,2,3,1]
["zIS1","Independent Sector Provider",0,"NA","NA",0,0,0,0,0,0]

{"sheet":"Trusts Q3","index":9,"n_rows":147,"n_cols":19,"rows_kept":147,"cut":false,"hidden":false,"merged":[[8,6,8,11],[8,12,8,18],[8,0,9,0],[8,1,9,1],[8,2,9,2],[8,3,9,3],[8,4,9,4],[8,5,9,5]]}
[]
[]
[]
[]
[]
[null,"   Sort data by:           "]
[]
[]
["Region (LO) Code","Trust Code","Trust Name","Total Responses","Percentage Recommended","Percentage Not  Recommended","Breakdown of Responses",null,null,null,null,null,"Mode of Collection"]
[null,null,null,null,null,null,"Extremely Likely","Likely","Neither","Unlikely","Extremely Unlikely","Don't Know","SMS/Text / Smartphone App","Electronic tablet/kiosk at point of discharge","Paper / postcard at point of discharge","Paper survey sent to the patients home","Telephone survey once patient is home","Online survey once patient is home","Other"]
[null,null,"England (including Independent Sector providers)",12541,0.94689418706642214,1.9854876006698031E-2,9189,2686,284,146,103,133,927,2830,8049,381,1,168,185]
[null,null,"England (excluding Independent Sector providers)",12541,0.94689418706642214,1.9854876006698031E-2,9189,2686,284,146,103,133,927,2830,8049,381,1,168,185]
[null,null,"Selection (excluding suppressed data)",{"$f":"SUBTOTAL(9,D14:D299)","v":12541},{"$f":"IFERROR((G13+H13)/SUM(G13:L13), \"-\")","v":0.94672328152539653},{"$f":"IFERROR((J13+K13)/SUM(G13:L13), \"-\")","v":1.9948726165678578E-2},{"$f":"SUBTOTAL(9,G14:G299)","v":9138},2679,283,146,103,133,927,2828,7992,381,1,168,185]
["Q70","RDZ","THE ROYAL BOURNEMOUTH AND CHRISTCHURCH HOSPITALS NHS FOUNDATION TRUST",0,"NA","NA",0,0,0,0,0,0,0,0,0,0,0,0,0]
["Q70","RD3","POOLE HOSPITAL NHS FOUNDATION TRUST",7,1,0,6,1,0,0,0,0,0,0,7,0,0,0,0]
["Q70","R1F","ISLE OF WIGHT NHS TRUST",18,1,0,16,2,0,0,0,0,0,0,18,0,0,0,0]
["Q70","RBD","DORSET COUNTY HOSPITAL NHS FOUNDATION TRUST",43,0.90697674418604646,0,34,5,3,0,0,1,43,0,0,0,0,0,0]
["Q70","RHU","PORTSMOUTH HOSPITALS NHS TRUST",106,0.99056603773584906,9.433962264150943E-3,84,21,0,1,0,0,0,0,104,0,0,2,0]
["Q70","RHM","UNIVERSITY HOSPITAL SOUTHAMPTON NHS FOUNDATION TRUST",149,0.94630872483221473,6.7114093959731542E-3,100,41,3,0,1,4,0,0,147,0,0,0,2]
["Q70","RN5","HAMPSHIRE HOSPITALS NHS FOUNDATION TRUST",175,0.97142857142857142,1.1428571428571429E-2,140,30,3,1,1,0,0,0,175,0,0,0,0]
["Q71","R1K","LONDON NORTH WEST HEALTHCARE NHS TRUST",0,"NA","NA",0,0,0,0,0,0,0,0,0,0,0,0,0]
["Q71","RJ1","GUY'S AND ST THOMAS' NHS FOUNDATION TRUST",30,0.8666666666666667,3.3333333333333333E-2,14,12,3,0,1,0,0,0,30,0,0,0,0]
["Q71","RVR","EPSOM AND ST HELIER UNIVERSITY HOSPITALS NHS TRUST",38,1,0,33,5,0,0,0,0,0,0,35,0,0,3,0]
["Q71","RAX","KINGSTON HOSPITAL NHS FOUNDATION TRUST",42,1,0,30,12,0,0,0,0,0,42,0,0,0,0,0]
["Q71","RJ7","ST GEORGE'S UNIVERSITY HOSPITALS NHS FOUNDATION TRUST",48,0.97916666666666663,0,26,21,1,0,0,0,0,48,0,0,0,0,0]
["Q71","RJZ","KING'S COLLEGE HOSPITAL NHS FOUNDATION TRUST",62,0.87096774193548387,6.4516129032258063E-2,38,16,3,2,2,1,0,60,2,0,0,0,0]
["Q71","RAP","NORTH MIDDLESEX UNIVERSITY HOSPITAL NHS TRUST",74,0.89189189189189189,5.4054054054054057E-2,41,25,3,2,2,1,0,74,0,0,0,0,0]
["Q71","RQX","HOMERTON UNIVERSITY HOSPITAL NHS FOUNDATION TRUST",107,0.89719626168224298,9.3457943925233638E-3,54,42,9,1,0,1,0,107,0,0,0,0,0]
["Q71","RKE","THE WHITTINGTON HOSPITAL NHS TRUST",108,0.80555555555555558,3.7037037037037035E-2,47,40,8,2,2,9,0,108,0,0,0,0,0]
["Q71","RAS","THE HILLINGDON HOSPITALS NHS FOUNDATION TRUST",139,0.96402877697841727,1.4388489208633094E-2,95,39,0,1,1,3,0,0,139,0,0,0,0]
["Q71","RJ6","CROYDON HEALTH SERVICES NHS TRUST",143,0.88811188811188813,4.195804195804196E-2,83,44,7,4,2,3,0,0,143,0,0,0,0]
["Q71","R1H","BARTS HEALTH NHS TRUST",168,0.8214285714285714,0.10119047619047619,71,67,10,6,11,3,0,124,42,0,0,2,0]
["Q71","RQM","CHELSEA AND WESTMINSTER HOSPITAL NHS FOUNDATION TRUST",168,0.88095238095238093,7.1428571428571425E-2,120,28,7,6,6,1,132,0,35,0,0,1,0]
["Q71","RAL","ROYAL FREE LONDON NHS FOUNDATION TRUST",189,0.94708994708994709,1.5873015873015872E-2,122,57,6,2,1,1,0,0,189,0,0,0,0]
["Q71","RF4","BARKING, HAVERING AND REDBRIDGE UNIVERSITY HOSPITALS NHS TRUST",220,0.97727272727272729,9.0909090909090905E-3,153,62,2,2,0,1,0,8,211,0,0,1,0]
["Q71","RYJ","IMPERIAL COLLEGE HEALTHCARE NHS TRUST",225,0.88444444444444448,3.111111111111111E-2,119,80,14,4,3,5,0,207,18,0,0,0,0]
["Q71","RRV","UNIVERSITY COLLEGE LONDON HOSPITALS NHS FOUNDATION TRUST",264,0.87878787878787878,3.787878787878788E-2,182,50,13,8,2,9,0,0,264,0,0,0,0]
["Q71","RJ2","LEWISHAM AND GREENWICH NHS TRUST",307,0.88925081433224751,4.2345276872964167E-2,162,111,17,9,4,4,0,0,307,0,0,0,0]
["Q72","RCF","AIREDALE NHS FOUNDATION TRUST",16,1,0,14,2,0,0,0,0,0,1,15,0,0,0,0]
["Q72","RJL","NORTHERN LINCOLNSHIRE AND GOOLE NHS FOUNDATION TRUST",32,0.875,0,24,4,4,0,0,0,0,0,0,32,0,0,0]
["Q72","RAE","BRADFORD TEACHING HOSPITALS NHS FOUNDATION TRUST",33,1,0,27,6,0,0,0,0,0,13,20,0,0,0,0]
["Q72","RWA","HULL AND EAST YORKSHIRE HOSPITALS NHS TRUST",35,1,0,35,0,0,0,0,0,0,0,35,0,0,0,0]
["Q72","RFF","BARNSLEY HOSPITAL NHS FOUNDATION TRUST",44,1,0,41,3,0,0,0,0,0,0,44,0,0,0,0]
["Q72","RCD","HARROGATE AND DISTRICT NHS FOUNDATION TRUST",57,0.98245614035087714,1.7543859649122806E-2,50,6,0,1,0,0,0,0,57,0,0,0,0]
["Q72","RXF","MID YORKSHIRE HOSPITALS NHS TRUST",62,0.967741935483871,1.6129032258064516E-2,40,20,1,0,1,0,40,20,1,0,1,0,0]
["Q72","RCB","YORK TEACHING HOSPITAL NHS FOUNDATION TRUST",94,0.98936170212765961,0,83,10,1,0,0,0,0,0,94,0,0,0,0]
["Q72","RFR","THE ROTHERHAM NHS FOUNDATION TRUST",100,0.96,0.02,78,18,0,2,0,2,0,0,100,0,0,0,0]
["Q72","RP5","DONCASTER AND BASSETLAW TEACHING HOSPITALS NHS FOUNDATION TRUST",119,0.94117647058823528,3.3613445378151259E-2,82,30,2,2,2,1,0,0,119,0,0,0,0]
["Q72","RR8","LEEDS TEACHING HOSPITALS NHS TRUST",139,0.97122302158273377,7.1942446043165471E-3,107,28,3,1,0,0,0,0,139,0,0,0,0]
["Q72","RWY","CALDERDALE AND HUDDERSFIELD NHS FOUNDATION TRUST",151,0.98013245033112584,0,123,25,3,0,0,0,0,151,0,0,0,0,0]
["Q72","RHQ","SHEFFIELD TEACHING HOSPITALS NHS FOUNDATION TRUST",184,0.91847826086956519,1.0869565217391304E-2,129,40,8,1,1,5,0,0,183,0,0,1,0]
["Q74","RVW","NORTH TEES AND HARTLEPOOL NHS FOUNDATION TRUST",12,0.91666666666666663,0,8,3,1,0,0,0,0,0,12,0,0,0,0]
["Q74","RE9","SOUTH TYNESIDE NHS FOUNDATION TRUST",15,0.93333333333333335,0,12,2,0,0,0,1,0,0,15,0,0,0,0]
["Q74","RTX","UNIVERSITY HOSPITALS OF MORECAMBE BAY NHS FOUNDATION TRUST",30,1,0,25,5,0,0,0,0,0,0,30,0,0,0,0]
["Q74","RR7","GATESHEAD HEALTH NHS FOUNDATION TRUST",43,0.97674418604651159,2.3255813953488372E-2,36,6,0,0,1,0,0,12,31,0,0,0,0]
["Q74","RTR","SOUTH TEES HOSPITALS NHS FOUNDATION TRUST",45,0.97777777777777775,0,40,4,0,0,0,1,0,0,45,0,0,0,0]
["Q74","RTF","NORTHUMBRIA HEALTHCARE NHS FOUNDATION TRUST",47,0.95744680851063835,4.2553191489361701E-2,38,7,0,2,0,0,0,0,47,0,0,0,0]
["Q74","RNL","NORTH CUMBRIA UNIVERSITY HOSPITALS NHS TRUST",103,1,0,83,20,0,0,0,0,0,0,85,0,0,0,18]
["Q74","RXP","COUNTY DURHAM AND DARLINGTON NHS FOUNDATION TRUST",111,0.99099099099099097,0,83,27,0,0,0,1,0,0,111,0,0,0,0]
["Q74","RLN","CITY HOSPITALS SUNDERLAND NHS FOUNDATION TRUST",113,1,0,102,11,0,0,0,0,0,0,113,0,0,0,0]
["Q74","RTD","THE NEWCASTLE UPON TYNE HOSPITALS NHS FOUNDATION TRUST",169,0.97633136094674555,5.9171597633136093E-3,145,20,2,0,1,1,0,0,169,0,0,0,0]
["Q75","REP","LIVERPOOL WOMEN'S NHS FOUNDATION TRUST",2,"*","*","*","*","*","*","*","*","*","*","*","*","*","*","*"]
["Q75","RBT","MID CHESHIRE HOSPITALS NHS FOUNDATION TRUST",27,0.96296296296296291,0,"*","*","*","*","*","*","*","*","*","*","*","*","*"]
["Q75","RVY","SOUTHPORT AND ORMSKIRK HOSPITAL NHS TRUST",28,0.9285714285714286,3.5714285714285712E-2,23,3,1,1,0,0,0,19,9,0,0,0,0]
["Q75","RBN","ST HELENS AND KNOWSLEY HOSPITAL SERVICES NHS TRUST",32,0.90625,3.125E-2,26,3,0,0,1,2,0,0,32,0,0,0,0]
["Q75","RJR","COUNTESS OF CHESTER HOSPITAL NHS FOUNDATION TRUST",52,0.94230769230769229,1.9230769230769232E-2,39,10,2,1,0,0,29,0,23,0,0,0,0]
["Q75","RJN","EAST CHESHIRE NHS TRUST",57,0.96491228070175439,0,51,4,1,0,0,1,0,0,57,0,0,0,0]
["Q75","RWW","WARRINGTON AND HALTON HOSPITALS NHS FOUNDATION TRUST",81,0.98765432098765427,1.2345679012345678E-2,70,10,0,1,0,0,0,0,81,0,0,0,0]
["Q75","RBL","WIRRAL UNIVERSITY TEACHING HOSPITAL NHS FOUNDATION TRUST",82,1,0,67,15,0,0,0,0,0,0,82,0,0,0,0]
["Q76","RJE","UNIVERSITY HOSPITALS OF NORTH MIDLANDS NHS TRUST",27,0.92592592592592593,0,22,3,1,0,0,1,0,0,27,0,0,0,0]
["Q76","RFS","CHESTERFIELD ROYAL HOSPITAL NHS FOUNDATION TRUST",61,0.98360655737704916,0,40,20,0,0,0,1,0,50,11,0,0,0,0]
["Q76","RK5","SHERWOOD FOREST HOSPITALS NHS FOUNDATION TRUST",72,0.94444444444444442,4.1666666666666664E-2,56,12,1,3,0,0,0,0,71,0,0,1,0]
["Q76","RJF","BURTON HOSPITALS NHS FOUNDATION TRUST",94,1,0,85,9,0,0,0,0,1,0,93,0,0,0,0]
["Q76","RXW","SHREWSBURY AND TELFORD HOSPITAL NHS TRUST",108,0.97222222222222221,9.2592592592592587E-3,97,8,1,0,1,1,0,0,108,0,0,0,0]
["Q76","RX1","NOTTINGHAM UNIVERSITY HOSPITALS NHS TRUST",123,0.98373983739837401,8.130081300813009E-3,87,34,1,1,0,0,0,0,0,0,0,123,0]
["Q76","RTG","DERBY TEACHING HOSPITALS NHS FOUNDATION TRUST",177,0.96610169491525422,1.1299435028248588E-2,127,44,3,1,1,1,0,0,177,0,0,0,0]
["Q77","RBK","WALSALL HEALTHCARE NHS TRUST",35,0.91428571428571426,8.5714285714285715E-2,26,6,0,3,0,0,21,0,14,0,0,0,0]
["Q77","RLQ","WYE VALLEY NHS TRUST",50,0.98,0,40,9,0,0,0,1,0,50,0,0,0,0,0]
["Q77","RJC","SOUTH WARWICKSHIRE NHS FOUNDATION TRUST",74,0.95945945945945943,2.7027027027027029E-2,59,12,1,1,1,0,0,0,68,0,0,6,0]
["Q77","RL4","THE ROYAL WOLVERHAMPTON NHS TRUST",89,0.9101123595505618,6.741573033707865E-2,67,14,1,4,2,1,56,0,33,0,0,0,0]
["Q77","RQ3","BIRMINGHAM WOMEN'S AND CHILDREN'S NHS FOUNDATION TRUST",90,0.9555555555555556,1.1111111111111112E-2,57,29,2,1,0,1,0,0,90,0,0,0,0]
["Q77","RXK","SANDWELL AND WEST BIRMINGHAM HOSPITALS NHS TRUST",105,0.8571428571428571,4.7619047619047616E-2,53,37,6,2,3,4,0,105,0,0,0,0,0]
["Q77","RLT","GEORGE ELIOT HOSPITAL NHS TRUST",114,0.96491228070175439,1.7543859649122806E-2,98,12,1,1,1,1,46,0,68,0,0,0,0]
["Q77","RKB","UNIVERSITY HOSPITALS COVENTRY AND WARWICKSHIRE NHS TRUST",164,0.95121951219512191,1.8292682926829267E-2,105,51,1,1,2,4,0,0,164,0,0,0,0]
["Q77","RNA","THE DUDLEY GROUP NHS FOUNDATION TRUST",170,0.95294117647058818,1.1764705882352941E-2,143,19,2,1,1,4,0,0,170,0,0,0,0]
["Q77","RR1","HEART OF ENGLAND NHS FOUNDATION TRUST",173,0.90751445086705207,5.7803468208092483E-3,95,62,15,0,1,0,0,0,173,0,0,0,0]
["Q77","RWP","WORCESTERSHIRE ACUTE HOSPITALS NHS TRUST",214,0.98130841121495327,0,171,39,4,0,0,0,0,0,214,0,0,0,0]
["Q78","RNQ","KETTERING GENERAL HOSPITAL NHS FOUNDATION TRUST",18,1,0,15,3,0,0,0,0,0,0,18,0,0,0,0]
["Q78","RD8","MILTON KEYNES UNIVERSITY HOSPITAL NHS FOUNDATION TRUST",24,0.95833333333333337,4.1666666666666664E-2,14,9,0,0,1,0,0,0,19,0,0,5,0]
["Q78","RWD","UNITED LINCOLNSHIRE HOSPITALS NHS TRUST",37,0.94594594594594594,2.7027027027027029E-2,27,8,1,1,0,0,0,0,37,0,0,0,0]
["Q78","RC1","BEDFORD HOSPITAL NHS TRUST",67,0.97014925373134331,0,57,8,2,0,0,0,67,0,0,0,0,0,0]
["Q78","RNS","NORTHAMPTON GENERAL HOSPITAL NHS TRUST",83,1,0,69,14,0,0,0,0,0,0,83,0,0,0,0]
["Q78","RWG","WEST HERTFORDSHIRE HOSPITALS NHS TRUST",103,0.95145631067961167,9.7087378640776691E-3,67,31,3,1,0,1,0,0,103,0,0,0,0]
["Q78","RC9","LUTON AND DUNSTABLE UNIVERSITY HOSPITAL NHS FOUNDATION TRUST",113,0.98230088495575218,0,81,30,2,0,0,0,0,113,0,0,0,0,0]
["Q78","RWH","EAST AND NORTH HERTFORDSHIRE NHS TRUST",232,0.875,4.3103448275862072E-2,130,73,13,8,2,6,0,232,0,0,0,0,0]
["Q78","RWE","UNIVERSITY HOSPITALS OF LEICESTER NHS TRUST",430,0.93488372093023253,3.255813953488372E-2,311,91,8,5,9,6,0,430,0,0,0,0,0]
["Q79","RGR","WEST SUFFOLK NHS FOUNDATION TRUST",2,"*","*","*","*","*","*","*","*","*","*","*","*","*","*","*"]
["Q79","RAJ","SOUTHEND UNIVERSITY HOSPITAL NHS FOUNDATION TRUST",20,1,0,"*","*","*","*","*","*","*","*","*","*","*","*","*"]
["Q79","RM1","NORFOLK AND NORWICH UNIVERSITY HOSPITALS NHS FOUNDATION TRUST",34,0.97058823529411764,2.9411764705882353E-2,31,2,0,1,0,0,0,30,4,0,0,0,0]
["Q79","RGP","JAMES PAGET UNIVERSITY HOSPITALS NHS FOUNDATION TRUST",40,0.97499999999999998,0,33,6,0,0,0,1,0,0,40,0,0,0,0]
["Q79","RQ8","MID ESSEX HOSPITAL SERVICES NHS TRUST",47,0.8936170212765957,8.5106382978723402E-2,37,5,1,3,1,0,47,0,0,0,0,0,0]
["Q79","RDE","COLCHESTER HOSPITAL UNIVERSITY NHS FOUNDATION TRUST",57,0.98245614035087714,1.7543859649122806E-2,42,14,0,0,1,0,0,0,57,0,0,0,0]
["Q79","RCX","THE QUEEN ELIZABETH HOSPITAL, KING'S LYNN, NHS FOUNDATION TRUST",90,0.98888888888888893,1.1111111111111112E-2,62,27,0,1,0,0,0,0,89,0,0,1,0]
["Q79","RGQ","IPSWICH HOSPITAL NHS TRUST",125,0.94399999999999995,1.6E-2,99,19,4,2,0,1,0,125,0,0,0,0,0]
["Q79","RDD","BASILDON AND THURROCK UNIVERSITY HOSPITALS NHS FOUNDATION TRUST",158,0.98734177215189878,6.3291139240506328E-3,123,33,1,0,1,0,0,0,158,0,0,0,0]
["Q79","RQW","THE PRINCESS ALEXANDRA HOSPITAL NHS TRUST",165,0.97575757575757571,6.0606060606060606E-3,155,6,0,0,1,3,0,0,0,0,0,0,165]
["Q79","RGN","NORTH WEST ANGLIA NHS FOUNDATION TRUST",189,0.95238095238095233,2.6455026455026454E-2,160,20,2,3,2,2,0,0,189,0,0,0,0]
["Q79","RGT","CAMBRIDGE UNIVERSITY HOSPITALS NHS FOUNDATION TRUST",215,0.97674418604651159,9.3023255813953487E-3,143,67,3,2,0,0,0,208,7,0,0,0,0]
["Q80","RH8","ROYAL DEVON AND EXETER NHS FOUNDATION TRUST",2,"*","*","*","*","*","*","*","*","*","*","*","*","*","*","*"]
["Q80","RA3","WESTON AREA HEALTH NHS TRUST",6,1,0,"*","*","*","*","*","*","*","*","*","*","*","*","*"]
["Q80","RA4","YEOVIL DISTRICT HOSPITAL NHS FOUNDATION TRUST",11,1,0,11,0,0,0,0,0,0,0,11,0,0,0,0]
["Q80","RA9","TORBAY AND SOUTH DEVON NHS FOUNDATION TRUST",14,0.8571428571428571,7.1428571428571425E-2,9,3,1,1,0,0,0,0,14,0,0,0,0]
["Q80","RBZ","NORTHERN DEVON HEALTHCARE NHS TRUST",33,1,0,31,2,0,0,0,0,0,0,33,0,0,0,0]
["Q80","RBA","TAUNTON AND SOMERSET NHS FOUNDATION TRUST",59,0.94915254237288138,1.6949152542372881E-2,37,19,2,1,0,0,0,0,59,0,0,0,0]
["Q80","RA7","UNIVERSITY HOSPITALS BRISTOL NHS FOUNDATION TRUST",66,0.90909090909090906,4.5454545454545456E-2,46,14,1,0,3,2,0,0,66,0,0,0,0]
["Q80","RVJ","NORTH BRISTOL NHS TRUST",95,0.90526315789473688,7.3684210526315783E-2,73,13,2,4,3,0,95,0,0,0,0,0,0]
["Q80","REF","ROYAL CORNWALL HOSPITALS NHS TRUST",131,0.95419847328244278,2.2900763358778626E-2,96,29,2,2,1,1,0,0,131,0,0,0,0]
["Q80","RK9","PLYMOUTH HOSPITALS NHS TRUST",148,0.9932432432432432,6.7567567567567571E-3,104,43,0,1,0,0,0,136,12,0,0,0,0]
["Q81","RTK","ASHFORD AND ST PETER'S HOSPITALS NHS FOUNDATION TRUST",0,"NA","NA",0,0,0,0,0,0,0,0,0,0,0,0,0]
["Q81","RWF","MAIDSTONE AND TUNBRIDGE WELLS NHS TRUST",32,0.8125,0,24,2,0,0,0,6,0,0,31,0,0,1,0]
["Q81","RN7","DARTFORD AND GRAVESHAM NHS TRUST",69,0.98550724637681164,0,62,6,1,0,0,0,0,0,69,0,0,0,0]
["Q81","RTP","SURREY AND SUSSEX HEALTHCARE NHS TRUST",78,0.91025641025641024,3.8461538461538464E-2,52,19,4,3,0,0,0,0,76,0,0,2,0]
["Q81","RXH","BRIGHTON AND SUSSEX UNIVERSITY HOSPITALS NHS TRUST",79,0.94936708860759489,3.7974683544303799E-2,67,8,1,2,1,0,79,0,0,0,0,0,0]
["Q81","RXC","EAST SUSSEX HEALTHCARE NHS TRUST",114,0.97368421052631582,0,78,33,3,0,0,0,0,114,0,0,0,0,0]
["Q81","RVV","EAST KENT HOSPITALS UNIVERSITY NHS FOUNDATION TRUST",139,0.97122302158273377,2.1582733812949641E-2,118,17,0,2,1,1,0,0,0,139,0,0,0]
["Q81","RA2","ROYAL SURREY COUNTY HOSPITAL NHS FOUNDATION TRUST",147,0.97278911564625847,2.0408163265306121E-2,130,13,1,1,2,0,79,0,68,0,0,0,0]
["Q81","RDU","FRIMLEY HEALTH NHS FOUNDATION TRUST",151,0.88079470198675491,2.6490066225165563E-2,99,34,6,3,1,8,0,0,151,0,0,0,0]
["Q81","RPA","MEDWAY NHS FOUNDATION TRUST",164,0.97560975609756095,6.0975609756097563E-3,143,17,2,1,0,1,0,0,164,0,0,0,0]
["Q81","RYR","WESTERN SUSSEX HOSPITALS NHS FOUNDATION TRUST",217,0.98156682027649766,9.2165898617511521E-3,169,44,2,0,2,0,0,3,198,0,0,16,0]
["Q82","RNZ","SALISBURY NHS FOUNDATION TRUST",0,"NA","NA",0,0,0,0,0,0,0,0,0,0,0,0,0]
["Q82","RTE","GLOUCESTERSHIRE HOSPITALS NHS FOUNDATION TRUST",0,"NA","NA",0,0,0,0,0,0,0,0,0,0,0,0,0]
["Q82","RN3","GREAT WESTERN HOSPITALS NHS FOUNDATION TRUST",13,1,0,10,3,0,0,0,0,0,0,13,0,0,0,0]
["Q82","RTH","OXFORD UNIVERSITY HOSPITALS NHS FOUNDATION TRUST",67,0.94029850746268662,1.4925373134328358E-2,51,12,1,1,0,2,0,0,66,0,0,1,0]
["Q82","RD1","ROYAL UNITED HOSPITALS BATH NHS FOUNDATION TRUST",71,0.9859154929577465,1.4084507042253521E-2,58,12,0,1,0,0,0,0,71,0,0,0,0]
["Q82","RHW","ROYAL BERKSHIRE NHS FOUNDATION TRUST",175,0.95428571428571429,5.7142857142857143E-3,112,55,4,1,0,3,0,70,105,0,0,0,0]
["Q82","RXQ","BUCKINGHAMSHIRE HEALTHCARE NHS TRUST",195,0.97435897435897434,0,143,47,4,0,0,1,0,0,195,0,0,0,0]
["Q83","RY2","BRIDGEWATER COMMUNITY HEALTHCARE NHS FOUNDATION TRUST",0,"NA","NA",0,0,0,0,0,0,0,0,0,0,0,0,0]
["Q83","RM2","UNIVERSITY HOSPITAL OF SOUTH MANCHESTER NHS FOUNDATION TRUST",16,1,0,15,1,0,0,0,0,0,0,16,0,0,0,0]
["Q83","RRF","WRIGHTINGTON, WIGAN AND LEIGH NHS FOUNDATION TRUST",44,0.97727272727272729,0,36,7,1,0,0,0,0,0,43,0,0,1,0]
["Q83","RMP","TAMESIDE AND GLOSSOP INTEGRATED CARE NHS FOUNDATION TRUST",48,0.95833333333333337,2.0833333333333332E-2,29,17,1,0,1,0,0,44,4,0,0,0,0]
["Q83","RWJ","STOCKPORT NHS FOUNDATION TRUST",97,0.96907216494845361,2.0618556701030927E-2,77,17,1,1,1,0,0,0,0,97,0,0,0]
["Q83","RMC","BOLTON NHS FOUNDATION TRUST",150,0.92666666666666664,6.6666666666666671E-3,111,28,9,0,1,1,37,0,0,113,0,0,0]
["Q83","RW6","PENNINE ACUTE HOSPITALS NHS TRUST",214,0.93925233644859818,5.1401869158878503E-2,166,35,0,6,5,2,72,0,142,0,0,0,0]
["Q83","RW3","CENTRAL MANCHESTER UNIVERSITY HOSPITALS NHS FOUNDATION TRUST",346,0.95375722543352603,1.4450867052023121E-2,271,59,9,4,1,2,0,81,264,0,0,1,0]
["Q84","RXN","LANCASHIRE TEACHING HOSPITALS NHS FOUNDATION TRUST",55,0.98181818181818181,1.8181818181818181E-2,47,7,0,0,1,0,55,0,0,0,0,0,0]
["Q84","RXR","EAST LANCASHIRE HOSPITALS NHS TRUST",68,0.97058823529411764,2.9411764705882353E-2,64,2,0,1,1,0,28,0,40,0,0,0,0]
["Q84","RXL","BLACKPOOL TEACHING HOSPITALS NHS FOUNDATION TRUST",93,0.92473118279569888,2.1505376344086023E-2,64,22,4,1,1,1,0,43,50,0,0,0,0]

{"sheet":"Sites Q3","index":10,"n_rows":204,"n_cols":14,"rows_kept":204,"cut":false,"hidden":false,"merged":[[8,6,9,6],[8,7,9,7],[8,8,8,13],[8,0,9,0],[8,1,9,1],[8,2,9,2],[8,3,9,3],[8,4,9,4],[8,5,9,5]]}
[]
[]
[]
[]
[]
[null,"   Sort data by:           "]
[]
[]
["Region (LO) Code","Trust Code","Trust Name","Site Code","Site Name","Total Responses","Percentage Recommended","Percentage Not  Recommended","Breakdown of Responses"]
[null,null,null,null,null,null,null,null,"Extremely Likely","Likely","Neither","Unlikely","Extremely Unlikely","Don't Know"]
[null,null,null,null,"England (including Independent Sector providers)",12541,0.94689418706642214,1.9854876006698031E-2,9189,2686,284,146,103,133]
[null,null,null,null,"England (excluding Independent Sector providers)",12541,0.94689418706642214,1.9854876006698031E-2,9189,2686,284,146,103,133]
[null,null,null,null,"Selection (excluding suppressed data)",{"$f":"SUBTOTAL(9,F14:F298)","v":12541},{"$f":"IFERROR((I13+J13)/SUM(I13:N13), \"-\")","v":0.94587480463930251},{"$f":"IFERROR((L13+M13)/SUM(I13:N13), \"-\")","v":2.0070741136793618E-2},{"$f":"SUBTOTAL(9,I14:I298)","v":8880},2619,281,142,102,133]
["Q70","RBD","DORSET COUNTY HOSPITAL NHS FOUNDATION TRUST","RBD01","Dorset County Hospital - RBD01",43,0.90697674418604646,0,34,5,3,0,0,1]
["Q70","RN5","HAMPSHIRE HOSPITALS NHS FOUNDATION TRUST","RN506","Basingstoke and North Hampshire Hospital - RN506",123,0.98373983739837401,8.130081300813009E-3,98,23,1,0,1,0]
["Q70","RN5","HAMPSHIRE HOSPITALS NHS FOUNDATION TRUST","RN541","Royal Hampshire County Hospital - RN541",52,0.94230769230769229,1.9230769230769232E-2,42,7,2,1,0,0]
["Q70","R1F","ISLE OF WIGHT NHS TRUST","R1F01","St Mary's Hospital - R1F01",18,1,0,16,2,0,0,0,0]
["Q70","RD3","POOLE HOSPITAL NHS FOUNDATION TRUST","RD304","Poole General Hospital NHS Trust HQ - RD304",7,1,0,6,1,0,0,0,0]
["Q70","RHU","PORTSMOUTH HOSPITALS NHS TRUST","RHU10","Gosport War Memorial Hospital - RHU10",0,"NA","NA",0,0,0,0,0,0]
["Q70","RHU","PORTSMOUTH HOSPITALS NHS TRUST","RHU04","Petersfield Community Hospital - RHU04",4,"*","*","*","*","*","*","*","*"]
["Q70","RHU","PORTSMOUTH HOSPITALS NHS TRUST","RHU03","Queen Alexandra Hospital - RHU03",102,0.99019607843137258,9.8039215686274508E-3,"*","*","*","*","*","*"]
["Q70","RHU","PORTSMOUTH HOSPITALS NHS TRUST","RHU02","St Mary's Hospital - RHU02",0,"NA","NA",0,0,0,0,0,0]
["Q70","RDZ","THE ROYAL BOURNEMOUTH AND CHRISTCHURCH HOSPITALS NHS FOUNDATION TRUST","RDZ20","Royal Bournemouth General Hospital - RDZ20",0,"NA","NA",0,0,0,0,0,0]
["Q70","RHM","UNIVERSITY HOSPITAL SOUTHAMPTON NHS FOUNDATION TRUST","RHM01","Southampton General Hospital - RHM01",149,0.94630872483221473,6.7114093959731542E-3,100,41,3,0,1,4]
["Q71","RF4","BARKING, HAVERING AND REDBRIDGE UNIVERSITY HOSPITALS NHS TRUST","RF4QH","Queen's Hospital - RF4QH",220,0.97727272727272729,9.0909090909090905E-3,153,62,2,2,0,1]
["Q71","R1H","BARTS HEALTH NHS TRUST","R1HNH","Newham General Hospital - R1HNH",124,0.82258064516129037,9.6774193548387094E-2,50,52,10,3,9,0]
["Q71","R1H","BARTS HEALTH NHS TRUST","R1H12","The Royal London Hospital - R1H12",44,0.81818181818181823,0.11363636363636363,21,15,0,3,2,3]
["Q71","R1H","BARTS HEALTH NHS TRUST","R1HKH","Whipps Cross University Hospital - R1HKH",0,"NA","NA",0,0,0,0,0,0]
["Q71","RQM","CHELSEA AND WESTMINSTER HOSPITAL NHS FOUNDATION TRUST","RQM01","Chelsea and Westminster Hospital - RQM01",92,0.89130434782608692,7.6086956521739135E-2,66,16,3,3,4,0]
["Q71","RQM","CHELSEA AND WESTMINSTER HOSPITAL NHS FOUNDATION TRUST","RQM91","West Middlesex University Hospital - RQM91",76,0.86842105263157898,6.5789473684210523E-2,54,12,4,3,2,1]
["Q71","RJ6","CROYDON HEALTH SERVICES NHS TRUST","RJ611","Croydon University Hospital - RJ611",143,0.88811188811188813,4.195804195804196E-2,83,44,7,4,2,3]
["Q71","RVR","EPSOM AND ST HELIER UNIVERSITY HOSPITALS NHS TRUST","RVR50","Epsom Hospital - RVR50",36,1,0,"*","*","*","*","*","*"]
["Q71","RVR","EPSOM AND ST HELIER UNIVERSITY HOSPITALS NHS TRUST","RVR05","St Helier Hospital - RVR05",2,"*","*","*","*","*","*","*","*"]
["Q71","RJ1","GUY'S AND ST THOMAS' NHS FOUNDATION TRUST","RJ122","St Thomas' Hospital - RJ122",30,0.8666666666666667,3.3333333333333333E-2,14,12,3,0,1,0]
["Q71","RQX","HOMERTON UNIVERSITY HOSPITAL NHS FOUNDATION TRUST","RQXM1","Homerton University Hospital - RQXM1",107,0.89719626168224298,9.3457943925233638E-3,54,42,9,1,0,1]
["Q71","RYJ","IMPERIAL COLLEGE HEALTHCARE NHS TRUST","RYJ04","Queen Charlotte's Hospital - RYJ04",105,0.90476190476190477,9.5238095238095247E-3,65,30,6,0,1,3]
["Q71","RYJ","IMPERIAL COLLEGE HEALTHCARE NHS TRUST","RYJ01","St Mary's Hospital (HQ) - RYJ01",120,0.8666666666666667,0.05,54,50,8,4,2,2]
["Q71","RJZ","KING'S COLLEGE HOSPITAL NHS FOUNDATION TRUST","RJZ01","King's College Hospital (Denmark Hill) - RJZ01",7,0.7142857142857143,0.14285714285714285,4,1,1,0,1,0]
["Q71","RJZ","KING'S COLLEGE HOSPITAL NHS FOUNDATION TRUST","RJZ30","Princess Royal University Hospital - RJZ30",55,0.89090909090909087,5.4545454545454543E-2,34,15,2,2,1,1]
["Q71","RAX","KINGSTON HOSPITAL NHS FOUNDATION TRUST","RAX01","Kingston Hospital - RAX01",42,1,0,30,12,0,0,0,0]
["Q71","RJ2","LEWISHAM AND GREENWICH NHS TRUST","RJ231","Queen Elizabeth Hospital - RJ231",99,0.88888888888888884,3.0303030303030304E-2,56,32,8,3,0,0]
["Q71","RJ2","LEWISHAM AND GREENWICH NHS TRUST","RJ224","University Hospital Lewisham - RJ224",208,0.88942307692307687,4.807692307692308E-2,106,79,9,6,4,4]
["Q71","R1K","LONDON NORTH WEST HEALTHCARE NHS TRUST","R1K04","Ealing Hospital - R1K04",0,"NA","NA",0,0,0,0,0,0]
["Q71","RAP","NORTH MIDDLESEX UNIVERSITY HOSPITAL NHS TRUST","RAPNM","North Middlesex Hospital - RAPNM",74,0.89189189189189189,5.4054054054054057E-2,41,25,3,2,2,1]
["Q71","RAL","ROYAL FREE LONDON NHS FOUNDATION TRUST","RAL26","Barnet Hospital - RAL26",112,0.9375,8.9285714285714281E-3,66,39,5,1,0,1]
["Q71","RAL","ROYAL FREE LONDON NHS FOUNDATION TRUST","RAL01","Royal Free Hospital - RAL01",77,0.96103896103896103,2.5974025974025976E-2,56,18,1,1,1,0]
["Q71","RJ7","ST GEORGE'S UNIVERSITY HOSPITALS NHS FOUNDATION TRUST","RJ701","St George's Hospital (Tooting) - RJ701",48,0.97916666666666663,0,26,21,1,0,0,0]
["Q71","RAS","THE HILLINGDON HOSPITALS NHS FOUNDATION TRUST","RAS01","Hillingdon Hospital - RAS01",139,0.96402877697841727,1.4388489208633094E-2,95,39,0,1,1,3]
["Q71","RKE","THE WHITTINGTON HOSPITAL NHS TRUST","RKEQ4","The Whittington Hospital - RKEQ4",108,0.80555555555555558,3.7037037037037035E-2,47,40,8,2,2,9]
["Q71","RRV","UNIVERSITY COLLEGE LONDON HOSPITALS NHS FOUNDATION TRUST","RRV03","University College Hospital - RRV03",264,0.87878787878787878,3.787878787878788E-2,182,50,13,8,2,9]
["Q72","RCF","AIREDALE NHS FOUNDATION TRUST","RCF22","Airedale General Hospital - RCF22",16,1,0,14,2,0,0,0,0]
["Q72","RFF","BARNSLEY HOSPITAL NHS FOUNDATION TRUST","RFFAA","Barnsley Hospital NHS Foundation Trust HQ - RFFAA",44,1,0,41,3,0,0,0,0]
["Q72","RAE","BRADFORD TEACHING HOSPITALS NHS FOUNDATION TRUST","RAE01","Bradford Royal Infirmary - RAE01",33,1,0,27,6,0,0,0,0]
["Q72","RWY","CALDERDALE AND HUDDERSFIELD NHS FOUNDATION TRUST","RWY02","Calderdale Royal Hospital - RWY02",131,0.99236641221374045,0,106,24,1,0,0,0]
["Q72","RWY","CALDERDALE AND HUDDERSFIELD NHS FOUNDATION TRUST","RWY01","Huddersfield Royal Infirmary - RWY01",20,0.9,0,17,1,2,0,0,0]
["Q72","RP5","DONCASTER AND BASSETLAW TEACHING HOSPITALS NHS FOUNDATION TRUST","RP5BA","Bassetlaw Hospital - RP5BA",10,1,0,10,0,0,0,0,0]
["Q72","RP5","DONCASTER AND BASSETLAW TEACHING HOSPITALS NHS FOUNDATION TRUST","RP5DR","Doncaster Royal Infirmary - RP5DR",109,0.93577981651376152,3.669724770642202E-2,72,30,2,2,2,1]
["Q72","RCD","HARROGATE AND DISTRICT NHS FOUNDATION TRUST","RCD01","Harrogate District Hospital - RCD01",57,0.98245614035087714,1.7543859649122806E-2,50,6,0,1,0,0]
["Q72","RWA","HULL AND EAST YORKSHIRE HOSPITALS NHS TRUST","RWA01","Hull Royal Infirmary - RWA01",35,1,0,35,0,0,0,0,0]
["Q72","RR8","LEEDS TEACHING HOSPITALS NHS TRUST","RR801","Leeds General Infirmary - RR801",139,0.97122302158273377,7.1942446043165471E-3,107,28,3,1,0,0]
["Q72","RR8","LEEDS TEACHING HOSPITALS NHS TRUST","RR813","St James's University Hospital - RR813",0,"NA","NA",0,0,0,0,0,0]
["Q72","RXF","MID YORKSHIRE HOSPITALS NHS TRUST","RXF05","Pinderfields General Hospital - RXF05",62,0.967741935483871,1.6129032258064516E-2,40,20,1,0,1,0]
["Q72","RJL","NORTHERN LINCOLNSHIRE AND GOOLE NHS FOUNDATION TRUST","RJL30","Diana, Princess Of Wales Hospital - RJL30",0,"NA","NA",0,0,0,0,0,0]
["Q72","RJL","NORTHERN LINCOLNSHIRE AND GOOLE NHS FOUNDATION TRUST","RJL32","Scunthorpe General Hospital - RJL32",32,0.875,0,24,4,4,0,0,0]
["Q72","RHQ","SHEFFIELD TEACHING HOSPITALS NHS FOUNDATION TRUST","RHQHH","Royal Hallamshire Hospital - RHQHH",184,0.91847826086956519,1.0869565217391304E-2,129,40,8,1,1,5]
["Q72","RFR","THE ROTHERHAM NHS FOUNDATION TRUST","RFRPA","Rotherham District General Hospital - RFRPA",100,0.96,0.02,78,18,0,2,0,2]
["Q72","RCB","YORK TEACHING HOSPITAL NHS FOUNDATION TRUST","RCBCA","Scarborough General Hospital - RCBCA",6,1,0,4,2,0,0,0,0]
["Q72","RCB","YORK TEACHING HOSPITAL NHS FOUNDATION TRUST","RCB55","York Hospital - RCB55",88,0.98863636363636365,0,79,8,1,0,0,0]
["Q74","RLN","CITY HOSPITALS SUNDERLAND NHS FOUNDATION TRUST","RLNGL","Sunderland Royal Hospital - RLNGL",113,1,0,102,11,0,0,0,0]
["Q74","RXP","COUNTY DURHAM AND DARLINGTON NHS FOUNDATION TRUST","RXPDA","Darlington Memorial Hospital - RXPDA",49,0.97959183673469385,0,35,13,0,0,0,1]
["Q74","RXP","COUNTY DURHAM AND DARLINGTON NHS FOUNDATION TRUST","RXPCP","University Hospital Of North Durham - RXPCP",62,1,0,48,14,0,0,0,0]
["Q74","RR7","GATESHEAD HEALTH NHS FOUNDATION TRUST","RR7EN","Queen Elizabeth Hospital - RR7EN",43,0.97674418604651159,2.3255813953488372E-2,36,6,0,0,1,0]
["Q74","RNL","NORTH CUMBRIA UNIVERSITY HOSPITALS NHS TRUST","RNLAY","Cumberland Infirmary - RNLAY",23,1,0,19,4,0,0,0,0]
["Q74","RNL","NORTH CUMBRIA UNIVERSITY HOSPITALS NHS TRUST","RNLBX","West Cumberland Hospital - RNLBX",80,1,0,64,16,0,0,0,0]
["Q74","RVW","NORTH TEES AND HARTLEPOOL NHS FOUNDATION TRUST","RVWAE","University Hospital Of North Tees - RVWAE",12,0.91666666666666663,0,8,3,1,0,0,0]
["Q74","RTF","NORTHUMBRIA HEALTHCARE NHS FOUNDATION TRUST","RTFDJ","Alnwick Infirmary - RTFDJ",0,"NA","NA",0,0,0,0,0,0]
["Q74","RTF","NORTHUMBRIA HEALTHCARE NHS FOUNDATION TRUST","RTFDH","Berwick Infirmary - RTFDH",0,"NA","NA",0,0,0,0,0,0]
["Q74","RTF","NORTHUMBRIA HEALTHCARE NHS FOUNDATION TRUST","RTFDR","Hexham General Hospital - RTFDR",2,"*","*","*","*","*","*","*","*"]
["Q74","RTF","NORTHUMBRIA HEALTHCARE NHS FOUNDATION TRUST","RTF86","The Northumbria - RTF86",45,0.9555555555555556,4.4444444444444446E-2,"*","*","*","*","*","*"]
["Q74","RTR","SOUTH TEES HOSPITALS NHS FOUNDATION TRUST","RTR45","Friarage Hospital Site - RTR45",0,"NA","NA",0,0,0,0,0,0]
["Q74","RTR","SOUTH TEES HOSPITALS NHS FOUNDATION TRUST","RTRAT","The James Cook University Hospital - RTRAT",45,0.97777777777777775,0,40,4,0,0,0,1]
["Q74","RE9","SOUTH TYNESIDE NHS FOUNDATION TRUST","RE9GA","South Tyneside District Hospital - RE9GA",15,0.93333333333333335,0,12,2,0,0,0,1]
["Q74","RTD","THE NEWCASTLE UPON TYNE HOSPITALS NHS FOUNDATION TRUST","RTD02","The Royal Victoria Infirmary - RTD02",169,0.97633136094674555,5.9171597633136093E-3,145,20,2,0,1,1]
["Q74","RTX","UNIVERSITY HOSPITALS OF MORECAMBE BAY NHS FOUNDATION TRUST","RTXBU","Furness General Hospital - RTXBU",22,1,0,19,3,0,0,0,0]
["Q74","RTX","UNIVERSITY HOSPITALS OF MORECAMBE BAY NHS FOUNDATION TRUST","RTX02","Royal Lancaster Infirmary - RTX02",8,1,0,6,2,0,0,0,0]
["Q75","RJR","COUNTESS OF CHESTER HOSPITAL NHS FOUNDATION TRUST","RJR05","Countess Of Chester Hospital - RJR05",52,0.94230769230769229,1.9230769230769232E-2,39,10,2,1,0,0]
["Q75","RJN","EAST CHESHIRE NHS TRUST","RJN71","Macclesfield District General Hospital - RJN71",57,0.96491228070175439,0,51,4,1,0,0,1]
["Q75","REP","LIVERPOOL WOMEN'S NHS FOUNDATION TRUST","REP01","Liverpool Womens Hospital - REP01",2,"*","*","*","*","*","*","*","*"]
["Q75","RBT","MID CHESHIRE HOSPITALS NHS FOUNDATION TRUST","RBT20","Leighton Hospital - RBT20",27,0.96296296296296291,0,"*","*","*","*","*","*"]
["Q75","RVY","SOUTHPORT AND ORMSKIRK HOSPITAL NHS TRUST","RVY02","Ormskirk and District General Hospital - RVY02",28,0.9285714285714286,3.5714285714285712E-2,23,3,1,1,0,0]
["Q75","RBN","ST HELENS AND KNOWSLEY HOSPITAL SERVICES NHS TRUST","RBN01","Whiston Hospital - RBN01",32,0.90625,3.125E-2,26,3,0,0,1,2]
["Q75","RWW","WARRINGTON AND HALTON HOSPITALS NHS FOUNDATION TRUST","RWWWH","Warrington Hospital - RWWWH",81,0.98765432098765427,1.2345679012345678E-2,70,10,0,1,0,0]
["Q75","RBL","WIRRAL UNIVERSITY TEACHING HOSPITAL NHS FOUNDATION TRUST","RBL14","Arrowe Park Hospital - RBL14",82,1,0,67,15,0,0,0,0]
["Q76","RJF","BURTON HOSPITALS NHS FOUNDATION TRUST","RJF02","Queen's Hospital, Burton Upon Trent - RJF02",94,1,0,85,9,0,0,0,0]
["Q76","RFS","CHESTERFIELD ROYAL HOSPITAL NHS FOUNDATION TRUST","RFSDA","Chesterfield Royal Hospital - RFSDA",61,0.98360655737704916,0,40,20,0,0,0,1]
["Q76","RTG","DERBY TEACHING HOSPITALS NHS FOUNDATION TRUST","RTGFG","Royal Derby Hospital - RTGFG",177,0.96610169491525422,1.1299435028248588E-2,127,44,3,1,1,1]
["Q76","RX1","NOTTINGHAM UNIVERSITY HOSPITALS NHS TRUST","RX1CC","Nottingham University Hospitals NHS Trust - City Campus - RX1CC",56,0.9821428571428571,0,37,18,1,0,0,0]
["Q76","RX1","NOTTINGHAM UNIVERSITY HOSPITALS NHS TRUST","RX1RA","Nottingham University Hospitals NHS Trust - Queen's Medical Centre Campus - RX1RA",67,0.9850746268656716,1.4925373134328358E-2,50,16,0,1,0,0]
["Q76","RK5","SHERWOOD FOREST HOSPITALS NHS FOUNDATION TRUST","RK5BC","King's Mill Hospital - RK5BC",72,0.94444444444444442,4.1666666666666664E-2,56,12,1,3,0,0]
["Q76","RXW","SHREWSBURY AND TELFORD HOSPITAL NHS TRUST","RXWMB","Bridgnorth Hospital (Maternity) - RXWMB",8,1,0,8,0,0,0,0,0]
["Q76","RXW","SHREWSBURY AND TELFORD HOSPITAL NHS TRUST","RXWML","Ludlow Hospital (Maternity) - RXWML",7,1,0,7,0,0,0,0,0]
["Q76","RXW","SHREWSBURY AND TELFORD HOSPITAL NHS TRUST","RXWMJ","Robert Jones & Agnes Hunt Orthopaedic & District Hospital - RXWMJ",7,1,0,7,0,0,0,0,0]
["Q76","RXW","SHREWSBURY AND TELFORD HOSPITAL NHS TRUST","RXWAS","Royal Shrewsbury Hospital - RXWAS",21,0.95238095238095233,0,18,2,1,0,0,0]
["Q76","RXW","SHREWSBURY AND TELFORD HOSPITAL NHS TRUST","RXWAT","The Princess Royal Hospital - RXWAT",65,0.96923076923076923,1.5384615384615385E-2,57,6,0,0,1,1]
["Q76","RJE","UNIVERSITY HOSPITALS OF NORTH MIDLANDS NHS TRUST","RJE01","Royal Stoke University Hospital - RJE01",27,0.92592592592592593,0,22,3,1,0,0,1]
["Q77","RQ3","BIRMINGHAM WOMEN'S AND CHILDREN'S NHS FOUNDATION TRUST","RQ370","Birmingham Women's Hospital - RQ370",90,0.9555555555555556,1.1111111111111112E-2,57,29,2,1,0,1]
["Q77","RLT","GEORGE ELIOT HOSPITAL NHS TRUST","RLT01","George Eliot Hospital - Acute Services - RLT01",114,0.96491228070175439,1.7543859649122806E-2,98,12,1,1,1,1]
["Q77","RR1","HEART OF ENGLAND NHS FOUNDATION TRUST","RR105","Good Hope Hospital - RR105",17,1,0,16,1,0,0,0,0]
["Q77","RR1","HEART OF ENGLAND NHS FOUNDATION TRUST","RR101","Heartlands Hospital - RR101",141,0.88652482269503541,7.0921985815602835E-3,64,61,15,0,1,0]
["Q77","RR1","HEART OF ENGLAND NHS FOUNDATION TRUST","RR109","Solihull Hospital - RR109",15,1,0,15,0,0,0,0,0]
["Q77","RXK","SANDWELL AND WEST BIRMINGHAM HOSPITALS NHS TRUST","RXK02","City Hospital - RXK02",105,0.8571428571428571,4.7619047619047616E-2,53,37,6,2,3,4]
["Q77","RJC","SOUTH WARWICKSHIRE NHS FOUNDATION TRUST","RJC02","Warwick Hospital - RJC02",74,0.95945945945945943,2.7027027027027029E-2,59,12,1,1,1,0]
["Q77","RNA","THE DUDLEY GROUP NHS FOUNDATION TRUST","RNA01","Russells Hall Hospital - RNA01",170,0.95294117647058818,1.1764705882352941E-2,143,19,2,1,1,4]
["Q77","RL4","THE ROYAL WOLVERHAMPTON NHS TRUST","RL403","New Cross Hospital - RL403",89,0.9101123595505618,6.741573033707865E-2,67,14,1,4,2,1]
["Q77","RKB","UNIVERSITY HOSPITALS COVENTRY AND WARWICKSHIRE NHS TRUST","RKB01","University Hospital (Coventry) - RKB01",164,0.95121951219512191,1.8292682926829267E-2,105,51,1,1,2,4]
["Q77","RBK","WALSALL HEALTHCARE NHS TRUST","RBK02","Manor Hospital - RBK02",35,0.91428571428571426,8.5714285714285715E-2,26,6,0,3,0,0]
["Q77","RWP","WORCESTERSHIRE ACUTE HOSPITALS NHS TRUST","RWP50","Worcestershire Royal Hospital - RWP50",214,0.98130841121495327,0,171,39,4,0,0,0]
["Q77","RLQ","WYE VALLEY NHS TRUST","RLQ01","Hereford County Hospital - RLQ01",50,0.98,0,40,9,0,0,0,1]
["Q78","RC1","BEDFORD HOSPITAL NHS TRUST","RC110","Bedford Hospital South Wing - RC110",67,0.97014925373134331,0,57,8,2,0,0,0]
["Q78","RWH","EAST AND NORTH HERTFORDSHIRE NHS TRUST","RWH01","Lister Hospital - RWH01",232,0.875,4.3103448275862072E-2,130,73,13,8,2,6]
["Q78","RNQ","KETTERING GENERAL HOSPITAL NHS FOUNDATION TRUST","RNQ51","Kettering General Hospital - RNQ51",18,1,0,15,3,0,0,0,0]
["Q78","RC9","LUTON AND DUNSTABLE UNIVERSITY HOSPITAL NHS FOUNDATION TRUST","RC971","Luton and Dunstable Hospital - RC971",113,0.98230088495575218,0,81,30,2,0,0,0]
["Q78","RD8","MILTON KEYNES UNIVERSITY HOSPITAL NHS FOUNDATION TRUST","RD816","Milton Keynes Hospital - RD816",24,0.95833333333333337,4.1666666666666664E-2,14,9,0,0,1,0]
["Q78","RNS","NORTHAMPTON GENERAL HOSPITAL NHS TRUST","RNS01","Northampton General Hospital (Acute) - RNS01",83,1,0,69,14,0,0,0,0]
["Q78","RWD","UNITED LINCOLNSHIRE HOSPITALS NHS TRUST","RWDLP","Grantham and District Hospital - RWDLP",0,"NA","NA",0,0,0,0,0,0]
["Q78","RWD","UNITED LINCOLNSHIRE HOSPITALS NHS TRUST","RWDDA","Lincoln County Hospital - RWDDA",27,0.96296296296296291,3.7037037037037035E-2,20,6,0,1,0,0]
["Q78","RWD","UNITED LINCOLNSHIRE HOSPITALS NHS TRUST","RWDLA","Pilgrim Hospital - RWDLA",10,0.9,0,7,2,1,0,0,0]
["Q78","RWE","UNIVERSITY HOSPITALS OF LEICESTER NHS TRUST","RWEAK","Leicester General Hospital - RWEAK",139,0.94244604316546765,5.0359712230215826E-2,103,28,1,3,4,0]
["Q78","RWE","UNIVERSITY HOSPITALS OF LEICESTER NHS TRUST","RWEAA","Leicester Royal Infirmary - RWEAA",264,0.9242424242424242,2.6515151515151516E-2,182,62,7,2,5,6]
["Q78","RWE","UNIVERSITY HOSPITALS OF LEICESTER NHS TRUST","RWE10","St Mary's Hospital - RWE10",27,1,0,26,1,0,0,0,0]
["Q78","RWG","WEST HERTFORDSHIRE HOSPITALS NHS TRUST","RWG02","Watford General Hospital - RWG02",103,0.95145631067961167,9.7087378640776691E-3,67,31,3,1,0,1]
["Q79","RDD","BASILDON AND THURROCK UNIVERSITY HOSPITALS NHS FOUNDATION TRUST","RDDH0","Basildon University Hospital - RDDH0",158,0.98734177215189878,6.3291139240506328E-3,123,33,1,0,1,0]
["Q79","RGT","CAMBRIDGE UNIVERSITY HOSPITALS NHS FOUNDATION TRUST","RGT32","Rosie Hospital - RGT32",215,0.97674418604651159,9.3023255813953487E-3,143,67,3,2,0,0]
["Q79","RDE","COLCHESTER HOSPITAL UNIVERSITY NHS FOUNDATION TRUST","RDEE2","Clacton and District Hospital - RDEE2",0,"NA","NA",0,0,0,0,0,0]
["Q79","RDE","COLCHESTER HOSPITAL UNIVERSITY NHS FOUNDATION TRUST","RDEE4","Colchester General Hospital - RDEE4",57,0.98245614035087714,1.7543859649122806E-2,42,14,0,0,1,0]
["Q79","RGQ","IPSWICH HOSPITAL NHS TRUST","RGQ02","The Ipswich Hospital NHS Trust - RGQ02",125,0.94399999999999995,1.6E-2,99,19,4,2,0,1]
["Q79","RGP","JAMES PAGET UNIVERSITY HOSPITALS NHS FOUNDATION TRUST","RGP75","James Paget University Hospital - RGP75",40,0.97499999999999998,0,33,6,0,0,0,1]
["Q79","RQ8","MID ESSEX HOSPITAL SERVICES NHS TRUST","RQ8L0","Broomfield Hospital - RQ8L0",47,0.8936170212765957,8.5106382978723402E-2,37,5,1,3,1,0]
["Q79","RM1","NORFOLK AND NORWICH UNIVERSITY HOSPITALS NHS FOUNDATION TRUST","RM102","Norfolk and Norwich University Hospital - RM102",34,0.97058823529411764,2.9411764705882353E-2,31,2,0,1,0,0]
["Q79","RGN","NORTH WEST ANGLIA NHS FOUNDATION TRUST","RGN90","Hinchingbrooke Hospital - RGN90",44,0.97727272727272729,2.2727272727272728E-2,40,3,0,1,0,0]
["Q79","RGN","NORTH WEST ANGLIA NHS FOUNDATION TRUST","RGN80","Peterborough City Hospital - RGN80",145,0.94482758620689655,2.7586206896551724E-2,120,17,2,2,2,2]
["Q79","RAJ","SOUTHEND UNIVERSITY HOSPITAL NHS FOUNDATION TRUST","RAJ01","Southend Hospital - RAJ01",20,1,0,"*","*","*","*","*","*"]
["Q79","RQW","THE PRINCESS ALEXANDRA HOSPITAL NHS TRUST","RQWG0","Princess Alexandra Hospital - RQWG0",165,0.97575757575757571,6.0606060606060606E-3,155,6,0,0,1,3]
["Q79","RCX","THE QUEEN ELIZABETH HOSPITAL, KING'S LYNN, NHS FOUNDATION TRUST","RCX70","The Queen Elizabeth Hospital - RCX70",90,0.98888888888888893,1.1111111111111112E-2,62,27,0,1,0,0]
["Q79","RGR","WEST SUFFOLK NHS FOUNDATION TRUST","RGR50","West Suffolk Hospital - RGR50",2,"*","*","*","*","*","*","*","*"]
["Q80","RVJ","NORTH BRISTOL NHS TRUST","RVJ21","Cossham Hospital - RVJ21",12,0.91666666666666663,0,11,0,1,0,0,0]
["Q80","RVJ","NORTH BRISTOL NHS TRUST","RVJ01","Southmead Hospital - RVJ01",83,0.90361445783132532,8.4337349397590355E-2,62,13,1,4,3,0]
["Q80","RBZ","NORTHERN DEVON HEALTHCARE NHS TRUST","RBZ12","North Devon District Hospital - RBZ12",33,1,0,31,2,0,0,0,0]
["Q80","RK9","PLYMOUTH HOSPITALS NHS TRUST","RK950","Derriford Hospital - RK950",148,0.9932432432432432,6.7567567567567571E-3,104,43,0,1,0,0]
["Q80","REF","ROYAL CORNWALL HOSPITALS NHS TRUST","REF12","Royal Cornwall Hospital (Treliske) - REF12",131,0.95419847328244278,2.2900763358778626E-2,96,29,2,2,1,1]
["Q80","RH8","ROYAL DEVON AND EXETER NHS FOUNDATION TRUST","RH854","Honiton Hospital - RH 854",0,"NA","NA",0,0,0,0,0,0]
["Q80","RH8","ROYAL DEVON AND EXETER NHS FOUNDATION TRUST","RH833","Okehampton Community Hospital - RH833",0,"NA","NA",0,0,0,0,0,0]
["Q80","RH8","ROYAL DEVON AND EXETER NHS FOUNDATION TRUST","RH801","Royal Devon and Exeter Hospital (Wonford) - RH801",2,"*","*","*","*","*","*","*","*"]
["Q80","RH8","ROYAL DEVON AND EXETER NHS FOUNDATION TRUST","RH853","Tiverton and District Hospital - RH853",0,"NA","NA",0,0,0,0,0,0]
["Q80","RBA","TAUNTON AND SOMERSET NHS FOUNDATION TRUST","RBAC3","Bridgwater Hospital - RBAC3",1,"*","*","*","*","*","*","*","*"]
["Q80","RBA","TAUNTON AND SOMERSET NHS FOUNDATION TRUST","RBA11","Musgrove Park Hospital - RBA11",58,0.94827586206896552,1.7241379310344827E-2,"*","*","*","*","*","*"]
["Q80","RA9","TORBAY AND SOUTH DEVON NHS FOUNDATION TRUST","RA901","Torbay Hospital - RA901",14,0.8571428571428571,7.1428571428571425E-2,9,3,1,1,0,0]
["Q80","RA7","UNIVERSITY HOSPITALS BRISTOL NHS FOUNDATION TRUST","RA707","St Michael's Hospital - RA707",66,0.90909090909090906,4.5454545454545456E-2,46,14,1,0,3,2]
["Q80","RA3","WESTON AREA HEALTH NHS TRUST","RA301","Weston General Hospital - RA301",6,1,0,"*","*","*","*","*","*"]
["Q80","RA4","YEOVIL DISTRICT HOSPITAL NHS FOUNDATION TRUST","RA430","Yeovil District Hospital - RA430",11,1,0,11,0,0,0,0,0]
["Q81","RTK","ASHFORD AND ST PETER'S HOSPITALS NHS FOUNDATION TRUST","RTK02","Ashford Hospital - RTK02",0,"NA","NA",0,0,0,0,0,0]
["Q81","RXH","BRIGHTON AND SUSSEX UNIVERSITY HOSPITALS NHS TRUST","RXH09","Princess Royal Hospital - RXH09",43,0.97674418604651159,2.3255813953488372E-2,38,4,0,1,0,0]
["Q81","RXH","BRIGHTON AND SUSSEX UNIVERSITY HOSPITALS NHS TRUST","RXH01","Royal Sussex County Hospital - RXH01",36,0.91666666666666663,5.5555555555555552E-2,29,4,1,1,1,0]
["Q81","RN7","DARTFORD AND GRAVESHAM NHS TRUST","RN707","Darent Valley Hospital - RN707",69,0.98550724637681164,0,62,6,1,0,0,0]
["Q81","RVV","EAST KENT HOSPITALS UNIVERSITY NHS FOUNDATION TRUST","RVV09","Queen Elizabeth The Queen Mother Hospital - RVV09",56,0.9821428571428571,0,50,5,0,0,0,1]
["Q81","RVV","EAST KENT HOSPITALS UNIVERSITY NHS FOUNDATION TRUST","RVV01","William Harvey Hospital (Ashford) - RVV01",83,0.96385542168674698,3.614457831325301E-2,68,12,0,2,1,0]
["Q81","RXC","EAST SUSSEX HEALTHCARE NHS TRUST","RXC01","Conquest Hospital - RXC01",96,0.96875,0,60,33,3,0,0,0]
["Q81","RXC","EAST SUSSEX HEALTHCARE NHS TRUST","RXC02","Eastbourne District General Hospital - RXC02",18,1,0,18,0,0,0,0,0]
["Q81","RDU","FRIMLEY HEALTH NHS FOUNDATION TRUST","RDU01","Frimley Park Hospital - RDU01",106,0.90566037735849059,9.433962264150943E-3,74,22,1,1,0,8]
["Q81","RDU","FRIMLEY HEALTH NHS FOUNDATION TRUST","RDU50","Wexham Park Hospital - RDU50",45,0.82222222222222219,6.6666666666666666E-2,25,12,5,2,1,0]
["Q81","RWF","MAIDSTONE AND TUNBRIDGE WELLS NHS TRUST","RWF03","Maidstone District General Hospital - RWF03",0,"NA","NA",0,0,0,0,0,0]
["Q81","RWF","MAIDSTONE AND TUNBRIDGE WELLS NHS TRUST","RWFTW","The Tunbridge Wells Hospital - RWFTW",32,0.8125,0,24,2,0,0,0,6]
["Q81","RPA","MEDWAY NHS FOUNDATION TRUST","RPA02","Medway Maritime Hospital - RPA02",164,0.97560975609756095,6.0975609756097563E-3,143,17,2,1,0,1]
["Q81","RA2","ROYAL SURREY COUNTY HOSPITAL NHS FOUNDATION TRUST","RA201","Royal Surrey County Hospital - RA201",147,0.97278911564625847,2.0408163265306121E-2,130,13,1,1,2,0]
["Q81","RTP","SURREY AND SUSSEX HEALTHCARE NHS TRUST","RTP04","East Surrey Hospital - RTP04",78,0.91025641025641024,3.8461538461538464E-2,52,19,4,3,0,0]
["Q81","RYR","WESTERN SUSSEX HOSPITALS NHS FOUNDATION TRUST","RYR16","St Richard's Hospital - RYR16",104,1,0,90,14,0,0,0,0]
["Q81","RYR","WESTERN SUSSEX HOSPITALS NHS FOUNDATION TRUST","RYR18","Worthing Hospital - RYR18",113,0.96460176991150437,1.7699115044247787E-2,79,30,2,0,2,0]
["Q82","RXQ","BUCKINGHAMSHIRE HEALTHCARE NHS TRUST","RXQ02","Stoke Mandeville Hospital - RXQ02",195,0.97435897435897434,0,143,47,4,0,0,1]
["Q82","RTE","GLOUCESTERSHIRE HOSPITALS NHS FOUNDATION TRUST","RTE03","Gloucestershire Royal Hospital - RTE03",0,"NA","NA",0,0,0,0,0,0]
["Q82","RTE","GLOUCESTERSHIRE HOSPITALS NHS FOUNDATION TRUST","RTE26","Stroud General Hospital - RTE26",0,"NA","NA",0,0,0,0,0,0]
["Q82","RN3","GREAT WESTERN HOSPITALS NHS FOUNDATION TRUST","RN325","The Great Western Hospital - RN325",13,1,0,10,3,0,0,0,0]
["Q82","RTH","OXFORD UNIVERSITY HOSPITALS NHS FOUNDATION TRUST","RTH19","Chipping Norton Community Hospital - RTH19",0,"NA","NA",0,0,0,0,0,0]
["Q82","RTH","OXFORD UNIVERSITY HOSPITALS NHS FOUNDATION TRUST","RTH05","Horton General Hospital - RTH05",0,"NA","NA",0,0,0,0,0,0]
["Q82","RTH","OXFORD UNIVERSITY HOSPITALS NHS FOUNDATION TRUST","RTH08","John Radcliffe Hospital - RTH08",67,0.94029850746268662,1.4925373134328358E-2,51,12,1,1,0,2]
["Q82","RTH","OXFORD UNIVERSITY HOSPITALS NHS FOUNDATION TRUST","RTH16","Wallingford Community Hospital - RTH16",0,"NA","NA",0,0,0,0,0,0]
["Q82","RTH","OXFORD UNIVERSITY HOSPITALS NHS FOUNDATION TRUST","RTH21","Wantage Community Hospital - RTH21",0,"NA","NA",0,0,0,0,0,0]
["Q82","RHW","ROYAL BERKSHIRE NHS FOUNDATION TRUST","RHW01","Royal Berkshire Hospital - RHW01",175,0.95428571428571429,5.7142857142857143E-3,112,55,4,1,0,3]
["Q82","RD1","ROYAL UNITED HOSPITALS BATH NHS FOUNDATION TRUST","RD102","Chippenham Community Hospital -RD102",17,1,0,"*","*","*","*","*","*"]
["Q82","RD1","ROYAL UNITED HOSPITALS BATH NHS FOUNDATION TRUST","RD129","Paulton Memorial Hospital  - RD129",3,"*","*","*","*","*","*","*","*"]
["Q82","RD1","ROYAL UNITED HOSPITALS BATH NHS FOUNDATION TRUST","RD130","Princess Anne Wing RUH  - RD130",51,0.98039215686274506,1.9607843137254902E-2,39,11,0,1,0,0]
["Q82","RNZ","SALISBURY NHS FOUNDATION TRUST","RNZ02","Salisbury District Hospital - RNZ02",0,"NA","NA",0,0,0,0,0,0]
["Q83","RMC","BOLTON NHS FOUNDATION TRUST","RMC01","Royal Bolton Hospital - RMC01",150,0.92666666666666664,6.6666666666666671E-3,111,28,9,0,1,1]
["Q83","RY2","BRIDGEWATER COMMUNITY HEALTHCARE NHS FOUNDATION TRUST","RY28P","Health Care Resource Centre - RY28P",0,"NA","NA",0,0,0,0,0,0]
["Q83","RW3","CENTRAL MANCHESTER UNIVERSITY HOSPITALS NHS FOUNDATION TRUST","RW3SM","St Mary's Hospital - RW3SM",346,0.95375722543352603,1.4450867052023121E-2,271,59,9,4,1,2]
["Q83","RW6","PENNINE ACUTE HOSPITALS NHS TRUST","RW602","North Manchester General Hospital - RW602",116,0.98275862068965514,8.6206896551724137E-3,102,12,0,0,1,1]
["Q83","RW6","PENNINE ACUTE HOSPITALS NHS TRUST","RW603","Royal Oldham Hospital - RW603",98,0.88775510204081631,0.10204081632653061,64,23,0,6,4,1]
["Q83","RWJ","STOCKPORT NHS FOUNDATION TRUST","RWJ09","Stepping Hill Hospital - RWJ09",97,0.96907216494845361,2.0618556701030927E-2,77,17,1,1,1,0]
["Q83","RMP","TAMESIDE AND GLOSSOP INTEGRATED CARE NHS FOUNDATION TRUST","RMP01","Tameside General Hospital - RMP01",48,0.95833333333333337,2.0833333333333332E-2,29,17,1,0,1,0]
["Q83","RM2","UNIVERSITY HOSPITAL OF SOUTH MANCHESTER NHS FOUNDATION TRUST","RM202","Wythenshawe Hospital - RM202",16,1,0,15,1,0,0,0,0]
["Q83","RRF","WRIGHTINGTON, WIGAN AND LEIGH NHS FOUNDATION TRUST","RRF02","Royal Albert Edward Infirmary - RRF02",44,0.97727272727272729,0,36,7,1,0,0,0]
["Q84","RXL","BLACKPOOL TEACHING HOSPITALS NHS FOUNDATION TRUST","RXL01","Blackpool Victoria Hospital - RXL01",93,0.92473118279569888,2.1505376344086023E-2,64,22,4,1,1,1]
["Q84","RXR","EAST LANCASHIRE HOSPITALS NHS TRUST","RXR20","Royal Blackburn Hospital - RXR20",68,0.97058823529411764,2.9411764705882353E-2,64,2,0,1,1,0]
["Q84","RXN","LANCASHIRE TEACHING HOSPITALS NHS FOUNDATION TRUST","RXN01","Chorley and South Ribble Hospital - RXN01",3,"*","*","*","*","*","*","*","*"]
["Q84","RXN","LANCASHIRE TEACHING HOSPITALS NHS FOUNDATION TRUST","RXN02","Royal Preston Hospital - RXN02",52,0.98076923076923073,1.9230769230769232E-2,"*","*","*","*","*","*"]

{"sheet":"Region (Local Office) Q4","index":11,"n_rows":28,"n_cols":11,"rows_kept":28,"cut":false,"hidden":false,"merged":[[8,5,8,10],[8,0,9,0],[8,1,9,1],[8,2,9,2],[8,3,9,3],[8,4,9,4]]}
[]
[]
[]
[]
[]
[null,"   Sort data by:           "]
[]
[]
["Region (LO) Code","Region (Local Office)","Total Responses","Percentage Recommended","Percentage Not  Recommended","Breakdown of Responses"]
[null,null,null,null,null,"Extremely Likely","Likely","Neither","Unlikely","Extremely Unlikely","Don't Know"]
[null,"England (including Independent Sector providers)",5527,0.98208793197032751,7.5990591641034921E-3,4660,768,47,20,22,10]
[null,"England (excluding Independent Sector providers)",5471,0.98190458782672274,7.676841528057028E-3,4608,764,47,20,22,10]
[null,"Selection (excluding suppressed data)",{"$f":"SUBTOTAL(9,C14:C40)","v":5527},{"$f":"IFERROR((F13+G13)/SUM(F13:K13), \"-\")","v":0.98208793197032751},{"$f":"IFERROR((I13+J13)/SUM(F13:K13), \"-\")","v":7.5990591641034921E-3},{"$f":"SUBTOTAL(9,F14:F40)","v":4660},768,47,20,22,10]
["Q70","NHS England Wessex",234,0.9786324786324786,1.282051282051282E-2,190,39,2,1,2,0]
["Q71","NHS England London",886,0.97291196388261847,1.3544018058690745E-2,716,146,7,3,9,5]
["Q72","NHS England Yorkshire & Humber",629,0.9872813990461049,3.1796502384737681E-3,524,97,5,2,0,1]
["Q74","NHS England Cumbria & North East",242,0.98347107438016534,4.1322314049586778E-3,217,21,3,1,0,0]
["Q75","NHS England Cheshire & Merseyside",102,0.98039215686274506,9.8039215686274508E-3,88,12,1,0,1,0]
["Q76","NHS England North Midlands",458,0.98908296943231444,0,390,63,5,0,0,0]
["Q77","NHS England West Midlands",432,0.99768518518518523,0,380,51,0,0,0,1]
["Q78","NHS England Central Midlands",601,0.98502495840266224,4.9916805324459234E-3,517,75,6,3,0,0]
["Q79","NHS England East",491,0.99592668024439923,2.0366598778004071E-3,430,59,1,0,1,0]
["Q80","NHS England South West",326,0.96932515337423308,2.1472392638036811E-2,253,63,3,4,3,0]
["Q81","NHS England South East",381,0.96850393700787396,1.0498687664041995E-2,319,50,6,4,0,2]
["Q82","NHS England South Central",230,0.9826086956521739,4.3478260869565218E-3,192,34,3,0,1,0]
["Q83","NHS England Greater Manchester",306,0.97712418300653592,6.5359477124183009E-3,259,40,4,1,1,1]
["Q84","NHS England Lancashire",153,0.96078431372549022,3.2679738562091505E-2,133,14,1,1,4,0]
["zIS1","Independent Sector Provider",56,1,0,52,4,0,0,0,0]

{"sheet":"Trusts Q4","index":12,"n_rows":148,"n_cols":19,"rows_kept":148,"cut":false,"hidden":false,"merged":[[8,6,8,11],[8,12,8,18],[8,0,9,0],[8,1,9,1],[8,2,9,2],[8,3,9,3],[8,4,9,4],[8,5,9,5]]}
[]
[]
[]
[]
[]
[null,"   Sort data by:           "]
[]
[]
["Region (LO) Code","Trust Code","Trust Name","Total Responses","Percentage Recommended","Percentage Not  Recommended","Breakdown of Responses",null,null,null,null,null,"Mode of Collection"]
[null,null,null,null,null,null,"Extremely Likely","Likely","Neither","Unlikely","Extremely Unlikely","Don't Know","SMS/Text / Smartphone App","Electronic tablet/kiosk at point of discharge","Paper / postcard at point of discharge","Paper survey sent to the patients home","Telephone survey once patient is home","Online survey once patient is home","Other"]
[null,null,"England (including Independent Sector providers)",5527,0.98208793197032751,7.5990591641034921E-3,4660,768,47,20,22,10,666,574,3885,135,20,204,43]
[null,null,"England (excluding Independent Sector providers)",5471,0.98190458782672274,7.676841528057028E-3,4608,764,47,20,22,10,666,518,3885,135,20,204,43]
[null,null,"Selection (excluding suppressed data)",{"$f":"SUBTOTAL(9,D14:D299)","v":5527},{"$f":"IFERROR((G13+H13)/SUM(G13:L13), \"-\")","v":0.98207754206291153},{"$f":"IFERROR((J13+K13)/SUM(G13:L13), \"-\")","v":7.6810534016093631E-3},{"$f":"SUBTOTAL(9,G14:G299)","v":4610},760,46,20,22,10,666,571,3835,135,20,198,43]
["Q70","R1F","ISLE OF WIGHT NHS TRUST",0,"NA","NA",0,0,0,0,0,0,0,0,0,0,0,0,0]
["Q70","RDZ","THE ROYAL BOURNEMOUTH AND CHRISTCHURCH HOSPITALS NHS FOUNDATION TRUST",16,1,0,15,1,0,0,0,0,0,0,16,0,0,0,0]
["Q70","RD3","POOLE HOSPITAL NHS FOUNDATION TRUST",17,0.94117647058823528,5.8823529411764705E-2,9,7,0,1,0,0,17,0,0,0,0,0,0]
["Q70","RBD","DORSET COUNTY HOSPITAL NHS FOUNDATION TRUST",31,0.93548387096774188,3.2258064516129031E-2,28,1,1,0,1,0,31,0,0,0,0,0,0]
["Q70","RN5","HAMPSHIRE HOSPITALS NHS FOUNDATION TRUST",43,1,0,42,1,0,0,0,0,3,0,40,0,0,0,0]
["Q70","RHU","PORTSMOUTH HOSPITALS NHS TRUST",56,1,0,45,11,0,0,0,0,0,0,55,0,0,1,0]
["Q70","RHM","UNIVERSITY HOSPITAL SOUTHAMPTON NHS FOUNDATION TRUST",71,0.971830985915493,1.4084507042253521E-2,51,18,1,0,1,0,0,0,69,0,0,0,2]
["Q71","RJ1","GUY'S AND ST THOMAS' NHS FOUNDATION TRUST",0,"NA","NA",0,0,0,0,0,0,0,0,0,0,0,0,0]
["Q71","RJ6","CROYDON HEALTH SERVICES NHS TRUST",1,"*","*","*","*","*","*","*","*","*","*","*","*","*","*","*"]
["Q71","RRV","UNIVERSITY COLLEGE LONDON HOSPITALS NHS FOUNDATION TRUST",6,1,0,"*","*","*","*","*","*","*","*","*","*","*","*","*"]
["Q71","RJ7","ST GEORGE'S UNIVERSITY HOSPITALS NHS FOUNDATION TRUST",8,1,0,7,1,0,0,0,0,0,8,0,0,0,0,0]
["Q71","RVR","EPSOM AND ST HELIER UNIVERSITY HOSPITALS NHS TRUST",11,1,0,11,0,0,0,0,0,0,0,11,0,0,0,0]
["Q71","RAX","KINGSTON HOSPITAL NHS FOUNDATION TRUST",12,1,0,11,1,0,0,0,0,0,12,0,0,0,0,0]
["Q71","RAS","THE HILLINGDON HOSPITALS NHS FOUNDATION TRUST",17,1,0,14,3,0,0,0,0,0,0,17,0,0,0,0]
["Q71","RJZ","KING'S COLLEGE HOSPITAL NHS FOUNDATION TRUST",21,0.8571428571428571,0,15,3,2,0,0,1,0,16,5,0,0,0,0]
["Q71","RAL","ROYAL FREE LONDON NHS FOUNDATION TRUST",27,1,0,22,5,0,0,0,0,0,0,27,0,0,0,0]
["Q71","R1H","BARTS HEALTH NHS TRUST",28,1,0,20,8,0,0,0,0,0,16,11,0,0,1,0]
["Q71","R1K","LONDON NORTH WEST HEALTHCARE NHS TRUST",29,1,0,23,6,0,0,0,0,0,29,0,0,0,0,0]
["Q71","RKE","THE WHITTINGTON HOSPITAL NHS TRUST",48,1,0,44,4,0,0,0,0,0,18,30,0,0,0,0]
["Q71","RQM","CHELSEA AND WESTMINSTER HOSPITAL NHS FOUNDATION TRUST",52,0.90384615384615385,9.6153846153846159E-2,38,9,0,2,3,0,30,0,22,0,0,0,0]
["Q71","RAP","NORTH MIDDLESEX UNIVERSITY HOSPITAL NHS TRUST",83,0.97590361445783136,1.2048192771084338E-2,71,10,1,0,1,0,0,0,83,0,0,0,0]
["Q71","RJ2","LEWISHAM AND GREENWICH NHS TRUST",97,0.97938144329896903,0,79,16,1,0,0,1,0,0,97,0,0,0,0]
["Q71","RQX","HOMERTON UNIVERSITY HOSPITAL NHS FOUNDATION TRUST",102,0.96078431372549022,2.9411764705882353E-2,73,25,0,0,3,1,0,6,96,0,0,0,0]
["Q71","RYJ","IMPERIAL COLLEGE HEALTHCARE NHS TRUST",116,0.97413793103448276,8.6206896551724137E-3,82,31,2,1,0,0,56,0,60,0,0,0,0]
["Q71","RF4","BARKING, HAVERING AND REDBRIDGE UNIVERSITY HOSPITALS NHS TRUST",228,0.97807017543859653,8.771929824561403E-3,199,24,1,0,2,2,0,3,225,0,0,0,0]
["Q72","RWA","HULL AND EAST YORKSHIRE HOSPITALS NHS TRUST",1,"*","*","*","*","*","*","*","*","*","*","*","*","*","*","*"]
["Q72","RR8","LEEDS TEACHING HOSPITALS NHS TRUST",2,"*","*","*","*","*","*","*","*","*","*","*","*","*","*","*"]
["Q72","RAE","BRADFORD TEACHING HOSPITALS NHS FOUNDATION TRUST",16,1,0,14,2,0,0,0,0,0,0,16,0,0,0,0]
["Q72","RCF","AIREDALE NHS FOUNDATION TRUST",17,1,0,14,3,0,0,0,0,0,0,17,0,0,0,0]
["Q72","RJL","NORTHERN LINCOLNSHIRE AND GOOLE NHS FOUNDATION TRUST",18,0.88888888888888884,0,10,6,1,0,0,1,0,0,0,0,18,0,0]
["Q72","RCD","HARROGATE AND DISTRICT NHS FOUNDATION TRUST",24,0.91666666666666663,0,19,3,2,0,0,0,0,0,24,0,0,0,0]
["Q72","RHQ","SHEFFIELD TEACHING HOSPITALS NHS FOUNDATION TRUST",49,0.97959183673469385,0,44,4,1,0,0,0,0,0,48,0,0,1,0]
["Q72","RXF","MID YORKSHIRE HOSPITALS NHS TRUST",49,1,0,42,7,0,0,0,0,42,7,0,0,0,0,0]
["Q72","RFF","BARNSLEY HOSPITAL NHS FOUNDATION TRUST",57,1,0,46,11,0,0,0,0,0,0,57,0,0,0,0]
["Q72","RP5","DONCASTER AND BASSETLAW TEACHING HOSPITALS NHS FOUNDATION TRUST",60,0.96666666666666667,1.6666666666666666E-2,55,3,1,1,0,0,0,0,60,0,0,0,0]
["Q72","RCB","YORK TEACHING HOSPITAL NHS FOUNDATION TRUST",78,0.98717948717948723,1.282051282051282E-2,64,13,0,1,0,0,0,0,78,0,0,0,0]
["Q72","RFR","THE ROTHERHAM NHS FOUNDATION TRUST",84,1,0,72,12,0,0,0,0,0,0,84,0,0,0,0]
["Q72","RWY","CALDERDALE AND HUDDERSFIELD NHS FOUNDATION TRUST",174,1,0,142,32,0,0,0,0,0,174,0,0,0,0,0]
["Q74","RLN","CITY HOSPITALS SUNDERLAND NHS FOUNDATION TRUST",0,"NA","NA",0,0,0,0,0,0,0,0,0,0,0,0,0]
["Q74","RTR","SOUTH TEES HOSPITALS NHS FOUNDATION TRUST",2,"*","*","*","*","*","*","*","*","*","*","*","*","*","*","*"]
["Q74","RTD","THE NEWCASTLE UPON TYNE HOSPITALS NHS FOUNDATION TRUST",3,"*","*","*","*","*","*","*","*","*","*","*","*","*","*","*"]
["Q74","RE9","SOUTH TYNESIDE NHS FOUNDATION TRUST",5,1,0,5,0,0,0,0,0,0,0,5,0,0,0,0]
["Q74","RR7","GATESHEAD HEALTH NHS FOUNDATION TRUST",7,1,0,7,0,0,0,0,0,0,0,7,0,0,0,0]
["Q74","RNL","NORTH CUMBRIA UNIVERSITY HOSPITALS NHS TRUST",12,1,0,11,1,0,0,0,0,0,0,12,0,0,0,0]
["Q74","RXP","COUNTY DURHAM AND DARLINGTON NHS FOUNDATION TRUST",20,1,0,16,4,0,0,0,0,0,0,20,0,0,0,0]
["Q74","RVW","NORTH TEES AND HARTLEPOOL NHS FOUNDATION TRUST",25,0.96,0,20,4,1,0,0,0,0,0,25,0,0,0,0]
["Q74","RTX","UNIVERSITY HOSPITALS OF MORECAMBE BAY NHS FOUNDATION TRUST",51,1,0,50,1,0,0,0,0,0,0,51,0,0,0,0]
["Q74","RTF","NORTHUMBRIA HEALTHCARE NHS FOUNDATION TRUST",117,0.98290598290598286,8.5470085470085479E-3,104,11,1,1,0,0,0,0,117,0,0,0,0]
["Q75","REP","LIVERPOOL WOMEN'S NHS FOUNDATION TRUST",0,"NA","NA",0,0,0,0,0,0,0,0,0,0,0,0,0]
["Q75","RVY","SOUTHPORT AND ORMSKIRK HOSPITAL NHS TRUST",0,"NA","NA",0,0,0,0,0,0,0,0,0,0,0,0,0]
["Q75","RBL","WIRRAL UNIVERSITY TEACHING HOSPITAL NHS FOUNDATION TRUST",1,"*","*","*","*","*","*","*","*","*","*","*","*","*","*","*"]
["Q75","RBN","ST HELENS AND KNOWSLEY HOSPITAL SERVICES NHS TRUST",2,"*","*","*","*","*","*","*","*","*","*","*","*","*","*","*"]
["Q75","RJN","EAST CHESHIRE NHS TRUST",4,"*","*","*","*","*","*","*","*","*","*","*","*","*","*","*"]
["Q75","RBT","MID CHESHIRE HOSPITALS NHS FOUNDATION TRUST",12,1,0,12,0,0,0,0,0,0,0,12,0,0,0,0]
["Q75","RWW","WARRINGTON AND HALTON HOSPITALS NHS FOUNDATION TRUST",30,0.96666666666666667,3.3333333333333333E-2,24,5,0,0,1,0,0,0,30,0,0,0,0]
["Q75","RJR","COUNTESS OF CHESTER HOSPITAL NHS FOUNDATION TRUST",53,0.98113207547169812,0,46,6,1,0,0,0,33,0,20,0,0,0,0]
["Q76","RFS","CHESTERFIELD ROYAL HOSPITAL NHS FOUNDATION TRUST",0,"NA","NA",0,0,0,0,0,0,0,0,0,0,0,0,0]
["Q76","RXW","SHREWSBURY AND TELFORD HOSPITAL NHS TRUST",13,1,0,12,1,0,0,0,0,0,0,13,0,0,0,0]
["Q76","RJF","BURTON HOSPITALS NHS FOUNDATION TRUST",22,1,0,21,1,0,0,0,0,0,0,22,0,0,0,0]
["Q76","RK5","SHERWOOD FOREST HOSPITALS NHS FOUNDATION TRUST",41,0.97560975609756095,0,32,8,1,0,0,0,6,0,35,0,0,0,0]
["Q76","RJE","UNIVERSITY HOSPITALS OF NORTH MIDLANDS NHS TRUST",90,1,0,85,5,0,0,0,0,0,0,90,0,0,0,0]
["Q76","RTG","DERBY TEACHING HOSPITALS NHS FOUNDATION TRUST",106,0.99056603773584906,0,88,17,1,0,0,0,0,0,106,0,0,0,0]
["Q76","RX1","NOTTINGHAM UNIVERSITY HOSPITALS NHS TRUST",186,0.9838709677419355,0,152,31,3,0,0,0,0,0,186,0,0,0,0]
["Q77","RR1","HEART OF ENGLAND NHS FOUNDATION TRUST",0,"NA","NA",0,0,0,0,0,0,0,0,0,0,0,0,0]
["Q77","RXK","SANDWELL AND WEST BIRMINGHAM HOSPITALS NHS TRUST",2,"*","*","*","*","*","*","*","*","*","*","*","*","*","*","*"]
["Q77","RJC","SOUTH WARWICKSHIRE NHS FOUNDATION TRUST",3,"*","*","*","*","*","*","*","*","*","*","*","*","*","*","*"]
["Q77","RBK","WALSALL HEALTHCARE NHS TRUST",13,1,0,11,2,0,0,0,0,13,0,0,0,0,0,0]
["Q77","RL4","THE ROYAL WOLVERHAMPTON NHS TRUST",20,0.95,0,14,5,0,0,0,1,0,0,20,0,0,0,0]
["Q77","RLQ","WYE VALLEY NHS TRUST",35,1,0,33,2,0,0,0,0,0,35,0,0,0,0,0]
["Q77","RWP","WORCESTERSHIRE ACUTE HOSPITALS NHS TRUST",44,1,0,42,2,0,0,0,0,0,0,44,0,0,0,0]
["Q77","RLT","GEORGE ELIOT HOSPITAL NHS TRUST",50,1,0,44,6,0,0,0,0,19,0,31,0,0,0,0]
["Q77","RQ3","BIRMINGHAM WOMEN'S AND CHILDREN'S NHS FOUNDATION TRUST",53,1,0,45,8,0,0,0,0,0,0,53,0,0,0,0]
["Q77","RNA","THE DUDLEY GROUP NHS FOUNDATION TRUST",89,1,0,85,4,0,0,0,0,0,0,89,0,0,0,0]
["Q77","RKB","UNIVERSITY HOSPITALS COVENTRY AND WARWICKSHIRE NHS TRUST",123,1,0,103,20,0,0,0,0,0,0,123,0,0,0,0]
["Q78","RC9","LUTON AND DUNSTABLE UNIVERSITY HOSPITAL NHS FOUNDATION TRUST",0,"NA","NA",0,0,0,0,0,0,0,0,0,0,0,0,0]
["Q78","RWH","EAST AND NORTH HERTFORDSHIRE NHS TRUST",0,"NA","NA",0,0,0,0,0,0,0,0,0,0,0,0,0]
["Q78","RWG","WEST HERTFORDSHIRE HOSPITALS NHS TRUST",6,0.83333333333333337,0,4,1,1,0,0,0,0,0,6,0,0,0,0]
["Q78","RD8","MILTON KEYNES UNIVERSITY HOSPITAL NHS FOUNDATION TRUST",12,1,0,7,5,0,0,0,0,0,0,7,0,0,5,0]
["Q78","RWD","UNITED LINCOLNSHIRE HOSPITALS NHS TRUST",20,0.85,0.1,16,1,1,2,0,0,0,0,20,0,0,0,0]
["Q78","RNQ","KETTERING GENERAL HOSPITAL NHS FOUNDATION TRUST",28,1,0,27,1,0,0,0,0,0,0,28,0,0,0,0]
["Q78","RC1","BEDFORD HOSPITAL NHS TRUST",46,0.95652173913043481,0,37,7,2,0,0,0,34,0,0,0,0,12,0]
["Q78","RNS","NORTHAMPTON GENERAL HOSPITAL NHS TRUST",175,0.98285714285714287,5.7142857142857143E-3,142,30,2,1,0,0,0,0,0,0,0,175,0]
["Q78","RWE","UNIVERSITY HOSPITALS OF LEICESTER NHS TRUST",314,1,0,284,30,0,0,0,0,0,7,307,0,0,0,0]
["Q79","RDE","COLCHESTER HOSPITAL UNIVERSITY NHS FOUNDATION TRUST",3,"*","*","*","*","*","*","*","*","*","*","*","*","*","*","*"]
["Q79","RAJ","SOUTHEND UNIVERSITY HOSPITAL NHS FOUNDATION TRUST",4,"*","*","*","*","*","*","*","*","*","*","*","*","*","*","*"]
["Q79","RCX","THE QUEEN ELIZABETH HOSPITAL, KING'S LYNN, NHS FOUNDATION TRUST",8,1,0,7,1,0,0,0,0,0,0,7,0,0,1,0]
["Q79","RGT","CAMBRIDGE UNIVERSITY HOSPITALS NHS FOUNDATION TRUST",11,1,0,8,3,0,0,0,0,0,0,11,0,0,0,0]
["Q79","RM1","NORFOLK AND NORWICH UNIVERSITY HOSPITALS NHS FOUNDATION TRUST",23,1,0,21,2,0,0,0,0,0,0,23,0,0,0,0]
["Q79","RQ8","MID ESSEX HOSPITAL SERVICES NHS TRUST",30,0.96666666666666667,3.3333333333333333E-2,23,6,0,0,1,0,30,0,0,0,0,0,0]
["Q79","RQW","THE PRINCESS ALEXANDRA HOSPITAL NHS TRUST",41,1,0,39,2,0,0,0,0,0,0,0,0,0,0,41]
["Q79","RDD","BASILDON AND THURROCK UNIVERSITY HOSPITALS NHS FOUNDATION TRUST",42,1,0,38,4,0,0,0,0,0,0,42,0,0,0,0]
["Q79","RGR","WEST SUFFOLK NHS FOUNDATION TRUST",46,0.97826086956521741,0,37,8,1,0,0,0,0,46,0,0,0,0,0]
["Q79","RGP","JAMES PAGET UNIVERSITY HOSPITALS NHS FOUNDATION TRUST",58,1,0,54,4,0,0,0,0,0,0,58,0,0,0,0]
["Q79","RGN","NORTH WEST ANGLIA NHS FOUNDATION TRUST",95,1,0,80,15,0,0,0,0,0,0,95,0,0,0,0]
["Q79","RGQ","IPSWICH HOSPITAL NHS TRUST",130,1,0,116,14,0,0,0,0,0,128,2,0,0,0,0]
["Q80","RA4","YEOVIL DISTRICT HOSPITAL NHS FOUNDATION TRUST",0,"NA","NA",0,0,0,0,0,0,0,0,0,0,0,0,0]
["Q80","RH8","ROYAL DEVON AND EXETER NHS FOUNDATION TRUST",0,"NA","NA",0,0,0,0,0,0,0,0,0,0,0,0,0]
["Q80","RBZ","NORTHERN DEVON HEALTHCARE NHS TRUST",1,"*","*","*","*","*","*","*","*","*","*","*","*","*","*","*"]
["Q80","RA9","TORBAY AND SOUTH DEVON NHS FOUNDATION TRUST",11,1,0,"*","*","*","*","*","*","*","*","*","*","*","*","*"]
["Q80","RBA","TAUNTON AND SOMERSET NHS FOUNDATION TRUST",15,1,0,13,2,0,0,0,0,0,0,15,0,0,0,0]
["Q80","REF","ROYAL CORNWALL HOSPITALS NHS TRUST",15,1,0,11,4,0,0,0,0,0,0,15,0,0,0,0]
["Q80","RA7","UNIVERSITY HOSPITALS BRISTOL NHS FOUNDATION TRUST",51,1,0,46,5,0,0,0,0,0,0,51,0,0,0,0]
["Q80","RA3","WESTON AREA HEALTH NHS TRUST",54,1,0,43,11,0,0,0,0,0,0,54,0,0,0,0]
["Q80","RK9","PLYMOUTH HOSPITALS NHS TRUST",88,0.98863636363636365,0,66,21,1,0,0,0,0,1,87,0,0,0,0]
["Q80","RVJ","NORTH BRISTOL NHS TRUST",91,0.90109890109890112,7.6923076923076927E-2,66,16,2,4,3,0,72,0,19,0,0,0,0]
["Q81","RN7","DARTFORD AND GRAVESHAM NHS TRUST",0,"NA","NA",0,0,0,0,0,0,0,0,0,0,0,0,0]
["Q81","RTK","ASHFORD AND ST PETER'S HOSPITALS NHS FOUNDATION TRUST",0,"NA","NA",0,0,0,0,0,0,0,0,0,0,0,0,0]
["Q81","RPA","MEDWAY NHS FOUNDATION TRUST",4,"*","*","*","*","*","*","*","*","*","*","*","*","*","*","*"]
["Q81","RWF","MAIDSTONE AND TUNBRIDGE WELLS NHS TRUST",9,1,0,"*","*","*","*","*","*","*","*","*","*","*","*","*"]
["Q81","RXC","EAST SUSSEX HEALTHCARE NHS TRUST",9,0.77777777777777779,0,6,1,2,0,0,0,0,9,0,0,0,0,0]
["Q81","RYR","WESTERN SUSSEX HOSPITALS NHS FOUNDATION TRUST",15,1,0,12,3,0,0,0,0,0,0,15,0,0,0,0]
["Q81","RVV","EAST KENT HOSPITALS UNIVERSITY NHS FOUNDATION TRUST",20,1,0,19,1,0,0,0,0,0,0,0,20,0,0,0]
["Q81","RXH","BRIGHTON AND SUSSEX UNIVERSITY HOSPITALS NHS TRUST",57,0.96491228070175439,0,46,9,1,0,0,1,57,0,0,0,0,0,0]
["Q81","RA2","ROYAL SURREY COUNTY HOSPITAL NHS FOUNDATION TRUST",65,0.92307692307692313,4.6153846153846156E-2,52,8,2,3,0,0,59,0,6,0,0,0,0]
["Q81","RTP","SURREY AND SUSSEX HEALTHCARE NHS TRUST",78,0.96153846153846156,1.282051282051282E-2,59,16,1,1,0,1,0,0,77,0,0,1,0]
["Q81","RDU","FRIMLEY HEALTH NHS FOUNDATION TRUST",124,1,0,112,12,0,0,0,0,0,0,124,0,0,0,0]
["Q82","RTE","GLOUCESTERSHIRE HOSPITALS NHS FOUNDATION TRUST",0,"NA","NA",0,0,0,0,0,0,0,0,0,0,0,0,0]
["Q82","RN3","GREAT WESTERN HOSPITALS NHS FOUNDATION TRUST",15,1,0,11,4,0,0,0,0,0,0,15,0,0,0,0]
["Q82","RNZ","SALISBURY NHS FOUNDATION TRUST",22,1,0,19,3,0,0,0,0,0,0,22,0,0,0,0]
["Q82","RHW","ROYAL BERKSHIRE NHS FOUNDATION TRUST",28,1,0,19,9,0,0,0,0,0,0,28,0,0,0,0]
["Q82","RTH","OXFORD UNIVERSITY HOSPITALS NHS FOUNDATION TRUST",43,0.97674418604651159,0,36,6,1,0,0,0,0,0,0,42,0,1,0]
["Q82","RXQ","BUCKINGHAMSHIRE HEALTHCARE NHS TRUST",50,0.98,0,40,9,1,0,0,0,0,0,50,0,0,0,0]
["Q82","RD1","ROYAL UNITED HOSPITALS BATH NHS FOUNDATION TRUST",72,0.97222222222222221,1.3888888888888888E-2,67,3,1,0,1,0,0,0,72,0,0,0,0]
["Q83","RMP","TAMESIDE AND GLOSSOP INTEGRATED CARE NHS FOUNDATION TRUST",13,1,0,10,3,0,0,0,0,0,0,13,0,0,0,0]
["Q83","RW3","CENTRAL MANCHESTER UNIVERSITY HOSPITALS NHS FOUNDATION TRUST",13,0.92307692307692313,0,10,2,1,0,0,0,0,0,13,0,0,0,0]
["Q83","RWJ","STOCKPORT NHS FOUNDATION TRUST",20,1,0,16,4,0,0,0,0,0,0,0,20,0,0,0]
["Q83","RY2","BRIDGEWATER COMMUNITY HEALTHCARE NHS FOUNDATION TRUST",22,1,0,20,2,0,0,0,0,0,0,22,0,0,0,0]
["Q83","RW6","PENNINE ACUTE HOSPITALS NHS TRUST",39,0.94871794871794868,2.564102564102564E-2,34,3,0,1,0,1,14,0,25,0,0,0,0]
["Q83","RRF","WRIGHTINGTON, WIGAN AND LEIGH NHS FOUNDATION TRUST",41,1,0,28,13,0,0,0,0,0,0,41,0,0,0,0]
["Q83","RM2","UNIVERSITY HOSPITAL OF SOUTH MANCHESTER NHS FOUNDATION TRUST",62,1,0,57,5,0,0,0,0,0,0,62,0,0,0,0]
["Q83","RMC","BOLTON NHS FOUNDATION TRUST",96,0.95833333333333337,1.0416666666666666E-2,84,8,3,0,1,0,43,0,0,53,0,0,0]
["Q84","RXL","BLACKPOOL TEACHING HOSPITALS NHS FOUNDATION TRUST",11,1,0,9,2,0,0,0,0,0,0,11,0,0,0,0]
["Q84","RXR","EAST LANCASHIRE HOSPITALS NHS TRUST",68,0.95588235294117652,4.4117647058823532E-2,61,4,0,1,2,0,35,0,33,0,0,0,0]
["Q84","RXN","LANCASHIRE TEACHING HOSPITALS NHS FOUNDATION TRUST",74,0.95945945945945943,2.7027027027027029E-2,63,8,1,0,2,0,72,0,0,0,2,0,0]
["zIS1","NDE","ONE TO ONE (NORTH WEST) LIMITED",56,1,0,52,4,0,0,0,0,0,56,0,0,0,0,0]

{"sheet":"BSQ1","index":13,"n_rows":219,"n_cols":33,"rows_kept":219,"cut":false,"hidden":true,"merged":[]}
[null,"Sort","Region (LO)","Region (LO)","Trusts","Trusts","Sites","Sites",null,"Sort ranges:","Sort range…","Sort range…","Sort range…","Reference Region List:","Code…","Name…","Linked Region List:","Code…","Name…","Reference Lists:","Code…","Code…","Name…","Code…","Name…","Trusts Linked Lists:","Code…","Name…","Site Linked Lists:","Code…","Name…","Code…","Name…"]
["Region (LO)",1,1,1,"-","-","-","-",null,null,"Region (LO) Code","Region (LO) Code","Region (LO) Code",null,"Q72","NHS England Yorkshire & Humber",null,"Q70","NHS England Central Midlands",null,"Q70","RBD","DORSET COUNTY HOSPITAL NHS FOUNDATION TRUST","RBD01","Dorset County Hospital - RBD01",null,"NDE","AIREDALE NHS FOUNDATION TRUST",null,"NDE","AIREDALE NHS FOUNDATION TRUST","NDEXXX","Airedale General Hospital - RCF22"]
["Trusts",1,1,1,1,1,"-","-",null,null,"Region (Local Office)","Trust Code","Trust Code",null,"Q74","NHS England Cumbria & North East",null,"Q71","NHS England Cheshire & Merseyside",null,"Q70","RN5","HAMPSHIRE HOSPITALS NHS FOUNDATION TRUST","RN542","Andover War Memorial Hospital - RN542",null,"R1F","ASHFORD AND ST PETER'S HOSPITALS NHS FOUNDATION TRUST",null,"R1F","ASHFORD AND ST PETER'S HOSPITALS NHS FOUNDATION TRUST","R1F01","Alexandra Hospital - RWP01"]
["Sites",1,1,1,1,1,1,1,null,null,"Total Responses","Trust Name","Trust Name",null,"Q75","NHS England Cheshire & Merseyside",null,"Q72","NHS England Cumbria & North East",null,"Q70","RN5","HAMPSHIRE HOSPITALS NHS FOUNDATION TRUST","RN506","Basingstoke and North Hampshire Hospital - RN506",null,"R1H","BARKING, HAVERING AND REDBRIDGE UNIVERSITY HOSPITALS NHS TRUST",null,"R1H","BARKING, HAVERING AND REDBRIDGE UNIVERSITY HOSPITALS NHS TRUST","R1H12","Andover War Memorial Hospital - RN542"]
[null,null,null,null,null,null,null,null,null,null,"Percentage Recommended","Total Responses","Site Code",null,"Q83","NHS England Greater Manchester",null,"Q74","NHS England East",null,"Q70","RN5","HAMPSHIRE HOSPITALS NHS FOUNDATION TRUST","RN541","Royal Hampshire County Hospital - RN541",null,"R1K","BARNSLEY HOSPITAL NHS FOUNDATION TRUST",null,"R1K","BARNSLEY HOSPITAL NHS FOUNDATION TRUST","R1HKH","Arrowe Park Hospital - RBL14"]
[null,null,null,null,null,null,null,null,null,null,"Percentage Not  Recommended","Percentage Recommended","Site Name",null,"Q84","NHS England Lancashire",null,"Q75","NHS England Greater Manchester",null,"Q70","R1F","ISLE OF WIGHT NHS TRUST","R1F01","St Mary's Hospital - R1F01",null,"RA2","BARTS HEALTH NHS TRUST",null,"RA2","BARTS HEALTH NHS TRUST","R1HNH","Ashford Hospital - RTK02"]
[null,null,null,null,null,null,null,null,null,null,"Extremely Likely","Percentage Not  Recommended","Total Responses",null,"Q76","NHS England North Midlands",null,"Q76","NHS England Lancashire",null,"Q70","RD3","POOLE HOSPITAL NHS FOUNDATION TRUST","RD304","Poole General Hospital NHS Trust HQ - RD304",null,"RA3","BASILDON AND THURROCK UNIVERSITY HOSPITALS NHS FOUNDATION TRUST",null,"RA3","BASILDON AND THURROCK UNIVERSITY HOSPITALS NHS FOUNDATION TRUST","R1K01","Barnet Hospital - RAL26"]
[null,null,null,null,null,null,null,null,null,null,"Likely","Extremely Likely","Percentage Recommended",null,"Q77","NHS England West Midlands",null,"Q77","NHS England London",null,"Q70","RHU","PORTSMOUTH HOSPITALS NHS TRUST","RHU10","Gosport War Memorial Hospital - RHU10",null,"RA4","BEDFORD HOSPITAL NHS TRUST",null,"RA4","BEDFORD HOSPITAL NHS TRUST","R1K02","Barnsley Hospital NHS Foundation Trust HQ - RFFAA"]
[null,null,null,null,null,null,null,null,null,null,"Neither","Likely","Percentage Not  Recommended",null,"Q78","NHS England Central Midlands",null,"Q78","NHS England North Midlands",null,"Q70","RHU","PORTSMOUTH HOSPITALS NHS TRUST","RHU04","Petersfield Community Hospital - RHU04",null,"RA7","BIRMINGHAM WOMEN'S AND CHILDREN'S NHS FOUNDATION TRUST",null,"RA7","BIRMINGHAM WOMEN'S AND CHILDREN'S NHS FOUNDATION TRUST","R1K04","Basildon University Hospital - RDDH0"]
[null,null,null,null,null,null,null,null,null,null,"Unlikely","Neither","Extremely Likely",null,"Q79","NHS England East",null,"Q79","NHS England South Central",null,"Q70","RHU","PORTSMOUTH HOSPITALS NHS TRUST","RHU03","Queen Alexandra Hospital - RHU03",null,"RA9","BLACKPOOL TEACHING HOSPITALS NHS FOUNDATION TRUST",null,"RA9","BLACKPOOL TEACHING HOSPITALS NHS FOUNDATION TRUST","R1KXXX","Basingstoke and North Hampshire Hospital - RN506"]
[null,null,null,null,null,null,null,null,null,null,"Extremely Unlikely","Unlikely","Likely",null,"Q80","NHS England South West",null,"Q80","NHS England South East",null,"Q70","RHU","PORTSMOUTH HOSPITALS NHS TRUST","RHU02","St Mary's Hospital - RHU02",null,"RAE","BOLTON NHS FOUNDATION TRUST",null,"RAE","BOLTON NHS FOUNDATION TRUST","RA201","Bassetlaw Hospital - RP5BA"]
[null,null,null,null,null,null,null,null,null,null,"Don't Know","Extremely Unlikely","Neither",null,"Q81","NHS England South East",null,"Q81","NHS England South West",null,"Q70","RDZ","THE ROYAL BOURNEMOUTH AND CHRISTCHURCH HOSPITALS NHS FOUNDATION TRUST","RDZ20","Royal Bournemouth General Hospital - RDZ20",null,"RAJ","BRADFORD TEACHING HOSPITALS NHS FOUNDATION TRUST",null,"RAJ","BRADFORD TEACHING HOSPITALS NHS FOUNDATION TRUST","RA301","Bedford Hospital South Wing - RC110"]
[null,null,null,null,null,null,null,null,null,null,null,"Don't Know","Unlikely",null,"Q82","NHS England South Central",null,"Q82","NHS England Wessex",null,"Q70","RHM","UNIVERSITY HOSPITAL SOUTHAMPTON NHS FOUNDATION TRUST","RHM01","Southampton General Hospital - RHM01",null,"RAL","BRIDGEWATER COMMUNITY HEALTHCARE NHS FOUNDATION TRUST",null,"RAL","BRIDGEWATER COMMUNITY HEALTHCARE NHS FOUNDATION TRUST","RA430","Birmingham Women's Hospital - RQ370"]
[null,null,null,null,null,null,null,null,null,null,null,"SMS/Text / Smartphone App","Extremely Unlikely",null,"Q70","NHS England Wessex",null,"Q83","NHS England West Midlands",null,"Q71","RF4","BARKING, HAVERING AND REDBRIDGE UNIVERSITY HOSPITALS NHS TRUST","RF4QH","Queen's Hospital - RF4QH",null,"RAP","BRIGHTON AND SUSSEX UNIVERSITY HOSPITALS NHS TRUST",null,"RAP","BRIGHTON AND SUSSEX UNIVERSITY HOSPITALS NHS TRUST","RA707","Blackpool Victoria Hospital - RXL01"]
[null,null,null,null,null,null,null,null,null,null,null,"Electronic tablet/kiosk at point of discharge","Don't Know",null,"Q71","NHS England London",null,"Q84","NHS England Yorkshire & Humber",null,"Q71","R1H","BARTS HEALTH NHS TRUST","R1HNH","Newham General Hospital - R1HNH",null,"RAS","BUCKINGHAMSHIRE HEALTHCARE NHS TRUST",null,"RAS","BUCKINGHAMSHIRE HEALTHCARE NHS TRUST","RA901","Bradford Royal Infirmary - RAE01"]
[null,null,null,null,null,null,null,null,null,null,null,"Paper / postcard at point of discharge",null,null,"zIS1","Independent Sector Provider",null,"zIS1","Independent Sector Provider",null,"Q71","R1H","BARTS HEALTH NHS TRUST","R1H12","The Royal London Hospital - R1H12",null,"RAX","BURTON HOSPITALS NHS FOUNDATION TRUST",null,"RAX","BURTON HOSPITALS NHS FOUNDATION TRUST","RAE01","Bridgwater Hospital - RBAC3"]
[null,null,null,null,null,null,null,null,null,null,null,"Paper survey, sent to the patients home",null,null,null,null,null,null,null,null,"Q71","R1H","BARTS HEALTH NHS TRUST","R1HKH","Whipps Cross University Hospital - R1HKH",null,"RBA","CALDERDALE AND HUDDERSFIELD NHS FOUNDATION TRUST",null,"RBA","CALDERDALE AND HUDDERSFIELD NHS FOUNDATION TRUST","RAEXXX","Broomfield Hospital - RQ8L0"]
[null,null,null,null,null,null,null,null,null,null,null,"Telephone survey once patient is home",null,null,null,null,null,null,null,null,"Q71","RQM","CHELSEA AND WESTMINSTER HOSPITAL NHS FOUNDATION TRUST","RQM01","Chelsea and Westminster Hospital - RQM01",null,"RBD","CAMBRIDGE UNIVERSITY HOSPITALS NHS FOUNDATION TRUST",null,"RBD","CAMBRIDGE UNIVERSITY HOSPITALS NHS FOUNDATION TRUST","RAJ01","Central Middlesex Hospital - R1K02"]
[null,null,null,null,null,null,null,null,null,null,null,"Online survey once patient is home",null,null,null,null,null,null,null,null,"Q71","RQM","CHELSEA AND WESTMINSTER HOSPITAL NHS FOUNDATION TRUST","RQM91","West Middlesex University Hospital - RQM91",null,"RBK","CENTRAL MANCHESTER UNIVERSITY HOSPITALS NHS FOUNDATION TRUST",null,"RBK","CENTRAL MANCHESTER UNIVERSITY HOSPITALS NHS FOUNDATION TRUST","RAL01","Chelsea and Westminster Hospital - RQM01"]
[null,null,null,null,null,null,null,null,null,null,null,"Other",null,null,null,null,null,null,null,null,"Q71","RJ6","CROYDON HEALTH SERVICES NHS TRUST","RJ611","Croydon University Hospital - RJ611",null,"RBL","CHELSEA AND WESTMINSTER HOSPITAL NHS FOUNDATION TRUST",null,"RBL","CHELSEA AND WESTMINSTER HOSPITAL NHS FOUNDATION TRUST","RAL26","Cheltenham General Hospital - RTE01"]
[null,null,null,null,null,null,null,null,null,null,null,null,null,null,null,null,null,null,null,null,"Q71","RVR","EPSOM AND ST HELIER UNIVERSITY HOSPITALS NHS TRUST","RVR50","Epsom Hospital - RVR50",null,"RBN","CHESTERFIELD ROYAL HOSPITAL NHS FOUNDATION TRUST",null,"RBN","CHESTERFIELD ROYAL HOSPITAL NHS FOUNDATION TRUST","RAPNM","Chesterfield Royal Hospital - RFSDA"]
[null,null,null,null,null,null,null,null,null,null,null,null,null,null,null,null,null,null,null,null,"Q71","RVR","EPSOM AND ST HELIER UNIVERSITY HOSPITALS NHS TRUST","RVRXXX","Non-hospital site - RVRXXX",null,"RBT","CITY HOSPITALS SUNDERLAND NHS FOUNDATION TRUST",null,"RBT","CITY HOSPITALS SUNDERLAND NHS FOUNDATION TRUST","RAS01","Chippenham Community Hospital -RD102"]
[null,null,null,null,null,null,null,null,null,null,null,null,null,null,null,null,null,null,null,null,"Q71","RVR","EPSOM AND ST HELIER UNIVERSITY HOSPITALS NHS TRUST","RVR05","St Helier Hospital - RVR05",null,"RBZ","COLCHESTER HOSPITAL UNIVERSITY NHS FOUNDATION TRUST",null,"RBZ","COLCHESTER HOSPITAL UNIVERSITY NHS FOUNDATION TRUST","RAX01","City Hospital - RXK02"]
[null,null,null,null,null,null,null,null,null,null,null,null,null,null,null,null,null,null,null,null,"Q71","RJ1","GUY'S AND ST THOMAS' NHS FOUNDATION TRUST","RJ122","St Thomas' Hospital - RJ122",null,"RC1","COUNTESS OF CHESTER HOSPITAL NHS FOUNDATION TRUST",null,"RC1","COUNTESS OF CHESTER HOSPITAL NHS FOUNDATION TRUST","RAXXXX","Clacton and District Hospital - RDEE2"]
[null,null,null,null,null,null,null,null,null,null,null,null,null,null,null,null,null,null,null,null,"Q71","RQX","HOMERTON UNIVERSITY HOSPITAL NHS FOUNDATION TRUST","RQXM1","Homerton University Hospital - RQXM1",null,"RC9","COUNTY DURHAM AND DARLINGTON NHS FOUNDATION TRUST",null,"RC9","COUNTY DURHAM AND DARLINGTON NHS FOUNDATION TRUST","RBA11","Colchester General Hospital - RDEE4"]
[null,null,null,null,null,null,null,null,null,null,null,null,null,null,null,null,null,null,null,null,"Q71","RYJ","IMPERIAL COLLEGE HEALTHCARE NHS TRUST","RYJ04","Queen Charlotte's Hospital - RYJ04",null,"RCB","CROYDON HEALTH SERVICES NHS TRUST",null,"RCB","CROYDON HEALTH SERVICES NHS TRUST","RBAC3","Conquest Hospital - RXC01"]
[null,null,null,null,null,null,null,null,null,null,null,null,null,null,null,null,null,null,null,null,"Q71","RYJ","IMPERIAL COLLEGE HEALTHCARE NHS TRUST","RYJ01","St Mary's Hospital (HQ) - RYJ01",null,"RCD","DARTFORD AND GRAVESHAM NHS TRUST",null,"RCD","DARTFORD AND GRAVESHAM NHS TRUST","RBAXXX","Countess Of Chester Hospital - RJR05"]
[null,null,null,null,null,null,null,null,null,null,null,null,null,null,null,null,null,null,null,null,"Q71","RJZ","KING'S COLLEGE HOSPITAL NHS FOUNDATION TRUST","RJZ01","King's College Hospital (Denmark Hill) - RJZ01",null,"RCF","DERBY TEACHING HOSPITALS NHS FOUNDATION TRUST",null,"RCF","DERBY TEACHING HOSPITALS NHS FOUNDATION TRUST","RBD01","County Hospital - RJE09"]
[null,null,null,null,null,null,null,null,null,null,null,null,null,null,null,null,null,null,null,null,"Q71","RJZ","KING'S COLLEGE HOSPITAL NHS FOUNDATION TRUST","RJZ30","Princess Royal University Hospital - RJZ30",null,"RCX","DONCASTER AND BASSETLAW TEACHING HOSPITALS NHS FOUNDATION TRUST",null,"RCX","DONCASTER AND BASSETLAW TEACHING HOSPITALS NHS FOUNDATION TRUST","RBK02","Crowborough Birthing Centre - RXC14"]
[null,null,null,null,null,null,null,null,null,null,null,null,null,null,null,null,null,null,null,null,"Q71","RAX","KINGSTON HOSPITAL NHS FOUNDATION TRUST","RAX01","Kingston Hospital - RAX01",null,"RD1","DORSET COUNTY HOSPITAL NHS FOUNDATION TRUST",null,"RD1","DORSET COUNTY HOSPITAL NHS FOUNDATION TRUST","RBL14","Croydon University Hospital - RJ611"]
[null,null,null,null,null,null,null,null,null,null,null,null,null,null,null,null,null,null,null,null,"Q71","RAX","KINGSTON HOSPITAL NHS FOUNDATION TRUST","RAXXXX","Non-hospital site - RAXXXX",null,"RD3","EAST AND NORTH HERTFORDSHIRE NHS TRUST",null,"RD3","EAST AND NORTH HERTFORDSHIRE NHS TRUST","RBN01","Darent Valley Hospital - RN707"]
[null,null,null,null,null,null,null,null,null,null,null,null,null,null,null,null,null,null,null,null,"Q71","RJ2","LEWISHAM AND GREENWICH NHS TRUST","RJ2XXX","Non-hospital site - RJ2XXX",null,"RD8","EAST CHESHIRE NHS TRUST",null,"RD8","EAST CHESHIRE NHS TRUST","RBT20","Darlington Memorial Hospital - RXPDA"]
[null,null,null,null,null,null,null,null,null,null,null,null,null,null,null,null,null,null,null,null,"Q71","RJ2","LEWISHAM AND GREENWICH NHS TRUST","RJ231","Queen Elizabeth Hospital - RJ231",null,"RDD","EAST KENT HOSPITALS UNIVERSITY NHS FOUNDATION TRUST",null,"RDD","EAST KENT HOSPITALS UNIVERSITY NHS FOUNDATION TRUST","RBZ12","Derriford Hospital - RK950"]
[null,null,null,null,null,null,null,null,null,null,null,null,null,null,null,null,null,null,null,null,"Q71","RJ2","LEWISHAM AND GREENWICH NHS TRUST","RJ224","University Hospital Lewisham - RJ224",null,"RDE","EAST LANCASHIRE HOSPITALS NHS TRUST",null,"RDE","EAST LANCASHIRE HOSPITALS NHS TRUST","RC110","Dewsbury and District Hospital - RXF10"]
[null,null,null,null,null,null,null,null,null,null,null,null,null,null,null,null,null,null,null,null,"Q71","R1K","LONDON NORTH WEST HEALTHCARE NHS TRUST","R1K02","Central Middlesex Hospital - R1K02",null,"RDU","EAST SUSSEX HEALTHCARE NHS TRUST",null,"RDU","EAST SUSSEX HEALTHCARE NHS TRUST","RC971","Diana, Princess Of Wales Hospital - RJL30"]
[null,null,null,null,null,null,null,null,null,null,null,null,null,null,null,null,null,null,null,null,"Q71","R1K","LONDON NORTH WEST HEALTHCARE NHS TRUST","R1K04","Ealing Hospital - R1K04",null,"RDZ","EPSOM AND ST HELIER UNIVERSITY HOSPITALS NHS TRUST",null,"RDZ","EPSOM AND ST HELIER UNIVERSITY HOSPITALS NHS TRUST","RCB55","Doncaster Royal Infirmary - RP5DR"]
[null,null,null,null,null,null,null,null,null,null,null,null,null,null,null,null,null,null,null,null,"Q71","R1K","LONDON NORTH WEST HEALTHCARE NHS TRUST","R1KXXX","Non-hospital site - R1KXXX",null,"RE9","FRIMLEY HEALTH NHS FOUNDATION TRUST",null,"RE9","FRIMLEY HEALTH NHS FOUNDATION TRUST","RCBCA","Dorset County Hospital - RBD01"]
[null,null,null,null,null,null,null,null,null,null,null,null,null,null,null,null,null,null,null,null,"Q71","R1K","LONDON NORTH WEST HEALTHCARE NHS TRUST","R1K01","Northwick Park Hospital - R1K01",null,"REF","GATESHEAD HEALTH NHS FOUNDATION TRUST",null,"REF","GATESHEAD HEALTH NHS FOUNDATION TRUST","RCD01","Ealing Hospital - R1K04"]
[null,null,null,null,null,null,null,null,null,null,null,null,null,null,null,null,null,null,null,null,"Q71","RAP","NORTH MIDDLESEX UNIVERSITY HOSPITAL NHS TRUST","RAPNM","North Middlesex Hospital - RAPNM",null,"REP","GEORGE ELIOT HOSPITAL NHS TRUST",null,"REP","GEORGE ELIOT HOSPITAL NHS TRUST","RCDXXX","East Surrey Hospital - RTP04"]
[null,null,null,null,null,null,null,null,null,null,null,null,null,null,null,null,null,null,null,null,"Q71","RAL","ROYAL FREE LONDON NHS FOUNDATION TRUST","RAL26","Barnet Hospital - RAL26",null,"RF4","GLOUCESTERSHIRE HOSPITALS NHS FOUNDATION TRUST",null,"RF4","GLOUCESTERSHIRE HOSPITALS NHS FOUNDATION TRUST","RCF22","Eastbourne District General Hospital - RXC02"]
[null,null,null,null,null,null,null,null,null,null,null,null,null,null,null,null,null,null,null,null,"Q71","RAL","ROYAL FREE LONDON NHS FOUNDATION TRUST","RAL01","Royal Free Hospital - RAL01",null,"RFF","GREAT WESTERN HOSPITALS NHS FOUNDATION TRUST",null,"RFF","GREAT WESTERN HOSPITALS NHS FOUNDATION TRUST","RCX66","Epsom Hospital - RVR50"]
[null,null,null,null,null,null,null,null,null,null,null,null,null,null,null,null,null,null,null,null,"Q71","RJ7","ST GEORGE'S UNIVERSITY HOSPITALS NHS FOUNDATION TRUST","RJ7XXX","Non-hospital site - RJ7XXX",null,"RFR","GUY'S AND ST THOMAS' NHS FOUNDATION TRUST",null,"RFR","GUY'S AND ST THOMAS' NHS FOUNDATION TRUST","RCX70","Fairfield General Hospital - RW601"]
[null,null,null,null,null,null,null,null,null,null,null,null,null,null,null,null,null,null,null,null,"Q71","RJ7","ST GEORGE'S UNIVERSITY HOSPITALS NHS FOUNDATION TRUST","RJ701","St George's Hospital (Tooting) - RJ701",null,"RFS","HAMPSHIRE HOSPITALS NHS FOUNDATION TRUST",null,"RFS","HAMPSHIRE HOSPITALS NHS FOUNDATION TRUST","RCXXXX","Frimley Park Hospital - RDU01"]
[null,null,null,null,null,null,null,null,null,null,null,null,null,null,null,null,null,null,null,null,"Q71","RAS","THE HILLINGDON HOSPITALS NHS FOUNDATION TRUST","RAS01","Hillingdon Hospital - RAS01",null,"RGN","HARROGATE AND DISTRICT NHS FOUNDATION TRUST",null,"RGN","HARROGATE AND DISTRICT NHS FOUNDATION TRUST","RD102","Frome Community Hospital  - RD121"]
[null,null,null,null,null,null,null,null,null,null,null,null,null,null,null,null,null,null,null,null,"Q71","RKE","THE WHITTINGTON HOSPITAL NHS TRUST","RKEXXX","Non-hospital site - RKEXXX",null,"RGP","HEART OF ENGLAND NHS FOUNDATION TRUST",null,"RGP","HEART OF ENGLAND NHS FOUNDATION TRUST","RD108","Furness General Hospital - RTXBU"]
[null,null,null,null,null,null,null,null,null,null,null,null,null,null,null,null,null,null,null,null,"Q71","RKE","THE WHITTINGTON HOSPITAL NHS TRUST","RKEQ4","The Whittington Hospital - RKEQ4",null,"RGQ","HOMERTON UNIVERSITY HOSPITAL NHS FOUNDATION TRUST",null,"RGQ","HOMERTON UNIVERSITY HOSPITAL NHS FOUNDATION TRUST","RD121","George Eliot Hospital - Acute Services - RLT01"]
[null,null,null,null,null,null,null,null,null,null,null,null,null,null,null,null,null,null,null,null,"Q71","RRV","UNIVERSITY COLLEGE LONDON HOSPITALS NHS FOUNDATION TRUST","RRV03","University College Hospital - RRV03",null,"RGR","HULL AND EAST YORKSHIRE HOSPITALS NHS TRUST",null,"RGR","HULL AND EAST YORKSHIRE HOSPITALS NHS TRUST","RD129","Gloucestershire Royal Hospital - RTE03"]
[null,null,null,null,null,null,null,null,null,null,null,null,null,null,null,null,null,null,null,null,"Q72","RCF","AIREDALE NHS FOUNDATION TRUST","RCF22","Airedale General Hospital - RCF22",null,"RGT","IMPERIAL COLLEGE HEALTHCARE NHS TRUST",null,"RGT","IMPERIAL COLLEGE HEALTHCARE NHS TRUST","RD130","Good Hope Hospital - RR105"]
[null,null,null,null,null,null,null,null,null,null,null,null,null,null,null,null,null,null,null,null,"Q72","RFF","BARNSLEY HOSPITAL NHS FOUNDATION TRUST","RFFAA","Barnsley Hospital NHS Foundation Trust HQ - RFFAA",null,"RH8","IPSWICH HOSPITAL NHS TRUST",null,"RH8","IPSWICH HOSPITAL NHS TRUST","RD167","Gosport War Memorial Hospital - RHU10"]
[null,null,null,null,null,null,null,null,null,null,null,null,null,null,null,null,null,null,null,null,"Q72","RAE","BRADFORD TEACHING HOSPITALS NHS FOUNDATION TRUST","RAE01","Bradford Royal Infirmary - RAE01",null,"RHM","ISLE OF WIGHT NHS TRUST",null,"RHM","ISLE OF WIGHT NHS TRUST","RD304","Grantham and District Hospital - RWDLP"]
[null,null,null,null,null,null,null,null,null,null,null,null,null,null,null,null,null,null,null,null,"Q72","RAE","BRADFORD TEACHING HOSPITALS NHS FOUNDATION TRUST","RAEXXX","Non-hospital site - RAEXXX",null,"RHQ","JAMES PAGET UNIVERSITY HOSPITALS NHS FOUNDATION TRUST",null,"RHQ","JAMES PAGET UNIVERSITY HOSPITALS NHS FOUNDATION TRUST","RD816","Harrogate District Hospital - RCD01"]
[null,null,null,null,null,null,null,null,null,null,null,null,null,null,null,null,null,null,null,null,"Q72","RWY","CALDERDALE AND HUDDERSFIELD NHS FOUNDATION TRUST","RWYXXX","Non-hospital site - RWYXXX",null,"RHU","KETTERING GENERAL HOSPITAL NHS FOUNDATION TRUST",null,"RHU","KETTERING GENERAL HOSPITAL NHS FOUNDATION TRUST","RDDH0","Harwich Maternity - RDEEE"]
[null,null,null,null,null,null,null,null,null,null,null,null,null,null,null,null,null,null,null,null,"Q72","RP5","DONCASTER AND BASSETLAW TEACHING HOSPITALS NHS FOUNDATION TRUST","RP5BA","Bassetlaw Hospital - RP5BA",null,"RHW","KING'S COLLEGE HOSPITAL NHS FOUNDATION TRUST",null,"RHW","KING'S COLLEGE HOSPITAL NHS FOUNDATION TRUST","RDEE2","Health Care Resource Centre - RY28P"]
[null,null,null,null,null,null,null,null,null,null,null,null,null,null,null,null,null,null,null,null,"Q72","RP5","DONCASTER AND BASSETLAW TEACHING HOSPITALS NHS FOUNDATION TRUST","RP5DR","Doncaster Royal Infirmary - RP5DR",null,"RJ1","KINGSTON HOSPITAL NHS FOUNDATION TRUST",null,"RJ1","KINGSTON HOSPITAL NHS FOUNDATION TRUST","RDEE4","Heartlands Hospital - RR101"]
[null,null,null,null,null,null,null,null,null,null,null,null,null,null,null,null,null,null,null,null,"Q72","RP5","DONCASTER AND BASSETLAW TEACHING HOSPITALS NHS FOUNDATION TRUST","RP5XXX","Non-hospital site - RP5XXX",null,"RJ2","LANCASHIRE TEACHING HOSPITALS NHS FOUNDATION TRUST",null,"RJ2","LANCASHIRE TEACHING HOSPITALS NHS FOUNDATION TRUST","RDEEE","Hereford County Hospital - RLQ01"]
[null,null,null,null,null,null,null,null,null,null,null,null,null,null,null,null,null,null,null,null,"Q72","RCD","HARROGATE AND DISTRICT NHS FOUNDATION TRUST","RCD01","Harrogate District Hospital - RCD01",null,"RJ6","LEEDS TEACHING HOSPITALS NHS TRUST",null,"RJ6","LEEDS TEACHING HOSPITALS NHS TRUST","RDEXXX","Hillingdon Hospital - RAS01"]
[null,null,null,null,null,null,null,null,null,null,null,null,null,null,null,null,null,null,null,null,"Q72","RCD","HARROGATE AND DISTRICT NHS FOUNDATION TRUST","RCDXXX","Non-hospital site - RCDXXX",null,"RJ7","LEWISHAM AND GREENWICH NHS TRUST",null,"RJ7","LEWISHAM AND GREENWICH NHS TRUST","RDU01","Hinchingbrooke Hospital - RGN90"]
[null,null,null,null,null,null,null,null,null,null,null,null,null,null,null,null,null,null,null,null,"Q72","RWA","HULL AND EAST YORKSHIRE HOSPITALS NHS TRUST","RWA01","Hull Royal Infirmary - RWA01",null,"RJC","LIVERPOOL WOMEN'S NHS FOUNDATION TRUST",null,"RJC","LIVERPOOL WOMEN'S NHS FOUNDATION TRUST","RDU50","Homerton University Hospital - RQXM1"]
[null,null,null,null,null,null,null,null,null,null,null,null,null,null,null,null,null,null,null,null,"Q72","RR8","LEEDS TEACHING HOSPITALS NHS TRUST","RR801","Leeds General Infirmary - RR801",null,"RJE","LONDON NORTH WEST HEALTHCARE NHS TRUST",null,"RJE","LONDON NORTH WEST HEALTHCARE NHS TRUST","RDUXXX","Honiton Hospital - RH 854"]
[null,null,null,null,null,null,null,null,null,null,null,null,null,null,null,null,null,null,null,null,"Q72","RR8","LEEDS TEACHING HOSPITALS NHS TRUST","RR8XXX","Non-Hospital Site - RR8XXX",null,"RJF","LUTON AND DUNSTABLE UNIVERSITY HOSPITAL NHS FOUNDATION TRUST",null,"RJF","LUTON AND DUNSTABLE UNIVERSITY HOSPITAL NHS FOUNDATION TRUST","RDZ20","Hospital Of St Cross - RKB03"]
[null,null,null,null,null,null,null,null,null,null,null,null,null,null,null,null,null,null,null,null,"Q72","RR8","LEEDS TEACHING HOSPITALS NHS TRUST","RR813","St James's University Hospital - RR813",null,"RJL","MAIDSTONE AND TUNBRIDGE WELLS NHS TRUST",null,"RJL","MAIDSTONE AND TUNBRIDGE WELLS NHS TRUST","RE9GA","Hull Royal Infirmary - RWA01"]
[null,null,null,null,null,null,null,null,null,null,null,null,null,null,null,null,null,null,null,null,"Q72","RXF","MID YORKSHIRE HOSPITALS NHS TRUST","RXF10","Dewsbury and District Hospital - RXF10",null,"RJN","MEDWAY NHS FOUNDATION TRUST",null,"RJN","MEDWAY NHS FOUNDATION TRUST","REF12","James Paget University Hospital - RGP75"]
[null,null,null,null,null,null,null,null,null,null,null,null,null,null,null,null,null,null,null,null,"Q72","RXF","MID YORKSHIRE HOSPITALS NHS TRUST","RXFXXX","Non-hospital site - RXFXXX",null,"RJR","MID CHESHIRE HOSPITALS NHS FOUNDATION TRUST",null,"RJR","MID CHESHIRE HOSPITALS NHS FOUNDATION TRUST","REP01","John Radcliffe Hospital - RTH08"]
[null,null,null,null,null,null,null,null,null,null,null,null,null,null,null,null,null,null,null,null,"Q72","RXF","MID YORKSHIRE HOSPITALS NHS TRUST","RXF05","Pinderfields General Hospital - RXF05",null,"RJZ","MID ESSEX HOSPITAL SERVICES NHS TRUST",null,"RJZ","MID ESSEX HOSPITAL SERVICES NHS TRUST","RF4QH","Kettering General Hospital - RNQ51"]
[null,null,null,null,null,null,null,null,null,null,null,null,null,null,null,null,null,null,null,null,"Q72","RXF","MID YORKSHIRE HOSPITALS NHS TRUST","RXF03","Pontefract General Infirmary - RXF03",null,"RK5","MID YORKSHIRE HOSPITALS NHS TRUST",null,"RK5","MID YORKSHIRE HOSPITALS NHS TRUST","RFFAA","Kidderminster Hospital - RWP31"]
[null,null,null,null,null,null,null,null,null,null,null,null,null,null,null,null,null,null,null,null,"Q72","RJL","NORTHERN LINCOLNSHIRE AND GOOLE NHS FOUNDATION TRUST","RJL30","Diana, Princess Of Wales Hospital - RJL30",null,"RK9","MILTON KEYNES UNIVERSITY HOSPITAL NHS FOUNDATION TRUST",null,"RK9","MILTON KEYNES UNIVERSITY HOSPITAL NHS FOUNDATION TRUST","RFRPA","King's College Hospital (Denmark Hill) - RJZ01"]
[null,null,null,null,null,null,null,null,null,null,null,null,null,null,null,null,null,null,null,null,"Q72","RJL","NORTHERN LINCOLNSHIRE AND GOOLE NHS FOUNDATION TRUST","RJL32","Scunthorpe General Hospital - RJL32",null,"RKB","NORFOLK AND NORWICH UNIVERSITY HOSPITALS NHS FOUNDATION TRUST",null,"RKB","NORFOLK AND NORWICH UNIVERSITY HOSPITALS NHS FOUNDATION TRUST","RFSDA","King's Mill Hospital - RK5BC"]
[null,null,null,null,null,null,null,null,null,null,null,null,null,null,null,null,null,null,null,null,"Q72","RHQ","SHEFFIELD TEACHING HOSPITALS NHS FOUNDATION TRUST","RHQHH","Royal Hallamshire Hospital - RHQHH",null,"RKE","NORTH BRISTOL NHS TRUST",null,"RKE","NORTH BRISTOL NHS TRUST","RGN80","Kingston Hospital - RAX01"]
[null,null,null,null,null,null,null,null,null,null,null,null,null,null,null,null,null,null,null,null,"Q72","RFR","THE ROTHERHAM NHS FOUNDATION TRUST","RFRPA","Rotherham District General Hospital - RFRPA",null,"RL4","NORTH CUMBRIA UNIVERSITY HOSPITALS NHS TRUST",null,"RL4","NORTH CUMBRIA UNIVERSITY HOSPITALS NHS TRUST","RGN90","Leeds General Infirmary - RR801"]
[null,null,null,null,null,null,null,null,null,null,null,null,null,null,null,null,null,null,null,null,"Q72","RCB","YORK TEACHING HOSPITAL NHS FOUNDATION TRUST","RCBCA","Scarborough General Hospital - RCBCA",null,"RLN","NORTH MIDDLESEX UNIVERSITY HOSPITAL NHS TRUST",null,"RLN","NORTH MIDDLESEX UNIVERSITY HOSPITAL NHS TRUST","RGP75","Leicester General Hospital - RWEAK"]
[null,null,null,null,null,null,null,null,null,null,null,null,null,null,null,null,null,null,null,null,"Q72","RCB","YORK TEACHING HOSPITAL NHS FOUNDATION TRUST","RCB55","York Hospital - RCB55",null,"RLQ","NORTH TEES AND HARTLEPOOL NHS FOUNDATION TRUST",null,"RLQ","NORTH TEES AND HARTLEPOOL NHS FOUNDATION TRUST","RGQ02","Leicester Royal Infirmary - RWEAA"]
[null,null,null,null,null,null,null,null,null,null,null,null,null,null,null,null,null,null,null,null,"Q74","RLN","CITY HOSPITALS SUNDERLAND NHS FOUNDATION TRUST","RLNGL","Sunderland Royal Hospital - RLNGL",null,"RLT","NORTH WEST ANGLIA NHS FOUNDATION TRUST",null,"RLT","NORTH WEST ANGLIA NHS FOUNDATION TRUST","RGR50","Leighton Hospital - RBT20"]
[null,null,null,null,null,null,null,null,null,null,null,null,null,null,null,null,null,null,null,null,"Q74","RXP","COUNTY DURHAM AND DARLINGTON NHS FOUNDATION TRUST","RXPDA","Darlington Memorial Hospital - RXPDA",null,"RM1","NORTHAMPTON GENERAL HOSPITAL NHS TRUST",null,"RM1","NORTHAMPTON GENERAL HOSPITAL NHS TRUST","RGT32","Lincoln County Hospital - RWDDA"]
[null,null,null,null,null,null,null,null,null,null,null,null,null,null,null,null,null,null,null,null,"Q74","RXP","COUNTY DURHAM AND DARLINGTON NHS FOUNDATION TRUST","RXPCP","University Hospital Of North Durham - RXPCP",null,"RM2","NORTHERN DEVON HEALTHCARE NHS TRUST",null,"RM2","NORTHERN DEVON HEALTHCARE NHS TRUST","RH801","Lister Hospital - RWH01"]
[null,null,null,null,null,null,null,null,null,null,null,null,null,null,null,null,null,null,null,null,"Q74","RR7","GATESHEAD HEALTH NHS FOUNDATION TRUST","RR7EN","Queen Elizabeth Hospital - RR7EN",null,"RMC","NORTHERN LINCOLNSHIRE AND GOOLE NHS FOUNDATION TRUST",null,"RMC","NORTHERN LINCOLNSHIRE AND GOOLE NHS FOUNDATION TRUST","RH833","Liverpool Womens Hospital - REP01"]
[null,null,null,null,null,null,null,null,null,null,null,null,null,null,null,null,null,null,null,null,"Q74","RNL","NORTH CUMBRIA UNIVERSITY HOSPITALS NHS TRUST","RNLXXX","Non-hospital site - RNLXXX",null,"RMP","NORTHUMBRIA HEALTHCARE NHS FOUNDATION TRUST",null,"RMP","NORTHUMBRIA HEALTHCARE NHS FOUNDATION TRUST","RH853","Luton and Dunstable Hospital - RC971"]
[null,null,null,null,null,null,null,null,null,null,null,null,null,null,null,null,null,null,null,null,"Q74","RVW","NORTH TEES AND HARTLEPOOL NHS FOUNDATION TRUST","RVWXXX","Non-hospital site - RVWXXX",null,"RN3","NOTTINGHAM UNIVERSITY HOSPITALS NHS TRUST",null,"RN3","NOTTINGHAM UNIVERSITY HOSPITALS NHS TRUST","RH854","Macclesfield District General Hospital - RJN71"]
[null,null,null,null,null,null,null,null,null,null,null,null,null,null,null,null,null,null,null,null,"Q74","RTF","NORTHUMBRIA HEALTHCARE NHS FOUNDATION TRUST","RTFXXX","Non-hospital site - RTFXXX",null,"RN5","ONE TO ONE (NORTH WEST) LIMITED",null,"RN5","ONE TO ONE (NORTH WEST) LIMITED","RHM01","Maidstone District General Hospital - RWF03"]
[null,null,null,null,null,null,null,null,null,null,null,null,null,null,null,null,null,null,null,null,"Q74","RTR","SOUTH TEES HOSPITALS NHS FOUNDATION TRUST","RTRXXX","Non-hospital site - RTRXXX",null,"RN7","OXFORD UNIVERSITY HOSPITALS NHS FOUNDATION TRUST",null,"RN7","OXFORD UNIVERSITY HOSPITALS NHS FOUNDATION TRUST","RHQHH","Manor Hospital - RBK02"]
[null,null,null,null,null,null,null,null,null,null,null,null,null,null,null,null,null,null,null,null,"Q74","RE9","SOUTH TYNESIDE NHS FOUNDATION TRUST","RE9GA","South Tyneside District Hospital - RE9GA",null,"RNA","PENNINE ACUTE HOSPITALS NHS TRUST",null,"RNA","PENNINE ACUTE HOSPITALS NHS TRUST","RHU02","Medway Maritime Hospital - RPA02"]
[null,null,null,null,null,null,null,null,null,null,null,null,null,null,null,null,null,null,null,null,"Q74","RTD","THE NEWCASTLE UPON TYNE HOSPITALS NHS FOUNDATION TRUST","RTD02","The Royal Victoria Infirmary - RTD02",null,"RNL","PLYMOUTH HOSPITALS NHS TRUST",null,"RNL","PLYMOUTH HOSPITALS NHS TRUST","RHU03","Milton Keynes Hospital - RD816"]
[null,null,null,null,null,null,null,null,null,null,null,null,null,null,null,null,null,null,null,null,"Q74","RTX","UNIVERSITY HOSPITALS OF MORECAMBE BAY NHS FOUNDATION TRUST","RTXBU","Furness General Hospital - RTXBU",null,"RNQ","POOLE HOSPITAL NHS FOUNDATION TRUST",null,"RNQ","POOLE HOSPITAL NHS FOUNDATION TRUST","RHU04","Musgrove Park Hospital - RBA11"]
[null,null,null,null,null,null,null,null,null,null,null,null,null,null,null,null,null,null,null,null,"Q74","RTX","UNIVERSITY HOSPITALS OF MORECAMBE BAY NHS FOUNDATION TRUST","RTX02","Royal Lancaster Infirmary - RTX02",null,"RNS","PORTSMOUTH HOSPITALS NHS TRUST",null,"RNS","PORTSMOUTH HOSPITALS NHS TRUST","RHU10","New Cross Hospital - RL403"]
[null,null,null,null,null,null,null,null,null,null,null,null,null,null,null,null,null,null,null,null,"Q75","RJR","COUNTESS OF CHESTER HOSPITAL NHS FOUNDATION TRUST","RJR05","Countess Of Chester Hospital - RJR05",null,"RNZ","ROYAL BERKSHIRE NHS FOUNDATION TRUST",null,"RNZ","ROYAL BERKSHIRE NHS FOUNDATION TRUST","RHW01","Newham General Hospital - R1HNH"]
[null,null,null,null,null,null,null,null,null,null,null,null,null,null,null,null,null,null,null,null,"Q75","RJR","COUNTESS OF CHESTER HOSPITAL NHS FOUNDATION TRUST","RJRXXX","Non-hospital site - RJRXXX",null,"RP5","ROYAL CORNWALL HOSPITALS NHS TRUST",null,"RP5","ROYAL CORNWALL HOSPITALS NHS TRUST","RJ122","Non-hospital site - NDEXXX"]
[null,null,null,null,null,null,null,null,null,null,null,null,null,null,null,null,null,null,null,null,"Q75","RJN","EAST CHESHIRE NHS TRUST","RJN71","Macclesfield District General Hospital - RJN71",null,"RPA","ROYAL DEVON AND EXETER NHS FOUNDATION TRUST",null,"RPA","ROYAL DEVON AND EXETER NHS FOUNDATION TRUST","RJ224","Non-hospital site - R1KXXX"]
[null,null,null,null,null,null,null,null,null,null,null,null,null,null,null,null,null,null,null,null,"Q75","REP","LIVERPOOL WOMEN'S NHS FOUNDATION TRUST","REP01","Liverpool Womens Hospital - REP01",null,"RQ3","ROYAL FREE LONDON NHS FOUNDATION TRUST",null,"RQ3","ROYAL FREE LONDON NHS FOUNDATION TRUST","RJ231","Non-hospital site - RAEXXX"]
[null,null,null,null,null,null,null,null,null,null,null,null,null,null,null,null,null,null,null,null,"Q75","RBT","MID CHESHIRE HOSPITALS NHS FOUNDATION TRUST","RBT20","Leighton Hospital - RBT20",null,"RQ8","ROYAL SURREY COUNTY HOSPITAL NHS FOUNDATION TRUST",null,"RQ8","ROYAL SURREY COUNTY HOSPITAL NHS FOUNDATION TRUST","RJ2XXX","Non-hospital site - RAXXXX"]
[null,null,null,null,null,null,null,null,null,null,null,null,null,null,null,null,null,null,null,null,"Q75","RVY","SOUTHPORT AND ORMSKIRK HOSPITAL NHS TRUST","RVYXXX","Non-hospital site - RVYXXX",null,"RQM","ROYAL UNITED HOSPITALS BATH NHS FOUNDATION TRUST",null,"RQM","ROYAL UNITED HOSPITALS BATH NHS FOUNDATION TRUST","RJ611","Non-hospital site - RBAXXX"]
[null,null,null,null,null,null,null,null,null,null,null,null,null,null,null,null,null,null,null,null,"Q75","RBN","ST HELENS AND KNOWSLEY HOSPITAL SERVICES NHS TRUST","RBN01","Whiston Hospital - RBN01",null,"RQW","SALISBURY NHS FOUNDATION TRUST",null,"RQW","SALISBURY NHS FOUNDATION TRUST","RJ701","Non-hospital site - RCDXXX"]
[null,null,null,null,null,null,null,null,null,null,null,null,null,null,null,null,null,null,null,null,"Q75","RWW","WARRINGTON AND HALTON HOSPITALS NHS FOUNDATION TRUST","RWWWH","Warrington Hospital - RWWWH",null,"RQX","SANDWELL AND WEST BIRMINGHAM HOSPITALS NHS TRUST",null,"RQX","SANDWELL AND WEST BIRMINGHAM HOSPITALS NHS TRUST","RJ7XXX","Non-hospital site - RCXXXX"]
[null,null,null,null,null,null,null,null,null,null,null,null,null,null,null,null,null,null,null,null,"Q75","RBL","WIRRAL UNIVERSITY TEACHING HOSPITAL NHS FOUNDATION TRUST","RBL14","Arrowe Park Hospital - RBL14",null,"RR1","SHEFFIELD TEACHING HOSPITALS NHS FOUNDATION TRUST",null,"RR1","SHEFFIELD TEACHING HOSPITALS NHS FOUNDATION TRUST","RJCXXX","Non-hospital site - RDEXXX"]
[null,null,null,null,null,null,null,null,null,null,null,null,null,null,null,null,null,null,null,null,"Q76","RJF","BURTON HOSPITALS NHS FOUNDATION TRUST","RJF02","Queen's Hospital, Burton Upon Trent - RJF02",null,"RR7","SHERWOOD FOREST HOSPITALS NHS FOUNDATION TRUST",null,"RR7","SHERWOOD FOREST HOSPITALS NHS FOUNDATION TRUST","RJE01","Non-hospital site - RDUXXX"]
[null,null,null,null,null,null,null,null,null,null,null,null,null,null,null,null,null,null,null,null,"Q76","RFS","CHESTERFIELD ROYAL HOSPITAL NHS FOUNDATION TRUST","RFSDA","Chesterfield Royal Hospital - RFSDA",null,"RR8","SHREWSBURY AND TELFORD HOSPITAL NHS TRUST",null,"RR8","SHREWSBURY AND TELFORD HOSPITAL NHS TRUST","RJE09","Non-hospital site - RJ2XXX"]
[null,null,null,null,null,null,null,null,null,null,null,null,null,null,null,null,null,null,null,null,"Q76","RTG","DERBY TEACHING HOSPITALS NHS FOUNDATION TRUST","RTGFG","Royal Derby Hospital - RTGFG",null,"RRF","SOUTH TEES HOSPITALS NHS FOUNDATION TRUST",null,"RRF","SOUTH TEES HOSPITALS NHS FOUNDATION TRUST","RJF02","Non-hospital site - RJ7XXX"]
[null,null,null,null,null,null,null,null,null,null,null,null,null,null,null,null,null,null,null,null,"Q76","RX1","NOTTINGHAM UNIVERSITY HOSPITALS NHS TRUST","RX1XXX","Non-hospital site - RX1XXX",null,"RRV","SOUTH TYNESIDE NHS FOUNDATION TRUST",null,"RRV","SOUTH TYNESIDE NHS FOUNDATION TRUST","RJL30","Non-hospital site - RJCXXX"]
[null,null,null,null,null,null,null,null,null,null,null,null,null,null,null,null,null,null,null,null,"Q76","RK5","SHERWOOD FOREST HOSPITALS NHS FOUNDATION TRUST","RK5BC","King's Mill Hospital - RK5BC",null,"RTD","SOUTH WARWICKSHIRE NHS FOUNDATION TRUST",null,"RTD","SOUTH WARWICKSHIRE NHS FOUNDATION TRUST","RJL32","Non-hospital site - RJRXXX"]
[null,null,null,null,null,null,null,null,null,null,null,null,null,null,null,null,null,null,null,null,"Q76","RXW","SHREWSBURY AND TELFORD HOSPITAL NHS TRUST","RXWXXX","Non-hospital site - RXWXXX",null,"RTE","SOUTHEND UNIVERSITY HOSPITAL NHS FOUNDATION TRUST",null,"RTE","SOUTHEND UNIVERSITY HOSPITAL NHS FOUNDATION TRUST","RJN71","Non-hospital site - RK9XXX"]
[null,null,null,null,null,null,null,null,null,null,null,null,null,null,null,null,null,null,null,null,"Q76","RJE","UNIVERSITY HOSPITALS OF NORTH MIDLANDS NHS TRUST","RJE09","County Hospital - RJE09",null,"RTF","SOUTHPORT AND ORMSKIRK HOSPITAL NHS TRUST",null,"RTF","SOUTHPORT AND ORMSKIRK HOSPITAL NHS TRUST","RJR05","Non-hospital site - RKBXXX"]
[null,null,null,null,null,null,null,null,null,null,null,null,null,null,null,null,null,null,null,null,"Q76","RJE","UNIVERSITY HOSPITALS OF NORTH MIDLANDS NHS TRUST","RJE01","Royal Stoke University Hospital - RJE01",null,"RTG","ST GEORGE'S UNIVERSITY HOSPITALS NHS FOUNDATION TRUST",null,"RTG","ST GEORGE'S UNIVERSITY HOSPITALS NHS FOUNDATION TRUST","RJRXXX","Non-hospital site - RKEXXX"]
[null,null,null,null,null,null,null,null,null,null,null,null,null,null,null,null,null,null,null,null,"Q77","RQ3","BIRMINGHAM WOMEN'S AND CHILDREN'S NHS FOUNDATION TRUST","RQ370","Birmingham Women's Hospital - RQ370",null,"RTH","ST HELENS AND KNOWSLEY HOSPITAL SERVICES NHS TRUST",null,"RTH","ST HELENS AND KNOWSLEY HOSPITAL SERVICES NHS TRUST","RJZ01","Non-hospital site - RN3XXX"]
[null,null,null,null,null,null,null,null,null,null,null,null,null,null,null,null,null,null,null,null,"Q77","RLT","GEORGE ELIOT HOSPITAL NHS TRUST","RLT01","George Eliot Hospital - Acute Services - RLT01",null,"RTK","STOCKPORT NHS FOUNDATION TRUST",null,"RTK","STOCKPORT NHS FOUNDATION TRUST","RJZ30","Non-hospital site - RNAXXX"]
[null,null,null,null,null,null,null,null,null,null,null,null,null,null,null,null,null,null,null,null,"Q77","RR1","HEART OF ENGLAND NHS FOUNDATION TRUST","RR105","Good Hope Hospital - RR105",null,"RTP","SURREY AND SUSSEX HEALTHCARE NHS TRUST",null,"RTP","SURREY AND SUSSEX HEALTHCARE NHS TRUST","RK5BC","Non-hospital site - RNLXXX"]
[null,null,null,null,null,null,null,null,null,null,null,null,null,null,null,null,null,null,null,null,"Q77","RR1","HEART OF ENGLAND NHS FOUNDATION TRUST","RR101","Heartlands Hospital - RR101",null,"RTR","TAMESIDE AND GLOSSOP INTEGRATED CARE NHS FOUNDATION TRUST",null,"RTR","TAMESIDE AND GLOSSOP INTEGRATED CARE NHS FOUNDATION TRUST","RK950","Non-hospital site - RP5XXX"]
[null,null,null,null,null,null,null,null,null,null,null,null,null,null,null,null,null,null,null,null,"Q77","RR1","HEART OF ENGLAND NHS FOUNDATION TRUST","RR109","Solihull Hospital - RR109",null,"RTX","TAUNTON AND SOMERSET NHS FOUNDATION TRUST",null,"RTX","TAUNTON AND SOMERSET NHS FOUNDATION TRUST","RK9XXX","Non-Hospital Site - RR8XXX"]
[null,null,null,null,null,null,null,null,null,null,null,null,null,null,null,null,null,null,null,null,"Q77","RXK","SANDWELL AND WEST BIRMINGHAM HOSPITALS NHS TRUST","RXK02","City Hospital - RXK02",null,"RVJ","THE DUDLEY GROUP NHS FOUNDATION TRUST",null,"RVJ","THE DUDLEY GROUP NHS FOUNDATION TRUST","RKB01","Non-hospital site - RTEXXX"]
[null,null,null,null,null,null,null,null,null,null,null,null,null,null,null,null,null,null,null,null,"Q77","RXK","SANDWELL AND WEST BIRMINGHAM HOSPITALS NHS TRUST","RXK01","Sandwell General Hospital - RXK01",null,"RVR","THE HILLINGDON HOSPITALS NHS FOUNDATION TRUST",null,"RVR","THE HILLINGDON HOSPITALS NHS FOUNDATION TRUST","RKB03","Non-hospital site - RTFXXX"]
[null,null,null,null,null,null,null,null,null,null,null,null,null,null,null,null,null,null,null,null,"Q77","RJC","SOUTH WARWICKSHIRE NHS FOUNDATION TRUST","RJCXXX","Non-hospital site - RJCXXX",null,"RVV","THE NEWCASTLE UPON TYNE HOSPITALS NHS FOUNDATION TRUST",null,"RVV","THE NEWCASTLE UPON TYNE HOSPITALS NHS FOUNDATION TRUST","RKBXXX","Non-hospital site - RTRXXX"]
[null,null,null,null,null,null,null,null,null,null,null,null,null,null,null,null,null,null,null,null,"Q77","RNA","THE DUDLEY GROUP NHS FOUNDATION TRUST","RNAXXX","Non-hospital site - RNAXXX",null,"RVW","THE PRINCESS ALEXANDRA HOSPITAL NHS TRUST",null,"RVW","THE PRINCESS ALEXANDRA HOSPITAL NHS TRUST","RKEQ4","Non-hospital site - RVRXXX"]
[null,null,null,null,null,null,null,null,null,null,null,null,null,null,null,null,null,null,null,null,"Q77","RNA","THE DUDLEY GROUP NHS FOUNDATION TRUST","RNA01","Russells Hall Hospital - RNA01",null,"RVY","THE QUEEN ELIZABETH HOSPITAL, KING'S LYNN, NHS FOUNDATION TRUST",null,"RVY","THE QUEEN ELIZABETH HOSPITAL, KING'S LYNN, NHS FOUNDATION TRUST","RKEXXX","Non-hospital site - RVVXXX"]
[null,null,null,null,null,null,null,null,null,null,null,null,null,null,null,null,null,null,null,null,"Q77","RL4","THE ROYAL WOLVERHAMPTON NHS TRUST","RL403","New Cross Hospital - RL403",null,"RW3","THE ROTHERHAM NHS FOUNDATION TRUST",null,"RW3","THE ROTHERHAM NHS FOUNDATION TRUST","RL403","Non-hospital site - RVWXXX"]
[null,null,null,null,null,null,null,null,null,null,null,null,null,null,null,null,null,null,null,null,"Q77","RKB","UNIVERSITY HOSPITALS COVENTRY AND WARWICKSHIRE NHS TRUST","RKB03","Hospital Of St Cross - RKB03",null,"RW6","THE ROYAL BOURNEMOUTH AND CHRISTCHURCH HOSPITALS NHS FOUNDATION TRUST",null,"RW6","THE ROYAL BOURNEMOUTH AND CHRISTCHURCH HOSPITALS NHS FOUNDATION TRUST","RLNGL","Non-hospital site - RVYXXX"]
[null,null,null,null,null,null,null,null,null,null,null,null,null,null,null,null,null,null,null,null,"Q77","RKB","UNIVERSITY HOSPITALS COVENTRY AND WARWICKSHIRE NHS TRUST","RKBXXX","Non-hospital site - RKBXXX",null,"RWA","THE ROYAL WOLVERHAMPTON NHS TRUST",null,"RWA","THE ROYAL WOLVERHAMPTON NHS TRUST","RLQ01","Non-hospital site - RWDXXX"]
[null,null,null,null,null,null,null,null,null,null,null,null,null,null,null,null,null,null,null,null,"Q77","RKB","UNIVERSITY HOSPITALS COVENTRY AND WARWICKSHIRE NHS TRUST","RKB01","University Hospital (Coventry) - RKB01",null,"RWD","THE WHITTINGTON HOSPITAL NHS TRUST",null,"RWD","THE WHITTINGTON HOSPITAL NHS TRUST","RLT01","Non-hospital site - RWEXXX"]
[null,null,null,null,null,null,null,null,null,null,null,null,null,null,null,null,null,null,null,null,"Q77","RBK","WALSALL HEALTHCARE NHS TRUST","RBK02","Manor Hospital - RBK02",null,"RWE","TORBAY AND SOUTH DEVON NHS FOUNDATION TRUST",null,"RWE","TORBAY AND SOUTH DEVON NHS FOUNDATION TRUST","RM102","Non-hospital site - RWFXXX"]
[null,null,null,null,null,null,null,null,null,null,null,null,null,null,null,null,null,null,null,null,"Q77","RWP","WORCESTERSHIRE ACUTE HOSPITALS NHS TRUST","RWP01","Alexandra Hospital - RWP01",null,"RWF","UNITED LINCOLNSHIRE HOSPITALS NHS TRUST",null,"RWF","UNITED LINCOLNSHIRE HOSPITALS NHS TRUST","RM202","Non-hospital site - RWHXXX"]
[null,null,null,null,null,null,null,null,null,null,null,null,null,null,null,null,null,null,null,null,"Q77","RWP","WORCESTERSHIRE ACUTE HOSPITALS NHS TRUST","RWP31","Kidderminster Hospital - RWP31",null,"RWG","UNIVERSITY COLLEGE LONDON HOSPITALS NHS FOUNDATION TRUST",null,"RWG","UNIVERSITY COLLEGE LONDON HOSPITALS NHS FOUNDATION TRUST","RMC01","Non-hospital site - RWYXXX"]
[null,null,null,null,null,null,null,null,null,null,null,null,null,null,null,null,null,null,null,null,"Q77","RWP","WORCESTERSHIRE ACUTE HOSPITALS NHS TRUST","RWP50","Worcestershire Royal Hospital - RWP50",null,"RWH","UNIVERSITY HOSPITAL OF SOUTH MANCHESTER NHS FOUNDATION TRUST",null,"RWH","UNIVERSITY HOSPITAL OF SOUTH MANCHESTER NHS FOUNDATION TRUST","RMP01","Non-hospital site - RX1XXX"]
[null,null,null,null,null,null,null,null,null,null,null,null,null,null,null,null,null,null,null,null,"Q77","RLQ","WYE VALLEY NHS TRUST","RLQ01","Hereford County Hospital - RLQ01",null,"RWJ","UNIVERSITY HOSPITAL SOUTHAMPTON NHS FOUNDATION TRUST",null,"RWJ","UNIVERSITY HOSPITAL SOUTHAMPTON NHS FOUNDATION TRUST","RN325","Non-hospital site - RXCXXX"]
[null,null,null,null,null,null,null,null,null,null,null,null,null,null,null,null,null,null,null,null,"Q78","RC1","BEDFORD HOSPITAL NHS TRUST","RC110","Bedford Hospital South Wing - RC110",null,"RWP","UNIVERSITY HOSPITALS BRISTOL NHS FOUNDATION TRUST",null,"RWP","UNIVERSITY HOSPITALS BRISTOL NHS FOUNDATION TRUST","RN3XXX","Non-hospital site - RXFXXX"]
[null,null,null,null,null,null,null,null,null,null,null,null,null,null,null,null,null,null,null,null,"Q78","RWH","EAST AND NORTH HERTFORDSHIRE NHS TRUST","RWH01","Lister Hospital - RWH01",null,"RWW","UNIVERSITY HOSPITALS COVENTRY AND WARWICKSHIRE NHS TRUST",null,"RWW","UNIVERSITY HOSPITALS COVENTRY AND WARWICKSHIRE NHS TRUST","RN506","Non-hospital site - RXLXXX"]
[null,null,null,null,null,null,null,null,null,null,null,null,null,null,null,null,null,null,null,null,"Q78","RWH","EAST AND NORTH HERTFORDSHIRE NHS TRUST","RWHXXX","Non-hospital site - RWHXXX",null,"RWY","UNIVERSITY HOSPITALS OF LEICESTER NHS TRUST",null,"RWY","UNIVERSITY HOSPITALS OF LEICESTER NHS TRUST","RN541","Non-hospital site - RXWXXX"]
[null,null,null,null,null,null,null,null,null,null,null,null,null,null,null,null,null,null,null,null,"Q78","RNQ","KETTERING GENERAL HOSPITAL NHS FOUNDATION TRUST","RNQ51","Kettering General Hospital - RNQ51",null,"RX1","UNIVERSITY HOSPITALS OF MORECAMBE BAY NHS FOUNDATION TRUST",null,"RX1","UNIVERSITY HOSPITALS OF MORECAMBE BAY NHS FOUNDATION TRUST","RN542","Non-hospital site - RY2XXX"]
[null,null,null,null,null,null,null,null,null,null,null,null,null,null,null,null,null,null,null,null,"Q78","RC9","LUTON AND DUNSTABLE UNIVERSITY HOSPITAL NHS FOUNDATION TRUST","RC971","Luton and Dunstable Hospital - RC971",null,"RXC","UNIVERSITY HOSPITALS OF NORTH MIDLANDS NHS TRUST",null,"RXC","UNIVERSITY HOSPITALS OF NORTH MIDLANDS NHS TRUST","RN707","Norfolk and Norwich University Hospital - RM102"]
[null,null,null,null,null,null,null,null,null,null,null,null,null,null,null,null,null,null,null,null,"Q78","RD8","MILTON KEYNES UNIVERSITY HOSPITAL NHS FOUNDATION TRUST","RD816","Milton Keynes Hospital - RD816",null,"RXF","WALSALL HEALTHCARE NHS TRUST",null,"RXF","WALSALL HEALTHCARE NHS TRUST","RNA01","North Cambridgeshire Hospital - RCX66"]
[null,null,null,null,null,null,null,null,null,null,null,null,null,null,null,null,null,null,null,null,"Q78","RNS","NORTHAMPTON GENERAL HOSPITAL NHS TRUST","RNS01","Northampton General Hospital (Acute) - RNS01",null,"RXH","WARRINGTON AND HALTON HOSPITALS NHS FOUNDATION TRUST",null,"RXH","WARRINGTON AND HALTON HOSPITALS NHS FOUNDATION TRUST","RNAXXX","North Devon District Hospital - RBZ12"]
[null,null,null,null,null,null,null,null,null,null,null,null,null,null,null,null,null,null,null,null,"Q78","RWD","UNITED LINCOLNSHIRE HOSPITALS NHS TRUST","RWDLP","Grantham and District Hospital - RWDLP",null,"RXK","WEST HERTFORDSHIRE HOSPITALS NHS TRUST",null,"RXK","WEST HERTFORDSHIRE HOSPITALS NHS TRUST","RNLXXX","North Middlesex Hospital - RAPNM"]
[null,null,null,null,null,null,null,null,null,null,null,null,null,null,null,null,null,null,null,null,"Q78","RWD","UNITED LINCOLNSHIRE HOSPITALS NHS TRUST","RWDDA","Lincoln County Hospital - RWDDA",null,"RXL","WEST SUFFOLK NHS FOUNDATION TRUST",null,"RXL","WEST SUFFOLK NHS FOUNDATION TRUST","RNQ51","Northampton General Hospital (Acute) - RNS01"]
[null,null,null,null,null,null,null,null,null,null,null,null,null,null,null,null,null,null,null,null,"Q78","RWD","UNITED LINCOLNSHIRE HOSPITALS NHS TRUST","RWDXXX","Non-hospital site - RWDXXX",null,"RXN","WESTERN SUSSEX HOSPITALS NHS FOUNDATION TRUST",null,"RXN","WESTERN SUSSEX HOSPITALS NHS FOUNDATION TRUST","RNS01","Northwick Park Hospital - R1K01"]
[null,null,null,null,null,null,null,null,null,null,null,null,null,null,null,null,null,null,null,null,"Q78","RWD","UNITED LINCOLNSHIRE HOSPITALS NHS TRUST","RWDLA","Pilgrim Hospital - RWDLA",null,"RXP","WESTON AREA HEALTH NHS TRUST",null,"RXP","WESTON AREA HEALTH NHS TRUST","RNZ02","Okehampton Community Hospital - RH833"]
[null,null,null,null,null,null,null,null,null,null,null,null,null,null,null,null,null,null,null,null,"Q78","RWE","UNIVERSITY HOSPITALS OF LEICESTER NHS TRUST","RWEAK","Leicester General Hospital - RWEAK",null,"RXQ","WIRRAL UNIVERSITY TEACHING HOSPITAL NHS FOUNDATION TRUST",null,"RXQ","WIRRAL UNIVERSITY TEACHING HOSPITAL NHS FOUNDATION TRUST","RP5BA","Paulton Memorial Hospital  - RD129"]
[null,null,null,null,null,null,null,null,null,null,null,null,null,null,null,null,null,null,null,null,"Q78","RWE","UNIVERSITY HOSPITALS OF LEICESTER NHS TRUST","RWEAA","Leicester Royal Infirmary - RWEAA",null,"RXR","WORCESTERSHIRE ACUTE HOSPITALS NHS TRUST",null,"RXR","WORCESTERSHIRE ACUTE HOSPITALS NHS TRUST","RP5DR","Peterborough City Hospital - RGN80"]
[null,null,null,null,null,null,null,null,null,null,null,null,null,null,null,null,null,null,null,null,"Q78","RWE","UNIVERSITY HOSPITALS OF LEICESTER NHS TRUST","RWEXXX","Non-hospital site - RWEXXX",null,"RXW","WRIGHTINGTON, WIGAN AND LEIGH NHS FOUNDATION TRUST",null,"RXW","WRIGHTINGTON, WIGAN AND LEIGH NHS FOUNDATION TRUST","RP5XXX","Petersfield Community Hospital - RHU04"]
[null,null,null,null,null,null,null,null,null,null,null,null,null,null,null,null,null,null,null,null,"Q78","RWG","WEST HERTFORDSHIRE HOSPITALS NHS TRUST","RWG03","St Albans City Hospital - RWG03",null,"RY2","WYE VALLEY NHS TRUST",null,"RY2","WYE VALLEY NHS TRUST","RPA02","Pilgrim Hospital - RWDLA"]
[null,null,null,null,null,null,null,null,null,null,null,null,null,null,null,null,null,null,null,null,"Q78","RWG","WEST HERTFORDSHIRE HOSPITALS NHS TRUST","RWG02","Watford General Hospital - RWG02",null,"RYJ","YEOVIL DISTRICT HOSPITAL NHS FOUNDATION TRUST",null,"RYJ","YEOVIL DISTRICT HOSPITAL NHS FOUNDATION TRUST","RQ370","Pinderfields General Hospital - RXF05"]
[null,null,null,null,null,null,null,null,null,null,null,null,null,null,null,null,null,null,null,null,"Q79","RDD","BASILDON AND THURROCK UNIVERSITY HOSPITALS NHS FOUNDATION TRUST","RDDH0","Basildon University Hospital - RDDH0",null,"RYR","YORK TEACHING HOSPITAL NHS FOUNDATION TRUST",null,"RYR","YORK TEACHING HOSPITAL NHS FOUNDATION TRUST","RQ8L0","Pontefract General Infirmary - RXF03"]
[null,null,null,null,null,null,null,null,null,null,null,null,null,null,null,null,null,null,null,null,"Q79","RGT","CAMBRIDGE UNIVERSITY HOSPITALS NHS FOUNDATION TRUST","RGT32","Rosie Hospital - RGT32",null,null,null,null,null,null,"RQM01","Poole General Hospital NHS Trust HQ - RD304"]
[null,null,null,null,null,null,null,null,null,null,null,null,null,null,null,null,null,null,null,null,"Q79","RDE","COLCHESTER HOSPITAL UNIVERSITY NHS FOUNDATION TRUST","RDEE2","Clacton and District Hospital - RDEE2",null,null,null,null,null,null,"RQM91","Princess Alexandra Hospital - RQWG0"]
[null,null,null,null,null,null,null,null,null,null,null,null,null,null,null,null,null,null,null,null,"Q79","RDE","COLCHESTER HOSPITAL UNIVERSITY NHS FOUNDATION TRUST","RDEE4","Colchester General Hospital - RDEE4",null,null,null,null,null,null,"RQWG0","Princess Anne Wing RUH  - RD130"]
[null,null,null,null,null,null,null,null,null,null,null,null,null,null,null,null,null,null,null,null,"Q79","RDE","COLCHESTER HOSPITAL UNIVERSITY NHS FOUNDATION TRUST","RDEEE","Harwich Maternity - RDEEE",null,null,null,null,null,null,"RQXM1","Princess Royal University Hospital - RJZ30"]
[null,null,null,null,null,null,null,null,null,null,null,null,null,null,null,null,null,null,null,null,"Q79","RDE","COLCHESTER HOSPITAL UNIVERSITY NHS FOUNDATION TRUST","RDEXXX","Non-hospital site - RDEXXX",null,null,null,null,null,null,"RR101","Queen Alexandra Hospital - RHU03"]
[null,null,null,null,null,null,null,null,null,null,null,null,null,null,null,null,null,null,null,null,"Q79","RGQ","IPSWICH HOSPITAL NHS TRUST","RGQ02","The Ipswich Hospital NHS Trust - RGQ02",null,null,null,null,null,null,"RR105","Queen Charlotte's Hospital - RYJ04"]
[null,null,null,null,null,null,null,null,null,null,null,null,null,null,null,null,null,null,null,null,"Q79","RGP","JAMES PAGET UNIVERSITY HOSPITALS NHS FOUNDATION TRUST","RGP75","James Paget University Hospital - RGP75",null,null,null,null,null,null,"RR109","Queen Elizabeth Hospital - RJ231"]
[null,null,null,null,null,null,null,null,null,null,null,null,null,null,null,null,null,null,null,null,"Q79","RQ8","MID ESSEX HOSPITAL SERVICES NHS TRUST","RQ8L0","Broomfield Hospital - RQ8L0",null,null,null,null,null,null,"RR7EN","Queen Elizabeth Hospital - RR7EN"]
[null,null,null,null,null,null,null,null,null,null,null,null,null,null,null,null,null,null,null,null,"Q79","RM1","NORFOLK AND NORWICH UNIVERSITY HOSPITALS NHS FOUNDATION TRUST","RM102","Norfolk and Norwich University Hospital - RM102",null,null,null,null,null,null,"RR801","Queen's Hospital - RF4QH"]
[null,null,null,null,null,null,null,null,null,null,null,null,null,null,null,null,null,null,null,null,"Q79","RGN","NORTH WEST ANGLIA NHS FOUNDATION TRUST","RGN90","Hinchingbrooke Hospital - RGN90",null,null,null,null,null,null,"RR813","Queen's Hospital, Burton Upon Trent - RJF02"]
[null,null,null,null,null,null,null,null,null,null,null,null,null,null,null,null,null,null,null,null,"Q79","RGN","NORTH WEST ANGLIA NHS FOUNDATION TRUST","RGN80","Peterborough City Hospital - RGN80",null,null,null,null,null,null,"RR8XXX","Rochdale Infirmary - RW604"]
[null,null,null,null,null,null,null,null,null,null,null,null,null,null,null,null,null,null,null,null,"Q79","RAJ","SOUTHEND UNIVERSITY HOSPITAL NHS FOUNDATION TRUST","RAJ01","Southend Hospital - RAJ01",null,null,null,null,null,null,"RRF02","Rosie Hospital - RGT32"]
[null,null,null,null,null,null,null,null,null,null,null,null,null,null,null,null,null,null,null,null,"Q79","RQW","THE PRINCESS ALEXANDRA HOSPITAL NHS TRUST","RQWG0","Princess Alexandra Hospital - RQWG0",null,null,null,null,null,null,"RRV03","Rotherham District General Hospital - RFRPA"]
[null,null,null,null,null,null,null,null,null,null,null,null,null,null,null,null,null,null,null,null,"Q79","RCX","THE QUEEN ELIZABETH HOSPITAL, KING'S LYNN, NHS FOUNDATION TRUST","RCXXXX","Non-hospital site - RCXXXX",null,null,null,null,null,null,"RTD02","Royal Albert Edward Infirmary - RRF02"]
[null,null,null,null,null,null,null,null,null,null,null,null,null,null,null,null,null,null,null,null,"Q79","RCX","THE QUEEN ELIZABETH HOSPITAL, KING'S LYNN, NHS FOUNDATION TRUST","RCX66","North Cambridgeshire Hospital - RCX66",null,null,null,null,null,null,"RTE01","Royal Berkshire Hospital - RHW01"]
[null,null,null,null,null,null,null,null,null,null,null,null,null,null,null,null,null,null,null,null,"Q79","RCX","THE QUEEN ELIZABETH HOSPITAL, KING'S LYNN, NHS FOUNDATION TRUST","RCX70","The Queen Elizabeth Hospital - RCX70",null,null,null,null,null,null,"RTE03","Royal Blackburn Hospital - RXR20"]
[null,null,null,null,null,null,null,null,null,null,null,null,null,null,null,null,null,null,null,null,"Q79","RGR","WEST SUFFOLK NHS FOUNDATION TRUST","RGR50","West Suffolk Hospital - RGR50",null,null,null,null,null,null,"RTEXXX","Royal Bolton Hospital - RMC01"]
[null,null,null,null,null,null,null,null,null,null,null,null,null,null,null,null,null,null,null,null,"Q80","RVJ","NORTH BRISTOL NHS TRUST","RVJ01","Southmead Hospital - RVJ01",null,null,null,null,null,null,"RTFXXX","Royal Bournemouth General Hospital - RDZ20"]
[null,null,null,null,null,null,null,null,null,null,null,null,null,null,null,null,null,null,null,null,"Q80","RBZ","NORTHERN DEVON HEALTHCARE NHS TRUST","RBZ12","North Devon District Hospital - RBZ12",null,null,null,null,null,null,"RTGFG","Royal Cornwall Hospital (Treliske) - REF12"]
[null,null,null,null,null,null,null,null,null,null,null,null,null,null,null,null,null,null,null,null,"Q80","RK9","PLYMOUTH HOSPITALS NHS TRUST","RK950","Derriford Hospital - RK950",null,null,null,null,null,null,"RTH08","Royal Derby Hospital - RTGFG"]
[null,null,null,null,null,null,null,null,null,null,null,null,null,null,null,null,null,null,null,null,"Q80","RK9","PLYMOUTH HOSPITALS NHS TRUST","RK9XXX","Non-hospital site - RK9XXX",null,null,null,null,null,null,"RTK02","Royal Devon and Exeter Hospital (Wonford) - RH801"]
[null,null,null,null,null,null,null,null,null,null,null,null,null,null,null,null,null,null,null,null,"Q80","REF","ROYAL CORNWALL HOSPITALS NHS TRUST","REF12","Royal Cornwall Hospital (Treliske) - REF12",null,null,null,null,null,null,"RTP04","Royal Free Hospital - RAL01"]
[null,null,null,null,null,null,null,null,null,null,null,null,null,null,null,null,null,null,null,null,"Q80","RH8","ROYAL DEVON AND EXETER NHS FOUNDATION TRUST","RH854","Honiton Hospital - RH 854",null,null,null,null,null,null,"RTRXXX","Royal Hallamshire Hospital - RHQHH"]
[null,null,null,null,null,null,null,null,null,null,null,null,null,null,null,null,null,null,null,null,"Q80","RH8","ROYAL DEVON AND EXETER NHS FOUNDATION TRUST","RH833","Okehampton Community Hospital - RH833",null,null,null,null,null,null,"RTX02","Royal Hampshire County Hospital - RN541"]
[null,null,null,null,null,null,null,null,null,null,null,null,null,null,null,null,null,null,null,null,"Q80","RH8","ROYAL DEVON AND EXETER NHS FOUNDATION TRUST","RH801","Royal Devon and Exeter Hospital (Wonford) - RH801",null,null,null,null,null,null,"RTXBU","Royal Lancaster Infirmary - RTX02"]
[null,null,null,null,null,null,null,null,null,null,null,null,null,null,null,null,null,null,null,null,"Q80","RH8","ROYAL DEVON AND EXETER NHS FOUNDATION TRUST","RH853","Tiverton and District Hospital - RH853",null,null,null,null,null,null,"RVJ01","Royal Oldham Hospital - RW603"]
[null,null,null,null,null,null,null,null,null,null,null,null,null,null,null,null,null,null,null,null,"Q80","RBA","TAUNTON AND SOMERSET NHS FOUNDATION TRUST","RBAC3","Bridgwater Hospital - RBAC3",null,null,null,null,null,null,"RVR05","Royal Preston Hospital - RXN02"]
[null,null,null,null,null,null,null,null,null,null,null,null,null,null,null,null,null,null,null,null,"Q80","RBA","TAUNTON AND SOMERSET NHS FOUNDATION TRUST","RBA11","Musgrove Park Hospital - RBA11",null,null,null,null,null,null,"RVR50","Royal Stoke University Hospital - RJE01"]
[null,null,null,null,null,null,null,null,null,null,null,null,null,null,null,null,null,null,null,null,"Q80","RBA","TAUNTON AND SOMERSET NHS FOUNDATION TRUST","RBAXXX","Non-hospital site - RBAXXX",null,null,null,null,null,null,"RVRXXX","Royal Surrey County Hospital - RA201"]
[null,null,null,null,null,null,null,null,null,null,null,null,null,null,null,null,null,null,null,null,"Q80","RA9","TORBAY AND SOUTH DEVON NHS FOUNDATION TRUST","RA901","Torbay Hospital - RA901",null,null,null,null,null,null,"RVVXXX","Russells Hall Hospital - RNA01"]
[null,null,null,null,null,null,null,null,null,null,null,null,null,null,null,null,null,null,null,null,"Q80","RA7","UNIVERSITY HOSPITALS BRISTOL NHS FOUNDATION TRUST","RA707","St Michael's Hospital - RA707",null,null,null,null,null,null,"RVWXXX","Salisbury District Hospital - RNZ02"]
[null,null,null,null,null,null,null,null,null,null,null,null,null,null,null,null,null,null,null,null,"Q80","RA3","WESTON AREA HEALTH NHS TRUST","RA301","Weston General Hospital - RA301",null,null,null,null,null,null,"RVYXXX","Sandwell General Hospital - RXK01"]
[null,null,null,null,null,null,null,null,null,null,null,null,null,null,null,null,null,null,null,null,"Q80","RA4","YEOVIL DISTRICT HOSPITAL NHS FOUNDATION TRUST","RA430","Yeovil District Hospital - RA430",null,null,null,null,null,null,"RW3SM","Scarborough General Hospital - RCBCA"]
[null,null,null,null,null,null,null,null,null,null,null,null,null,null,null,null,null,null,null,null,"Q81","RTK","ASHFORD AND ST PETER'S HOSPITALS NHS FOUNDATION TRUST","RTK02","Ashford Hospital - RTK02",null,null,null,null,null,null,"RW601","Scunthorpe General Hospital - RJL32"]
[null,null,null,null,null,null,null,null,null,null,null,null,null,null,null,null,null,null,null,null,"Q81","RXH","BRIGHTON AND SUSSEX UNIVERSITY HOSPITALS NHS TRUST","RXH07","Sussex Eye Hospital - RXH07",null,null,null,null,null,null,"RW603","Shepton Mallet Community Hospital  - RD167"]
[null,null,null,null,null,null,null,null,null,null,null,null,null,null,null,null,null,null,null,null,"Q81","RN7","DARTFORD AND GRAVESHAM NHS TRUST","RN707","Darent Valley Hospital - RN707",null,null,null,null,null,null,"RW604","Solihull Hospital - RR109"]
[null,null,null,null,null,null,null,null,null,null,null,null,null,null,null,null,null,null,null,null,"Q81","RVV","EAST KENT HOSPITALS UNIVERSITY NHS FOUNDATION TRUST","RVVXXX","Non-hospital site - RVVXXX",null,null,null,null,null,null,"RWA01","South Tyneside District Hospital - RE9GA"]
[null,null,null,null,null,null,null,null,null,null,null,null,null,null,null,null,null,null,null,null,"Q81","RXC","EAST SUSSEX HEALTHCARE NHS TRUST","RXC01","Conquest Hospital - RXC01",null,null,null,null,null,null,"RWDDA","Southampton General Hospital - RHM01"]
[null,null,null,null,null,null,null,null,null,null,null,null,null,null,null,null,null,null,null,null,"Q81","RXC","EAST SUSSEX HEALTHCARE NHS TRUST","RXC14","Crowborough Birthing Centre - RXC14",null,null,null,null,null,null,"RWDLA","Southend Hospital - RAJ01"]
[null,null,null,null,null,null,null,null,null,null,null,null,null,null,null,null,null,null,null,null,"Q81","RXC","EAST SUSSEX HEALTHCARE NHS TRUST","RXC02","Eastbourne District General Hospital - RXC02",null,null,null,null,null,null,"RWDLP","Southmead Hospital - RVJ01"]
[null,null,null,null,null,null,null,null,null,null,null,null,null,null,null,null,null,null,null,null,"Q81","RXC","EAST SUSSEX HEALTHCARE NHS TRUST","RXCXXX","Non-hospital site - RXCXXX",null,null,null,null,null,null,"RWDXXX","St Albans City Hospital - RWG03"]
[null,null,null,null,null,null,null,null,null,null,null,null,null,null,null,null,null,null,null,null,"Q81","RDU","FRIMLEY HEALTH NHS FOUNDATION TRUST","RDU01","Frimley Park Hospital - RDU01",null,null,null,null,null,null,"RWEAA","St George's Hospital (Tooting) - RJ701"]
[null,null,null,null,null,null,null,null,null,null,null,null,null,null,null,null,null,null,null,null,"Q81","RDU","FRIMLEY HEALTH NHS FOUNDATION TRUST","RDUXXX","Non-hospital site - RDUXXX",null,null,null,null,null,null,"RWEAK","St Helier Hospital - RVR05"]
[null,null,null,null,null,null,null,null,null,null,null,null,null,null,null,null,null,null,null,null,"Q81","RDU","FRIMLEY HEALTH NHS FOUNDATION TRUST","RDU50","Wexham Park Hospital - RDU50",null,null,null,null,null,null,"RWEXXX","St James's University Hospital - RR813"]
[null,null,null,null,null,null,null,null,null,null,null,null,null,null,null,null,null,null,null,null,"Q81","RWF","MAIDSTONE AND TUNBRIDGE WELLS NHS TRUST","RWF03","Maidstone District General Hospital - RWF03",null,null,null,null,null,null,"RWF03","St Mary's Hospital - R1F01"]
[null,null,null,null,null,null,null,null,null,null,null,null,null,null,null,null,null,null,null,null,"Q81","RWF","MAIDSTONE AND TUNBRIDGE WELLS NHS TRUST","RWFXXX","Non-hospital site - RWFXXX",null,null,null,null,null,null,"RWFTW","St Mary's Hospital - RHU02"]
[null,null,null,null,null,null,null,null,null,null,null,null,null,null,null,null,null,null,null,null,"Q81","RWF","MAIDSTONE AND TUNBRIDGE WELLS NHS TRUST","RWFTW","The Tunbridge Wells Hospital - RWFTW",null,null,null,null,null,null,"RWFXXX","St Mary's Hospital - RW3SM"]
[null,null,null,null,null,null,null,null,null,null,null,null,null,null,null,null,null,null,null,null,"Q81","RPA","MEDWAY NHS FOUNDATION TRUST","RPA02","Medway Maritime Hospital - RPA02",null,null,null,null,null,null,"RWG02","St Mary's Hospital (HQ) - RYJ01"]
[null,null,null,null,null,null,null,null,null,null,null,null,null,null,null,null,null,null,null,null,"Q81","RA2","ROYAL SURREY COUNTY HOSPITAL NHS FOUNDATION TRUST","RA201","Royal Surrey County Hospital - RA201",null,null,null,null,null,null,"RWG03","St Michael's Hospital - RA707"]
[null,null,null,null,null,null,null,null,null,null,null,null,null,null,null,null,null,null,null,null,"Q81","RTP","SURREY AND SUSSEX HEALTHCARE NHS TRUST","RTP04","East Surrey Hospital - RTP04",null,null,null,null,null,null,"RWH01","St Richard's Hospital - RYR16"]
[null,null,null,null,null,null,null,null,null,null,null,null,null,null,null,null,null,null,null,null,"Q81","RYR","WESTERN SUSSEX HOSPITALS NHS FOUNDATION TRUST","RYR16","St Richard's Hospital - RYR16",null,null,null,null,null,null,"RWHXXX","St Thomas' Hospital - RJ122"]
[null,null,null,null,null,null,null,null,null,null,null,null,null,null,null,null,null,null,null,null,"Q81","RYR","WESTERN SUSSEX HOSPITALS NHS FOUNDATION TRUST","RYR18","Worthing Hospital - RYR18",null,null,null,null,null,null,"RWJ09","Stepping Hill Hospital - RWJ09"]
[null,null,null,null,null,null,null,null,null,null,null,null,null,null,null,null,null,null,null,null,"Q82","RXQ","BUCKINGHAMSHIRE HEALTHCARE NHS TRUST","RXQ02","Stoke Mandeville Hospital - RXQ02",null,null,null,null,null,null,"RWP01","Stoke Mandeville Hospital - RXQ02"]
[null,null,null,null,null,null,null,null,null,null,null,null,null,null,null,null,null,null,null,null,"Q82","RTE","GLOUCESTERSHIRE HOSPITALS NHS FOUNDATION TRUST","RTE01","Cheltenham General Hospital - RTE01",null,null,null,null,null,null,"RWP31","Sunderland Royal Hospital - RLNGL"]
[null,null,null,null,null,null,null,null,null,null,null,null,null,null,null,null,null,null,null,null,"Q82","RTE","GLOUCESTERSHIRE HOSPITALS NHS FOUNDATION TRUST","RTE03","Gloucestershire Royal Hospital - RTE03",null,null,null,null,null,null,"RWP50","Sussex Eye Hospital - RXH07"]
[null,null,null,null,null,null,null,null,null,null,null,null,null,null,null,null,null,null,null,null,"Q82","RTE","GLOUCESTERSHIRE HOSPITALS NHS FOUNDATION TRUST","RTEXXX","Non-hospital site - RTEXXX",null,null,null,null,null,null,"RWWWH","Tameside General Hospital - RMP01"]
[null,null,null,null,null,null,null,null,null,null,null,null,null,null,null,null,null,null,null,null,"Q82","RN3","GREAT WESTERN HOSPITALS NHS FOUNDATION TRUST","RN3XXX","Non-hospital site - RN3XXX",null,null,null,null,null,null,"RWYXXX","The Great Western Hospital - RN325"]
[null,null,null,null,null,null,null,null,null,null,null,null,null,null,null,null,null,null,null,null,"Q82","RN3","GREAT WESTERN HOSPITALS NHS FOUNDATION TRUST","RN325","The Great Western Hospital - RN325",null,null,null,null,null,null,"RX1XXX","The Ipswich Hospital NHS Trust - RGQ02"]
[null,null,null,null,null,null,null,null,null,null,null,null,null,null,null,null,null,null,null,null,"Q82","RTH","OXFORD UNIVERSITY HOSPITALS NHS FOUNDATION TRUST","RTH08","John Radcliffe Hospital - RTH08",null,null,null,null,null,null,"RXC01","The Queen Elizabeth Hospital - RCX70"]
[null,null,null,null,null,null,null,null,null,null,null,null,null,null,null,null,null,null,null,null,"Q82","RHW","ROYAL BERKSHIRE NHS FOUNDATION TRUST","RHW01","Royal Berkshire Hospital - RHW01",null,null,null,null,null,null,"RXC02","The Royal London Hospital - R1H12"]
[null,null,null,null,null,null,null,null,null,null,null,null,null,null,null,null,null,null,null,null,"Q82","RD1","ROYAL UNITED HOSPITALS BATH NHS FOUNDATION TRUST","RD102","Chippenham Community Hospital -RD102",null,null,null,null,null,null,"RXC14","The Royal Victoria Infirmary - RTD02"]
[null,null,null,null,null,null,null,null,null,null,null,null,null,null,null,null,null,null,null,null,"Q82","RD1","ROYAL UNITED HOSPITALS BATH NHS FOUNDATION TRUST","RD121","Frome Community Hospital  - RD121",null,null,null,null,null,null,"RXCXXX","The Tunbridge Wells Hospital - RWFTW"]
[null,null,null,null,null,null,null,null,null,null,null,null,null,null,null,null,null,null,null,null,"Q82","RD1","ROYAL UNITED HOSPITALS BATH NHS FOUNDATION TRUST","RD129","Paulton Memorial Hospital  - RD129",null,null,null,null,null,null,"RXF03","The Whittington Hospital - RKEQ4"]
[null,null,null,null,null,null,null,null,null,null,null,null,null,null,null,null,null,null,null,null,"Q82","RD1","ROYAL UNITED HOSPITALS BATH NHS FOUNDATION TRUST","RD130","Princess Anne Wing RUH  - RD130",null,null,null,null,null,null,"RXF05","Tiverton and District Hospital - RH853"]
[null,null,null,null,null,null,null,null,null,null,null,null,null,null,null,null,null,null,null,null,"Q82","RD1","ROYAL UNITED HOSPITALS BATH NHS FOUNDATION TRUST","RD167","Shepton Mallet Community Hospital  - RD167",null,null,null,null,null,null,"RXF10","Torbay Hospital - RA901"]
[null,null,null,null,null,null,null,null,null,null,null,null,null,null,null,null,null,null,null,null,"Q82","RD1","ROYAL UNITED HOSPITALS BATH NHS FOUNDATION TRUST","RD108","Trowbridge Community Hospital  - RD108",null,null,null,null,null,null,"RXFXXX","Trowbridge Community Hospital  - RD108"]
[null,null,null,null,null,null,null,null,null,null,null,null,null,null,null,null,null,null,null,null,"Q82","RNZ","SALISBURY NHS FOUNDATION TRUST","RNZ02","Salisbury District Hospital - RNZ02",null,null,null,null,null,null,"RXH07","University College Hospital - RRV03"]
[null,null,null,null,null,null,null,null,null,null,null,null,null,null,null,null,null,null,null,null,"Q83","RMC","BOLTON NHS FOUNDATION TRUST","RMC01","Royal Bolton Hospital - RMC01",null,null,null,null,null,null,"RXK01","University Hospital (Coventry) - RKB01"]
[null,null,null,null,null,null,null,null,null,null,null,null,null,null,null,null,null,null,null,null,"Q83","RY2","BRIDGEWATER COMMUNITY HEALTHCARE NHS FOUNDATION TRUST","RY28P","Health Care Resource Centre - RY28P",null,null,null,null,null,null,"RXK02","University Hospital Lewisham - RJ224"]
[null,null,null,null,null,null,null,null,null,null,null,null,null,null,null,null,null,null,null,null,"Q83","RY2","BRIDGEWATER COMMUNITY HEALTHCARE NHS FOUNDATION TRUST","RY2XXX","Non-hospital site - RY2XXX",null,null,null,null,null,null,"RXL01","University Hospital Of North Durham - RXPCP"]
[null,null,null,null,null,null,null,null,null,null,null,null,null,null,null,null,null,null,null,null,"Q83","RW3","CENTRAL MANCHESTER UNIVERSITY HOSPITALS NHS FOUNDATION TRUST","RW3SM","St Mary's Hospital - RW3SM",null,null,null,null,null,null,"RXLXXX","Warrington Hospital - RWWWH"]
[null,null,null,null,null,null,null,null,null,null,null,null,null,null,null,null,null,null,null,null,"Q83","RW6","PENNINE ACUTE HOSPITALS NHS TRUST","RW601","Fairfield General Hospital - RW601",null,null,null,null,null,null,"RXN02","Watford General Hospital - RWG02"]
[null,null,null,null,null,null,null,null,null,null,null,null,null,null,null,null,null,null,null,null,"Q83","RW6","PENNINE ACUTE HOSPITALS NHS TRUST","RW604","Rochdale Infirmary - RW604",null,null,null,null,null,null,"RXPCP","West Middlesex University Hospital - RQM91"]
[null,null,null,null,null,null,null,null,null,null,null,null,null,null,null,null,null,null,null,null,"Q83","RW6","PENNINE ACUTE HOSPITALS NHS TRUST","RW603","Royal Oldham Hospital - RW603",null,null,null,null,null,null,"RXPDA","West Suffolk Hospital - RGR50"]
[null,null,null,null,null,null,null,null,null,null,null,null,null,null,null,null,null,null,null,null,"Q83","RWJ","STOCKPORT NHS FOUNDATION TRUST","RWJ09","Stepping Hill Hospital - RWJ09",null,null,null,null,null,null,"RXQ02","Weston General Hospital - RA301"]
[null,null,null,null,null,null,null,null,null,null,null,null,null,null,null,null,null,null,null,null,"Q83","RMP","TAMESIDE AND GLOSSOP INTEGRATED CARE NHS FOUNDATION TRUST","RMP01","Tameside General Hospital - RMP01",null,null,null,null,null,null,"RXR20","Wexham Park Hospital - RDU50"]
[null,null,null,null,null,null,null,null,null,null,null,null,null,null,null,null,null,null,null,null,"Q83","RM2","UNIVERSITY HOSPITAL OF SOUTH MANCHESTER NHS FOUNDATION TRUST","RM202","Wythenshawe Hospital - RM202",null,null,null,null,null,null,"RXWXXX","Whipps Cross University Hospital - R1HKH"]
[null,null,null,null,null,null,null,null,null,null,null,null,null,null,null,null,null,null,null,null,"Q83","RRF","WRIGHTINGTON, WIGAN AND LEIGH NHS FOUNDATION TRUST","RRF02","Royal Albert Edward Infirmary - RRF02",null,null,null,null,null,null,"RY28P","Whiston Hospital - RBN01"]
[null,null,null,null,null,null,null,null,null,null,null,null,null,null,null,null,null,null,null,null,"Q84","RXL","BLACKPOOL TEACHING HOSPITALS NHS FOUNDATION TRUST","RXL01","Blackpool Victoria Hospital - RXL01",null,null,null,null,null,null,"RY2XXX","Worcestershire Royal Hospital - RWP50"]
[null,null,null,null,null,null,null,null,null,null,null,null,null,null,null,null,null,null,null,null,"Q84","RXL","BLACKPOOL TEACHING HOSPITALS NHS FOUNDATION TRUST","RXLXXX","Non-hospital site - RXLXXX",null,null,null,null,null,null,"RYJ01","Worthing Hospital - RYR18"]
[null,null,null,null,null,null,null,null,null,null,null,null,null,null,null,null,null,null,null,null,"Q84","RXR","EAST LANCASHIRE HOSPITALS NHS TRUST","RXR20","Royal Blackburn Hospital - RXR20",null,null,null,null,null,null,"RYJ04","Wythenshawe Hospital - RM202"]
[null,null,null,null,null,null,null,null,null,null,null,null,null,null,null,null,null,null,null,null,"Q84","RXN","LANCASHIRE TEACHING HOSPITALS NHS FOUNDATION TRUST","RXN02","Royal Preston Hospital - RXN02",null,null,null,null,null,null,"RYR16","Yeovil District Hospital - RA430"]
[null,null,null,null,null,null,null,null,null,null,null,null,null,null,null,null,null,null,null,null,"zIS1","NDE","ONE TO ONE (NORTH WEST) LIMITED","NDEXXX","Non-hospital site - NDEXXX",null,null,null,null,null,null,"RYR18","York Hospital - RCB55"]

{"sheet":"BSQ2","index":14,"n_rows":250,"n_cols":33,"rows_kept":250,"cut":false,"hidden":true,"merged":[]}
[null,"Sort","Region (LO)","Region (LO)","Trusts","Trusts","Sites","Sites",null,"Sort ranges:","Sort range…","Sort range…","Sort range…","Reference Region List:","Code…","Name…","Linked Region List:","Code…","Name…","Reference Lists:","Code…","Code…","Name…","Code…","Name…","Trusts Linked Lists:","Code…","Name…","Site Linked Lists:","Code…","Name…","Code…","Name…"]
["Region (LO)",1,1,1,"-","-","-","-",null,null,"Region (LO) Code","Region (LO) Code","Region (LO) Code",null,"Q72","NHS England Yorkshire & Humber",null,"Q70","NHS England Central Midlands",null,"Q70","RBD","DORSET COUNTY HOSPITAL NHS FOUNDATION TRUST","RBD01","Dorset County Hospital - RBD01",null,"NDE","AIREDALE NHS FOUNDATION TRUST",null,"NDE","AIREDALE NHS FOUNDATION TRUST","NDEXXX","Airedale General Hospital - RCF22"]
["Trusts",1,1,1,1,1,"-","-",null,null,"Region (Local Office)","Trust Code","Trust Code",null,"Q74","NHS England Cumbria & North East",null,"Q71","NHS England Cheshire & Merseyside",null,"Q70","RN5","HAMPSHIRE HOSPITALS NHS FOUNDATION TRUST","RN542","Andover War Memorial Hospital - RN542",null,"R1F","ASHFORD AND ST PETER'S HOSPITALS NHS FOUNDATION TRUST",null,"R1F","ASHFORD AND ST PETER'S HOSPITALS NHS FOUNDATION TRUST","R1F01","Alnwick Infirmary - RTFDJ"]
["Sites",1,1,1,1,1,1,1,null,null,"Total Responses","Trust Name","Trust Name",null,"Q75","NHS England Cheshire & Merseyside",null,"Q72","NHS England Cumbria & North East",null,"Q70","RN5","HAMPSHIRE HOSPITALS NHS FOUNDATION TRUST","RN506","Basingstoke and North Hampshire Hospital - RN506",null,"R1H","BARKING, HAVERING AND REDBRIDGE UNIVERSITY HOSPITALS NHS TRUST",null,"R1H","BARKING, HAVERING AND REDBRIDGE UNIVERSITY HOSPITALS NHS TRUST","R1H12","Andover War Memorial Hospital - RN542"]
[null,null,null,null,null,null,null,null,null,null,"Total Eligible","Total Responses","Site Code",null,"Q83","NHS England Greater Manchester",null,"Q74","NHS England East",null,"Q70","RN5","HAMPSHIRE HOSPITALS NHS FOUNDATION TRUST","RN541","Royal Hampshire County Hospital - RN541",null,"R1K","BARNSLEY HOSPITAL NHS FOUNDATION TRUST",null,"R1K","BARNSLEY HOSPITAL NHS FOUNDATION TRUST","R1HKH","Arrowe Park Hospital - RBL14"]
[null,null,null,null,null,null,null,null,null,null,"Response Rate","Total Eligible","Site Name",null,"Q84","NHS England Lancashire",null,"Q75","NHS England Greater Manchester",null,"Q70","R1F","ISLE OF WIGHT NHS TRUST","R1F01","St Mary's Hospital - R1F01",null,"RA2","BARTS HEALTH NHS TRUST",null,"RA2","BARTS HEALTH NHS TRUST","R1HNH","Barnet Hospital - RAL26"]
[null,null,null,null,null,null,null,null,null,null,"Percentage Recommended","Response Rate","Total Responses",null,"Q76","NHS England North Midlands",null,"Q76","NHS England Lancashire",null,"Q70","RD3","POOLE HOSPITAL NHS FOUNDATION TRUST","RD304","Poole General Hospital NHS Trust HQ - RD304",null,"RA3","BASILDON AND THURROCK UNIVERSITY HOSPITALS NHS FOUNDATION TRUST",null,"RA3","BASILDON AND THURROCK UNIVERSITY HOSPITALS NHS FOUNDATION TRUST","R1K01","Barnsley Hospital NHS Foundation Trust HQ - RFFAA"]
[null,null,null,null,null,null,null,null,null,null,"Percentage Not  Recommended","Percentage Recommended","Total Eligible",null,"Q77","NHS England West Midlands",null,"Q77","NHS England London",null,"Q70","RHU","PORTSMOUTH HOSPITALS NHS TRUST","RHU10","Gosport War Memorial Hospital - RHU10",null,"RA4","BEDFORD HOSPITAL NHS TRUST",null,"RA4","BEDFORD HOSPITAL NHS TRUST","R1K04","Basildon University Hospital - RDDH0"]
[null,null,null,null,null,null,null,null,null,null,"Extremely Likely","Percentage Not  Recommended","Response Rate",null,"Q78","NHS England Central Midlands",null,"Q78","NHS England North Midlands",null,"Q70","RHU","PORTSMOUTH HOSPITALS NHS TRUST","RHU04","Petersfield Community Hospital - RHU04",null,"RA7","BIRMINGHAM WOMEN'S AND CHILDREN'S NHS FOUNDATION TRUST",null,"RA7","BIRMINGHAM WOMEN'S AND CHILDREN'S NHS FOUNDATION TRUST","R1KXXX","Basingstoke and North Hampshire Hospital - RN506"]
[null,null,null,null,null,null,null,null,null,null,"Likely","Extremely Likely","Percentage Recommended",null,"Q79","NHS England East",null,"Q79","NHS England South Central",null,"Q70","RHU","PORTSMOUTH HOSPITALS NHS TRUST","RHU03","Queen Alexandra Hospital - RHU03",null,"RA9","BLACKPOOL TEACHING HOSPITALS NHS FOUNDATION TRUST",null,"RA9","BLACKPOOL TEACHING HOSPITALS NHS FOUNDATION TRUST","RA201","Bassetlaw Hospital - RP5BA"]
[null,null,null,null,null,null,null,null,null,null,"Neither","Likely","Percentage Not  Recommended",null,"Q80","NHS England South West",null,"Q80","NHS England South East",null,"Q70","RHU","PORTSMOUTH HOSPITALS NHS TRUST","RHU02","St Mary's Hospital - RHU02",null,"RAE","BOLTON NHS FOUNDATION TRUST",null,"RAE","BOLTON NHS FOUNDATION TRUST","RA301","Bedford Hospital South Wing - RC110"]
[null,null,null,null,null,null,null,null,null,null,"Unlikely","Neither","Extremely Likely",null,"Q81","NHS England South East",null,"Q81","NHS England South West",null,"Q70","RDZ","THE ROYAL BOURNEMOUTH AND CHRISTCHURCH HOSPITALS NHS FOUNDATION TRUST","RDZ20","Royal Bournemouth General Hospital - RDZ20",null,"RAJ","BRADFORD TEACHING HOSPITALS NHS FOUNDATION TRUST",null,"RAJ","BRADFORD TEACHING HOSPITALS NHS FOUNDATION TRUST","RA430","Berwick Infirmary - RTFDH"]
[null,null,null,null,null,null,null,null,null,null,"Extremely Unlikely","Unlikely","Likely",null,"Q82","NHS England South Central",null,"Q82","NHS England Wessex",null,"Q70","RHM","UNIVERSITY HOSPITAL SOUTHAMPTON NHS FOUNDATION TRUST","RHM01","Southampton General Hospital - RHM01",null,"RAL","BRIDGEWATER COMMUNITY HEALTHCARE NHS FOUNDATION TRUST",null,"RAL","BRIDGEWATER COMMUNITY HEALTHCARE NHS FOUNDATION TRUST","RA707","Birmingham Women's Hospital - RQ370"]
[null,null,null,null,null,null,null,null,null,null,"Don't Know","Extremely Unlikely","Neither",null,"Q70","NHS England Wessex",null,"Q83","NHS England West Midlands",null,"Q71","RF4","BARKING, HAVERING AND REDBRIDGE UNIVERSITY HOSPITALS NHS TRUST","RF4QH","Queen's Hospital - RF4QH",null,"RAP","BRIGHTON AND SUSSEX UNIVERSITY HOSPITALS NHS TRUST",null,"RAP","BRIGHTON AND SUSSEX UNIVERSITY HOSPITALS NHS TRUST","RA901","Blackpool Victoria Hospital - RXL01"]
[null,null,null,null,null,null,null,null,null,null,null,"Don't Know","Unlikely",null,"Q71","NHS England London",null,"Q84","NHS England Yorkshire & Humber",null,"Q71","R1H","BARTS HEALTH NHS TRUST","R1HNH","Newham General Hospital - R1HNH",null,"RAS","BUCKINGHAMSHIRE HEALTHCARE NHS TRUST",null,"RAS","BUCKINGHAMSHIRE HEALTHCARE NHS TRUST","RA957","Bradford Royal Infirmary - RAE01"]
[null,null,null,null,null,null,null,null,null,null,null,"SMS/Text / Smartphone App","Extremely Unlikely",null,"zIS1","Independent Sector Provider",null,"zIS1","Independent Sector Provider",null,"Q71","R1H","BARTS HEALTH NHS TRUST","R1H12","The Royal London Hospital - R1H12",null,"RAX","BURTON HOSPITALS NHS FOUNDATION TRUST",null,"RAX","BURTON HOSPITALS NHS FOUNDATION TRUST","RA9XXX","Bridgnorth Hospital (Maternity) - RXWMB"]
[null,null,null,null,null,null,null,null,null,null,null,"Electronic tablet/kiosk at point of discharge","Don't Know",null,null,null,null,null,null,null,"Q71","R1H","BARTS HEALTH NHS TRUST","R1HKH","Whipps Cross University Hospital - R1HKH",null,"RBA","CALDERDALE AND HUDDERSFIELD NHS FOUNDATION TRUST",null,"RBA","CALDERDALE AND HUDDERSFIELD NHS FOUNDATION TRUST","RAE01","Bridgwater Hospital - RBAC3"]
[null,null,null,null,null,null,null,null,null,null,null,"Paper / postcard at point of discharge",null,null,null,null,null,null,null,null,"Q71","RQM","CHELSEA AND WESTMINSTER HOSPITAL NHS FOUNDATION TRUST","RQM01","Chelsea and Westminster Hospital - RQM01",null,"RBD","CAMBRIDGE UNIVERSITY HOSPITALS NHS FOUNDATION TRUST",null,"RBD","CAMBRIDGE UNIVERSITY HOSPITALS NHS FOUNDATION TRUST","RAJ01","Broomfield Hospital - RQ8L0"]
[null,null,null,null,null,null,null,null,null,null,null,"Paper survey, sent to the patients home",null,null,null,null,null,null,null,null,"Q71","RQM","CHELSEA AND WESTMINSTER HOSPITAL NHS FOUNDATION TRUST","RQM91","West Middlesex University Hospital - RQM91",null,"RBK","CENTRAL MANCHESTER UNIVERSITY HOSPITALS NHS FOUNDATION TRUST",null,"RBK","CENTRAL MANCHESTER UNIVERSITY HOSPITALS NHS FOUNDATION TRUST","RAL01","Calderdale Royal Hospital - RWY02"]
[null,null,null,null,null,null,null,null,null,null,null,"Telephone survey once patient is home",null,null,null,null,null,null,null,null,"Q71","RJ6","CROYDON HEALTH SERVICES NHS TRUST","RJ611","Croydon University Hospital - RJ611",null,"RBL","CHELSEA AND WESTMINSTER HOSPITAL NHS FOUNDATION TRUST",null,"RBL","CHELSEA AND WESTMINSTER HOSPITAL NHS FOUNDATION TRUST","RAL26","Chelsea and Westminster Hospital - RQM01"]
[null,null,null,null,null,null,null,null,null,null,null,"Online survey once patient is home",null,null,null,null,null,null,null,null,"Q71","RVR","EPSOM AND ST HELIER UNIVERSITY HOSPITALS NHS TRUST","RVR50","Epsom Hospital - RVR50",null,"RBN","CHESTERFIELD ROYAL HOSPITAL NHS FOUNDATION TRUST",null,"RBN","CHESTERFIELD ROYAL HOSPITAL NHS FOUNDATION TRUST","RAPNM","Cheltenham General Hospital - RTE01"]
[null,null,null,null,null,null,null,null,null,null,null,"Other",null,null,null,null,null,null,null,null,"Q71","RVR","EPSOM AND ST HELIER UNIVERSITY HOSPITALS NHS TRUST","RVRXXX","Non-hospital site - RVRXXX",null,"RBT","CITY HOSPITALS SUNDERLAND NHS FOUNDATION TRUST",null,"RBT","CITY HOSPITALS SUNDERLAND NHS FOUNDATION TRUST","RAS01","Chesterfield Royal Hospital - RFSDA"]
[null,null,null,null,null,null,null,null,null,null,null,null,null,null,null,null,null,null,null,null,"Q71","RVR","EPSOM AND ST HELIER UNIVERSITY HOSPITALS NHS TRUST","RVR05","St Helier Hospital - RVR05",null,"RBZ","COLCHESTER HOSPITAL UNIVERSITY NHS FOUNDATION TRUST",null,"RBZ","COLCHESTER HOSPITAL UNIVERSITY NHS FOUNDATION TRUST","RASXXX","Chippenham Community Hospital -RD102"]
[null,null,null,null,null,null,null,null,null,null,null,null,null,null,null,null,null,null,null,null,"Q71","RJ1","GUY'S AND ST THOMAS' NHS FOUNDATION TRUST","RJ1XXX","Non-hospital site - RJ1XXX",null,"RC1","COUNTESS OF CHESTER HOSPITAL NHS FOUNDATION TRUST",null,"RC1","COUNTESS OF CHESTER HOSPITAL NHS FOUNDATION TRUST","RAX01","Chipping Norton Community Hospital - RTH19"]
[null,null,null,null,null,null,null,null,null,null,null,null,null,null,null,null,null,null,null,null,"Q71","RJ1","GUY'S AND ST THOMAS' NHS FOUNDATION TRUST","RJ122","St Thomas' Hospital - RJ122",null,"RC9","COUNTY DURHAM AND DARLINGTON NHS FOUNDATION TRUST",null,"RC9","COUNTY DURHAM AND DARLINGTON NHS FOUNDATION TRUST","RBA11","Chorley and South Ribble Hospital - RXN01"]
[null,null,null,null,null,null,null,null,null,null,null,null,null,null,null,null,null,null,null,null,"Q71","RQX","HOMERTON UNIVERSITY HOSPITAL NHS FOUNDATION TRUST","RQXM1","Homerton University Hospital - RQXM1",null,"RCB","CROYDON HEALTH SERVICES NHS TRUST",null,"RCB","CROYDON HEALTH SERVICES NHS TRUST","RBAC3","City Hospital - RXK02"]
[null,null,null,null,null,null,null,null,null,null,null,null,null,null,null,null,null,null,null,null,"Q71","RYJ","IMPERIAL COLLEGE HEALTHCARE NHS TRUST","RYJ04","Queen Charlotte's Hospital - RYJ04",null,"RCD","DARTFORD AND GRAVESHAM NHS TRUST",null,"RCD","DARTFORD AND GRAVESHAM NHS TRUST","RBAXXX","Clacton and District Hospital - RDEE2"]
[null,null,null,null,null,null,null,null,null,null,null,null,null,null,null,null,null,null,null,null,"Q71","RYJ","IMPERIAL COLLEGE HEALTHCARE NHS TRUST","RYJ01","St Mary's Hospital (HQ) - RYJ01",null,"RCF","DERBY TEACHING HOSPITALS NHS FOUNDATION TRUST",null,"RCF","DERBY TEACHING HOSPITALS NHS FOUNDATION TRUST","RBD01","Colchester General Hospital - RDEE4"]
[null,null,null,null,null,null,null,null,null,null,null,null,null,null,null,null,null,null,null,null,"Q71","RJZ","KING'S COLLEGE HOSPITAL NHS FOUNDATION TRUST","RJZ01","King's College Hospital (Denmark Hill) - RJZ01",null,"RCX","DONCASTER AND BASSETLAW TEACHING HOSPITALS NHS FOUNDATION TRUST",null,"RCX","DONCASTER AND BASSETLAW TEACHING HOSPITALS NHS FOUNDATION TRUST","RBK02","Conquest Hospital - RXC01"]
[null,null,null,null,null,null,null,null,null,null,null,null,null,null,null,null,null,null,null,null,"Q71","RJZ","KING'S COLLEGE HOSPITAL NHS FOUNDATION TRUST","RJZ30","Princess Royal University Hospital - RJZ30",null,"RD1","DORSET COUNTY HOSPITAL NHS FOUNDATION TRUST",null,"RD1","DORSET COUNTY HOSPITAL NHS FOUNDATION TRUST","RBL14","Cossham Hospital - RVJ21"]
[null,null,null,null,null,null,null,null,null,null,null,null,null,null,null,null,null,null,null,null,"Q71","RAX","KINGSTON HOSPITAL NHS FOUNDATION TRUST","RAX01","Kingston Hospital - RAX01",null,"RD3","EAST AND NORTH HERTFORDSHIRE NHS TRUST",null,"RD3","EAST AND NORTH HERTFORDSHIRE NHS TRUST","RBN01","Countess Of Chester Hospital - RJR05"]
[null,null,null,null,null,null,null,null,null,null,null,null,null,null,null,null,null,null,null,null,"Q71","RJ2","LEWISHAM AND GREENWICH NHS TRUST","RJ2XXX","Non-hospital site - RJ2XXX",null,"RD8","EAST CHESHIRE NHS TRUST",null,"RD8","EAST CHESHIRE NHS TRUST","RBT20","County Hospital - RJE09"]
[null,null,null,null,null,null,null,null,null,null,null,null,null,null,null,null,null,null,null,null,"Q71","RJ2","LEWISHAM AND GREENWICH NHS TRUST","RJ231","Queen Elizabeth Hospital - RJ231",null,"RDD","EAST KENT HOSPITALS UNIVERSITY NHS FOUNDATION TRUST",null,"RDD","EAST KENT HOSPITALS UNIVERSITY NHS FOUNDATION TRUST","RBZ12","Croydon University Hospital - RJ611"]
[null,null,null,null,null,null,null,null,null,null,null,null,null,null,null,null,null,null,null,null,"Q71","RJ2","LEWISHAM AND GREENWICH NHS TRUST","RJ224","University Hospital Lewisham - RJ224",null,"RDE","EAST LANCASHIRE HOSPITALS NHS TRUST",null,"RDE","EAST LANCASHIRE HOSPITALS NHS TRUST","RC110","Cumberland Infirmary - RNLAY"]
[null,null,null,null,null,null,null,null,null,null,null,null,null,null,null,null,null,null,null,null,"Q71","R1K","LONDON NORTH WEST HEALTHCARE NHS TRUST","R1K04","Ealing Hospital - R1K04",null,"RDU","EAST SUSSEX HEALTHCARE NHS TRUST",null,"RDU","EAST SUSSEX HEALTHCARE NHS TRUST","RC971","Darent Valley Hospital - RN707"]
[null,null,null,null,null,null,null,null,null,null,null,null,null,null,null,null,null,null,null,null,"Q71","R1K","LONDON NORTH WEST HEALTHCARE NHS TRUST","R1KXXX","Non-hospital site - R1KXXX",null,"RDZ","EPSOM AND ST HELIER UNIVERSITY HOSPITALS NHS TRUST",null,"RDZ","EPSOM AND ST HELIER UNIVERSITY HOSPITALS NHS TRUST","RCB55","Darlington Memorial Hospital - RXPDA"]
[null,null,null,null,null,null,null,null,null,null,null,null,null,null,null,null,null,null,null,null,"Q71","R1K","LONDON NORTH WEST HEALTHCARE NHS TRUST","R1K01","Northwick Park Hospital - R1K01",null,"RE9","FRIMLEY HEALTH NHS FOUNDATION TRUST",null,"RE9","FRIMLEY HEALTH NHS FOUNDATION TRUST","RCBCA","Derriford Hospital - RK950"]
[null,null,null,null,null,null,null,null,null,null,null,null,null,null,null,null,null,null,null,null,"Q71","RAP","NORTH MIDDLESEX UNIVERSITY HOSPITAL NHS TRUST","RAPNM","North Middlesex Hospital - RAPNM",null,"REF","GATESHEAD HEALTH NHS FOUNDATION TRUST",null,"REF","GATESHEAD HEALTH NHS FOUNDATION TRUST","RCD01","Dewsbury and District Hospital - RXF10"]
[null,null,null,null,null,null,null,null,null,null,null,null,null,null,null,null,null,null,null,null,"Q71","RAL","ROYAL FREE LONDON NHS FOUNDATION TRUST","RAL26","Barnet Hospital - RAL26",null,"REP","GEORGE ELIOT HOSPITAL NHS TRUST",null,"REP","GEORGE ELIOT HOSPITAL NHS TRUST","RCF22","Diana, Princess Of Wales Hospital - RJL30"]
[null,null,null,null,null,null,null,null,null,null,null,null,null,null,null,null,null,null,null,null,"Q71","RAL","ROYAL FREE LONDON NHS FOUNDATION TRUST","RAL01","Royal Free Hospital - RAL01",null,"RF4","GLOUCESTERSHIRE HOSPITALS NHS FOUNDATION TRUST",null,"RF4","GLOUCESTERSHIRE HOSPITALS NHS FOUNDATION TRUST","RCX70","Doncaster Royal Infirmary - RP5DR"]
[null,null,null,null,null,null,null,null,null,null,null,null,null,null,null,null,null,null,null,null,"Q71","RJ7","ST GEORGE'S UNIVERSITY HOSPITALS NHS FOUNDATION TRUST","RJ7XXX","Non-hospital site - RJ7XXX",null,"RFF","GREAT WESTERN HOSPITALS NHS FOUNDATION TRUST",null,"RFF","GREAT WESTERN HOSPITALS NHS FOUNDATION TRUST","RCXXXX","Dorset County Hospital - RBD01"]
[null,null,null,null,null,null,null,null,null,null,null,null,null,null,null,null,null,null,null,null,"Q71","RJ7","ST GEORGE'S UNIVERSITY HOSPITALS NHS FOUNDATION TRUST","RJ701","St George's Hospital (Tooting) - RJ701",null,"RFR","GUY'S AND ST THOMAS' NHS FOUNDATION TRUST",null,"RFR","GUY'S AND ST THOMAS' NHS FOUNDATION TRUST","RD102","Ealing Hospital - R1K04"]
[null,null,null,null,null,null,null,null,null,null,null,null,null,null,null,null,null,null,null,null,"Q71","RAS","THE HILLINGDON HOSPITALS NHS FOUNDATION TRUST","RAS01","Hillingdon Hospital - RAS01",null,"RFS","HAMPSHIRE HOSPITALS NHS FOUNDATION TRUST",null,"RFS","HAMPSHIRE HOSPITALS NHS FOUNDATION TRUST","RD108","East Surrey Hospital - RTP04"]
[null,null,null,null,null,null,null,null,null,null,null,null,null,null,null,null,null,null,null,null,"Q71","RAS","THE HILLINGDON HOSPITALS NHS FOUNDATION TRUST","RASXXX","Non-hospital site - RASXXX",null,"RGN","HARROGATE AND DISTRICT NHS FOUNDATION TRUST",null,"RGN","HARROGATE AND DISTRICT NHS FOUNDATION TRUST","RD121","Eastbourne District General Hospital - RXC02"]
[null,null,null,null,null,null,null,null,null,null,null,null,null,null,null,null,null,null,null,null,"Q71","RKE","THE WHITTINGTON HOSPITAL NHS TRUST","RKEXXX","Non-hospital site - RKEXXX",null,"RGP","HEART OF ENGLAND NHS FOUNDATION TRUST",null,"RGP","HEART OF ENGLAND NHS FOUNDATION TRUST","RD129","Epsom Hospital - RVR50"]
[null,null,null,null,null,null,null,null,null,null,null,null,null,null,null,null,null,null,null,null,"Q71","RKE","THE WHITTINGTON HOSPITAL NHS TRUST","RKEQ4","The Whittington Hospital - RKEQ4",null,"RGQ","HOMERTON UNIVERSITY HOSPITAL NHS FOUNDATION TRUST",null,"RGQ","HOMERTON UNIVERSITY HOSPITAL NHS FOUNDATION TRUST","RD130","Friarage Hospital Site - RTR45"]
[null,null,null,null,null,null,null,null,null,null,null,null,null,null,null,null,null,null,null,null,"Q71","RRV","UNIVERSITY COLLEGE LONDON HOSPITALS NHS FOUNDATION TRUST","RRV03","University College Hospital - RRV03",null,"RGR","HULL AND EAST YORKSHIRE HOSPITALS NHS TRUST",null,"RGR","HULL AND EAST YORKSHIRE HOSPITALS NHS TRUST","RD1XXX","Frimley Park Hospital - RDU01"]
[null,null,null,null,null,null,null,null,null,null,null,null,null,null,null,null,null,null,null,null,"Q72","RCF","AIREDALE NHS FOUNDATION TRUST","RCF22","Airedale General Hospital - RCF22",null,"RGT","IMPERIAL COLLEGE HEALTHCARE NHS TRUST",null,"RGT","IMPERIAL COLLEGE HEALTHCARE NHS TRUST","RD304","Frome Community Hospital  - RD121"]
[null,null,null,null,null,null,null,null,null,null,null,null,null,null,null,null,null,null,null,null,"Q72","RFF","BARNSLEY HOSPITAL NHS FOUNDATION TRUST","RFFAA","Barnsley Hospital NHS Foundation Trust HQ - RFFAA",null,"RH8","IPSWICH HOSPITAL NHS TRUST",null,"RH8","IPSWICH HOSPITAL NHS TRUST","RD816","Furness General Hospital - RTXBU"]
[null,null,null,null,null,null,null,null,null,null,null,null,null,null,null,null,null,null,null,null,"Q72","RAE","BRADFORD TEACHING HOSPITALS NHS FOUNDATION TRUST","RAE01","Bradford Royal Infirmary - RAE01",null,"RHM","ISLE OF WIGHT NHS TRUST",null,"RHM","ISLE OF WIGHT NHS TRUST","RDDH0","George Eliot Hospital - Acute Services - RLT01"]
[null,null,null,null,null,null,null,null,null,null,null,null,null,null,null,null,null,null,null,null,"Q72","RWY","CALDERDALE AND HUDDERSFIELD NHS FOUNDATION TRUST","RWY02","Calderdale Royal Hospital - RWY02",null,"RHQ","JAMES PAGET UNIVERSITY HOSPITALS NHS FOUNDATION TRUST",null,"RHQ","JAMES PAGET UNIVERSITY HOSPITALS NHS FOUNDATION TRUST","RDEE2","Gloucestershire Royal Hospital - RTE03"]
[null,null,null,null,null,null,null,null,null,null,null,null,null,null,null,null,null,null,null,null,"Q72","RWY","CALDERDALE AND HUDDERSFIELD NHS FOUNDATION TRUST","RWY01","Huddersfield Royal Infirmary - RWY01",null,"RHU","KETTERING GENERAL HOSPITAL NHS FOUNDATION TRUST",null,"RHU","KETTERING GENERAL HOSPITAL NHS FOUNDATION TRUST","RDEE4","Good Hope Hospital - RR105"]
[null,null,null,null,null,null,null,null,null,null,null,null,null,null,null,null,null,null,null,null,"Q72","RWY","CALDERDALE AND HUDDERSFIELD NHS FOUNDATION TRUST","RWYXXX","Non-hospital site - RWYXXX",null,"RHW","KING'S COLLEGE HOSPITAL NHS FOUNDATION TRUST",null,"RHW","KING'S COLLEGE HOSPITAL NHS FOUNDATION TRUST","RDEEE","Gosport War Memorial Hospital - RHU10"]
[null,null,null,null,null,null,null,null,null,null,null,null,null,null,null,null,null,null,null,null,"Q72","RP5","DONCASTER AND BASSETLAW TEACHING HOSPITALS NHS FOUNDATION TRUST","RP5BA","Bassetlaw Hospital - RP5BA",null,"RJ1","KINGSTON HOSPITAL NHS FOUNDATION TRUST",null,"RJ1","KINGSTON HOSPITAL NHS FOUNDATION TRUST","RDEXXX","Grantham and District Hospital - RWDLP"]
[null,null,null,null,null,null,null,null,null,null,null,null,null,null,null,null,null,null,null,null,"Q72","RP5","DONCASTER AND BASSETLAW TEACHING HOSPITALS NHS FOUNDATION TRUST","RP5DR","Doncaster Royal Infirmary - RP5DR",null,"RJ2","LANCASHIRE TEACHING HOSPITALS NHS FOUNDATION TRUST",null,"RJ2","LANCASHIRE TEACHING HOSPITALS NHS FOUNDATION TRUST","RDU01","Harrogate District Hospital - RCD01"]
[null,null,null,null,null,null,null,null,null,null,null,null,null,null,null,null,null,null,null,null,"Q72","RP5","DONCASTER AND BASSETLAW TEACHING HOSPITALS NHS FOUNDATION TRUST","RP5XXX","Non-hospital site - RP5XXX",null,"RJ6","LEEDS TEACHING HOSPITALS NHS TRUST",null,"RJ6","LEEDS TEACHING HOSPITALS NHS TRUST","RDU50","Harwich Maternity - RDEEE"]
[null,null,null,null,null,null,null,null,null,null,null,null,null,null,null,null,null,null,null,null,"Q72","RCD","HARROGATE AND DISTRICT NHS FOUNDATION TRUST","RCD01","Harrogate District Hospital - RCD01",null,"RJ7","LEWISHAM AND GREENWICH NHS TRUST",null,"RJ7","LEWISHAM AND GREENWICH NHS TRUST","RDUXXX","Health Care Resource Centre - RY28P"]
[null,null,null,null,null,null,null,null,null,null,null,null,null,null,null,null,null,null,null,null,"Q72","RWA","HULL AND EAST YORKSHIRE HOSPITALS NHS TRUST","RWA01","Hull Royal Infirmary - RWA01",null,"RJC","LIVERPOOL WOMEN'S NHS FOUNDATION TRUST",null,"RJC","LIVERPOOL WOMEN'S NHS FOUNDATION TRUST","RDZ20","Heartlands Hospital - RR101"]
[null,null,null,null,null,null,null,null,null,null,null,null,null,null,null,null,null,null,null,null,"Q72","RR8","LEEDS TEACHING HOSPITALS NHS TRUST","RR801","Leeds General Infirmary - RR801",null,"RJE","LONDON NORTH WEST HEALTHCARE NHS TRUST",null,"RJE","LONDON NORTH WEST HEALTHCARE NHS TRUST","RE9GA","Hereford County Hospital - RLQ01"]
[null,null,null,null,null,null,null,null,null,null,null,null,null,null,null,null,null,null,null,null,"Q72","RR8","LEEDS TEACHING HOSPITALS NHS TRUST","RR8XXX","Non-Hospital Site - RR8XXX",null,"RJF","LUTON AND DUNSTABLE UNIVERSITY HOSPITAL NHS FOUNDATION TRUST",null,"RJF","LUTON AND DUNSTABLE UNIVERSITY HOSPITAL NHS FOUNDATION TRUST","REF12","Hexham General Hospital - RTFDR"]
[null,null,null,null,null,null,null,null,null,null,null,null,null,null,null,null,null,null,null,null,"Q72","RR8","LEEDS TEACHING HOSPITALS NHS TRUST","RR813","St James's University Hospital - RR813",null,"RJL","MAIDSTONE AND TUNBRIDGE WELLS NHS TRUST",null,"RJL","MAIDSTONE AND TUNBRIDGE WELLS NHS TRUST","REFXXX","Hillingdon Hospital - RAS01"]
[null,null,null,null,null,null,null,null,null,null,null,null,null,null,null,null,null,null,null,null,"Q72","RXF","MID YORKSHIRE HOSPITALS NHS TRUST","RXF10","Dewsbury and District Hospital - RXF10",null,"RJN","MEDWAY NHS FOUNDATION TRUST",null,"RJN","MEDWAY NHS FOUNDATION TRUST","REP01","Hinchingbrooke Hospital - RGN90"]
[null,null,null,null,null,null,null,null,null,null,null,null,null,null,null,null,null,null,null,null,"Q72","RXF","MID YORKSHIRE HOSPITALS NHS TRUST","RXFXXX","Non-hospital site - RXFXXX",null,"RJR","MID CHESHIRE HOSPITALS NHS FOUNDATION TRUST",null,"RJR","MID CHESHIRE HOSPITALS NHS FOUNDATION TRUST","RF4QH","Homerton University Hospital - RQXM1"]
[null,null,null,null,null,null,null,null,null,null,null,null,null,null,null,null,null,null,null,null,"Q72","RXF","MID YORKSHIRE HOSPITALS NHS TRUST","RXF05","Pinderfields General Hospital - RXF05",null,"RJZ","MID ESSEX HOSPITAL SERVICES NHS TRUST",null,"RJZ","MID ESSEX HOSPITAL SERVICES NHS TRUST","RFFAA","Honiton Hospital - RH 854"]
[null,null,null,null,null,null,null,null,null,null,null,null,null,null,null,null,null,null,null,null,"Q72","RXF","MID YORKSHIRE HOSPITALS NHS TRUST","RXF03","Pontefract General Infirmary - RXF03",null,"RK5","MID YORKSHIRE HOSPITALS NHS TRUST",null,"RK5","MID YORKSHIRE HOSPITALS NHS TRUST","RFRPA","Horton General Hospital - RTH05"]
[null,null,null,null,null,null,null,null,null,null,null,null,null,null,null,null,null,null,null,null,"Q72","RJL","NORTHERN LINCOLNSHIRE AND GOOLE NHS FOUNDATION TRUST","RJL30","Diana, Princess Of Wales Hospital - RJL30",null,"RK9","MILTON KEYNES UNIVERSITY HOSPITAL NHS FOUNDATION TRUST",null,"RK9","MILTON KEYNES UNIVERSITY HOSPITAL NHS FOUNDATION TRUST","RFSDA","Hospital Of St Cross - RKB03"]
[null,null,null,null,null,null,null,null,null,null,null,null,null,null,null,null,null,null,null,null,"Q72","RJL","NORTHERN LINCOLNSHIRE AND GOOLE NHS FOUNDATION TRUST","RJL32","Scunthorpe General Hospital - RJL32",null,"RKB","NORFOLK AND NORWICH UNIVERSITY HOSPITALS NHS FOUNDATION TRUST",null,"RKB","NORFOLK AND NORWICH UNIVERSITY HOSPITALS NHS FOUNDATION TRUST","RGN80","Huddersfield Royal Infirmary - RWY01"]
[null,null,null,null,null,null,null,null,null,null,null,null,null,null,null,null,null,null,null,null,"Q72","RHQ","SHEFFIELD TEACHING HOSPITALS NHS FOUNDATION TRUST","RHQHH","Royal Hallamshire Hospital - RHQHH",null,"RKE","NORTH BRISTOL NHS TRUST",null,"RKE","NORTH BRISTOL NHS TRUST","RGN90","Hull Royal Infirmary - RWA01"]
[null,null,null,null,null,null,null,null,null,null,null,null,null,null,null,null,null,null,null,null,"Q72","RFR","THE ROTHERHAM NHS FOUNDATION TRUST","RFRPA","Rotherham District General Hospital - RFRPA",null,"RL4","NORTH CUMBRIA UNIVERSITY HOSPITALS NHS TRUST",null,"RL4","NORTH CUMBRIA UNIVERSITY HOSPITALS NHS TRUST","RGP75","James Paget University Hospital - RGP75"]
[null,null,null,null,null,null,null,null,null,null,null,null,null,null,null,null,null,null,null,null,"Q72","RCB","YORK TEACHING HOSPITAL NHS FOUNDATION TRUST","RCBCA","Scarborough General Hospital - RCBCA",null,"RLN","NORTH MIDDLESEX UNIVERSITY HOSPITAL NHS TRUST",null,"RLN","NORTH MIDDLESEX UNIVERSITY HOSPITAL NHS TRUST","RGQ02","John Radcliffe Hospital - RTH08"]
[null,null,null,null,null,null,null,null,null,null,null,null,null,null,null,null,null,null,null,null,"Q72","RCB","YORK TEACHING HOSPITAL NHS FOUNDATION TRUST","RCB55","York Hospital - RCB55",null,"RLQ","NORTH TEES AND HARTLEPOOL NHS FOUNDATION TRUST",null,"RLQ","NORTH TEES AND HARTLEPOOL NHS FOUNDATION TRUST","RGR50","Kettering General Hospital - RNQ51"]
[null,null,null,null,null,null,null,null,null,null,null,null,null,null,null,null,null,null,null,null,"Q74","RLN","CITY HOSPITALS SUNDERLAND NHS FOUNDATION TRUST","RLNGL","Sunderland Royal Hospital - RLNGL",null,"RLT","NORTH WEST ANGLIA NHS FOUNDATION TRUST",null,"RLT","NORTH WEST ANGLIA NHS FOUNDATION TRUST","RGT32","King's College Hospital (Denmark Hill) - RJZ01"]
[null,null,null,null,null,null,null,null,null,null,null,null,null,null,null,null,null,null,null,null,"Q74","RXP","COUNTY DURHAM AND DARLINGTON NHS FOUNDATION TRUST","RXPDA","Darlington Memorial Hospital - RXPDA",null,"RM1","NORTHAMPTON GENERAL HOSPITAL NHS TRUST",null,"RM1","NORTHAMPTON GENERAL HOSPITAL NHS TRUST","RH801","King's Mill Hospital - RK5BC"]
[null,null,null,null,null,null,null,null,null,null,null,null,null,null,null,null,null,null,null,null,"Q74","RXP","COUNTY DURHAM AND DARLINGTON NHS FOUNDATION TRUST","RXPXXX","Non-hospital site - RXPXXX",null,"RM2","NORTHERN DEVON HEALTHCARE NHS TRUST",null,"RM2","NORTHERN DEVON HEALTHCARE NHS TRUST","RH833","Kingston Hospital - RAX01"]
[null,null,null,null,null,null,null,null,null,null,null,null,null,null,null,null,null,null,null,null,"Q74","RXP","COUNTY DURHAM AND DARLINGTON NHS FOUNDATION TRUST","RXPCP","University Hospital Of North Durham - RXPCP",null,"RMC","NORTHERN LINCOLNSHIRE AND GOOLE NHS FOUNDATION TRUST",null,"RMC","NORTHERN LINCOLNSHIRE AND GOOLE NHS FOUNDATION TRUST","RH853","Leeds General Infirmary - RR801"]
[null,null,null,null,null,null,null,null,null,null,null,null,null,null,null,null,null,null,null,null,"Q74","RR7","GATESHEAD HEALTH NHS FOUNDATION TRUST","RR7EN","Queen Elizabeth Hospital - RR7EN",null,"RMP","NORTHUMBRIA HEALTHCARE NHS FOUNDATION TRUST",null,"RMP","NORTHUMBRIA HEALTHCARE NHS FOUNDATION TRUST","RH854","Leicester General Hospital - RWEAK"]
[null,null,null,null,null,null,null,null,null,null,null,null,null,null,null,null,null,null,null,null,"Q74","RNL","NORTH CUMBRIA UNIVERSITY HOSPITALS NHS TRUST","RNLAY","Cumberland Infirmary - RNLAY",null,"RN3","NOTTINGHAM UNIVERSITY HOSPITALS NHS TRUST",null,"RN3","NOTTINGHAM UNIVERSITY HOSPITALS NHS TRUST","RHM01","Leicester Royal Infirmary - RWEAA"]
[null,null,null,null,null,null,null,null,null,null,null,null,null,null,null,null,null,null,null,null,"Q74","RNL","NORTH CUMBRIA UNIVERSITY HOSPITALS NHS TRUST","RNLBE","Penrith Hospital - RNLBE",null,"RN5","ONE TO ONE (NORTH WEST) LIMITED",null,"RN5","ONE TO ONE (NORTH WEST) LIMITED","RHQHH","Leighton Hospital - RBT20"]
[null,null,null,null,null,null,null,null,null,null,null,null,null,null,null,null,null,null,null,null,"Q74","RNL","NORTH CUMBRIA UNIVERSITY HOSPITALS NHS TRUST","RNLBX","West Cumberland Hospital - RNLBX",null,"RN7","OXFORD UNIVERSITY HOSPITALS NHS FOUNDATION TRUST",null,"RN7","OXFORD UNIVERSITY HOSPITALS NHS FOUNDATION TRUST","RHU02","Lincoln County Hospital - RWDDA"]
[null,null,null,null,null,null,null,null,null,null,null,null,null,null,null,null,null,null,null,null,"Q74","RVW","NORTH TEES AND HARTLEPOOL NHS FOUNDATION TRUST","RVWAE","University Hospital Of North Tees - RVWAE",null,"RNA","PENNINE ACUTE HOSPITALS NHS TRUST",null,"RNA","PENNINE ACUTE HOSPITALS NHS TRUST","RHU03","Lister Hospital - RWH01"]
[null,null,null,null,null,null,null,null,null,null,null,null,null,null,null,null,null,null,null,null,"Q74","RTF","NORTHUMBRIA HEALTHCARE NHS FOUNDATION TRUST","RTFDJ","Alnwick Infirmary - RTFDJ",null,"RNL","PLYMOUTH HOSPITALS NHS TRUST",null,"RNL","PLYMOUTH HOSPITALS NHS TRUST","RHU04","Liverpool Womens Hospital - REP01"]
[null,null,null,null,null,null,null,null,null,null,null,null,null,null,null,null,null,null,null,null,"Q74","RTF","NORTHUMBRIA HEALTHCARE NHS FOUNDATION TRUST","RTFDH","Berwick Infirmary - RTFDH",null,"RNQ","POOLE HOSPITAL NHS FOUNDATION TRUST",null,"RNQ","POOLE HOSPITAL NHS FOUNDATION TRUST","RHU10","Ludlow Hospital (Maternity) - RXWML"]
[null,null,null,null,null,null,null,null,null,null,null,null,null,null,null,null,null,null,null,null,"Q74","RTF","NORTHUMBRIA HEALTHCARE NHS FOUNDATION TRUST","RTFDR","Hexham General Hospital - RTFDR",null,"RNS","PORTSMOUTH HOSPITALS NHS TRUST",null,"RNS","PORTSMOUTH HOSPITALS NHS TRUST","RHW01","Luton and Dunstable Hospital - RC971"]
[null,null,null,null,null,null,null,null,null,null,null,null,null,null,null,null,null,null,null,null,"Q74","RTF","NORTHUMBRIA HEALTHCARE NHS FOUNDATION TRUST","RTFXXX","Non-hospital site - RTFXXX",null,"RNZ","ROYAL BERKSHIRE NHS FOUNDATION TRUST",null,"RNZ","ROYAL BERKSHIRE NHS FOUNDATION TRUST","RJ122","Macclesfield District General Hospital - RJN71"]
[null,null,null,null,null,null,null,null,null,null,null,null,null,null,null,null,null,null,null,null,"Q74","RTF","NORTHUMBRIA HEALTHCARE NHS FOUNDATION TRUST","RTF86","The Northumbria - RTF86",null,"RP5","ROYAL CORNWALL HOSPITALS NHS TRUST",null,"RP5","ROYAL CORNWALL HOSPITALS NHS TRUST","RJ1XXX","Maidstone District General Hospital - RWF03"]
[null,null,null,null,null,null,null,null,null,null,null,null,null,null,null,null,null,null,null,null,"Q74","RTR","SOUTH TEES HOSPITALS NHS FOUNDATION TRUST","RTR45","Friarage Hospital Site - RTR45",null,"RPA","ROYAL DEVON AND EXETER NHS FOUNDATION TRUST",null,"RPA","ROYAL DEVON AND EXETER NHS FOUNDATION TRUST","RJ224","Manor Hospital - RBK02"]
[null,null,null,null,null,null,null,null,null,null,null,null,null,null,null,null,null,null,null,null,"Q74","RTR","SOUTH TEES HOSPITALS NHS FOUNDATION TRUST","RTRAT","The James Cook University Hospital - RTRAT",null,"RQ3","ROYAL FREE LONDON NHS FOUNDATION TRUST",null,"RQ3","ROYAL FREE LONDON NHS FOUNDATION TRUST","RJ231","Medway Maritime Hospital - RPA02"]
[null,null,null,null,null,null,null,null,null,null,null,null,null,null,null,null,null,null,null,null,"Q74","RE9","SOUTH TYNESIDE NHS FOUNDATION TRUST","RE9GA","South Tyneside District Hospital - RE9GA",null,"RQ8","ROYAL SURREY COUNTY HOSPITAL NHS FOUNDATION TRUST",null,"RQ8","ROYAL SURREY COUNTY HOSPITAL NHS FOUNDATION TRUST","RJ2XXX","Milton Keynes Hospital - RD816"]
[null,null,null,null,null,null,null,null,null,null,null,null,null,null,null,null,null,null,null,null,"Q74","RTD","THE NEWCASTLE UPON TYNE HOSPITALS NHS FOUNDATION TRUST","RTD02","The Royal Victoria Infirmary - RTD02",null,"RQM","ROYAL UNITED HOSPITALS BATH NHS FOUNDATION TRUST",null,"RQM","ROYAL UNITED HOSPITALS BATH NHS FOUNDATION TRUST","RJ611","Musgrove Park Hospital - RBA11"]
[null,null,null,null,null,null,null,null,null,null,null,null,null,null,null,null,null,null,null,null,"Q74","RTX","UNIVERSITY HOSPITALS OF MORECAMBE BAY NHS FOUNDATION TRUST","RTXBU","Furness General Hospital - RTXBU",null,"RQW","SALISBURY NHS FOUNDATION TRUST",null,"RQW","SALISBURY NHS FOUNDATION TRUST","RJ701","New Cross Hospital - RL403"]
[null,null,null,null,null,null,null,null,null,null,null,null,null,null,null,null,null,null,null,null,"Q74","RTX","UNIVERSITY HOSPITALS OF MORECAMBE BAY NHS FOUNDATION TRUST","RTX02","Royal Lancaster Infirmary - RTX02",null,"RQX","SANDWELL AND WEST BIRMINGHAM HOSPITALS NHS TRUST",null,"RQX","SANDWELL AND WEST BIRMINGHAM HOSPITALS NHS TRUST","RJ7XXX","Newham General Hospital - R1HNH"]
[null,null,null,null,null,null,null,null,null,null,null,null,null,null,null,null,null,null,null,null,"Q74","RTX","UNIVERSITY HOSPITALS OF MORECAMBE BAY NHS FOUNDATION TRUST","RTXBW","Westmorland General Hospital - RTXBW",null,"RR1","SHEFFIELD TEACHING HOSPITALS NHS FOUNDATION TRUST",null,"RR1","SHEFFIELD TEACHING HOSPITALS NHS FOUNDATION TRUST","RJC02","Newton Abbot Community Hospital - RA957"]
[null,null,null,null,null,null,null,null,null,null,null,null,null,null,null,null,null,null,null,null,"Q75","RJR","COUNTESS OF CHESTER HOSPITAL NHS FOUNDATION TRUST","RJR05","Countess Of Chester Hospital - RJR05",null,"RR7","SHERWOOD FOREST HOSPITALS NHS FOUNDATION TRUST",null,"RR7","SHERWOOD FOREST HOSPITALS NHS FOUNDATION TRUST","RJCXXX","Non Hospital Site - RD1XXX"]
[null,null,null,null,null,null,null,null,null,null,null,null,null,null,null,null,null,null,null,null,"Q75","RJN","EAST CHESHIRE NHS TRUST","RJN71","Macclesfield District General Hospital - RJN71",null,"RR8","SHREWSBURY AND TELFORD HOSPITAL NHS TRUST",null,"RR8","SHREWSBURY AND TELFORD HOSPITAL NHS TRUST","RJE01","Non-hospital site - NDEXXX"]
[null,null,null,null,null,null,null,null,null,null,null,null,null,null,null,null,null,null,null,null,"Q75","REP","LIVERPOOL WOMEN'S NHS FOUNDATION TRUST","REP01","Liverpool Womens Hospital - REP01",null,"RRF","SOUTH TEES HOSPITALS NHS FOUNDATION TRUST",null,"RRF","SOUTH TEES HOSPITALS NHS FOUNDATION TRUST","RJE09","Non-hospital site - R1KXXX"]
[null,null,null,null,null,null,null,null,null,null,null,null,null,null,null,null,null,null,null,null,"Q75","RBT","MID CHESHIRE HOSPITALS NHS FOUNDATION TRUST","RBT20","Leighton Hospital - RBT20",null,"RRV","SOUTH TYNESIDE NHS FOUNDATION TRUST",null,"RRV","SOUTH TYNESIDE NHS FOUNDATION TRUST","RJEXXX","Non-hospital site - RA9XXX"]
[null,null,null,null,null,null,null,null,null,null,null,null,null,null,null,null,null,null,null,null,"Q75","RVY","SOUTHPORT AND ORMSKIRK HOSPITAL NHS TRUST","RVY02","Ormskirk and District General Hospital - RVY02",null,"RTD","SOUTH WARWICKSHIRE NHS FOUNDATION TRUST",null,"RTD","SOUTH WARWICKSHIRE NHS FOUNDATION TRUST","RJF02","Non-hospital site - RASXXX"]
[null,null,null,null,null,null,null,null,null,null,null,null,null,null,null,null,null,null,null,null,"Q75","RBN","ST HELENS AND KNOWSLEY HOSPITAL SERVICES NHS TRUST","RBN01","Whiston Hospital - RBN01",null,"RTE","SOUTHEND UNIVERSITY HOSPITAL NHS FOUNDATION TRUST",null,"RTE","SOUTHEND UNIVERSITY HOSPITAL NHS FOUNDATION TRUST","RJL30","Non-hospital site - RBAXXX"]
[null,null,null,null,null,null,null,null,null,null,null,null,null,null,null,null,null,null,null,null,"Q75","RWW","WARRINGTON AND HALTON HOSPITALS NHS FOUNDATION TRUST","RWWWH","Warrington Hospital - RWWWH",null,"RTF","SOUTHPORT AND ORMSKIRK HOSPITAL NHS TRUST",null,"RTF","SOUTHPORT AND ORMSKIRK HOSPITAL NHS TRUST","RJL32","Non-hospital site - RCXXXX"]
[null,null,null,null,null,null,null,null,null,null,null,null,null,null,null,null,null,null,null,null,"Q75","RBL","WIRRAL UNIVERSITY TEACHING HOSPITAL NHS FOUNDATION TRUST","RBL14","Arrowe Park Hospital - RBL14",null,"RTG","ST GEORGE'S UNIVERSITY HOSPITALS NHS FOUNDATION TRUST",null,"RTG","ST GEORGE'S UNIVERSITY HOSPITALS NHS FOUNDATION TRUST","RJN71","Non-hospital site - RDEXXX"]
[null,null,null,null,null,null,null,null,null,null,null,null,null,null,null,null,null,null,null,null,"Q76","RJF","BURTON HOSPITALS NHS FOUNDATION TRUST","RJF02","Queen's Hospital, Burton Upon Trent - RJF02",null,"RTH","ST HELENS AND KNOWSLEY HOSPITAL SERVICES NHS TRUST",null,"RTH","ST HELENS AND KNOWSLEY HOSPITAL SERVICES NHS TRUST","RJR05","Non-hospital site - RDUXXX"]
[null,null,null,null,null,null,null,null,null,null,null,null,null,null,null,null,null,null,null,null,"Q76","RFS","CHESTERFIELD ROYAL HOSPITAL NHS FOUNDATION TRUST","RFSDA","Chesterfield Royal Hospital - RFSDA",null,"RTK","STOCKPORT NHS FOUNDATION TRUST",null,"RTK","STOCKPORT NHS FOUNDATION TRUST","RJZ01","Non-hospital site - REFXXX"]
[null,null,null,null,null,null,null,null,null,null,null,null,null,null,null,null,null,null,null,null,"Q76","RTG","DERBY TEACHING HOSPITALS NHS FOUNDATION TRUST","RTGFG","Royal Derby Hospital - RTGFG",null,"RTP","SURREY AND SUSSEX HEALTHCARE NHS TRUST",null,"RTP","SURREY AND SUSSEX HEALTHCARE NHS TRUST","RJZ30","Non-hospital site - RJ1XXX"]
[null,null,null,null,null,null,null,null,null,null,null,null,null,null,null,null,null,null,null,null,"Q76","RX1","NOTTINGHAM UNIVERSITY HOSPITALS NHS TRUST","RX1XXX","Non-hospital site - RX1XXX",null,"RTR","TAMESIDE AND GLOSSOP INTEGRATED CARE NHS FOUNDATION TRUST",null,"RTR","TAMESIDE AND GLOSSOP INTEGRATED CARE NHS FOUNDATION TRUST","RK5BC","Non-hospital site - RJ2XXX"]
[null,null,null,null,null,null,null,null,null,null,null,null,null,null,null,null,null,null,null,null,"Q76","RX1","NOTTINGHAM UNIVERSITY HOSPITALS NHS TRUST","RX1CC","Nottingham University Hospitals NHS Trust - City Campus - RX1CC",null,"RTX","TAUNTON AND SOMERSET NHS FOUNDATION TRUST",null,"RTX","TAUNTON AND SOMERSET NHS FOUNDATION TRUST","RK5XXX","Non-hospital site - RJ7XXX"]
[null,null,null,null,null,null,null,null,null,null,null,null,null,null,null,null,null,null,null,null,"Q76","RX1","NOTTINGHAM UNIVERSITY HOSPITALS NHS TRUST","RX1RA","Nottingham University Hospitals NHS Trust - Queen's Medical Centre Campus - RX1RA",null,"RVJ","THE DUDLEY GROUP NHS FOUNDATION TRUST",null,"RVJ","THE DUDLEY GROUP NHS FOUNDATION TRUST","RK950","Non-hospital site - RJCXXX"]
[null,null,null,null,null,null,null,null,null,null,null,null,null,null,null,null,null,null,null,null,"Q76","RK5","SHERWOOD FOREST HOSPITALS NHS FOUNDATION TRUST","RK5BC","King's Mill Hospital - RK5BC",null,"RVR","THE HILLINGDON HOSPITALS NHS FOUNDATION TRUST",null,"RVR","THE HILLINGDON HOSPITALS NHS FOUNDATION TRUST","RK9XXX","Non-hospital site - RJEXXX"]
[null,null,null,null,null,null,null,null,null,null,null,null,null,null,null,null,null,null,null,null,"Q76","RK5","SHERWOOD FOREST HOSPITALS NHS FOUNDATION TRUST","RK5XXX","Non-hospital site - RK5XXX",null,"RVV","THE NEWCASTLE UPON TYNE HOSPITALS NHS FOUNDATION TRUST",null,"RVV","THE NEWCASTLE UPON TYNE HOSPITALS NHS FOUNDATION TRUST","RKB01","Non-hospital site - RK5XXX"]
[null,null,null,null,null,null,null,null,null,null,null,null,null,null,null,null,null,null,null,null,"Q76","RXW","SHREWSBURY AND TELFORD HOSPITAL NHS TRUST","RXWMB","Bridgnorth Hospital (Maternity) - RXWMB",null,"RVW","THE PRINCESS ALEXANDRA HOSPITAL NHS TRUST",null,"RVW","THE PRINCESS ALEXANDRA HOSPITAL NHS TRUST","RKB03","Non-hospital site - RK9XXX"]
[null,null,null,null,null,null,null,null,null,null,null,null,null,null,null,null,null,null,null,null,"Q76","RXW","SHREWSBURY AND TELFORD HOSPITAL NHS TRUST","RXWML","Ludlow Hospital (Maternity) - RXWML",null,"RVY","THE QUEEN ELIZABETH HOSPITAL, KING'S LYNN, NHS FOUNDATION TRUST",null,"RVY","THE QUEEN ELIZABETH HOSPITAL, KING'S LYNN, NHS FOUNDATION TRUST","RKBXXX","Non-hospital site - RKBXXX"]
[null,null,null,null,null,null,null,null,null,null,null,null,null,null,null,null,null,null,null,null,"Q76","RXW","SHREWSBURY AND TELFORD HOSPITAL NHS TRUST","RXWXXX","Non-hospital site - RXWXXX",null,"RW3","THE ROTHERHAM NHS FOUNDATION TRUST",null,"RW3","THE ROTHERHAM NHS FOUNDATION TRUST","RKEQ4","Non-hospital site - RKEXXX"]
[null,null,null,null,null,null,null,null,null,null,null,null,null,null,null,null,null,null,null,null,"Q76","RXW","SHREWSBURY AND TELFORD HOSPITAL NHS TRUST","RXWMJ","Robert Jones & Agnes Hunt Orthopaedic & District Hospital - RXWMJ",null,"RW6","THE ROYAL BOURNEMOUTH AND CHRISTCHURCH HOSPITALS NHS FOUNDATION TRUST",null,"RW6","THE ROYAL BOURNEMOUTH AND CHRISTCHURCH HOSPITALS NHS FOUNDATION TRUST","RKEXXX","Non-hospital site - RN3XXX"]
[null,null,null,null,null,null,null,null,null,null,null,null,null,null,null,null,null,null,null,null,"Q76","RXW","SHREWSBURY AND TELFORD HOSPITAL NHS TRUST","RXWAS","Royal Shrewsbury Hospital - RXWAS",null,"RWA","THE ROYAL WOLVERHAMPTON NHS TRUST",null,"RWA","THE ROYAL WOLVERHAMPTON NHS TRUST","RL403","Non-hospital site - RNZXXX"]
[null,null,null,null,null,null,null,null,null,null,null,null,null,null,null,null,null,null,null,null,"Q76","RXW","SHREWSBURY AND TELFORD HOSPITAL NHS TRUST","RXWAT","The Princess Royal Hospital - RXWAT",null,"RWD","THE WHITTINGTON HOSPITAL NHS TRUST",null,"RWD","THE WHITTINGTON HOSPITAL NHS TRUST","RLNGL","Non-hospital site - RP5XXX"]
[null,null,null,null,null,null,null,null,null,null,null,null,null,null,null,null,null,null,null,null,"Q76","RJE","UNIVERSITY HOSPITALS OF NORTH MIDLANDS NHS TRUST","RJE09","County Hospital - RJE09",null,"RWE","TORBAY AND SOUTH DEVON NHS FOUNDATION TRUST",null,"RWE","TORBAY AND SOUTH DEVON NHS FOUNDATION TRUST","RLQ01","Non-Hospital Site - RR8XXX"]
[null,null,null,null,null,null,null,null,null,null,null,null,null,null,null,null,null,null,null,null,"Q76","RJE","UNIVERSITY HOSPITALS OF NORTH MIDLANDS NHS TRUST","RJEXXX","Non-hospital site - RJEXXX",null,"RWF","UNITED LINCOLNSHIRE HOSPITALS NHS TRUST",null,"RWF","UNITED LINCOLNSHIRE HOSPITALS NHS TRUST","RLT01","Non-hospital site - RTEXXX"]
[null,null,null,null,null,null,null,null,null,null,null,null,null,null,null,null,null,null,null,null,"Q76","RJE","UNIVERSITY HOSPITALS OF NORTH MIDLANDS NHS TRUST","RJE01","Royal Stoke University Hospital - RJE01",null,"RWG","UNIVERSITY COLLEGE LONDON HOSPITALS NHS FOUNDATION TRUST",null,"RWG","UNIVERSITY COLLEGE LONDON HOSPITALS NHS FOUNDATION TRUST","RM102","Non-hospital site - RTFXXX"]
[null,null,null,null,null,null,null,null,null,null,null,null,null,null,null,null,null,null,null,null,"Q77","RQ3","BIRMINGHAM WOMEN'S AND CHILDREN'S NHS FOUNDATION TRUST","RQ370","Birmingham Women's Hospital - RQ370",null,"RWH","UNIVERSITY HOSPITAL OF SOUTH MANCHESTER NHS FOUNDATION TRUST",null,"RWH","UNIVERSITY HOSPITAL OF SOUTH MANCHESTER NHS FOUNDATION TRUST","RM202","Non-hospital site - RTHXXX"]
[null,null,null,null,null,null,null,null,null,null,null,null,null,null,null,null,null,null,null,null,"Q77","RLT","GEORGE ELIOT HOSPITAL NHS TRUST","RLT01","George Eliot Hospital - Acute Services - RLT01",null,"RWJ","UNIVERSITY HOSPITAL SOUTHAMPTON NHS FOUNDATION TRUST",null,"RWJ","UNIVERSITY HOSPITAL SOUTHAMPTON NHS FOUNDATION TRUST","RMC01","Non-hospital site - RVJXXX"]
[null,null,null,null,null,null,null,null,null,null,null,null,null,null,null,null,null,null,null,null,"Q77","RR1","HEART OF ENGLAND NHS FOUNDATION TRUST","RR105","Good Hope Hospital - RR105",null,"RWP","UNIVERSITY HOSPITALS BRISTOL NHS FOUNDATION TRUST",null,"RWP","UNIVERSITY HOSPITALS BRISTOL NHS FOUNDATION TRUST","RMP01","Non-hospital site - RVRXXX"]
[null,null,null,null,null,null,null,null,null,null,null,null,null,null,null,null,null,null,null,null,"Q77","RR1","HEART OF ENGLAND NHS FOUNDATION TRUST","RR101","Heartlands Hospital - RR101",null,"RWW","UNIVERSITY HOSPITALS COVENTRY AND WARWICKSHIRE NHS TRUST",null,"RWW","UNIVERSITY HOSPITALS COVENTRY AND WARWICKSHIRE NHS TRUST","RN325","Non-hospital site - RVVXXX"]
[null,null,null,null,null,null,null,null,null,null,null,null,null,null,null,null,null,null,null,null,"Q77","RR1","HEART OF ENGLAND NHS FOUNDATION TRUST","RR109","Solihull Hospital - RR109",null,"RWY","UNIVERSITY HOSPITALS OF LEICESTER NHS TRUST",null,"RWY","UNIVERSITY HOSPITALS OF LEICESTER NHS TRUST","RN3XXX","Non-hospital site - RW3XXX"]
[null,null,null,null,null,null,null,null,null,null,null,null,null,null,null,null,null,null,null,null,"Q77","RXK","SANDWELL AND WEST BIRMINGHAM HOSPITALS NHS TRUST","RXK02","City Hospital - RXK02",null,"RX1","UNIVERSITY HOSPITALS OF MORECAMBE BAY NHS FOUNDATION TRUST",null,"RX1","UNIVERSITY HOSPITALS OF MORECAMBE BAY NHS FOUNDATION TRUST","RN506","Non-hospital site - RW6XXX"]
[null,null,null,null,null,null,null,null,null,null,null,null,null,null,null,null,null,null,null,null,"Q77","RJC","SOUTH WARWICKSHIRE NHS FOUNDATION TRUST","RJCXXX","Non-hospital site - RJCXXX",null,"RXC","UNIVERSITY HOSPITALS OF NORTH MIDLANDS NHS TRUST",null,"RXC","UNIVERSITY HOSPITALS OF NORTH MIDLANDS NHS TRUST","RN541","Non-hospital site - RWDXXX"]
[null,null,null,null,null,null,null,null,null,null,null,null,null,null,null,null,null,null,null,null,"Q77","RJC","SOUTH WARWICKSHIRE NHS FOUNDATION TRUST","RJC02","Warwick Hospital - RJC02",null,"RXF","WALSALL HEALTHCARE NHS TRUST",null,"RXF","WALSALL HEALTHCARE NHS TRUST","RN542","Non-hospital site - RWEXXX"]
[null,null,null,null,null,null,null,null,null,null,null,null,null,null,null,null,null,null,null,null,"Q77","RNA","THE DUDLEY GROUP NHS FOUNDATION TRUST","RNA01","Russells Hall Hospital - RNA01",null,"RXH","WARRINGTON AND HALTON HOSPITALS NHS FOUNDATION TRUST",null,"RXH","WARRINGTON AND HALTON HOSPITALS NHS FOUNDATION TRUST","RN707","Non-hospital site - RWFXXX"]
[null,null,null,null,null,null,null,null,null,null,null,null,null,null,null,null,null,null,null,null,"Q77","RL4","THE ROYAL WOLVERHAMPTON NHS TRUST","RL403","New Cross Hospital - RL403",null,"RXK","WEST HERTFORDSHIRE HOSPITALS NHS TRUST",null,"RXK","WEST HERTFORDSHIRE HOSPITALS NHS TRUST","RNA01","Non-hospital site - RWHXXX"]
[null,null,null,null,null,null,null,null,null,null,null,null,null,null,null,null,null,null,null,null,"Q77","RKB","UNIVERSITY HOSPITALS COVENTRY AND WARWICKSHIRE NHS TRUST","RKB03","Hospital Of St Cross - RKB03",null,"RXL","WEST SUFFOLK NHS FOUNDATION TRUST",null,"RXL","WEST SUFFOLK NHS FOUNDATION TRUST","RNLAY","Non-hospital site - RWJXXX"]
[null,null,null,null,null,null,null,null,null,null,null,null,null,null,null,null,null,null,null,null,"Q77","RKB","UNIVERSITY HOSPITALS COVENTRY AND WARWICKSHIRE NHS TRUST","RKBXXX","Non-hospital site - RKBXXX",null,"RXN","WESTERN SUSSEX HOSPITALS NHS FOUNDATION TRUST",null,"RXN","WESTERN SUSSEX HOSPITALS NHS FOUNDATION TRUST","RNLBE","Non-hospital site - RWYXXX"]
[null,null,null,null,null,null,null,null,null,null,null,null,null,null,null,null,null,null,null,null,"Q77","RKB","UNIVERSITY HOSPITALS COVENTRY AND WARWICKSHIRE NHS TRUST","RKB01","University Hospital (Coventry) - RKB01",null,"RXP","WESTON AREA HEALTH NHS TRUST",null,"RXP","WESTON AREA HEALTH NHS TRUST","RNLBX","Non-hospital site - RX1XXX"]
[null,null,null,null,null,null,null,null,null,null,null,null,null,null,null,null,null,null,null,null,"Q77","RBK","WALSALL HEALTHCARE NHS TRUST","RBK02","Manor Hospital - RBK02",null,"RXQ","WIRRAL UNIVERSITY TEACHING HOSPITAL NHS FOUNDATION TRUST",null,"RXQ","WIRRAL UNIVERSITY TEACHING HOSPITAL NHS FOUNDATION TRUST","RNQ51","Non-hospital site - RXCXXX"]
[null,null,null,null,null,null,null,null,null,null,null,null,null,null,null,null,null,null,null,null,"Q77","RWP","WORCESTERSHIRE ACUTE HOSPITALS NHS TRUST","RWP50","Worcestershire Royal Hospital - RWP50",null,"RXR","WORCESTERSHIRE ACUTE HOSPITALS NHS TRUST",null,"RXR","WORCESTERSHIRE ACUTE HOSPITALS NHS TRUST","RNS01","Non-hospital site - RXFXXX"]
[null,null,null,null,null,null,null,null,null,null,null,null,null,null,null,null,null,null,null,null,"Q77","RLQ","WYE VALLEY NHS TRUST","RLQ01","Hereford County Hospital - RLQ01",null,"RXW","WRIGHTINGTON, WIGAN AND LEIGH NHS FOUNDATION TRUST",null,"RXW","WRIGHTINGTON, WIGAN AND LEIGH NHS FOUNDATION TRUST","RNZ02","Non-hospital site - RXHXXX"]
[null,null,null,null,null,null,null,null,null,null,null,null,null,null,null,null,null,null,null,null,"Q78","RC1","BEDFORD HOSPITAL NHS TRUST","RC110","Bedford Hospital South Wing - RC110",null,"RY2","WYE VALLEY NHS TRUST",null,"RY2","WYE VALLEY NHS TRUST","RNZXXX","Non-hospital site - RXPXXX"]
[null,null,null,null,null,null,null,null,null,null,null,null,null,null,null,null,null,null,null,null,"Q78","RWH","EAST AND NORTH HERTFORDSHIRE NHS TRUST","RWH01","Lister Hospital - RWH01",null,"RYJ","YEOVIL DISTRICT HOSPITAL NHS FOUNDATION TRUST",null,"RYJ","YEOVIL DISTRICT HOSPITAL NHS FOUNDATION TRUST","RP5BA","Non-hospital site - RXWXXX"]
[null,null,null,null,null,null,null,null,null,null,null,null,null,null,null,null,null,null,null,null,"Q78","RWH","EAST AND NORTH HERTFORDSHIRE NHS TRUST","RWHXXX","Non-hospital site - RWHXXX",null,"RYR","YORK TEACHING HOSPITAL NHS FOUNDATION TRUST",null,"RYR","YORK TEACHING HOSPITAL NHS FOUNDATION TRUST","RP5DR","Non-hospital site - RY2XXX"]
[null,null,null,null,null,null,null,null,null,null,null,null,null,null,null,null,null,null,null,null,"Q78","RNQ","KETTERING GENERAL HOSPITAL NHS FOUNDATION TRUST","RNQ51","Kettering General Hospital - RNQ51",null,null,null,null,null,null,"RP5XXX","Norfolk and Norwich University Hospital - RM102"]
[null,null,null,null,null,null,null,null,null,null,null,null,null,null,null,null,null,null,null,null,"Q78","RC9","LUTON AND DUNSTABLE UNIVERSITY HOSPITAL NHS FOUNDATION TRUST","RC971","Luton and Dunstable Hospital - RC971",null,null,null,null,null,null,"RPA02","North Devon District Hospital - RBZ12"]
[null,null,null,null,null,null,null,null,null,null,null,null,null,null,null,null,null,null,null,null,"Q78","RD8","MILTON KEYNES UNIVERSITY HOSPITAL NHS FOUNDATION TRUST","RD816","Milton Keynes Hospital - RD816",null,null,null,null,null,null,"RQ370","North Manchester General Hospital - RW602"]
[null,null,null,null,null,null,null,null,null,null,null,null,null,null,null,null,null,null,null,null,"Q78","RNS","NORTHAMPTON GENERAL HOSPITAL NHS TRUST","RNS01","Northampton General Hospital (Acute) - RNS01",null,null,null,null,null,null,"RQ8L0","North Middlesex Hospital - RAPNM"]
[null,null,null,null,null,null,null,null,null,null,null,null,null,null,null,null,null,null,null,null,"Q78","RWD","UNITED LINCOLNSHIRE HOSPITALS NHS TRUST","RWDLP","Grantham and District Hospital - RWDLP",null,null,null,null,null,null,"RQM01","Northampton General Hospital (Acute) - RNS01"]
[null,null,null,null,null,null,null,null,null,null,null,null,null,null,null,null,null,null,null,null,"Q78","RWD","UNITED LINCOLNSHIRE HOSPITALS NHS TRUST","RWDDA","Lincoln County Hospital - RWDDA",null,null,null,null,null,null,"RQM91","Northwick Park Hospital - R1K01"]
[null,null,null,null,null,null,null,null,null,null,null,null,null,null,null,null,null,null,null,null,"Q78","RWD","UNITED LINCOLNSHIRE HOSPITALS NHS TRUST","RWDXXX","Non-hospital site - RWDXXX",null,null,null,null,null,null,"RQWG0","Nottingham University Hospitals NHS Trust - City Campus - RX1CC"]
[null,null,null,null,null,null,null,null,null,null,null,null,null,null,null,null,null,null,null,null,"Q78","RWD","UNITED LINCOLNSHIRE HOSPITALS NHS TRUST","RWDLA","Pilgrim Hospital - RWDLA",null,null,null,null,null,null,"RQXM1","Nottingham University Hospitals NHS Trust - Queen's Medical Centre Campus - RX1RA"]
[null,null,null,null,null,null,null,null,null,null,null,null,null,null,null,null,null,null,null,null,"Q78","RWE","UNIVERSITY HOSPITALS OF LEICESTER NHS TRUST","RWEAK","Leicester General Hospital - RWEAK",null,null,null,null,null,null,"RR101","Okehampton Community Hospital - RH833"]
[null,null,null,null,null,null,null,null,null,null,null,null,null,null,null,null,null,null,null,null,"Q78","RWE","UNIVERSITY HOSPITALS OF LEICESTER NHS TRUST","RWEAA","Leicester Royal Infirmary - RWEAA",null,null,null,null,null,null,"RR105","Ormskirk and District General Hospital - RVY02"]
[null,null,null,null,null,null,null,null,null,null,null,null,null,null,null,null,null,null,null,null,"Q78","RWE","UNIVERSITY HOSPITALS OF LEICESTER NHS TRUST","RWEXXX","Non-hospital site - RWEXXX",null,null,null,null,null,null,"RR109","Paulton Memorial Hospital  - RD129"]
[null,null,null,null,null,null,null,null,null,null,null,null,null,null,null,null,null,null,null,null,"Q78","RWE","UNIVERSITY HOSPITALS OF LEICESTER NHS TRUST","RWE10","St Mary's Hospital - RWE10",null,null,null,null,null,null,"RR7EN","Penrith Hospital - RNLBE"]
[null,null,null,null,null,null,null,null,null,null,null,null,null,null,null,null,null,null,null,null,"Q78","RWG","WEST HERTFORDSHIRE HOSPITALS NHS TRUST","RWG02","Watford General Hospital - RWG02",null,null,null,null,null,null,"RR801","Peterborough City Hospital - RGN80"]
[null,null,null,null,null,null,null,null,null,null,null,null,null,null,null,null,null,null,null,null,"Q79","RDD","BASILDON AND THURROCK UNIVERSITY HOSPITALS NHS FOUNDATION TRUST","RDDH0","Basildon University Hospital - RDDH0",null,null,null,null,null,null,"RR813","Petersfield Community Hospital - RHU04"]
[null,null,null,null,null,null,null,null,null,null,null,null,null,null,null,null,null,null,null,null,"Q79","RGT","CAMBRIDGE UNIVERSITY HOSPITALS NHS FOUNDATION TRUST","RGT32","Rosie Hospital - RGT32",null,null,null,null,null,null,"RR8XXX","Pilgrim Hospital - RWDLA"]
[null,null,null,null,null,null,null,null,null,null,null,null,null,null,null,null,null,null,null,null,"Q79","RDE","COLCHESTER HOSPITAL UNIVERSITY NHS FOUNDATION TRUST","RDEE2","Clacton and District Hospital - RDEE2",null,null,null,null,null,null,"RRF02","Pinderfields General Hospital - RXF05"]
[null,null,null,null,null,null,null,null,null,null,null,null,null,null,null,null,null,null,null,null,"Q79","RDE","COLCHESTER HOSPITAL UNIVERSITY NHS FOUNDATION TRUST","RDEE4","Colchester General Hospital - RDEE4",null,null,null,null,null,null,"RRV03","Pontefract General Infirmary - RXF03"]
[null,null,null,null,null,null,null,null,null,null,null,null,null,null,null,null,null,null,null,null,"Q79","RDE","COLCHESTER HOSPITAL UNIVERSITY NHS FOUNDATION TRUST","RDEEE","Harwich Maternity - RDEEE",null,null,null,null,null,null,"RTD02","Poole General Hospital NHS Trust HQ - RD304"]
[null,null,null,null,null,null,null,null,null,null,null,null,null,null,null,null,null,null,null,null,"Q79","RDE","COLCHESTER HOSPITAL UNIVERSITY NHS FOUNDATION TRUST","RDEXXX","Non-hospital site - RDEXXX",null,null,null,null,null,null,"RTE01","Princess Alexandra Hospital - RQWG0"]
[null,null,null,null,null,null,null,null,null,null,null,null,null,null,null,null,null,null,null,null,"Q79","RGQ","IPSWICH HOSPITAL NHS TRUST","RGQ02","The Ipswich Hospital NHS Trust - RGQ02",null,null,null,null,null,null,"RTE03","Princess Anne Wing RUH  - RD130"]
[null,null,null,null,null,null,null,null,null,null,null,null,null,null,null,null,null,null,null,null,"Q79","RGP","JAMES PAGET UNIVERSITY HOSPITALS NHS FOUNDATION TRUST","RGP75","James Paget University Hospital - RGP75",null,null,null,null,null,null,"RTE27","Princess Royal Hospital - RXH09"]
[null,null,null,null,null,null,null,null,null,null,null,null,null,null,null,null,null,null,null,null,"Q79","RQ8","MID ESSEX HOSPITAL SERVICES NHS TRUST","RQ8L0","Broomfield Hospital - RQ8L0",null,null,null,null,null,null,"RTEXXX","Princess Royal University Hospital - RJZ30"]
[null,null,null,null,null,null,null,null,null,null,null,null,null,null,null,null,null,null,null,null,"Q79","RM1","NORFOLK AND NORWICH UNIVERSITY HOSPITALS NHS FOUNDATION TRUST","RM102","Norfolk and Norwich University Hospital - RM102",null,null,null,null,null,null,"RTF86","Queen Alexandra Hospital - RHU03"]
[null,null,null,null,null,null,null,null,null,null,null,null,null,null,null,null,null,null,null,null,"Q79","RGN","NORTH WEST ANGLIA NHS FOUNDATION TRUST","RGN90","Hinchingbrooke Hospital - RGN90",null,null,null,null,null,null,"RTFDH","Queen Charlotte's Hospital - RYJ04"]
[null,null,null,null,null,null,null,null,null,null,null,null,null,null,null,null,null,null,null,null,"Q79","RGN","NORTH WEST ANGLIA NHS FOUNDATION TRUST","RGN80","Peterborough City Hospital - RGN80",null,null,null,null,null,null,"RTFDJ","Queen Elizabeth Hospital - RJ231"]
[null,null,null,null,null,null,null,null,null,null,null,null,null,null,null,null,null,null,null,null,"Q79","RAJ","SOUTHEND UNIVERSITY HOSPITAL NHS FOUNDATION TRUST","RAJ01","Southend Hospital - RAJ01",null,null,null,null,null,null,"RTFDR","Queen Elizabeth Hospital - RR7EN"]
[null,null,null,null,null,null,null,null,null,null,null,null,null,null,null,null,null,null,null,null,"Q79","RQW","THE PRINCESS ALEXANDRA HOSPITAL NHS TRUST","RQWG0","Princess Alexandra Hospital - RQWG0",null,null,null,null,null,null,"RTFXXX","Queen Elizabeth The Queen Mother Hospital - RVV09"]
[null,null,null,null,null,null,null,null,null,null,null,null,null,null,null,null,null,null,null,null,"Q79","RCX","THE QUEEN ELIZABETH HOSPITAL, KING'S LYNN, NHS FOUNDATION TRUST","RCXXXX","Non-hospital site - RCXXXX",null,null,null,null,null,null,"RTGFG","Queen's Hospital - RF4QH"]
[null,null,null,null,null,null,null,null,null,null,null,null,null,null,null,null,null,null,null,null,"Q79","RCX","THE QUEEN ELIZABETH HOSPITAL, KING'S LYNN, NHS FOUNDATION TRUST","RCX70","The Queen Elizabeth Hospital - RCX70",null,null,null,null,null,null,"RTH05","Queen's Hospital, Burton Upon Trent - RJF02"]
[null,null,null,null,null,null,null,null,null,null,null,null,null,null,null,null,null,null,null,null,"Q79","RGR","WEST SUFFOLK NHS FOUNDATION TRUST","RGR50","West Suffolk Hospital - RGR50",null,null,null,null,null,null,"RTH08","Robert Jones & Agnes Hunt Orthopaedic & District Hospital - RXWMJ"]
[null,null,null,null,null,null,null,null,null,null,null,null,null,null,null,null,null,null,null,null,"Q80","RVJ","NORTH BRISTOL NHS TRUST","RVJ21","Cossham Hospital - RVJ21",null,null,null,null,null,null,"RTH16","Rosie Hospital - RGT32"]
[null,null,null,null,null,null,null,null,null,null,null,null,null,null,null,null,null,null,null,null,"Q80","RVJ","NORTH BRISTOL NHS TRUST","RVJXXX","Non-hospital site - RVJXXX",null,null,null,null,null,null,"RTH19","Rotherham District General Hospital - RFRPA"]
[null,null,null,null,null,null,null,null,null,null,null,null,null,null,null,null,null,null,null,null,"Q80","RVJ","NORTH BRISTOL NHS TRUST","RVJ01","Southmead Hospital - RVJ01",null,null,null,null,null,null,"RTH21","Royal Albert Edward Infirmary - RRF02"]
[null,null,null,null,null,null,null,null,null,null,null,null,null,null,null,null,null,null,null,null,"Q80","RBZ","NORTHERN DEVON HEALTHCARE NHS TRUST","RBZ12","North Devon District Hospital - RBZ12",null,null,null,null,null,null,"RTHXXX","Royal Berkshire Hospital - RHW01"]
[null,null,null,null,null,null,null,null,null,null,null,null,null,null,null,null,null,null,null,null,"Q80","RK9","PLYMOUTH HOSPITALS NHS TRUST","RK950","Derriford Hospital - RK950",null,null,null,null,null,null,"RTK01","Royal Blackburn Hospital - RXR20"]
[null,null,null,null,null,null,null,null,null,null,null,null,null,null,null,null,null,null,null,null,"Q80","RK9","PLYMOUTH HOSPITALS NHS TRUST","RK9XXX","Non-hospital site - RK9XXX",null,null,null,null,null,null,"RTP04","Royal Bolton Hospital - RMC01"]
[null,null,null,null,null,null,null,null,null,null,null,null,null,null,null,null,null,null,null,null,"Q80","REF","ROYAL CORNWALL HOSPITALS NHS TRUST","REFXXX","Non-hospital site - REFXXX",null,null,null,null,null,null,"RTR45","Royal Bournemouth General Hospital - RDZ20"]
[null,null,null,null,null,null,null,null,null,null,null,null,null,null,null,null,null,null,null,null,"Q80","REF","ROYAL CORNWALL HOSPITALS NHS TRUST","REF12","Royal Cornwall Hospital (Treliske) - REF12",null,null,null,null,null,null,"RTRAT","Royal Cornwall Hospital (Treliske) - REF12"]
[null,null,null,null,null,null,null,null,null,null,null,null,null,null,null,null,null,null,null,null,"Q80","RH8","ROYAL DEVON AND EXETER NHS FOUNDATION TRUST","RH854","Honiton Hospital - RH 854",null,null,null,null,null,null,"RTX02","Royal Derby Hospital - RTGFG"]
[null,null,null,null,null,null,null,null,null,null,null,null,null,null,null,null,null,null,null,null,"Q80","RH8","ROYAL DEVON AND EXETER NHS FOUNDATION TRUST","RH833","Okehampton Community Hospital - RH833",null,null,null,null,null,null,"RTXBU","Royal Devon and Exeter Hospital (Wonford) - RH801"]
[null,null,null,null,null,null,null,null,null,null,null,null,null,null,null,null,null,null,null,null,"Q80","RH8","ROYAL DEVON AND EXETER NHS FOUNDATION TRUST","RH801","Royal Devon and Exeter Hospital (Wonford) - RH801",null,null,null,null,null,null,"RTXBW","Royal Free Hospital - RAL01"]
[null,null,null,null,null,null,null,null,null,null,null,null,null,null,null,null,null,null,null,null,"Q80","RH8","ROYAL DEVON AND EXETER NHS FOUNDATION TRUST","RH853","Tiverton and District Hospital - RH853",null,null,null,null,null,null,"RVJ01","Royal Hallamshire Hospital - RHQHH"]
[null,null,null,null,null,null,null,null,null,null,null,null,null,null,null,null,null,null,null,null,"Q80","RBA","TAUNTON AND SOMERSET NHS FOUNDATION TRUST","RBAC3","Bridgwater Hospital - RBAC3",null,null,null,null,null,null,"RVJ21","Royal Hampshire County Hospital - RN541"]
[null,null,null,null,null,null,null,null,null,null,null,null,null,null,null,null,null,null,null,null,"Q80","RBA","TAUNTON AND SOMERSET NHS FOUNDATION TRUST","RBA11","Musgrove Park Hospital - RBA11",null,null,null,null,null,null,"RVJXXX","Royal Lancaster Infirmary - RTX02"]
[null,null,null,null,null,null,null,null,null,null,null,null,null,null,null,null,null,null,null,null,"Q80","RBA","TAUNTON AND SOMERSET NHS FOUNDATION TRUST","RBAXXX","Non-hospital site - RBAXXX",null,null,null,null,null,null,"RVR05","Royal Oldham Hospital - RW603"]
[null,null,null,null,null,null,null,null,null,null,null,null,null,null,null,null,null,null,null,null,"Q80","RA9","TORBAY AND SOUTH DEVON NHS FOUNDATION TRUST","RA957","Newton Abbot Community Hospital - RA957",null,null,null,null,null,null,"RVR50","Royal Preston Hospital - RXN02"]
[null,null,null,null,null,null,null,null,null,null,null,null,null,null,null,null,null,null,null,null,"Q80","RA9","TORBAY AND SOUTH DEVON NHS FOUNDATION TRUST","RA9XXX","Non-hospital site - RA9XXX",null,null,null,null,null,null,"RVRXXX","Royal Shrewsbury Hospital - RXWAS"]
[null,null,null,null,null,null,null,null,null,null,null,null,null,null,null,null,null,null,null,null,"Q80","RA9","TORBAY AND SOUTH DEVON NHS FOUNDATION TRUST","RA901","Torbay Hospital - RA901",null,null,null,null,null,null,"RVV01","Royal Stoke University Hospital - RJE01"]
[null,null,null,null,null,null,null,null,null,null,null,null,null,null,null,null,null,null,null,null,"Q80","RA7","UNIVERSITY HOSPITALS BRISTOL NHS FOUNDATION TRUST","RA707","St Michael's Hospital - RA707",null,null,null,null,null,null,"RVV09","Royal Surrey County Hospital - RA201"]
[null,null,null,null,null,null,null,null,null,null,null,null,null,null,null,null,null,null,null,null,"Q80","RA3","WESTON AREA HEALTH NHS TRUST","RA301","Weston General Hospital - RA301",null,null,null,null,null,null,"RVVXXX","Royal Sussex County Hospital - RXH01"]
[null,null,null,null,null,null,null,null,null,null,null,null,null,null,null,null,null,null,null,null,"Q80","RA4","YEOVIL DISTRICT HOSPITAL NHS FOUNDATION TRUST","RA430","Yeovil District Hospital - RA430",null,null,null,null,null,null,"RVWAE","Russells Hall Hospital - RNA01"]
[null,null,null,null,null,null,null,null,null,null,null,null,null,null,null,null,null,null,null,null,"Q81","RTK","ASHFORD AND ST PETER'S HOSPITALS NHS FOUNDATION TRUST","RTK01","St Peter's Hospital - RTK01",null,null,null,null,null,null,"RVY02","Salisbury District Hospital - RNZ02"]
[null,null,null,null,null,null,null,null,null,null,null,null,null,null,null,null,null,null,null,null,"Q81","RXH","BRIGHTON AND SUSSEX UNIVERSITY HOSPITALS NHS TRUST","RXHXXX","Non-hospital site - RXHXXX",null,null,null,null,null,null,"RW3SM","Scarborough General Hospital - RCBCA"]
[null,null,null,null,null,null,null,null,null,null,null,null,null,null,null,null,null,null,null,null,"Q81","RXH","BRIGHTON AND SUSSEX UNIVERSITY HOSPITALS NHS TRUST","RXH09","Princess Royal Hospital - RXH09",null,null,null,null,null,null,"RW3XXX","Scunthorpe General Hospital - RJL32"]
[null,null,null,null,null,null,null,null,null,null,null,null,null,null,null,null,null,null,null,null,"Q81","RXH","BRIGHTON AND SUSSEX UNIVERSITY HOSPITALS NHS TRUST","RXH01","Royal Sussex County Hospital - RXH01",null,null,null,null,null,null,"RW602","Solihull Hospital - RR109"]
[null,null,null,null,null,null,null,null,null,null,null,null,null,null,null,null,null,null,null,null,"Q81","RN7","DARTFORD AND GRAVESHAM NHS TRUST","RN707","Darent Valley Hospital - RN707",null,null,null,null,null,null,"RW603","South Tyneside District Hospital - RE9GA"]
[null,null,null,null,null,null,null,null,null,null,null,null,null,null,null,null,null,null,null,null,"Q81","RVV","EAST KENT HOSPITALS UNIVERSITY NHS FOUNDATION TRUST","RVVXXX","Non-hospital site - RVVXXX",null,null,null,null,null,null,"RW6XXX","Southampton General Hospital - RHM01"]
[null,null,null,null,null,null,null,null,null,null,null,null,null,null,null,null,null,null,null,null,"Q81","RVV","EAST KENT HOSPITALS UNIVERSITY NHS FOUNDATION TRUST","RVV09","Queen Elizabeth The Queen Mother Hospital - RVV09",null,null,null,null,null,null,"RWA01","Southend Hospital - RAJ01"]
[null,null,null,null,null,null,null,null,null,null,null,null,null,null,null,null,null,null,null,null,"Q81","RVV","EAST KENT HOSPITALS UNIVERSITY NHS FOUNDATION TRUST","RVV01","William Harvey Hospital (Ashford) - RVV01",null,null,null,null,null,null,"RWDDA","Southmead Hospital - RVJ01"]
[null,null,null,null,null,null,null,null,null,null,null,null,null,null,null,null,null,null,null,null,"Q81","RXC","EAST SUSSEX HEALTHCARE NHS TRUST","RXC01","Conquest Hospital - RXC01",null,null,null,null,null,null,"RWDLA","St George's Hospital (Tooting) - RJ701"]
[null,null,null,null,null,null,null,null,null,null,null,null,null,null,null,null,null,null,null,null,"Q81","RXC","EAST SUSSEX HEALTHCARE NHS TRUST","RXC02","Eastbourne District General Hospital - RXC02",null,null,null,null,null,null,"RWDLP","St Helier Hospital - RVR05"]
[null,null,null,null,null,null,null,null,null,null,null,null,null,null,null,null,null,null,null,null,"Q81","RXC","EAST SUSSEX HEALTHCARE NHS TRUST","RXCXXX","Non-hospital site - RXCXXX",null,null,null,null,null,null,"RWDXXX","St James's University Hospital - RR813"]
[null,null,null,null,null,null,null,null,null,null,null,null,null,null,null,null,null,null,null,null,"Q81","RDU","FRIMLEY HEALTH NHS FOUNDATION TRUST","RDU01","Frimley Park Hospital - RDU01",null,null,null,null,null,null,"RWE10","St Mary's Hospital - R1F01"]
[null,null,null,null,null,null,null,null,null,null,null,null,null,null,null,null,null,null,null,null,"Q81","RDU","FRIMLEY HEALTH NHS FOUNDATION TRUST","RDUXXX","Non-hospital site - RDUXXX",null,null,null,null,null,null,"RWEAA","St Mary's Hospital - RHU02"]
[null,null,null,null,null,null,null,null,null,null,null,null,null,null,null,null,null,null,null,null,"Q81","RDU","FRIMLEY HEALTH NHS FOUNDATION TRUST","RDU50","Wexham Park Hospital - RDU50",null,null,null,null,null,null,"RWEAK","St Mary's Hospital - RW3SM"]
[null,null,null,null,null,null,null,null,null,null,null,null,null,null,null,null,null,null,null,null,"Q81","RWF","MAIDSTONE AND TUNBRIDGE WELLS NHS TRUST","RWF03","Maidstone District General Hospital - RWF03",null,null,null,null,null,null,"RWEXXX","St Mary's Hospital - RWE10"]
[null,null,null,null,null,null,null,null,null,null,null,null,null,null,null,null,null,null,null,null,"Q81","RWF","MAIDSTONE AND TUNBRIDGE WELLS NHS TRUST","RWFXXX","Non-hospital site - RWFXXX",null,null,null,null,null,null,"RWF03","St Mary's Hospital (HQ) - RYJ01"]
[null,null,null,null,null,null,null,null,null,null,null,null,null,null,null,null,null,null,null,null,"Q81","RWF","MAIDSTONE AND TUNBRIDGE WELLS NHS TRUST","RWFTW","The Tunbridge Wells Hospital - RWFTW",null,null,null,null,null,null,"RWFTW","St Michael's Hospital - RA707"]
[null,null,null,null,null,null,null,null,null,null,null,null,null,null,null,null,null,null,null,null,"Q81","RPA","MEDWAY NHS FOUNDATION TRUST","RPA02","Medway Maritime Hospital - RPA02",null,null,null,null,null,null,"RWFXXX","St Peter's Hospital - RTK01"]
[null,null,null,null,null,null,null,null,null,null,null,null,null,null,null,null,null,null,null,null,"Q81","RA2","ROYAL SURREY COUNTY HOSPITAL NHS FOUNDATION TRUST","RA201","Royal Surrey County Hospital - RA201",null,null,null,null,null,null,"RWG02","St Richard's Hospital - RYR16"]
[null,null,null,null,null,null,null,null,null,null,null,null,null,null,null,null,null,null,null,null,"Q81","RTP","SURREY AND SUSSEX HEALTHCARE NHS TRUST","RTP04","East Surrey Hospital - RTP04",null,null,null,null,null,null,"RWH01","St Thomas' Hospital - RJ122"]
[null,null,null,null,null,null,null,null,null,null,null,null,null,null,null,null,null,null,null,null,"Q81","RYR","WESTERN SUSSEX HOSPITALS NHS FOUNDATION TRUST","RYR16","St Richard's Hospital - RYR16",null,null,null,null,null,null,"RWHXXX","Stepping Hill Hospital - RWJ09"]
[null,null,null,null,null,null,null,null,null,null,null,null,null,null,null,null,null,null,null,null,"Q81","RYR","WESTERN SUSSEX HOSPITALS NHS FOUNDATION TRUST","RYR18","Worthing Hospital - RYR18",null,null,null,null,null,null,"RWJ09","Stoke Mandeville Hospital - RXQ02"]
[null,null,null,null,null,null,null,null,null,null,null,null,null,null,null,null,null,null,null,null,"Q82","RXQ","BUCKINGHAMSHIRE HEALTHCARE NHS TRUST","RXQ02","Stoke Mandeville Hospital - RXQ02",null,null,null,null,null,null,"RWJXXX","Stroud Maternity Hospital - RTE27"]
[null,null,null,null,null,null,null,null,null,null,null,null,null,null,null,null,null,null,null,null,"Q82","RXQ","BUCKINGHAMSHIRE HEALTHCARE NHS TRUST","RXQ50","Wycombe Hospital - RXQ50",null,null,null,null,null,null,"RWP50","Sunderland Royal Hospital - RLNGL"]
[null,null,null,null,null,null,null,null,null,null,null,null,null,null,null,null,null,null,null,null,"Q82","RTE","GLOUCESTERSHIRE HOSPITALS NHS FOUNDATION TRUST","RTE01","Cheltenham General Hospital - RTE01",null,null,null,null,null,null,"RWWWH","Tameside General Hospital - RMP01"]
[null,null,null,null,null,null,null,null,null,null,null,null,null,null,null,null,null,null,null,null,"Q82","RTE","GLOUCESTERSHIRE HOSPITALS NHS FOUNDATION TRUST","RTE03","Gloucestershire Royal Hospital - RTE03",null,null,null,null,null,null,"RWY01","The Great Western Hospital - RN325"]
[null,null,null,null,null,null,null,null,null,null,null,null,null,null,null,null,null,null,null,null,"Q82","RTE","GLOUCESTERSHIRE HOSPITALS NHS FOUNDATION TRUST","RTEXXX","Non-hospital site - RTEXXX",null,null,null,null,null,null,"RWY02","The Ipswich Hospital NHS Trust - RGQ02"]
[null,null,null,null,null,null,null,null,null,null,null,null,null,null,null,null,null,null,null,null,"Q82","RTE","GLOUCESTERSHIRE HOSPITALS NHS FOUNDATION TRUST","RTE27","Stroud Maternity Hospital - RTE27",null,null,null,null,null,null,"RWYXXX","The James Cook University Hospital - RTRAT"]
[null,null,null,null,null,null,null,null,null,null,null,null,null,null,null,null,null,null,null,null,"Q82","RN3","GREAT WESTERN HOSPITALS NHS FOUNDATION TRUST","RN3XXX","Non-hospital site - RN3XXX",null,null,null,null,null,null,"RX1CC","The Northumbria - RTF86"]
[null,null,null,null,null,null,null,null,null,null,null,null,null,null,null,null,null,null,null,null,"Q82","RN3","GREAT WESTERN HOSPITALS NHS FOUNDATION TRUST","RN325","The Great Western Hospital - RN325",null,null,null,null,null,null,"RX1RA","The Princess Royal Hospital - RXWAT"]
[null,null,null,null,null,null,null,null,null,null,null,null,null,null,null,null,null,null,null,null,"Q82","RTH","OXFORD UNIVERSITY HOSPITALS NHS FOUNDATION TRUST","RTH19","Chipping Norton Community Hospital - RTH19",null,null,null,null,null,null,"RX1XXX","The Queen Elizabeth Hospital - RCX70"]
[null,null,null,null,null,null,null,null,null,null,null,null,null,null,null,null,null,null,null,null,"Q82","RTH","OXFORD UNIVERSITY HOSPITALS NHS FOUNDATION TRUST","RTH05","Horton General Hospital - RTH05",null,null,null,null,null,null,"RXC01","The Royal London Hospital - R1H12"]
[null,null,null,null,null,null,null,null,null,null,null,null,null,null,null,null,null,null,null,null,"Q82","RTH","OXFORD UNIVERSITY HOSPITALS NHS FOUNDATION TRUST","RTH08","John Radcliffe Hospital - RTH08",null,null,null,null,null,null,"RXC02","The Royal Victoria Infirmary - RTD02"]
[null,null,null,null,null,null,null,null,null,null,null,null,null,null,null,null,null,null,null,null,"Q82","RTH","OXFORD UNIVERSITY HOSPITALS NHS FOUNDATION TRUST","RTHXXX","Non-hospital site - RTHXXX",null,null,null,null,null,null,"RXCXXX","The Tunbridge Wells Hospital - RWFTW"]
[null,null,null,null,null,null,null,null,null,null,null,null,null,null,null,null,null,null,null,null,"Q82","RTH","OXFORD UNIVERSITY HOSPITALS NHS FOUNDATION TRUST","RTH16","Wallingford Community Hospital - RTH16",null,null,null,null,null,null,"RXF03","The Whittington Hospital - RKEQ4"]
[null,null,null,null,null,null,null,null,null,null,null,null,null,null,null,null,null,null,null,null,"Q82","RTH","OXFORD UNIVERSITY HOSPITALS NHS FOUNDATION TRUST","RTH21","Wantage Community Hospital - RTH21",null,null,null,null,null,null,"RXF05","Tiverton and District Hospital - RH853"]
[null,null,null,null,null,null,null,null,null,null,null,null,null,null,null,null,null,null,null,null,"Q82","RHW","ROYAL BERKSHIRE NHS FOUNDATION TRUST","RHW01","Royal Berkshire Hospital - RHW01",null,null,null,null,null,null,"RXF10","Torbay Hospital - RA901"]
[null,null,null,null,null,null,null,null,null,null,null,null,null,null,null,null,null,null,null,null,"Q82","RD1","ROYAL UNITED HOSPITALS BATH NHS FOUNDATION TRUST","RD102","Chippenham Community Hospital -RD102",null,null,null,null,null,null,"RXFXXX","Trowbridge Community Hospital  - RD108"]
[null,null,null,null,null,null,null,null,null,null,null,null,null,null,null,null,null,null,null,null,"Q82","RD1","ROYAL UNITED HOSPITALS BATH NHS FOUNDATION TRUST","RD121","Frome Community Hospital  - RD121",null,null,null,null,null,null,"RXH01","University College Hospital - RRV03"]
[null,null,null,null,null,null,null,null,null,null,null,null,null,null,null,null,null,null,null,null,"Q82","RD1","ROYAL UNITED HOSPITALS BATH NHS FOUNDATION TRUST","RD1XXX","Non Hospital Site - RD1XXX",null,null,null,null,null,null,"RXH09","University Hospital (Coventry) - RKB01"]
[null,null,null,null,null,null,null,null,null,null,null,null,null,null,null,null,null,null,null,null,"Q82","RD1","ROYAL UNITED HOSPITALS BATH NHS FOUNDATION TRUST","RD129","Paulton Memorial Hospital  - RD129",null,null,null,null,null,null,"RXHXXX","University Hospital Lewisham - RJ224"]
[null,null,null,null,null,null,null,null,null,null,null,null,null,null,null,null,null,null,null,null,"Q82","RD1","ROYAL UNITED HOSPITALS BATH NHS FOUNDATION TRUST","RD130","Princess Anne Wing RUH  - RD130",null,null,null,null,null,null,"RXK02","University Hospital Of North Durham - RXPCP"]
[null,null,null,null,null,null,null,null,null,null,null,null,null,null,null,null,null,null,null,null,"Q82","RD1","ROYAL UNITED HOSPITALS BATH NHS FOUNDATION TRUST","RD108","Trowbridge Community Hospital  - RD108",null,null,null,null,null,null,"RXL01","University Hospital Of North Tees - RVWAE"]
[null,null,null,null,null,null,null,null,null,null,null,null,null,null,null,null,null,null,null,null,"Q82","RNZ","SALISBURY NHS FOUNDATION TRUST","RNZXXX","Non-hospital site - RNZXXX",null,null,null,null,null,null,"RXN01","Wallingford Community Hospital - RTH16"]
[null,null,null,null,null,null,null,null,null,null,null,null,null,null,null,null,null,null,null,null,"Q82","RNZ","SALISBURY NHS FOUNDATION TRUST","RNZ02","Salisbury District Hospital - RNZ02",null,null,null,null,null,null,"RXN02","Wantage Community Hospital - RTH21"]
[null,null,null,null,null,null,null,null,null,null,null,null,null,null,null,null,null,null,null,null,"Q83","RMC","BOLTON NHS FOUNDATION TRUST","RMC01","Royal Bolton Hospital - RMC01",null,null,null,null,null,null,"RXPCP","Warrington Hospital - RWWWH"]
[null,null,null,null,null,null,null,null,null,null,null,null,null,null,null,null,null,null,null,null,"Q83","RY2","BRIDGEWATER COMMUNITY HEALTHCARE NHS FOUNDATION TRUST","RY28P","Health Care Resource Centre - RY28P",null,null,null,null,null,null,"RXPDA","Warwick Hospital - RJC02"]
[null,null,null,null,null,null,null,null,null,null,null,null,null,null,null,null,null,null,null,null,"Q83","RY2","BRIDGEWATER COMMUNITY HEALTHCARE NHS FOUNDATION TRUST","RY2XXX","Non-hospital site - RY2XXX",null,null,null,null,null,null,"RXPXXX","Watford General Hospital - RWG02"]
[null,null,null,null,null,null,null,null,null,null,null,null,null,null,null,null,null,null,null,null,"Q83","RW3","CENTRAL MANCHESTER UNIVERSITY HOSPITALS NHS FOUNDATION TRUST","RW3XXX","Non-hospital site - RW3XXX",null,null,null,null,null,null,"RXQ02","West Cumberland Hospital - RNLBX"]
[null,null,null,null,null,null,null,null,null,null,null,null,null,null,null,null,null,null,null,null,"Q83","RW3","CENTRAL MANCHESTER UNIVERSITY HOSPITALS NHS FOUNDATION TRUST","RW3SM","St Mary's Hospital - RW3SM",null,null,null,null,null,null,"RXQ50","West Middlesex University Hospital - RQM91"]
[null,null,null,null,null,null,null,null,null,null,null,null,null,null,null,null,null,null,null,null,"Q83","RW6","PENNINE ACUTE HOSPITALS NHS TRUST","RW6XXX","Non-hospital site - RW6XXX",null,null,null,null,null,null,"RXR20","West Suffolk Hospital - RGR50"]
[null,null,null,null,null,null,null,null,null,null,null,null,null,null,null,null,null,null,null,null,"Q83","RW6","PENNINE ACUTE HOSPITALS NHS TRUST","RW602","North Manchester General Hospital - RW602",null,null,null,null,null,null,"RXWAS","Westmorland General Hospital - RTXBW"]
[null,null,null,null,null,null,null,null,null,null,null,null,null,null,null,null,null,null,null,null,"Q83","RW6","PENNINE ACUTE HOSPITALS NHS TRUST","RW603","Royal Oldham Hospital - RW603",null,null,null,null,null,null,"RXWAT","Weston General Hospital - RA301"]
[null,null,null,null,null,null,null,null,null,null,null,null,null,null,null,null,null,null,null,null,"Q83","RWJ","STOCKPORT NHS FOUNDATION TRUST","RWJXXX","Non-hospital site - RWJXXX",null,null,null,null,null,null,"RXWMB","Wexham Park Hospital - RDU50"]
[null,null,null,null,null,null,null,null,null,null,null,null,null,null,null,null,null,null,null,null,"Q83","RWJ","STOCKPORT NHS FOUNDATION TRUST","RWJ09","Stepping Hill Hospital - RWJ09",null,null,null,null,null,null,"RXWMJ","Whipps Cross University Hospital - R1HKH"]
[null,null,null,null,null,null,null,null,null,null,null,null,null,null,null,null,null,null,null,null,"Q83","RMP","TAMESIDE AND GLOSSOP INTEGRATED CARE NHS FOUNDATION TRUST","RMP01","Tameside General Hospital - RMP01",null,null,null,null,null,null,"RXWML","Whiston Hospital - RBN01"]
[null,null,null,null,null,null,null,null,null,null,null,null,null,null,null,null,null,null,null,null,"Q83","RM2","UNIVERSITY HOSPITAL OF SOUTH MANCHESTER NHS FOUNDATION TRUST","RM202","Wythenshawe Hospital - RM202",null,null,null,null,null,null,"RXWXXX","William Harvey Hospital (Ashford) - RVV01"]
[null,null,null,null,null,null,null,null,null,null,null,null,null,null,null,null,null,null,null,null,"Q83","RRF","WRIGHTINGTON, WIGAN AND LEIGH NHS FOUNDATION TRUST","RRF02","Royal Albert Edward Infirmary - RRF02",null,null,null,null,null,null,"RY28P","Worcestershire Royal Hospital - RWP50"]
[null,null,null,null,null,null,null,null,null,null,null,null,null,null,null,null,null,null,null,null,"Q84","RXL","BLACKPOOL TEACHING HOSPITALS NHS FOUNDATION TRUST","RXL01","Blackpool Victoria Hospital - RXL01",null,null,null,null,null,null,"RY2XXX","Worthing Hospital - RYR18"]
[null,null,null,null,null,null,null,null,null,null,null,null,null,null,null,null,null,null,null,null,"Q84","RXR","EAST LANCASHIRE HOSPITALS NHS TRUST","RXR20","Royal Blackburn Hospital - RXR20",null,null,null,null,null,null,"RYJ01","Wycombe Hospital - RXQ50"]
[null,null,null,null,null,null,null,null,null,null,null,null,null,null,null,null,null,null,null,null,"Q84","RXN","LANCASHIRE TEACHING HOSPITALS NHS FOUNDATION TRUST","RXN01","Chorley and South Ribble Hospital - RXN01",null,null,null,null,null,null,"RYJ04","Wythenshawe Hospital - RM202"]
[null,null,null,null,null,null,null,null,null,null,null,null,null,null,null,null,null,null,null,null,"Q84","RXN","LANCASHIRE TEACHING HOSPITALS NHS FOUNDATION TRUST","RXN02","Royal Preston Hospital - RXN02",null,null,null,null,null,null,"RYR16","Yeovil District Hospital - RA430"]
[null,null,null,null,null,null,null,null,null,null,null,null,null,null,null,null,null,null,null,null,"zIS1","NDE","ONE TO ONE (NORTH WEST) LIMITED","NDEXXX","Non-hospital site - NDEXXX",null,null,null,null,null,null,"RYR18","York Hospital - RCB55"]

{"sheet":"BSQ3","index":15,"n_rows":192,"n_cols":33,"rows_kept":192,"cut":false,"hidden":true,"merged":[]}
[null,"Sort","Region (LO)","Region (LO)","Trusts","Trusts","Sites","Sites",null,"Sort ranges:","Sort range…","Sort range…","Sort range…","Reference Region List:","Code…","Name…","Linked Region List:","Code…","Name…","Reference Lists:","Code…","Code…","Name…","Code…","Name…","Trusts Linked Lists:","Code…","Name…","Site Linked Lists:","Code…","Name…","Code…","Name…"]
["Region (LO)",1,1,1,"-","-","-","-",null,null,"Region (LO) Code","Region (LO) Code","Region (LO) Code",null,"Q72","NHS England Yorkshire & Humber",null,"Q70","NHS England Central Midlands",null,"Q70","RBD","DORSET COUNTY HOSPITAL NHS FOUNDATION TRUST","RBD01","Dorset County Hospital - RBD01",null,"R1F","AIREDALE NHS FOUNDATION TRUST",null,"R1F","AIREDALE NHS FOUNDATION TRUST","R1F01","Airedale General Hospital - RCF22"]
["Trusts",1,1,1,1,1,"-","-",null,null,"Region (Local Office)","Trust Code","Trust Code",null,"Q74","NHS England Cumbria & North East",null,"Q71","NHS England Cheshire & Merseyside",null,"Q70","RN5","HAMPSHIRE HOSPITALS NHS FOUNDATION TRUST","RN506","Basingstoke and North Hampshire Hospital - RN506",null,"R1H","ASHFORD AND ST PETER'S HOSPITALS NHS FOUNDATION TRUST",null,"R1H","ASHFORD AND ST PETER'S HOSPITALS NHS FOUNDATION TRUST","R1H12","Alnwick Infirmary - RTFDJ"]
["Sites",1,1,1,1,1,1,1,null,null,"Total Responses","Trust Name","Trust Name",null,"Q75","NHS England Cheshire & Merseyside",null,"Q72","NHS England Cumbria & North East",null,"Q70","RN5","HAMPSHIRE HOSPITALS NHS FOUNDATION TRUST","RN541","Royal Hampshire County Hospital - RN541",null,"R1K","BARKING, HAVERING AND REDBRIDGE UNIVERSITY HOSPITALS NHS TRUST",null,"R1K","BARKING, HAVERING AND REDBRIDGE UNIVERSITY HOSPITALS NHS TRUST","R1HKH","Arrowe Park Hospital - RBL14"]
[null,null,null,null,null,null,null,null,null,null,"Percentage Recommended","Total Responses","Site Code",null,"Q83","NHS England Greater Manchester",null,"Q74","NHS England East",null,"Q70","R1F","ISLE OF WIGHT NHS TRUST","R1F01","St Mary's Hospital - R1F01",null,"RA2","BARNSLEY HOSPITAL NHS FOUNDATION TRUST",null,"RA2","BARNSLEY HOSPITAL NHS FOUNDATION TRUST","R1HNH","Ashford Hospital - RTK02"]
[null,null,null,null,null,null,null,null,null,null,"Percentage Not  Recommended","Percentage Recommended","Site Name",null,"Q84","NHS England Lancashire",null,"Q75","NHS England Greater Manchester",null,"Q70","RD3","POOLE HOSPITAL NHS FOUNDATION TRUST","RD304","Poole General Hospital NHS Trust HQ - RD304",null,"RA3","BARTS HEALTH NHS TRUST",null,"RA3","BARTS HEALTH NHS TRUST","R1K04","Barnet Hospital - RAL26"]
[null,null,null,null,null,null,null,null,null,null,"Extremely Likely","Percentage Not  Recommended","Total Responses",null,"Q76","NHS England North Midlands",null,"Q76","NHS England Lancashire",null,"Q70","RHU","PORTSMOUTH HOSPITALS NHS TRUST","RHU10","Gosport War Memorial Hospital - RHU10",null,"RA4","BASILDON AND THURROCK UNIVERSITY HOSPITALS NHS FOUNDATION TRUST",null,"RA4","BASILDON AND THURROCK UNIVERSITY HOSPITALS NHS FOUNDATION TRUST","RA201","Barnsley Hospital NHS Foundation Trust HQ - RFFAA"]
[null,null,null,null,null,null,null,null,null,null,"Likely","Extremely Likely","Percentage Recommended",null,"Q77","NHS England West Midlands",null,"Q77","NHS England London",null,"Q70","RHU","PORTSMOUTH HOSPITALS NHS TRUST","RHU04","Petersfield Community Hospital - RHU04",null,"RA7","BEDFORD HOSPITAL NHS TRUST",null,"RA7","BEDFORD HOSPITAL NHS TRUST","RA301","Basildon University Hospital - RDDH0"]
[null,null,null,null,null,null,null,null,null,null,"Neither","Likely","Percentage Not  Recommended",null,"Q78","NHS England Central Midlands",null,"Q78","NHS England North Midlands",null,"Q70","RHU","PORTSMOUTH HOSPITALS NHS TRUST","RHU03","Queen Alexandra Hospital - RHU03",null,"RA9","BIRMINGHAM WOMEN'S AND CHILDREN'S NHS FOUNDATION TRUST",null,"RA9","BIRMINGHAM WOMEN'S AND CHILDREN'S NHS FOUNDATION TRUST","RA430","Basingstoke and North Hampshire Hospital - RN506"]
[null,null,null,null,null,null,null,null,null,null,"Unlikely","Neither","Extremely Likely",null,"Q79","NHS England East",null,"Q79","NHS England South Central",null,"Q70","RHU","PORTSMOUTH HOSPITALS NHS TRUST","RHU02","St Mary's Hospital - RHU02",null,"RAE","BLACKPOOL TEACHING HOSPITALS NHS FOUNDATION TRUST",null,"RAE","BLACKPOOL TEACHING HOSPITALS NHS FOUNDATION TRUST","RA707","Bassetlaw Hospital - RP5BA"]
[null,null,null,null,null,null,null,null,null,null,"Extremely Unlikely","Unlikely","Likely",null,"Q80","NHS England South West",null,"Q80","NHS England South East",null,"Q70","RDZ","THE ROYAL BOURNEMOUTH AND CHRISTCHURCH HOSPITALS NHS FOUNDATION TRUST","RDZ20","Royal Bournemouth General Hospital - RDZ20",null,"RAJ","BOLTON NHS FOUNDATION TRUST",null,"RAJ","BOLTON NHS FOUNDATION TRUST","RA901","Bedford Hospital South Wing - RC110"]
[null,null,null,null,null,null,null,null,null,null,"Don't Know","Extremely Unlikely","Neither",null,"Q81","NHS England South East",null,"Q81","NHS England South West",null,"Q70","RHM","UNIVERSITY HOSPITAL SOUTHAMPTON NHS FOUNDATION TRUST","RHM01","Southampton General Hospital - RHM01",null,"RAL","BRADFORD TEACHING HOSPITALS NHS FOUNDATION TRUST",null,"RAL","BRADFORD TEACHING HOSPITALS NHS FOUNDATION TRUST","RAE01","Berwick Infirmary - RTFDH"]
[null,null,null,null,null,null,null,null,null,null,null,"Don't Know","Unlikely",null,"Q82","NHS England South Central",null,"Q82","NHS England Wessex",null,"Q71","RF4","BARKING, HAVERING AND REDBRIDGE UNIVERSITY HOSPITALS NHS TRUST","RF4QH","Queen's Hospital - RF4QH",null,"RAP","BRIDGEWATER COMMUNITY HEALTHCARE NHS FOUNDATION TRUST",null,"RAP","BRIDGEWATER COMMUNITY HEALTHCARE NHS FOUNDATION TRUST","RAJ01","Birmingham Women's Hospital - RQ370"]
[null,null,null,null,null,null,null,null,null,null,null,"SMS/Text / Smartphone App","Extremely Unlikely",null,"Q70","NHS England Wessex",null,"Q83","NHS England West Midlands",null,"Q71","R1H","BARTS HEALTH NHS TRUST","R1HNH","Newham General Hospital - R1HNH",null,"RAS","BRIGHTON AND SUSSEX UNIVERSITY HOSPITALS NHS TRUST",null,"RAS","BRIGHTON AND SUSSEX UNIVERSITY HOSPITALS NHS TRUST","RAL01","Blackpool Victoria Hospital - RXL01"]
[null,null,null,null,null,null,null,null,null,null,null,"Electronic tablet/kiosk at point of discharge","Don't Know",null,"Q71","NHS England London",null,"Q84","NHS England Yorkshire & Humber",null,"Q71","R1H","BARTS HEALTH NHS TRUST","R1H12","The Royal London Hospital - R1H12",null,"RAX","BUCKINGHAMSHIRE HEALTHCARE NHS TRUST",null,"RAX","BUCKINGHAMSHIRE HEALTHCARE NHS TRUST","RAL26","Bradford Royal Infirmary - RAE01"]
[null,null,null,null,null,null,null,null,null,null,null,"Paper / postcard at point of discharge",null,null,"zIS1","Independent Sector Provider",null,"zIS1","Independent Sector Provider",null,"Q71","R1H","BARTS HEALTH NHS TRUST","R1HKH","Whipps Cross University Hospital - R1HKH",null,"RBA","BURTON HOSPITALS NHS FOUNDATION TRUST",null,"RBA","BURTON HOSPITALS NHS FOUNDATION TRUST","RAPNM","Bridgnorth Hospital (Maternity) - RXWMB"]
[null,null,null,null,null,null,null,null,null,null,null,"Paper survey, sent to the patients home",null,null,null,null,null,null,null,null,"Q71","RQM","CHELSEA AND WESTMINSTER HOSPITAL NHS FOUNDATION TRUST","RQM01","Chelsea and Westminster Hospital - RQM01",null,"RBD","CALDERDALE AND HUDDERSFIELD NHS FOUNDATION TRUST",null,"RBD","CALDERDALE AND HUDDERSFIELD NHS FOUNDATION TRUST","RAS01","Bridgwater Hospital - RBAC3"]
[null,null,null,null,null,null,null,null,null,null,null,"Telephone survey once patient is home",null,null,null,null,null,null,null,null,"Q71","RQM","CHELSEA AND WESTMINSTER HOSPITAL NHS FOUNDATION TRUST","RQM91","West Middlesex University Hospital - RQM91",null,"RBK","CAMBRIDGE UNIVERSITY HOSPITALS NHS FOUNDATION TRUST",null,"RBK","CAMBRIDGE UNIVERSITY HOSPITALS NHS FOUNDATION TRUST","RAX01","Broomfield Hospital - RQ8L0"]
[null,null,null,null,null,null,null,null,null,null,null,"Online survey once patient is home",null,null,null,null,null,null,null,null,"Q71","RJ6","CROYDON HEALTH SERVICES NHS TRUST","RJ611","Croydon University Hospital - RJ611",null,"RBL","CENTRAL MANCHESTER UNIVERSITY HOSPITALS NHS FOUNDATION TRUST",null,"RBL","CENTRAL MANCHESTER UNIVERSITY HOSPITALS NHS FOUNDATION TRUST","RBA11","Calderdale Royal Hospital - RWY02"]
[null,null,null,null,null,null,null,null,null,null,null,"Other",null,null,null,null,null,null,null,null,"Q71","RVR","EPSOM AND ST HELIER UNIVERSITY HOSPITALS NHS TRUST","RVR50","Epsom Hospital - RVR50",null,"RBN","CHELSEA AND WESTMINSTER HOSPITAL NHS FOUNDATION TRUST",null,"RBN","CHELSEA AND WESTMINSTER HOSPITAL NHS FOUNDATION TRUST","RBAC3","Chelsea and Westminster Hospital - RQM01"]
[null,null,null,null,null,null,null,null,null,null,null,null,null,null,null,null,null,null,null,null,"Q71","RVR","EPSOM AND ST HELIER UNIVERSITY HOSPITALS NHS TRUST","RVR05","St Helier Hospital - RVR05",null,"RBT","CHESTERFIELD ROYAL HOSPITAL NHS FOUNDATION TRUST",null,"RBT","CHESTERFIELD ROYAL HOSPITAL NHS FOUNDATION TRUST","RBD01","Chesterfield Royal Hospital - RFSDA"]
[null,null,null,null,null,null,null,null,null,null,null,null,null,null,null,null,null,null,null,null,"Q71","RJ1","GUY'S AND ST THOMAS' NHS FOUNDATION TRUST","RJ122","St Thomas' Hospital - RJ122",null,"RBZ","CITY HOSPITALS SUNDERLAND NHS FOUNDATION TRUST",null,"RBZ","CITY HOSPITALS SUNDERLAND NHS FOUNDATION TRUST","RBK02","Chippenham Community Hospital -RD102"]
[null,null,null,null,null,null,null,null,null,null,null,null,null,null,null,null,null,null,null,null,"Q71","RQX","HOMERTON UNIVERSITY HOSPITAL NHS FOUNDATION TRUST","RQXM1","Homerton University Hospital - RQXM1",null,"RC1","COLCHESTER HOSPITAL UNIVERSITY NHS FOUNDATION TRUST",null,"RC1","COLCHESTER HOSPITAL UNIVERSITY NHS FOUNDATION TRUST","RBL14","Chipping Norton Community Hospital - RTH19"]
[null,null,null,null,null,null,null,null,null,null,null,null,null,null,null,null,null,null,null,null,"Q71","RYJ","IMPERIAL COLLEGE HEALTHCARE NHS TRUST","RYJ04","Queen Charlotte's Hospital - RYJ04",null,"RC9","COUNTESS OF CHESTER HOSPITAL NHS FOUNDATION TRUST",null,"RC9","COUNTESS OF CHESTER HOSPITAL NHS FOUNDATION TRUST","RBN01","Chorley and South Ribble Hospital - RXN01"]
[null,null,null,null,null,null,null,null,null,null,null,null,null,null,null,null,null,null,null,null,"Q71","RYJ","IMPERIAL COLLEGE HEALTHCARE NHS TRUST","RYJ01","St Mary's Hospital (HQ) - RYJ01",null,"RCB","COUNTY DURHAM AND DARLINGTON NHS FOUNDATION TRUST",null,"RCB","COUNTY DURHAM AND DARLINGTON NHS FOUNDATION TRUST","RBT20","City Hospital - RXK02"]
[null,null,null,null,null,null,null,null,null,null,null,null,null,null,null,null,null,null,null,null,"Q71","RJZ","KING'S COLLEGE HOSPITAL NHS FOUNDATION TRUST","RJZ01","King's College Hospital (Denmark Hill) - RJZ01",null,"RCD","CROYDON HEALTH SERVICES NHS TRUST",null,"RCD","CROYDON HEALTH SERVICES NHS TRUST","RBZ12","Clacton and District Hospital - RDEE2"]
[null,null,null,null,null,null,null,null,null,null,null,null,null,null,null,null,null,null,null,null,"Q71","RJZ","KING'S COLLEGE HOSPITAL NHS FOUNDATION TRUST","RJZ30","Princess Royal University Hospital - RJZ30",null,"RCF","DARTFORD AND GRAVESHAM NHS TRUST",null,"RCF","DARTFORD AND GRAVESHAM NHS TRUST","RC110","Colchester General Hospital - RDEE4"]
[null,null,null,null,null,null,null,null,null,null,null,null,null,null,null,null,null,null,null,null,"Q71","RAX","KINGSTON HOSPITAL NHS FOUNDATION TRUST","RAX01","Kingston Hospital - RAX01",null,"RCX","DERBY TEACHING HOSPITALS NHS FOUNDATION TRUST",null,"RCX","DERBY TEACHING HOSPITALS NHS FOUNDATION TRUST","RC971","Conquest Hospital - RXC01"]
[null,null,null,null,null,null,null,null,null,null,null,null,null,null,null,null,null,null,null,null,"Q71","RJ2","LEWISHAM AND GREENWICH NHS TRUST","RJ231","Queen Elizabeth Hospital - RJ231",null,"RD1","DONCASTER AND BASSETLAW TEACHING HOSPITALS NHS FOUNDATION TRUST",null,"RD1","DONCASTER AND BASSETLAW TEACHING HOSPITALS NHS FOUNDATION TRUST","RCB55","Cossham Hospital - RVJ21"]
[null,null,null,null,null,null,null,null,null,null,null,null,null,null,null,null,null,null,null,null,"Q71","RJ2","LEWISHAM AND GREENWICH NHS TRUST","RJ224","University Hospital Lewisham - RJ224",null,"RD3","DORSET COUNTY HOSPITAL NHS FOUNDATION TRUST",null,"RD3","DORSET COUNTY HOSPITAL NHS FOUNDATION TRUST","RCBCA","Countess Of Chester Hospital - RJR05"]
[null,null,null,null,null,null,null,null,null,null,null,null,null,null,null,null,null,null,null,null,"Q71","R1K","LONDON NORTH WEST HEALTHCARE NHS TRUST","R1K04","Ealing Hospital - R1K04",null,"RD8","EAST AND NORTH HERTFORDSHIRE NHS TRUST",null,"RD8","EAST AND NORTH HERTFORDSHIRE NHS TRUST","RCD01","Croydon University Hospital - RJ611"]
[null,null,null,null,null,null,null,null,null,null,null,null,null,null,null,null,null,null,null,null,"Q71","RAP","NORTH MIDDLESEX UNIVERSITY HOSPITAL NHS TRUST","RAPNM","North Middlesex Hospital - RAPNM",null,"RDD","EAST CHESHIRE NHS TRUST",null,"RDD","EAST CHESHIRE NHS TRUST","RCF22","Cumberland Infirmary - RNLAY"]
[null,null,null,null,null,null,null,null,null,null,null,null,null,null,null,null,null,null,null,null,"Q71","RAL","ROYAL FREE LONDON NHS FOUNDATION TRUST","RAL26","Barnet Hospital - RAL26",null,"RDE","EAST KENT HOSPITALS UNIVERSITY NHS FOUNDATION TRUST",null,"RDE","EAST KENT HOSPITALS UNIVERSITY NHS FOUNDATION TRUST","RCX70","Darent Valley Hospital - RN707"]
[null,null,null,null,null,null,null,null,null,null,null,null,null,null,null,null,null,null,null,null,"Q71","RAL","ROYAL FREE LONDON NHS FOUNDATION TRUST","RAL01","Royal Free Hospital - RAL01",null,"RDU","EAST LANCASHIRE HOSPITALS NHS TRUST",null,"RDU","EAST LANCASHIRE HOSPITALS NHS TRUST","RD102","Darlington Memorial Hospital - RXPDA"]
[null,null,null,null,null,null,null,null,null,null,null,null,null,null,null,null,null,null,null,null,"Q71","RJ7","ST GEORGE'S UNIVERSITY HOSPITALS NHS FOUNDATION TRUST","RJ701","St George's Hospital (Tooting) - RJ701",null,"RDZ","EAST SUSSEX HEALTHCARE NHS TRUST",null,"RDZ","EAST SUSSEX HEALTHCARE NHS TRUST","RD129","Derriford Hospital - RK950"]
[null,null,null,null,null,null,null,null,null,null,null,null,null,null,null,null,null,null,null,null,"Q71","RAS","THE HILLINGDON HOSPITALS NHS FOUNDATION TRUST","RAS01","Hillingdon Hospital - RAS01",null,"RE9","EPSOM AND ST HELIER UNIVERSITY HOSPITALS NHS TRUST",null,"RE9","EPSOM AND ST HELIER UNIVERSITY HOSPITALS NHS TRUST","RD130","Diana, Princess Of Wales Hospital - RJL30"]
[null,null,null,null,null,null,null,null,null,null,null,null,null,null,null,null,null,null,null,null,"Q71","RKE","THE WHITTINGTON HOSPITAL NHS TRUST","RKEQ4","The Whittington Hospital - RKEQ4",null,"REF","FRIMLEY HEALTH NHS FOUNDATION TRUST",null,"REF","FRIMLEY HEALTH NHS FOUNDATION TRUST","RD304","Doncaster Royal Infirmary - RP5DR"]
[null,null,null,null,null,null,null,null,null,null,null,null,null,null,null,null,null,null,null,null,"Q71","RRV","UNIVERSITY COLLEGE LONDON HOSPITALS NHS FOUNDATION TRUST","RRV03","University College Hospital - RRV03",null,"REP","GATESHEAD HEALTH NHS FOUNDATION TRUST",null,"REP","GATESHEAD HEALTH NHS FOUNDATION TRUST","RD816","Dorset County Hospital - RBD01"]
[null,null,null,null,null,null,null,null,null,null,null,null,null,null,null,null,null,null,null,null,"Q72","RCF","AIREDALE NHS FOUNDATION TRUST","RCF22","Airedale General Hospital - RCF22",null,"RF4","GEORGE ELIOT HOSPITAL NHS TRUST",null,"RF4","GEORGE ELIOT HOSPITAL NHS TRUST","RDDH0","Ealing Hospital - R1K04"]
[null,null,null,null,null,null,null,null,null,null,null,null,null,null,null,null,null,null,null,null,"Q72","RFF","BARNSLEY HOSPITAL NHS FOUNDATION TRUST","RFFAA","Barnsley Hospital NHS Foundation Trust HQ - RFFAA",null,"RFF","GLOUCESTERSHIRE HOSPITALS NHS FOUNDATION TRUST",null,"RFF","GLOUCESTERSHIRE HOSPITALS NHS FOUNDATION TRUST","RDEE2","East Surrey Hospital - RTP04"]
[null,null,null,null,null,null,null,null,null,null,null,null,null,null,null,null,null,null,null,null,"Q72","RAE","BRADFORD TEACHING HOSPITALS NHS FOUNDATION TRUST","RAE01","Bradford Royal Infirmary - RAE01",null,"RFR","GREAT WESTERN HOSPITALS NHS FOUNDATION TRUST",null,"RFR","GREAT WESTERN HOSPITALS NHS FOUNDATION TRUST","RDEE4","Eastbourne District General Hospital - RXC02"]
[null,null,null,null,null,null,null,null,null,null,null,null,null,null,null,null,null,null,null,null,"Q72","RWY","CALDERDALE AND HUDDERSFIELD NHS FOUNDATION TRUST","RWY02","Calderdale Royal Hospital - RWY02",null,"RFS","GUY'S AND ST THOMAS' NHS FOUNDATION TRUST",null,"RFS","GUY'S AND ST THOMAS' NHS FOUNDATION TRUST","RDU01","Epsom Hospital - RVR50"]
[null,null,null,null,null,null,null,null,null,null,null,null,null,null,null,null,null,null,null,null,"Q72","RWY","CALDERDALE AND HUDDERSFIELD NHS FOUNDATION TRUST","RWY01","Huddersfield Royal Infirmary - RWY01",null,"RGN","HAMPSHIRE HOSPITALS NHS FOUNDATION TRUST",null,"RGN","HAMPSHIRE HOSPITALS NHS FOUNDATION TRUST","RDU50","Friarage Hospital Site - RTR45"]
[null,null,null,null,null,null,null,null,null,null,null,null,null,null,null,null,null,null,null,null,"Q72","RP5","DONCASTER AND BASSETLAW TEACHING HOSPITALS NHS FOUNDATION TRUST","RP5BA","Bassetlaw Hospital - RP5BA",null,"RGP","HARROGATE AND DISTRICT NHS FOUNDATION TRUST",null,"RGP","HARROGATE AND DISTRICT NHS FOUNDATION TRUST","RDZ20","Frimley Park Hospital - RDU01"]
[null,null,null,null,null,null,null,null,null,null,null,null,null,null,null,null,null,null,null,null,"Q72","RP5","DONCASTER AND BASSETLAW TEACHING HOSPITALS NHS FOUNDATION TRUST","RP5DR","Doncaster Royal Infirmary - RP5DR",null,"RGQ","HEART OF ENGLAND NHS FOUNDATION TRUST",null,"RGQ","HEART OF ENGLAND NHS FOUNDATION TRUST","RE9GA","Furness General Hospital - RTXBU"]
[null,null,null,null,null,null,null,null,null,null,null,null,null,null,null,null,null,null,null,null,"Q72","RCD","HARROGATE AND DISTRICT NHS FOUNDATION TRUST","RCD01","Harrogate District Hospital - RCD01",null,"RGR","HOMERTON UNIVERSITY HOSPITAL NHS FOUNDATION TRUST",null,"RGR","HOMERTON UNIVERSITY HOSPITAL NHS FOUNDATION TRUST","REF12","George Eliot Hospital - Acute Services - RLT01"]
[null,null,null,null,null,null,null,null,null,null,null,null,null,null,null,null,null,null,null,null,"Q72","RWA","HULL AND EAST YORKSHIRE HOSPITALS NHS TRUST","RWA01","Hull Royal Infirmary - RWA01",null,"RGT","HULL AND EAST YORKSHIRE HOSPITALS NHS TRUST",null,"RGT","HULL AND EAST YORKSHIRE HOSPITALS NHS TRUST","REP01","Gloucestershire Royal Hospital - RTE03"]
[null,null,null,null,null,null,null,null,null,null,null,null,null,null,null,null,null,null,null,null,"Q72","RR8","LEEDS TEACHING HOSPITALS NHS TRUST","RR801","Leeds General Infirmary - RR801",null,"RH8","IMPERIAL COLLEGE HEALTHCARE NHS TRUST",null,"RH8","IMPERIAL COLLEGE HEALTHCARE NHS TRUST","RF4QH","Good Hope Hospital - RR105"]
[null,null,null,null,null,null,null,null,null,null,null,null,null,null,null,null,null,null,null,null,"Q72","RR8","LEEDS TEACHING HOSPITALS NHS TRUST","RR813","St James's University Hospital - RR813",null,"RHM","IPSWICH HOSPITAL NHS TRUST",null,"RHM","IPSWICH HOSPITAL NHS TRUST","RFFAA","Gosport War Memorial Hospital - RHU10"]
[null,null,null,null,null,null,null,null,null,null,null,null,null,null,null,null,null,null,null,null,"Q72","RXF","MID YORKSHIRE HOSPITALS NHS TRUST","RXF05","Pinderfields General Hospital - RXF05",null,"RHQ","ISLE OF WIGHT NHS TRUST",null,"RHQ","ISLE OF WIGHT NHS TRUST","RFRPA","Grantham and District Hospital - RWDLP"]
[null,null,null,null,null,null,null,null,null,null,null,null,null,null,null,null,null,null,null,null,"Q72","RJL","NORTHERN LINCOLNSHIRE AND GOOLE NHS FOUNDATION TRUST","RJL30","Diana, Princess Of Wales Hospital - RJL30",null,"RHU","JAMES PAGET UNIVERSITY HOSPITALS NHS FOUNDATION TRUST",null,"RHU","JAMES PAGET UNIVERSITY HOSPITALS NHS FOUNDATION TRUST","RFSDA","Harrogate District Hospital - RCD01"]
[null,null,null,null,null,null,null,null,null,null,null,null,null,null,null,null,null,null,null,null,"Q72","RJL","NORTHERN LINCOLNSHIRE AND GOOLE NHS FOUNDATION TRUST","RJL32","Scunthorpe General Hospital - RJL32",null,"RHW","KETTERING GENERAL HOSPITAL NHS FOUNDATION TRUST",null,"RHW","KETTERING GENERAL HOSPITAL NHS FOUNDATION TRUST","RGN80","Health Care Resource Centre - RY28P"]
[null,null,null,null,null,null,null,null,null,null,null,null,null,null,null,null,null,null,null,null,"Q72","RHQ","SHEFFIELD TEACHING HOSPITALS NHS FOUNDATION TRUST","RHQHH","Royal Hallamshire Hospital - RHQHH",null,"RJ1","KING'S COLLEGE HOSPITAL NHS FOUNDATION TRUST",null,"RJ1","KING'S COLLEGE HOSPITAL NHS FOUNDATION TRUST","RGN90","Heartlands Hospital - RR101"]
[null,null,null,null,null,null,null,null,null,null,null,null,null,null,null,null,null,null,null,null,"Q72","RFR","THE ROTHERHAM NHS FOUNDATION TRUST","RFRPA","Rotherham District General Hospital - RFRPA",null,"RJ2","KINGSTON HOSPITAL NHS FOUNDATION TRUST",null,"RJ2","KINGSTON HOSPITAL NHS FOUNDATION TRUST","RGP75","Hereford County Hospital - RLQ01"]
[null,null,null,null,null,null,null,null,null,null,null,null,null,null,null,null,null,null,null,null,"Q72","RCB","YORK TEACHING HOSPITAL NHS FOUNDATION TRUST","RCBCA","Scarborough General Hospital - RCBCA",null,"RJ6","LANCASHIRE TEACHING HOSPITALS NHS FOUNDATION TRUST",null,"RJ6","LANCASHIRE TEACHING HOSPITALS NHS FOUNDATION TRUST","RGQ02","Hexham General Hospital - RTFDR"]
[null,null,null,null,null,null,null,null,null,null,null,null,null,null,null,null,null,null,null,null,"Q72","RCB","YORK TEACHING HOSPITAL NHS FOUNDATION TRUST","RCB55","York Hospital - RCB55",null,"RJ7","LEEDS TEACHING HOSPITALS NHS TRUST",null,"RJ7","LEEDS TEACHING HOSPITALS NHS TRUST","RGR50","Hillingdon Hospital - RAS01"]
[null,null,null,null,null,null,null,null,null,null,null,null,null,null,null,null,null,null,null,null,"Q74","RLN","CITY HOSPITALS SUNDERLAND NHS FOUNDATION TRUST","RLNGL","Sunderland Royal Hospital - RLNGL",null,"RJC","LEWISHAM AND GREENWICH NHS TRUST",null,"RJC","LEWISHAM AND GREENWICH NHS TRUST","RGT32","Hinchingbrooke Hospital - RGN90"]
[null,null,null,null,null,null,null,null,null,null,null,null,null,null,null,null,null,null,null,null,"Q74","RXP","COUNTY DURHAM AND DARLINGTON NHS FOUNDATION TRUST","RXPDA","Darlington Memorial Hospital - RXPDA",null,"RJE","LIVERPOOL WOMEN'S NHS FOUNDATION TRUST",null,"RJE","LIVERPOOL WOMEN'S NHS FOUNDATION TRUST","RH801","Homerton University Hospital - RQXM1"]
[null,null,null,null,null,null,null,null,null,null,null,null,null,null,null,null,null,null,null,null,"Q74","RXP","COUNTY DURHAM AND DARLINGTON NHS FOUNDATION TRUST","RXPCP","University Hospital Of North Durham - RXPCP",null,"RJF","LONDON NORTH WEST HEALTHCARE NHS TRUST",null,"RJF","LONDON NORTH WEST HEALTHCARE NHS TRUST","RH833","Honiton Hospital - RH 854"]
[null,null,null,null,null,null,null,null,null,null,null,null,null,null,null,null,null,null,null,null,"Q74","RR7","GATESHEAD HEALTH NHS FOUNDATION TRUST","RR7EN","Queen Elizabeth Hospital - RR7EN",null,"RJL","LUTON AND DUNSTABLE UNIVERSITY HOSPITAL NHS FOUNDATION TRUST",null,"RJL","LUTON AND DUNSTABLE UNIVERSITY HOSPITAL NHS FOUNDATION TRUST","RH853","Horton General Hospital - RTH05"]
[null,null,null,null,null,null,null,null,null,null,null,null,null,null,null,null,null,null,null,null,"Q74","RNL","NORTH CUMBRIA UNIVERSITY HOSPITALS NHS TRUST","RNLAY","Cumberland Infirmary - RNLAY",null,"RJN","MAIDSTONE AND TUNBRIDGE WELLS NHS TRUST",null,"RJN","MAIDSTONE AND TUNBRIDGE WELLS NHS TRUST","RH854","Huddersfield Royal Infirmary - RWY01"]
[null,null,null,null,null,null,null,null,null,null,null,null,null,null,null,null,null,null,null,null,"Q74","RNL","NORTH CUMBRIA UNIVERSITY HOSPITALS NHS TRUST","RNLBX","West Cumberland Hospital - RNLBX",null,"RJR","MEDWAY NHS FOUNDATION TRUST",null,"RJR","MEDWAY NHS FOUNDATION TRUST","RHM01","Hull Royal Infirmary - RWA01"]
[null,null,null,null,null,null,null,null,null,null,null,null,null,null,null,null,null,null,null,null,"Q74","RVW","NORTH TEES AND HARTLEPOOL NHS FOUNDATION TRUST","RVWAE","University Hospital Of North Tees - RVWAE",null,"RJZ","MID CHESHIRE HOSPITALS NHS FOUNDATION TRUST",null,"RJZ","MID CHESHIRE HOSPITALS NHS FOUNDATION TRUST","RHQHH","James Paget University Hospital - RGP75"]
[null,null,null,null,null,null,null,null,null,null,null,null,null,null,null,null,null,null,null,null,"Q74","RTF","NORTHUMBRIA HEALTHCARE NHS FOUNDATION TRUST","RTFDJ","Alnwick Infirmary - RTFDJ",null,"RK5","MID ESSEX HOSPITAL SERVICES NHS TRUST",null,"RK5","MID ESSEX HOSPITAL SERVICES NHS TRUST","RHU02","John Radcliffe Hospital - RTH08"]
[null,null,null,null,null,null,null,null,null,null,null,null,null,null,null,null,null,null,null,null,"Q74","RTF","NORTHUMBRIA HEALTHCARE NHS FOUNDATION TRUST","RTFDH","Berwick Infirmary - RTFDH",null,"RK9","MID YORKSHIRE HOSPITALS NHS TRUST",null,"RK9","MID YORKSHIRE HOSPITALS NHS TRUST","RHU03","Kettering General Hospital - RNQ51"]
[null,null,null,null,null,null,null,null,null,null,null,null,null,null,null,null,null,null,null,null,"Q74","RTF","NORTHUMBRIA HEALTHCARE NHS FOUNDATION TRUST","RTFDR","Hexham General Hospital - RTFDR",null,"RKB","MILTON KEYNES UNIVERSITY HOSPITAL NHS FOUNDATION TRUST",null,"RKB","MILTON KEYNES UNIVERSITY HOSPITAL NHS FOUNDATION TRUST","RHU04","King's College Hospital (Denmark Hill) - RJZ01"]
[null,null,null,null,null,null,null,null,null,null,null,null,null,null,null,null,null,null,null,null,"Q74","RTF","NORTHUMBRIA HEALTHCARE NHS FOUNDATION TRUST","RTF86","The Northumbria - RTF86",null,"RKE","NORFOLK AND NORWICH UNIVERSITY HOSPITALS NHS FOUNDATION TRUST",null,"RKE","NORFOLK AND NORWICH UNIVERSITY HOSPITALS NHS FOUNDATION TRUST","RHU10","King's Mill Hospital - RK5BC"]
[null,null,null,null,null,null,null,null,null,null,null,null,null,null,null,null,null,null,null,null,"Q74","RTR","SOUTH TEES HOSPITALS NHS FOUNDATION TRUST","RTR45","Friarage Hospital Site - RTR45",null,"RL4","NORTH BRISTOL NHS TRUST",null,"RL4","NORTH BRISTOL NHS TRUST","RHW01","Kingston Hospital - RAX01"]
[null,null,null,null,null,null,null,null,null,null,null,null,null,null,null,null,null,null,null,null,"Q74","RTR","SOUTH TEES HOSPITALS NHS FOUNDATION TRUST","RTRAT","The James Cook University Hospital - RTRAT",null,"RLN","NORTH CUMBRIA UNIVERSITY HOSPITALS NHS TRUST",null,"RLN","NORTH CUMBRIA UNIVERSITY HOSPITALS NHS TRUST","RJ122","Leeds General Infirmary - RR801"]
[null,null,null,null,null,null,null,null,null,null,null,null,null,null,null,null,null,null,null,null,"Q74","RE9","SOUTH TYNESIDE NHS FOUNDATION TRUST","RE9GA","South Tyneside District Hospital - RE9GA",null,"RLQ","NORTH MIDDLESEX UNIVERSITY HOSPITAL NHS TRUST",null,"RLQ","NORTH MIDDLESEX UNIVERSITY HOSPITAL NHS TRUST","RJ224","Leicester General Hospital - RWEAK"]
[null,null,null,null,null,null,null,null,null,null,null,null,null,null,null,null,null,null,null,null,"Q74","RTD","THE NEWCASTLE UPON TYNE HOSPITALS NHS FOUNDATION TRUST","RTD02","The Royal Victoria Infirmary - RTD02",null,"RLT","NORTH TEES AND HARTLEPOOL NHS FOUNDATION TRUST",null,"RLT","NORTH TEES AND HARTLEPOOL NHS FOUNDATION TRUST","RJ231","Leicester Royal Infirmary - RWEAA"]
[null,null,null,null,null,null,null,null,null,null,null,null,null,null,null,null,null,null,null,null,"Q74","RTX","UNIVERSITY HOSPITALS OF MORECAMBE BAY NHS FOUNDATION TRUST","RTXBU","Furness General Hospital - RTXBU",null,"RM1","NORTH WEST ANGLIA NHS FOUNDATION TRUST",null,"RM1","NORTH WEST ANGLIA NHS FOUNDATION TRUST","RJ611","Leighton Hospital - RBT20"]
[null,null,null,null,null,null,null,null,null,null,null,null,null,null,null,null,null,null,null,null,"Q74","RTX","UNIVERSITY HOSPITALS OF MORECAMBE BAY NHS FOUNDATION TRUST","RTX02","Royal Lancaster Infirmary - RTX02",null,"RM2","NORTHAMPTON GENERAL HOSPITAL NHS TRUST",null,"RM2","NORTHAMPTON GENERAL HOSPITAL NHS TRUST","RJ701","Lincoln County Hospital - RWDDA"]
[null,null,null,null,null,null,null,null,null,null,null,null,null,null,null,null,null,null,null,null,"Q75","RJR","COUNTESS OF CHESTER HOSPITAL NHS FOUNDATION TRUST","RJR05","Countess Of Chester Hospital - RJR05",null,"RMC","NORTHERN DEVON HEALTHCARE NHS TRUST",null,"RMC","NORTHERN DEVON HEALTHCARE NHS TRUST","RJC02","Lister Hospital - RWH01"]
[null,null,null,null,null,null,null,null,null,null,null,null,null,null,null,null,null,null,null,null,"Q75","RJN","EAST CHESHIRE NHS TRUST","RJN71","Macclesfield District General Hospital - RJN71",null,"RMP","NORTHERN LINCOLNSHIRE AND GOOLE NHS FOUNDATION TRUST",null,"RMP","NORTHERN LINCOLNSHIRE AND GOOLE NHS FOUNDATION TRUST","RJE01","Liverpool Womens Hospital - REP01"]
[null,null,null,null,null,null,null,null,null,null,null,null,null,null,null,null,null,null,null,null,"Q75","REP","LIVERPOOL WOMEN'S NHS FOUNDATION TRUST","REP01","Liverpool Womens Hospital - REP01",null,"RN3","NORTHUMBRIA HEALTHCARE NHS FOUNDATION TRUST",null,"RN3","NORTHUMBRIA HEALTHCARE NHS FOUNDATION TRUST","RJF02","Ludlow Hospital (Maternity) - RXWML"]
[null,null,null,null,null,null,null,null,null,null,null,null,null,null,null,null,null,null,null,null,"Q75","RBT","MID CHESHIRE HOSPITALS NHS FOUNDATION TRUST","RBT20","Leighton Hospital - RBT20",null,"RN5","NOTTINGHAM UNIVERSITY HOSPITALS NHS TRUST",null,"RN5","NOTTINGHAM UNIVERSITY HOSPITALS NHS TRUST","RJL30","Luton and Dunstable Hospital - RC971"]
[null,null,null,null,null,null,null,null,null,null,null,null,null,null,null,null,null,null,null,null,"Q75","RVY","SOUTHPORT AND ORMSKIRK HOSPITAL NHS TRUST","RVY02","Ormskirk and District General Hospital - RVY02",null,"RN7","OXFORD UNIVERSITY HOSPITALS NHS FOUNDATION TRUST",null,"RN7","OXFORD UNIVERSITY HOSPITALS NHS FOUNDATION TRUST","RJL32","Macclesfield District General Hospital - RJN71"]
[null,null,null,null,null,null,null,null,null,null,null,null,null,null,null,null,null,null,null,null,"Q75","RBN","ST HELENS AND KNOWSLEY HOSPITAL SERVICES NHS TRUST","RBN01","Whiston Hospital - RBN01",null,"RNA","PENNINE ACUTE HOSPITALS NHS TRUST",null,"RNA","PENNINE ACUTE HOSPITALS NHS TRUST","RJN71","Maidstone District General Hospital - RWF03"]
[null,null,null,null,null,null,null,null,null,null,null,null,null,null,null,null,null,null,null,null,"Q75","RWW","WARRINGTON AND HALTON HOSPITALS NHS FOUNDATION TRUST","RWWWH","Warrington Hospital - RWWWH",null,"RNL","PLYMOUTH HOSPITALS NHS TRUST",null,"RNL","PLYMOUTH HOSPITALS NHS TRUST","RJR05","Manor Hospital - RBK02"]
[null,null,null,null,null,null,null,null,null,null,null,null,null,null,null,null,null,null,null,null,"Q75","RBL","WIRRAL UNIVERSITY TEACHING HOSPITAL NHS FOUNDATION TRUST","RBL14","Arrowe Park Hospital - RBL14",null,"RNQ","POOLE HOSPITAL NHS FOUNDATION TRUST",null,"RNQ","POOLE HOSPITAL NHS FOUNDATION TRUST","RJZ01","Medway Maritime Hospital - RPA02"]
[null,null,null,null,null,null,null,null,null,null,null,null,null,null,null,null,null,null,null,null,"Q76","RJF","BURTON HOSPITALS NHS FOUNDATION TRUST","RJF02","Queen's Hospital, Burton Upon Trent - RJF02",null,"RNS","PORTSMOUTH HOSPITALS NHS TRUST",null,"RNS","PORTSMOUTH HOSPITALS NHS TRUST","RJZ30","Milton Keynes Hospital - RD816"]
[null,null,null,null,null,null,null,null,null,null,null,null,null,null,null,null,null,null,null,null,"Q76","RFS","CHESTERFIELD ROYAL HOSPITAL NHS FOUNDATION TRUST","RFSDA","Chesterfield Royal Hospital - RFSDA",null,"RNZ","ROYAL BERKSHIRE NHS FOUNDATION TRUST",null,"RNZ","ROYAL BERKSHIRE NHS FOUNDATION TRUST","RK5BC","Musgrove Park Hospital - RBA11"]
[null,null,null,null,null,null,null,null,null,null,null,null,null,null,null,null,null,null,null,null,"Q76","RTG","DERBY TEACHING HOSPITALS NHS FOUNDATION TRUST","RTGFG","Royal Derby Hospital - RTGFG",null,"RP5","ROYAL CORNWALL HOSPITALS NHS TRUST",null,"RP5","ROYAL CORNWALL HOSPITALS NHS TRUST","RK950","New Cross Hospital - RL403"]
[null,null,null,null,null,null,null,null,null,null,null,null,null,null,null,null,null,null,null,null,"Q76","RX1","NOTTINGHAM UNIVERSITY HOSPITALS NHS TRUST","RX1CC","Nottingham University Hospitals NHS Trust - City Campus - RX1CC",null,"RPA","ROYAL DEVON AND EXETER NHS FOUNDATION TRUST",null,"RPA","ROYAL DEVON AND EXETER NHS FOUNDATION TRUST","RKB01","Newham General Hospital - R1HNH"]
[null,null,null,null,null,null,null,null,null,null,null,null,null,null,null,null,null,null,null,null,"Q76","RX1","NOTTINGHAM UNIVERSITY HOSPITALS NHS TRUST","RX1RA","Nottingham University Hospitals NHS Trust - Queen's Medical Centre Campus - RX1RA",null,"RQ3","ROYAL FREE LONDON NHS FOUNDATION TRUST",null,"RQ3","ROYAL FREE LONDON NHS FOUNDATION TRUST","RKEQ4","Norfolk and Norwich University Hospital - RM102"]
[null,null,null,null,null,null,null,null,null,null,null,null,null,null,null,null,null,null,null,null,"Q76","RK5","SHERWOOD FOREST HOSPITALS NHS FOUNDATION TRUST","RK5BC","King's Mill Hospital - RK5BC",null,"RQ8","ROYAL SURREY COUNTY HOSPITAL NHS FOUNDATION TRUST",null,"RQ8","ROYAL SURREY COUNTY HOSPITAL NHS FOUNDATION TRUST","RL403","North Devon District Hospital - RBZ12"]
[null,null,null,null,null,null,null,null,null,null,null,null,null,null,null,null,null,null,null,null,"Q76","RXW","SHREWSBURY AND TELFORD HOSPITAL NHS TRUST","RXWMB","Bridgnorth Hospital (Maternity) - RXWMB",null,"RQM","ROYAL UNITED HOSPITALS BATH NHS FOUNDATION TRUST",null,"RQM","ROYAL UNITED HOSPITALS BATH NHS FOUNDATION TRUST","RLNGL","North Manchester General Hospital - RW602"]
[null,null,null,null,null,null,null,null,null,null,null,null,null,null,null,null,null,null,null,null,"Q76","RXW","SHREWSBURY AND TELFORD HOSPITAL NHS TRUST","RXWML","Ludlow Hospital (Maternity) - RXWML",null,"RQW","SALISBURY NHS FOUNDATION TRUST",null,"RQW","SALISBURY NHS FOUNDATION TRUST","RLQ01","North Middlesex Hospital - RAPNM"]
[null,null,null,null,null,null,null,null,null,null,null,null,null,null,null,null,null,null,null,null,"Q76","RXW","SHREWSBURY AND TELFORD HOSPITAL NHS TRUST","RXWMJ","Robert Jones & Agnes Hunt Orthopaedic & District Hospital - RXWMJ",null,"RQX","SANDWELL AND WEST BIRMINGHAM HOSPITALS NHS TRUST",null,"RQX","SANDWELL AND WEST BIRMINGHAM HOSPITALS NHS TRUST","RLT01","Northampton General Hospital (Acute) - RNS01"]
[null,null,null,null,null,null,null,null,null,null,null,null,null,null,null,null,null,null,null,null,"Q76","RXW","SHREWSBURY AND TELFORD HOSPITAL NHS TRUST","RXWAS","Royal Shrewsbury Hospital - RXWAS",null,"RR1","SHEFFIELD TEACHING HOSPITALS NHS FOUNDATION TRUST",null,"RR1","SHEFFIELD TEACHING HOSPITALS NHS FOUNDATION TRUST","RM102","Nottingham University Hospitals NHS Trust - City Campus - RX1CC"]
[null,null,null,null,null,null,null,null,null,null,null,null,null,null,null,null,null,null,null,null,"Q76","RXW","SHREWSBURY AND TELFORD HOSPITAL NHS TRUST","RXWAT","The Princess Royal Hospital - RXWAT",null,"RR7","SHERWOOD FOREST HOSPITALS NHS FOUNDATION TRUST",null,"RR7","SHERWOOD FOREST HOSPITALS NHS FOUNDATION TRUST","RM202","Nottingham University Hospitals NHS Trust - Queen's Medical Centre Campus - RX1RA"]
[null,null,null,null,null,null,null,null,null,null,null,null,null,null,null,null,null,null,null,null,"Q76","RJE","UNIVERSITY HOSPITALS OF NORTH MIDLANDS NHS TRUST","RJE01","Royal Stoke University Hospital - RJE01",null,"RR8","SHREWSBURY AND TELFORD HOSPITAL NHS TRUST",null,"RR8","SHREWSBURY AND TELFORD HOSPITAL NHS TRUST","RMC01","Okehampton Community Hospital - RH833"]
[null,null,null,null,null,null,null,null,null,null,null,null,null,null,null,null,null,null,null,null,"Q77","RQ3","BIRMINGHAM WOMEN'S AND CHILDREN'S NHS FOUNDATION TRUST","RQ370","Birmingham Women's Hospital - RQ370",null,"RRF","SOUTH TEES HOSPITALS NHS FOUNDATION TRUST",null,"RRF","SOUTH TEES HOSPITALS NHS FOUNDATION TRUST","RMP01","Ormskirk and District General Hospital - RVY02"]
[null,null,null,null,null,null,null,null,null,null,null,null,null,null,null,null,null,null,null,null,"Q77","RLT","GEORGE ELIOT HOSPITAL NHS TRUST","RLT01","George Eliot Hospital - Acute Services - RLT01",null,"RRV","SOUTH TYNESIDE NHS FOUNDATION TRUST",null,"RRV","SOUTH TYNESIDE NHS FOUNDATION TRUST","RN325","Paulton Memorial Hospital  - RD129"]
[null,null,null,null,null,null,null,null,null,null,null,null,null,null,null,null,null,null,null,null,"Q77","RR1","HEART OF ENGLAND NHS FOUNDATION TRUST","RR105","Good Hope Hospital - RR105",null,"RTD","SOUTH WARWICKSHIRE NHS FOUNDATION TRUST",null,"RTD","SOUTH WARWICKSHIRE NHS FOUNDATION TRUST","RN506","Peterborough City Hospital - RGN80"]
[null,null,null,null,null,null,null,null,null,null,null,null,null,null,null,null,null,null,null,null,"Q77","RR1","HEART OF ENGLAND NHS FOUNDATION TRUST","RR101","Heartlands Hospital - RR101",null,"RTE","SOUTHEND UNIVERSITY HOSPITAL NHS FOUNDATION TRUST",null,"RTE","SOUTHEND UNIVERSITY HOSPITAL NHS FOUNDATION TRUST","RN541","Petersfield Community Hospital - RHU04"]
[null,null,null,null,null,null,null,null,null,null,null,null,null,null,null,null,null,null,null,null,"Q77","RR1","HEART OF ENGLAND NHS FOUNDATION TRUST","RR109","Solihull Hospital - RR109",null,"RTF","SOUTHPORT AND ORMSKIRK HOSPITAL NHS TRUST",null,"RTF","SOUTHPORT AND ORMSKIRK HOSPITAL NHS TRUST","RN707","Pilgrim Hospital - RWDLA"]
[null,null,null,null,null,null,null,null,null,null,null,null,null,null,null,null,null,null,null,null,"Q77","RXK","SANDWELL AND WEST BIRMINGHAM HOSPITALS NHS TRUST","RXK02","City Hospital - RXK02",null,"RTG","ST GEORGE'S UNIVERSITY HOSPITALS NHS FOUNDATION TRUST",null,"RTG","ST GEORGE'S UNIVERSITY HOSPITALS NHS FOUNDATION TRUST","RNA01","Pinderfields General Hospital - RXF05"]
[null,null,null,null,null,null,null,null,null,null,null,null,null,null,null,null,null,null,null,null,"Q77","RJC","SOUTH WARWICKSHIRE NHS FOUNDATION TRUST","RJC02","Warwick Hospital - RJC02",null,"RTH","ST HELENS AND KNOWSLEY HOSPITAL SERVICES NHS TRUST",null,"RTH","ST HELENS AND KNOWSLEY HOSPITAL SERVICES NHS TRUST","RNLAY","Poole General Hospital NHS Trust HQ - RD304"]
[null,null,null,null,null,null,null,null,null,null,null,null,null,null,null,null,null,null,null,null,"Q77","RNA","THE DUDLEY GROUP NHS FOUNDATION TRUST","RNA01","Russells Hall Hospital - RNA01",null,"RTK","STOCKPORT NHS FOUNDATION TRUST",null,"RTK","STOCKPORT NHS FOUNDATION TRUST","RNLBX","Princess Alexandra Hospital - RQWG0"]
[null,null,null,null,null,null,null,null,null,null,null,null,null,null,null,null,null,null,null,null,"Q77","RL4","THE ROYAL WOLVERHAMPTON NHS TRUST","RL403","New Cross Hospital - RL403",null,"RTP","SURREY AND SUSSEX HEALTHCARE NHS TRUST",null,"RTP","SURREY AND SUSSEX HEALTHCARE NHS TRUST","RNQ51","Princess Anne Wing RUH  - RD130"]
[null,null,null,null,null,null,null,null,null,null,null,null,null,null,null,null,null,null,null,null,"Q77","RKB","UNIVERSITY HOSPITALS COVENTRY AND WARWICKSHIRE NHS TRUST","RKB01","University Hospital (Coventry) - RKB01",null,"RTR","TAMESIDE AND GLOSSOP INTEGRATED CARE NHS FOUNDATION TRUST",null,"RTR","TAMESIDE AND GLOSSOP INTEGRATED CARE NHS FOUNDATION TRUST","RNS01","Princess Royal Hospital - RXH09"]
[null,null,null,null,null,null,null,null,null,null,null,null,null,null,null,null,null,null,null,null,"Q77","RBK","WALSALL HEALTHCARE NHS TRUST","RBK02","Manor Hospital - RBK02",null,"RTX","TAUNTON AND SOMERSET NHS FOUNDATION TRUST",null,"RTX","TAUNTON AND SOMERSET NHS FOUNDATION TRUST","RNZ02","Princess Royal University Hospital - RJZ30"]
[null,null,null,null,null,null,null,null,null,null,null,null,null,null,null,null,null,null,null,null,"Q77","RWP","WORCESTERSHIRE ACUTE HOSPITALS NHS TRUST","RWP50","Worcestershire Royal Hospital - RWP50",null,"RVJ","THE DUDLEY GROUP NHS FOUNDATION TRUST",null,"RVJ","THE DUDLEY GROUP NHS FOUNDATION TRUST","RP5BA","Queen Alexandra Hospital - RHU03"]
[null,null,null,null,null,null,null,null,null,null,null,null,null,null,null,null,null,null,null,null,"Q77","RLQ","WYE VALLEY NHS TRUST","RLQ01","Hereford County Hospital - RLQ01",null,"RVR","THE HILLINGDON HOSPITALS NHS FOUNDATION TRUST",null,"RVR","THE HILLINGDON HOSPITALS NHS FOUNDATION TRUST","RP5DR","Queen Charlotte's Hospital - RYJ04"]
[null,null,null,null,null,null,null,null,null,null,null,null,null,null,null,null,null,null,null,null,"Q78","RC1","BEDFORD HOSPITAL NHS TRUST","RC110","Bedford Hospital South Wing - RC110",null,"RVV","THE NEWCASTLE UPON TYNE HOSPITALS NHS FOUNDATION TRUST",null,"RVV","THE NEWCASTLE UPON TYNE HOSPITALS NHS FOUNDATION TRUST","RPA02","Queen Elizabeth Hospital - RJ231"]
[null,null,null,null,null,null,null,null,null,null,null,null,null,null,null,null,null,null,null,null,"Q78","RWH","EAST AND NORTH HERTFORDSHIRE NHS TRUST","RWH01","Lister Hospital - RWH01",null,"RVW","THE PRINCESS ALEXANDRA HOSPITAL NHS TRUST",null,"RVW","THE PRINCESS ALEXANDRA HOSPITAL NHS TRUST","RQ370","Queen Elizabeth Hospital - RR7EN"]
[null,null,null,null,null,null,null,null,null,null,null,null,null,null,null,null,null,null,null,null,"Q78","RNQ","KETTERING GENERAL HOSPITAL NHS FOUNDATION TRUST","RNQ51","Kettering General Hospital - RNQ51",null,"RVY","THE QUEEN ELIZABETH HOSPITAL, KING'S LYNN, NHS FOUNDATION TRUST",null,"RVY","THE QUEEN ELIZABETH HOSPITAL, KING'S LYNN, NHS FOUNDATION TRUST","RQ8L0","Queen Elizabeth The Queen Mother Hospital - RVV09"]
[null,null,null,null,null,null,null,null,null,null,null,null,null,null,null,null,null,null,null,null,"Q78","RC9","LUTON AND DUNSTABLE UNIVERSITY HOSPITAL NHS FOUNDATION TRUST","RC971","Luton and Dunstable Hospital - RC971",null,"RW3","THE ROTHERHAM NHS FOUNDATION TRUST",null,"RW3","THE ROTHERHAM NHS FOUNDATION TRUST","RQM01","Queen's Hospital - RF4QH"]
[null,null,null,null,null,null,null,null,null,null,null,null,null,null,null,null,null,null,null,null,"Q78","RD8","MILTON KEYNES UNIVERSITY HOSPITAL NHS FOUNDATION TRUST","RD816","Milton Keynes Hospital - RD816",null,"RW6","THE ROYAL BOURNEMOUTH AND CHRISTCHURCH HOSPITALS NHS FOUNDATION TRUST",null,"RW6","THE ROYAL BOURNEMOUTH AND CHRISTCHURCH HOSPITALS NHS FOUNDATION TRUST","RQM91","Queen's Hospital, Burton Upon Trent - RJF02"]
[null,null,null,null,null,null,null,null,null,null,null,null,null,null,null,null,null,null,null,null,"Q78","RNS","NORTHAMPTON GENERAL HOSPITAL NHS TRUST","RNS01","Northampton General Hospital (Acute) - RNS01",null,"RWA","THE ROYAL WOLVERHAMPTON NHS TRUST",null,"RWA","THE ROYAL WOLVERHAMPTON NHS TRUST","RQWG0","Robert Jones & Agnes Hunt Orthopaedic & District Hospital - RXWMJ"]
[null,null,null,null,null,null,null,null,null,null,null,null,null,null,null,null,null,null,null,null,"Q78","RWD","UNITED LINCOLNSHIRE HOSPITALS NHS TRUST","RWDLP","Grantham and District Hospital - RWDLP",null,"RWD","THE WHITTINGTON HOSPITAL NHS TRUST",null,"RWD","THE WHITTINGTON HOSPITAL NHS TRUST","RQXM1","Rosie Hospital - RGT32"]
[null,null,null,null,null,null,null,null,null,null,null,null,null,null,null,null,null,null,null,null,"Q78","RWD","UNITED LINCOLNSHIRE HOSPITALS NHS TRUST","RWDDA","Lincoln County Hospital - RWDDA",null,"RWE","TORBAY AND SOUTH DEVON NHS FOUNDATION TRUST",null,"RWE","TORBAY AND SOUTH DEVON NHS FOUNDATION TRUST","RR101","Rotherham District General Hospital - RFRPA"]
[null,null,null,null,null,null,null,null,null,null,null,null,null,null,null,null,null,null,null,null,"Q78","RWD","UNITED LINCOLNSHIRE HOSPITALS NHS TRUST","RWDLA","Pilgrim Hospital - RWDLA",null,"RWF","UNITED LINCOLNSHIRE HOSPITALS NHS TRUST",null,"RWF","UNITED LINCOLNSHIRE HOSPITALS NHS TRUST","RR105","Royal Albert Edward Infirmary - RRF02"]
[null,null,null,null,null,null,null,null,null,null,null,null,null,null,null,null,null,null,null,null,"Q78","RWE","UNIVERSITY HOSPITALS OF LEICESTER NHS TRUST","RWEAK","Leicester General Hospital - RWEAK",null,"RWG","UNIVERSITY COLLEGE LONDON HOSPITALS NHS FOUNDATION TRUST",null,"RWG","UNIVERSITY COLLEGE LONDON HOSPITALS NHS FOUNDATION TRUST","RR109","Royal Berkshire Hospital - RHW01"]
[null,null,null,null,null,null,null,null,null,null,null,null,null,null,null,null,null,null,null,null,"Q78","RWE","UNIVERSITY HOSPITALS OF LEICESTER NHS TRUST","RWEAA","Leicester Royal Infirmary - RWEAA",null,"RWH","UNIVERSITY HOSPITAL OF SOUTH MANCHESTER NHS FOUNDATION TRUST",null,"RWH","UNIVERSITY HOSPITAL OF SOUTH MANCHESTER NHS FOUNDATION TRUST","RR7EN","Royal Blackburn Hospital - RXR20"]
[null,null,null,null,null,null,null,null,null,null,null,null,null,null,null,null,null,null,null,null,"Q78","RWE","UNIVERSITY HOSPITALS OF LEICESTER NHS TRUST","RWE10","St Mary's Hospital - RWE10",null,"RWJ","UNIVERSITY HOSPITAL SOUTHAMPTON NHS FOUNDATION TRUST",null,"RWJ","UNIVERSITY HOSPITAL SOUTHAMPTON NHS FOUNDATION TRUST","RR801","Royal Bolton Hospital - RMC01"]
[null,null,null,null,null,null,null,null,null,null,null,null,null,null,null,null,null,null,null,null,"Q78","RWG","WEST HERTFORDSHIRE HOSPITALS NHS TRUST","RWG02","Watford General Hospital - RWG02",null,"RWP","UNIVERSITY HOSPITALS BRISTOL NHS FOUNDATION TRUST",null,"RWP","UNIVERSITY HOSPITALS BRISTOL NHS FOUNDATION TRUST","RR813","Royal Bournemouth General Hospital - RDZ20"]
[null,null,null,null,null,null,null,null,null,null,null,null,null,null,null,null,null,null,null,null,"Q79","RDD","BASILDON AND THURROCK UNIVERSITY HOSPITALS NHS FOUNDATION TRUST","RDDH0","Basildon University Hospital - RDDH0",null,"RWW","UNIVERSITY HOSPITALS COVENTRY AND WARWICKSHIRE NHS TRUST",null,"RWW","UNIVERSITY HOSPITALS COVENTRY AND WARWICKSHIRE NHS TRUST","RRF02","Royal Cornwall Hospital (Treliske) - REF12"]
[null,null,null,null,null,null,null,null,null,null,null,null,null,null,null,null,null,null,null,null,"Q79","RGT","CAMBRIDGE UNIVERSITY HOSPITALS NHS FOUNDATION TRUST","RGT32","Rosie Hospital - RGT32",null,"RWY","UNIVERSITY HOSPITALS OF LEICESTER NHS TRUST",null,"RWY","UNIVERSITY HOSPITALS OF LEICESTER NHS TRUST","RRV03","Royal Derby Hospital - RTGFG"]
[null,null,null,null,null,null,null,null,null,null,null,null,null,null,null,null,null,null,null,null,"Q79","RDE","COLCHESTER HOSPITAL UNIVERSITY NHS FOUNDATION TRUST","RDEE2","Clacton and District Hospital - RDEE2",null,"RX1","UNIVERSITY HOSPITALS OF MORECAMBE BAY NHS FOUNDATION TRUST",null,"RX1","UNIVERSITY HOSPITALS OF MORECAMBE BAY NHS FOUNDATION TRUST","RTD02","Royal Devon and Exeter Hospital (Wonford) - RH801"]
[null,null,null,null,null,null,null,null,null,null,null,null,null,null,null,null,null,null,null,null,"Q79","RDE","COLCHESTER HOSPITAL UNIVERSITY NHS FOUNDATION TRUST","RDEE4","Colchester General Hospital - RDEE4",null,"RXC","UNIVERSITY HOSPITALS OF NORTH MIDLANDS NHS TRUST",null,"RXC","UNIVERSITY HOSPITALS OF NORTH MIDLANDS NHS TRUST","RTE03","Royal Free Hospital - RAL01"]
[null,null,null,null,null,null,null,null,null,null,null,null,null,null,null,null,null,null,null,null,"Q79","RGQ","IPSWICH HOSPITAL NHS TRUST","RGQ02","The Ipswich Hospital NHS Trust - RGQ02",null,"RXF","WALSALL HEALTHCARE NHS TRUST",null,"RXF","WALSALL HEALTHCARE NHS TRUST","RTE26","Royal Hallamshire Hospital - RHQHH"]
[null,null,null,null,null,null,null,null,null,null,null,null,null,null,null,null,null,null,null,null,"Q79","RGP","JAMES PAGET UNIVERSITY HOSPITALS NHS FOUNDATION TRUST","RGP75","James Paget University Hospital - RGP75",null,"RXH","WARRINGTON AND HALTON HOSPITALS NHS FOUNDATION TRUST",null,"RXH","WARRINGTON AND HALTON HOSPITALS NHS FOUNDATION TRUST","RTF86","Royal Hampshire County Hospital - RN541"]
[null,null,null,null,null,null,null,null,null,null,null,null,null,null,null,null,null,null,null,null,"Q79","RQ8","MID ESSEX HOSPITAL SERVICES NHS TRUST","RQ8L0","Broomfield Hospital - RQ8L0",null,"RXK","WEST HERTFORDSHIRE HOSPITALS NHS TRUST",null,"RXK","WEST HERTFORDSHIRE HOSPITALS NHS TRUST","RTFDH","Royal Lancaster Infirmary - RTX02"]
[null,null,null,null,null,null,null,null,null,null,null,null,null,null,null,null,null,null,null,null,"Q79","RM1","NORFOLK AND NORWICH UNIVERSITY HOSPITALS NHS FOUNDATION TRUST","RM102","Norfolk and Norwich University Hospital - RM102",null,"RXL","WEST SUFFOLK NHS FOUNDATION TRUST",null,"RXL","WEST SUFFOLK NHS FOUNDATION TRUST","RTFDJ","Royal Oldham Hospital - RW603"]
[null,null,null,null,null,null,null,null,null,null,null,null,null,null,null,null,null,null,null,null,"Q79","RGN","NORTH WEST ANGLIA NHS FOUNDATION TRUST","RGN90","Hinchingbrooke Hospital - RGN90",null,"RXN","WESTERN SUSSEX HOSPITALS NHS FOUNDATION TRUST",null,"RXN","WESTERN SUSSEX HOSPITALS NHS FOUNDATION TRUST","RTFDR","Royal Preston Hospital - RXN02"]
[null,null,null,null,null,null,null,null,null,null,null,null,null,null,null,null,null,null,null,null,"Q79","RGN","NORTH WEST ANGLIA NHS FOUNDATION TRUST","RGN80","Peterborough City Hospital - RGN80",null,"RXP","WESTON AREA HEALTH NHS TRUST",null,"RXP","WESTON AREA HEALTH NHS TRUST","RTGFG","Royal Shrewsbury Hospital - RXWAS"]
[null,null,null,null,null,null,null,null,null,null,null,null,null,null,null,null,null,null,null,null,"Q79","RAJ","SOUTHEND UNIVERSITY HOSPITAL NHS FOUNDATION TRUST","RAJ01","Southend Hospital - RAJ01",null,"RXQ","WIRRAL UNIVERSITY TEACHING HOSPITAL NHS FOUNDATION TRUST",null,"RXQ","WIRRAL UNIVERSITY TEACHING HOSPITAL NHS FOUNDATION TRUST","RTH05","Royal Stoke University Hospital - RJE01"]
[null,null,null,null,null,null,null,null,null,null,null,null,null,null,null,null,null,null,null,null,"Q79","RQW","THE PRINCESS ALEXANDRA HOSPITAL NHS TRUST","RQWG0","Princess Alexandra Hospital - RQWG0",null,"RXR","WORCESTERSHIRE ACUTE HOSPITALS NHS TRUST",null,"RXR","WORCESTERSHIRE ACUTE HOSPITALS NHS TRUST","RTH08","Royal Surrey County Hospital - RA201"]
[null,null,null,null,null,null,null,null,null,null,null,null,null,null,null,null,null,null,null,null,"Q79","RCX","THE QUEEN ELIZABETH HOSPITAL, KING'S LYNN, NHS FOUNDATION TRUST","RCX70","The Queen Elizabeth Hospital - RCX70",null,"RXW","WRIGHTINGTON, WIGAN AND LEIGH NHS FOUNDATION TRUST",null,"RXW","WRIGHTINGTON, WIGAN AND LEIGH NHS FOUNDATION TRUST","RTH16","Royal Sussex County Hospital - RXH01"]
[null,null,null,null,null,null,null,null,null,null,null,null,null,null,null,null,null,null,null,null,"Q79","RGR","WEST SUFFOLK NHS FOUNDATION TRUST","RGR50","West Suffolk Hospital - RGR50",null,"RY2","WYE VALLEY NHS TRUST",null,"RY2","WYE VALLEY NHS TRUST","RTH19","Russells Hall Hospital - RNA01"]
[null,null,null,null,null,null,null,null,null,null,null,null,null,null,null,null,null,null,null,null,"Q80","RVJ","NORTH BRISTOL NHS TRUST","RVJ21","Cossham Hospital - RVJ21",null,"RYJ","YEOVIL DISTRICT HOSPITAL NHS FOUNDATION TRUST",null,"RYJ","YEOVIL DISTRICT HOSPITAL NHS FOUNDATION TRUST","RTH21","Salisbury District Hospital - RNZ02"]
[null,null,null,null,null,null,null,null,null,null,null,null,null,null,null,null,null,null,null,null,"Q80","RVJ","NORTH BRISTOL NHS TRUST","RVJ01","Southmead Hospital - RVJ01",null,"RYR","YORK TEACHING HOSPITAL NHS FOUNDATION TRUST",null,"RYR","YORK TEACHING HOSPITAL NHS FOUNDATION TRUST","RTK02","Scarborough General Hospital - RCBCA"]
[null,null,null,null,null,null,null,null,null,null,null,null,null,null,null,null,null,null,null,null,"Q80","RBZ","NORTHERN DEVON HEALTHCARE NHS TRUST","RBZ12","North Devon District Hospital - RBZ12",null,null,null,null,null,null,"RTP04","Scunthorpe General Hospital - RJL32"]
[null,null,null,null,null,null,null,null,null,null,null,null,null,null,null,null,null,null,null,null,"Q80","RK9","PLYMOUTH HOSPITALS NHS TRUST","RK950","Derriford Hospital - RK950",null,null,null,null,null,null,"RTR45","Solihull Hospital - RR109"]
[null,null,null,null,null,null,null,null,null,null,null,null,null,null,null,null,null,null,null,null,"Q80","REF","ROYAL CORNWALL HOSPITALS NHS TRUST","REF12","Royal Cornwall Hospital (Treliske) - REF12",null,null,null,null,null,null,"RTRAT","South Tyneside District Hospital - RE9GA"]
[null,null,null,null,null,null,null,null,null,null,null,null,null,null,null,null,null,null,null,null,"Q80","RH8","ROYAL DEVON AND EXETER NHS FOUNDATION TRUST","RH854","Honiton Hospital - RH 854",null,null,null,null,null,null,"RTX02","Southampton General Hospital - RHM01"]
[null,null,null,null,null,null,null,null,null,null,null,null,null,null,null,null,null,null,null,null,"Q80","RH8","ROYAL DEVON AND EXETER NHS FOUNDATION TRUST","RH833","Okehampton Community Hospital - RH833",null,null,null,null,null,null,"RTXBU","Southend Hospital - RAJ01"]
[null,null,null,null,null,null,null,null,null,null,null,null,null,null,null,null,null,null,null,null,"Q80","RH8","ROYAL DEVON AND EXETER NHS FOUNDATION TRUST","RH801","Royal Devon and Exeter Hospital (Wonford) - RH801",null,null,null,null,null,null,"RVJ01","Southmead Hospital - RVJ01"]
[null,null,null,null,null,null,null,null,null,null,null,null,null,null,null,null,null,null,null,null,"Q80","RH8","ROYAL DEVON AND EXETER NHS FOUNDATION TRUST","RH853","Tiverton and District Hospital - RH853",null,null,null,null,null,null,"RVJ21","St George's Hospital (Tooting) - RJ701"]
[null,null,null,null,null,null,null,null,null,null,null,null,null,null,null,null,null,null,null,null,"Q80","RBA","TAUNTON AND SOMERSET NHS FOUNDATION TRUST","RBAC3","Bridgwater Hospital - RBAC3",null,null,null,null,null,null,"RVR05","St Helier Hospital - RVR05"]
[null,null,null,null,null,null,null,null,null,null,null,null,null,null,null,null,null,null,null,null,"Q80","RBA","TAUNTON AND SOMERSET NHS FOUNDATION TRUST","RBA11","Musgrove Park Hospital - RBA11",null,null,null,null,null,null,"RVR50","St James's University Hospital - RR813"]
[null,null,null,null,null,null,null,null,null,null,null,null,null,null,null,null,null,null,null,null,"Q80","RA9","TORBAY AND SOUTH DEVON NHS FOUNDATION TRUST","RA901","Torbay Hospital - RA901",null,null,null,null,null,null,"RVV01","St Mary's Hospital - R1F01"]
[null,null,null,null,null,null,null,null,null,null,null,null,null,null,null,null,null,null,null,null,"Q80","RA7","UNIVERSITY HOSPITALS BRISTOL NHS FOUNDATION TRUST","RA707","St Michael's Hospital - RA707",null,null,null,null,null,null,"RVV09","St Mary's Hospital - RHU02"]
[null,null,null,null,null,null,null,null,null,null,null,null,null,null,null,null,null,null,null,null,"Q80","RA3","WESTON AREA HEALTH NHS TRUST","RA301","Weston General Hospital - RA301",null,null,null,null,null,null,"RVWAE","St Mary's Hospital - RW3SM"]
[null,null,null,null,null,null,null,null,null,null,null,null,null,null,null,null,null,null,null,null,"Q80","RA4","YEOVIL DISTRICT HOSPITAL NHS FOUNDATION TRUST","RA430","Yeovil District Hospital - RA430",null,null,null,null,null,null,"RVY02","St Mary's Hospital - RWE10"]
[null,null,null,null,null,null,null,null,null,null,null,null,null,null,null,null,null,null,null,null,"Q81","RTK","ASHFORD AND ST PETER'S HOSPITALS NHS FOUNDATION TRUST","RTK02","Ashford Hospital - RTK02",null,null,null,null,null,null,"RW3SM","St Mary's Hospital (HQ) - RYJ01"]
[null,null,null,null,null,null,null,null,null,null,null,null,null,null,null,null,null,null,null,null,"Q81","RXH","BRIGHTON AND SUSSEX UNIVERSITY HOSPITALS NHS TRUST","RXH09","Princess Royal Hospital - RXH09",null,null,null,null,null,null,"RW602","St Michael's Hospital - RA707"]
[null,null,null,null,null,null,null,null,null,null,null,null,null,null,null,null,null,null,null,null,"Q81","RXH","BRIGHTON AND SUSSEX UNIVERSITY HOSPITALS NHS TRUST","RXH01","Royal Sussex County Hospital - RXH01",null,null,null,null,null,null,"RW603","St Richard's Hospital - RYR16"]
[null,null,null,null,null,null,null,null,null,null,null,null,null,null,null,null,null,null,null,null,"Q81","RN7","DARTFORD AND GRAVESHAM NHS TRUST","RN707","Darent Valley Hospital - RN707",null,null,null,null,null,null,"RWA01","St Thomas' Hospital - RJ122"]
[null,null,null,null,null,null,null,null,null,null,null,null,null,null,null,null,null,null,null,null,"Q81","RVV","EAST KENT HOSPITALS UNIVERSITY NHS FOUNDATION TRUST","RVV09","Queen Elizabeth The Queen Mother Hospital - RVV09",null,null,null,null,null,null,"RWDDA","Stepping Hill Hospital - RWJ09"]
[null,null,null,null,null,null,null,null,null,null,null,null,null,null,null,null,null,null,null,null,"Q81","RVV","EAST KENT HOSPITALS UNIVERSITY NHS FOUNDATION TRUST","RVV01","William Harvey Hospital (Ashford) - RVV01",null,null,null,null,null,null,"RWDLA","Stoke Mandeville Hospital - RXQ02"]
[null,null,null,null,null,null,null,null,null,null,null,null,null,null,null,null,null,null,null,null,"Q81","RXC","EAST SUSSEX HEALTHCARE NHS TRUST","RXC01","Conquest Hospital - RXC01",null,null,null,null,null,null,"RWDLP","Stroud General Hospital - RTE26"]
[null,null,null,null,null,null,null,null,null,null,null,null,null,null,null,null,null,null,null,null,"Q81","RXC","EAST SUSSEX HEALTHCARE NHS TRUST","RXC02","Eastbourne District General Hospital - RXC02",null,null,null,null,null,null,"RWE10","Sunderland Royal Hospital - RLNGL"]
[null,null,null,null,null,null,null,null,null,null,null,null,null,null,null,null,null,null,null,null,"Q81","RDU","FRIMLEY HEALTH NHS FOUNDATION TRUST","RDU01","Frimley Park Hospital - RDU01",null,null,null,null,null,null,"RWEAA","Tameside General Hospital - RMP01"]
[null,null,null,null,null,null,null,null,null,null,null,null,null,null,null,null,null,null,null,null,"Q81","RDU","FRIMLEY HEALTH NHS FOUNDATION TRUST","RDU50","Wexham Park Hospital - RDU50",null,null,null,null,null,null,"RWEAK","The Great Western Hospital - RN325"]
[null,null,null,null,null,null,null,null,null,null,null,null,null,null,null,null,null,null,null,null,"Q81","RWF","MAIDSTONE AND TUNBRIDGE WELLS NHS TRUST","RWF03","Maidstone District General Hospital - RWF03",null,null,null,null,null,null,"RWF03","The Ipswich Hospital NHS Trust - RGQ02"]
[null,null,null,null,null,null,null,null,null,null,null,null,null,null,null,null,null,null,null,null,"Q81","RWF","MAIDSTONE AND TUNBRIDGE WELLS NHS TRUST","RWFTW","The Tunbridge Wells Hospital - RWFTW",null,null,null,null,null,null,"RWFTW","The James Cook University Hospital - RTRAT"]
[null,null,null,null,null,null,null,null,null,null,null,null,null,null,null,null,null,null,null,null,"Q81","RPA","MEDWAY NHS FOUNDATION TRUST","RPA02","Medway Maritime Hospital - RPA02",null,null,null,null,null,null,"RWG02","The Northumbria - RTF86"]
[null,null,null,null,null,null,null,null,null,null,null,null,null,null,null,null,null,null,null,null,"Q81","RA2","ROYAL SURREY COUNTY HOSPITAL NHS FOUNDATION TRUST","RA201","Royal Surrey County Hospital - RA201",null,null,null,null,null,null,"RWH01","The Princess Royal Hospital - RXWAT"]
[null,null,null,null,null,null,null,null,null,null,null,null,null,null,null,null,null,null,null,null,"Q81","RTP","SURREY AND SUSSEX HEALTHCARE NHS TRUST","RTP04","East Surrey Hospital - RTP04",null,null,null,null,null,null,"RWJ09","The Queen Elizabeth Hospital - RCX70"]
[null,null,null,null,null,null,null,null,null,null,null,null,null,null,null,null,null,null,null,null,"Q81","RYR","WESTERN SUSSEX HOSPITALS NHS FOUNDATION TRUST","RYR16","St Richard's Hospital - RYR16",null,null,null,null,null,null,"RWP50","The Royal London Hospital - R1H12"]
[null,null,null,null,null,null,null,null,null,null,null,null,null,null,null,null,null,null,null,null,"Q81","RYR","WESTERN SUSSEX HOSPITALS NHS FOUNDATION TRUST","RYR18","Worthing Hospital - RYR18",null,null,null,null,null,null,"RWWWH","The Royal Victoria Infirmary - RTD02"]
[null,null,null,null,null,null,null,null,null,null,null,null,null,null,null,null,null,null,null,null,"Q82","RXQ","BUCKINGHAMSHIRE HEALTHCARE NHS TRUST","RXQ02","Stoke Mandeville Hospital - RXQ02",null,null,null,null,null,null,"RWY01","The Tunbridge Wells Hospital - RWFTW"]
[null,null,null,null,null,null,null,null,null,null,null,null,null,null,null,null,null,null,null,null,"Q82","RTE","GLOUCESTERSHIRE HOSPITALS NHS FOUNDATION TRUST","RTE03","Gloucestershire Royal Hospital - RTE03",null,null,null,null,null,null,"RWY02","The Whittington Hospital - RKEQ4"]
[null,null,null,null,null,null,null,null,null,null,null,null,null,null,null,null,null,null,null,null,"Q82","RTE","GLOUCESTERSHIRE HOSPITALS NHS FOUNDATION TRUST","RTE26","Stroud General Hospital - RTE26",null,null,null,null,null,null,"RX1CC","Tiverton and District Hospital - RH853"]
[null,null,null,null,null,null,null,null,null,null,null,null,null,null,null,null,null,null,null,null,"Q82","RN3","GREAT WESTERN HOSPITALS NHS FOUNDATION TRUST","RN325","The Great Western Hospital - RN325",null,null,null,null,null,null,"RX1RA","Torbay Hospital - RA901"]
[null,null,null,null,null,null,null,null,null,null,null,null,null,null,null,null,null,null,null,null,"Q82","RTH","OXFORD UNIVERSITY HOSPITALS NHS FOUNDATION TRUST","RTH19","Chipping Norton Community Hospital - RTH19",null,null,null,null,null,null,"RXC01","University College Hospital - RRV03"]
[null,null,null,null,null,null,null,null,null,null,null,null,null,null,null,null,null,null,null,null,"Q82","RTH","OXFORD UNIVERSITY HOSPITALS NHS FOUNDATION TRUST","RTH05","Horton General Hospital - RTH05",null,null,null,null,null,null,"RXC02","University Hospital (Coventry) - RKB01"]
[null,null,null,null,null,null,null,null,null,null,null,null,null,null,null,null,null,null,null,null,"Q82","RTH","OXFORD UNIVERSITY HOSPITALS NHS FOUNDATION TRUST","RTH08","John Radcliffe Hospital - RTH08",null,null,null,null,null,null,"RXF05","University Hospital Lewisham - RJ224"]
[null,null,null,null,null,null,null,null,null,null,null,null,null,null,null,null,null,null,null,null,"Q82","RTH","OXFORD UNIVERSITY HOSPITALS NHS FOUNDATION TRUST","RTH16","Wallingford Community Hospital - RTH16",null,null,null,null,null,null,"RXH01","University Hospital Of North Durham - RXPCP"]
[null,null,null,null,null,null,null,null,null,null,null,null,null,null,null,null,null,null,null,null,"Q82","RTH","OXFORD UNIVERSITY HOSPITALS NHS FOUNDATION TRUST","RTH21","Wantage Community Hospital - RTH21",null,null,null,null,null,null,"RXH09","University Hospital Of North Tees - RVWAE"]
[null,null,null,null,null,null,null,null,null,null,null,null,null,null,null,null,null,null,null,null,"Q82","RHW","ROYAL BERKSHIRE NHS FOUNDATION TRUST","RHW01","Royal Berkshire Hospital - RHW01",null,null,null,null,null,null,"RXK02","Wallingford Community Hospital - RTH16"]
[null,null,null,null,null,null,null,null,null,null,null,null,null,null,null,null,null,null,null,null,"Q82","RD1","ROYAL UNITED HOSPITALS BATH NHS FOUNDATION TRUST","RD102","Chippenham Community Hospital -RD102",null,null,null,null,null,null,"RXL01","Wantage Community Hospital - RTH21"]
[null,null,null,null,null,null,null,null,null,null,null,null,null,null,null,null,null,null,null,null,"Q82","RD1","ROYAL UNITED HOSPITALS BATH NHS FOUNDATION TRUST","RD129","Paulton Memorial Hospital  - RD129",null,null,null,null,null,null,"RXN01","Warrington Hospital - RWWWH"]
[null,null,null,null,null,null,null,null,null,null,null,null,null,null,null,null,null,null,null,null,"Q82","RD1","ROYAL UNITED HOSPITALS BATH NHS FOUNDATION TRUST","RD130","Princess Anne Wing RUH  - RD130",null,null,null,null,null,null,"RXN02","Warwick Hospital - RJC02"]
[null,null,null,null,null,null,null,null,null,null,null,null,null,null,null,null,null,null,null,null,"Q82","RNZ","SALISBURY NHS FOUNDATION TRUST","RNZ02","Salisbury District Hospital - RNZ02",null,null,null,null,null,null,"RXPCP","Watford General Hospital - RWG02"]
[null,null,null,null,null,null,null,null,null,null,null,null,null,null,null,null,null,null,null,null,"Q83","RMC","BOLTON NHS FOUNDATION TRUST","RMC01","Royal Bolton Hospital - RMC01",null,null,null,null,null,null,"RXPDA","West Cumberland Hospital - RNLBX"]
[null,null,null,null,null,null,null,null,null,null,null,null,null,null,null,null,null,null,null,null,"Q83","RY2","BRIDGEWATER COMMUNITY HEALTHCARE NHS FOUNDATION TRUST","RY28P","Health Care Resource Centre - RY28P",null,null,null,null,null,null,"RXQ02","West Middlesex University Hospital - RQM91"]
[null,null,null,null,null,null,null,null,null,null,null,null,null,null,null,null,null,null,null,null,"Q83","RW3","CENTRAL MANCHESTER UNIVERSITY HOSPITALS NHS FOUNDATION TRUST","RW3SM","St Mary's Hospital - RW3SM",null,null,null,null,null,null,"RXR20","West Suffolk Hospital - RGR50"]
[null,null,null,null,null,null,null,null,null,null,null,null,null,null,null,null,null,null,null,null,"Q83","RW6","PENNINE ACUTE HOSPITALS NHS TRUST","RW602","North Manchester General Hospital - RW602",null,null,null,null,null,null,"RXWAS","Weston General Hospital - RA301"]
[null,null,null,null,null,null,null,null,null,null,null,null,null,null,null,null,null,null,null,null,"Q83","RW6","PENNINE ACUTE HOSPITALS NHS TRUST","RW603","Royal Oldham Hospital - RW603",null,null,null,null,null,null,"RXWAT","Wexham Park Hospital - RDU50"]
[null,null,null,null,null,null,null,null,null,null,null,null,null,null,null,null,null,null,null,null,"Q83","RWJ","STOCKPORT NHS FOUNDATION TRUST","RWJ09","Stepping Hill Hospital - RWJ09",null,null,null,null,null,null,"RXWMB","Whipps Cross University Hospital - R1HKH"]
[null,null,null,null,null,null,null,null,null,null,null,null,null,null,null,null,null,null,null,null,"Q83","RMP","TAMESIDE AND GLOSSOP INTEGRATED CARE NHS FOUNDATION TRUST","RMP01","Tameside General Hospital - RMP01",null,null,null,null,null,null,"RXWMJ","Whiston Hospital - RBN01"]
[null,null,null,null,null,null,null,null,null,null,null,null,null,null,null,null,null,null,null,null,"Q83","RM2","UNIVERSITY HOSPITAL OF SOUTH MANCHESTER NHS FOUNDATION TRUST","RM202","Wythenshawe Hospital - RM202",null,null,null,null,null,null,"RXWML","William Harvey Hospital (Ashford) - RVV01"]
[null,null,null,null,null,null,null,null,null,null,null,null,null,null,null,null,null,null,null,null,"Q83","RRF","WRIGHTINGTON, WIGAN AND LEIGH NHS FOUNDATION TRUST","RRF02","Royal Albert Edward Infirmary - RRF02",null,null,null,null,null,null,"RY28P","Worcestershire Royal Hospital - RWP50"]
[null,null,null,null,null,null,null,null,null,null,null,null,null,null,null,null,null,null,null,null,"Q84","RXL","BLACKPOOL TEACHING HOSPITALS NHS FOUNDATION TRUST","RXL01","Blackpool Victoria Hospital - RXL01",null,null,null,null,null,null,"RYJ01","Worthing Hospital - RYR18"]
[null,null,null,null,null,null,null,null,null,null,null,null,null,null,null,null,null,null,null,null,"Q84","RXR","EAST LANCASHIRE HOSPITALS NHS TRUST","RXR20","Royal Blackburn Hospital - RXR20",null,null,null,null,null,null,"RYJ04","Wythenshawe Hospital - RM202"]
[null,null,null,null,null,null,null,null,null,null,null,null,null,null,null,null,null,null,null,null,"Q84","RXN","LANCASHIRE TEACHING HOSPITALS NHS FOUNDATION TRUST","RXN01","Chorley and South Ribble Hospital - RXN01",null,null,null,null,null,null,"RYR16","Yeovil District Hospital - RA430"]
[null,null,null,null,null,null,null,null,null,null,null,null,null,null,null,null,null,null,null,null,"Q84","RXN","LANCASHIRE TEACHING HOSPITALS NHS FOUNDATION TRUST","RXN02","Royal Preston Hospital - RXN02",null,null,null,null,null,null,"RYR18","York Hospital - RCB55"]

{"sheet":"BSQ4","index":16,"n_rows":136,"n_cols":28,"rows_kept":136,"cut":false,"hidden":true,"merged":[]}
[null,"Sort","Region (LO)","Region (LO)","Trusts","Trusts",null,null,null,"Sort ranges:","Sort range…","Sort range…",null,"Reference Region List:","Code…","Name…","Linked Region List:","Code…","Name…","Reference Lists:","Code…","Code…","Name…",null,null,"Trusts Linked Lists:","Code…","Name…"]
["Region (LO)",1,1,1,"-","-",null,null,null,null,"Region (LO) Code","Region (LO) Code",null,null,"Q72","NHS England Yorkshire & Humber",null,"Q70","NHS England Central Midlands",null,"Q70","R1F","ISLE OF WIGHT NHS TRUST",null,null,null,"NDE","AIREDALE NHS FOUNDATION TRUST"]
["Trusts",1,1,1,1,1,null,null,null,null,"Region (Local Office)","Trust Code",null,null,"Q74","NHS England Cumbria & North East",null,"Q71","NHS England Cheshire & Merseyside",null,"Q70","RDZ","THE ROYAL BOURNEMOUTH AND CHRISTCHURCH HOSPITALS NHS FOUNDATION TRUST",null,null,null,"R1F","ASHFORD AND ST PETER'S HOSPITALS NHS FOUNDATION TRUST"]
[null,null,null,null,null,null,null,null,null,null,"Total Responses","Trust Name",null,null,"Q75","NHS England Cheshire & Merseyside",null,"Q72","NHS England Cumbria & North East",null,"Q70","RD3","POOLE HOSPITAL NHS FOUNDATION TRUST",null,null,null,"R1H","BARKING, HAVERING AND REDBRIDGE UNIVERSITY HOSPITALS NHS TRUST"]
[null,null,null,null,null,null,null,null,null,null,"Percentage Recommended","Total Responses",null,null,"Q83","NHS England Greater Manchester",null,"Q74","NHS England East",null,"Q70","RBD","DORSET COUNTY HOSPITAL NHS FOUNDATION TRUST",null,null,null,"R1K","BARNSLEY HOSPITAL NHS FOUNDATION TRUST"]
[null,null,null,null,null,null,null,null,null,null,"Percentage Not  Recommended","Percentage Recommended",null,null,"Q84","NHS England Lancashire",null,"Q75","NHS England Greater Manchester",null,"Q70","RN5","HAMPSHIRE HOSPITALS NHS FOUNDATION TRUST",null,null,null,"RA2","BARTS HEALTH NHS TRUST"]
[null,null,null,null,null,null,null,null,null,null,"Extremely Likely","Percentage Not  Recommended",null,null,"Q76","NHS England North Midlands",null,"Q76","NHS England Lancashire",null,"Q70","RHU","PORTSMOUTH HOSPITALS NHS TRUST",null,null,null,"RA3","BASILDON AND THURROCK UNIVERSITY HOSPITALS NHS FOUNDATION TRUST"]
[null,null,null,null,null,null,null,null,null,null,"Likely","Extremely Likely",null,null,"Q77","NHS England West Midlands",null,"Q77","NHS England London",null,"Q70","RHM","UNIVERSITY HOSPITAL SOUTHAMPTON NHS FOUNDATION TRUST",null,null,null,"RA4","BEDFORD HOSPITAL NHS TRUST"]
[null,null,null,null,null,null,null,null,null,null,"Neither","Likely",null,null,"Q78","NHS England Central Midlands",null,"Q78","NHS England North Midlands",null,"Q71","RJ1","GUY'S AND ST THOMAS' NHS FOUNDATION TRUST",null,null,null,"RA7","BIRMINGHAM WOMEN'S AND CHILDREN'S NHS FOUNDATION TRUST"]
[null,null,null,null,null,null,null,null,null,null,"Unlikely","Neither",null,null,"Q79","NHS England East",null,"Q79","NHS England South Central",null,"Q71","RJ6","CROYDON HEALTH SERVICES NHS TRUST",null,null,null,"RA9","BLACKPOOL TEACHING HOSPITALS NHS FOUNDATION TRUST"]
[null,null,null,null,null,null,null,null,null,null,"Extremely Unlikely","Unlikely",null,null,"Q80","NHS England South West",null,"Q80","NHS England South East",null,"Q71","RRV","UNIVERSITY COLLEGE LONDON HOSPITALS NHS FOUNDATION TRUST",null,null,null,"RAE","BOLTON NHS FOUNDATION TRUST"]
[null,null,null,null,null,null,null,null,null,null,"Don't Know","Extremely Unlikely",null,null,"Q81","NHS England South East",null,"Q81","NHS England South West",null,"Q71","RJ7","ST GEORGE'S UNIVERSITY HOSPITALS NHS FOUNDATION TRUST",null,null,null,"RAJ","BRADFORD TEACHING HOSPITALS NHS FOUNDATION TRUST"]
[null,null,null,null,null,null,null,null,null,null,null,"Don't Know",null,null,"Q82","NHS England South Central",null,"Q82","NHS England Wessex",null,"Q71","RVR","EPSOM AND ST HELIER UNIVERSITY HOSPITALS NHS TRUST",null,null,null,"RAL","BRIDGEWATER COMMUNITY HEALTHCARE NHS FOUNDATION TRUST"]
[null,null,null,null,null,null,null,null,null,null,null,"SMS/Text / Smartphone App",null,null,"Q70","NHS England Wessex",null,"Q83","NHS England West Midlands",null,"Q71","RAX","KINGSTON HOSPITAL NHS FOUNDATION TRUST",null,null,null,"RAP","BRIGHTON AND SUSSEX UNIVERSITY HOSPITALS NHS TRUST"]
[null,null,null,null,null,null,null,null,null,null,null,"Electronic tablet/kiosk at point of discharge",null,null,"Q71","NHS England London",null,"Q84","NHS England Yorkshire & Humber",null,"Q71","RAS","THE HILLINGDON HOSPITALS NHS FOUNDATION TRUST",null,null,null,"RAS","BUCKINGHAMSHIRE HEALTHCARE NHS TRUST"]
[null,null,null,null,null,null,null,null,null,null,null,"Paper / postcard at point of discharge",null,null,"zIS1","Independent Sector Provider",null,"zIS1","Independent Sector Provider",null,"Q71","RJZ","KING'S COLLEGE HOSPITAL NHS FOUNDATION TRUST",null,null,null,"RAX","BURTON HOSPITALS NHS FOUNDATION TRUST"]
[null,null,null,null,null,null,null,null,null,null,null,"Paper survey, sent to the patients home",null,null,null,null,null,null,null,null,"Q71","RAL","ROYAL FREE LONDON NHS FOUNDATION TRUST",null,null,null,"RBA","CALDERDALE AND HUDDERSFIELD NHS FOUNDATION TRUST"]
[null,null,null,null,null,null,null,null,null,null,null,"Telephone survey once patient is home",null,null,null,null,null,null,null,null,"Q71","R1H","BARTS HEALTH NHS TRUST",null,null,null,"RBD","CAMBRIDGE UNIVERSITY HOSPITALS NHS FOUNDATION TRUST"]
[null,null,null,null,null,null,null,null,null,null,null,"Online survey once patient is home",null,null,null,null,null,null,null,null,"Q71","R1K","LONDON NORTH WEST HEALTHCARE NHS TRUST",null,null,null,"RBK","CENTRAL MANCHESTER UNIVERSITY HOSPITALS NHS FOUNDATION TRUST"]
[null,null,null,null,null,null,null,null,null,null,null,"Other",null,null,null,null,null,null,null,null,"Q71","RKE","THE WHITTINGTON HOSPITAL NHS TRUST",null,null,null,"RBL","CHELSEA AND WESTMINSTER HOSPITAL NHS FOUNDATION TRUST"]
[null,null,null,null,null,null,null,null,null,null,null,null,null,null,null,null,null,null,null,null,"Q71","RQM","CHELSEA AND WESTMINSTER HOSPITAL NHS FOUNDATION TRUST",null,null,null,"RBN","CHESTERFIELD ROYAL HOSPITAL NHS FOUNDATION TRUST"]
[null,null,null,null,null,null,null,null,null,null,null,null,null,null,null,null,null,null,null,null,"Q71","RAP","NORTH MIDDLESEX UNIVERSITY HOSPITAL NHS TRUST",null,null,null,"RBT","CITY HOSPITALS SUNDERLAND NHS FOUNDATION TRUST"]
[null,null,null,null,null,null,null,null,null,null,null,null,null,null,null,null,null,null,null,null,"Q71","RJ2","LEWISHAM AND GREENWICH NHS TRUST",null,null,null,"RBZ","COLCHESTER HOSPITAL UNIVERSITY NHS FOUNDATION TRUST"]
[null,null,null,null,null,null,null,null,null,null,null,null,null,null,null,null,null,null,null,null,"Q71","RQX","HOMERTON UNIVERSITY HOSPITAL NHS FOUNDATION TRUST",null,null,null,"RC1","COUNTESS OF CHESTER HOSPITAL NHS FOUNDATION TRUST"]
[null,null,null,null,null,null,null,null,null,null,null,null,null,null,null,null,null,null,null,null,"Q71","RYJ","IMPERIAL COLLEGE HEALTHCARE NHS TRUST",null,null,null,"RC9","COUNTY DURHAM AND DARLINGTON NHS FOUNDATION TRUST"]
[null,null,null,null,null,null,null,null,null,null,null,null,null,null,null,null,null,null,null,null,"Q71","RF4","BARKING, HAVERING AND REDBRIDGE UNIVERSITY HOSPITALS NHS TRUST",null,null,null,"RCB","CROYDON HEALTH SERVICES NHS TRUST"]
[null,null,null,null,null,null,null,null,null,null,null,null,null,null,null,null,null,null,null,null,"Q72","RWA","HULL AND EAST YORKSHIRE HOSPITALS NHS TRUST",null,null,null,"RCD","DARTFORD AND GRAVESHAM NHS TRUST"]
[null,null,null,null,null,null,null,null,null,null,null,null,null,null,null,null,null,null,null,null,"Q72","RR8","LEEDS TEACHING HOSPITALS NHS TRUST",null,null,null,"RCF","DERBY TEACHING HOSPITALS NHS FOUNDATION TRUST"]
[null,null,null,null,null,null,null,null,null,null,null,null,null,null,null,null,null,null,null,null,"Q72","RAE","BRADFORD TEACHING HOSPITALS NHS FOUNDATION TRUST",null,null,null,"RCX","DONCASTER AND BASSETLAW TEACHING HOSPITALS NHS FOUNDATION TRUST"]
[null,null,null,null,null,null,null,null,null,null,null,null,null,null,null,null,null,null,null,null,"Q72","RCF","AIREDALE NHS FOUNDATION TRUST",null,null,null,"RD1","DORSET COUNTY HOSPITAL NHS FOUNDATION TRUST"]
[null,null,null,null,null,null,null,null,null,null,null,null,null,null,null,null,null,null,null,null,"Q72","RJL","NORTHERN LINCOLNSHIRE AND GOOLE NHS FOUNDATION TRUST",null,null,null,"RD3","EAST AND NORTH HERTFORDSHIRE NHS TRUST"]
[null,null,null,null,null,null,null,null,null,null,null,null,null,null,null,null,null,null,null,null,"Q72","RCD","HARROGATE AND DISTRICT NHS FOUNDATION TRUST",null,null,null,"RD8","EAST CHESHIRE NHS TRUST"]
[null,null,null,null,null,null,null,null,null,null,null,null,null,null,null,null,null,null,null,null,"Q72","RHQ","SHEFFIELD TEACHING HOSPITALS NHS FOUNDATION TRUST",null,null,null,"RDD","EAST KENT HOSPITALS UNIVERSITY NHS FOUNDATION TRUST"]
[null,null,null,null,null,null,null,null,null,null,null,null,null,null,null,null,null,null,null,null,"Q72","RXF","MID YORKSHIRE HOSPITALS NHS TRUST",null,null,null,"RDE","EAST LANCASHIRE HOSPITALS NHS TRUST"]
[null,null,null,null,null,null,null,null,null,null,null,null,null,null,null,null,null,null,null,null,"Q72","RFF","BARNSLEY HOSPITAL NHS FOUNDATION TRUST",null,null,null,"RDU","EAST SUSSEX HEALTHCARE NHS TRUST"]
[null,null,null,null,null,null,null,null,null,null,null,null,null,null,null,null,null,null,null,null,"Q72","RP5","DONCASTER AND BASSETLAW TEACHING HOSPITALS NHS FOUNDATION TRUST",null,null,null,"RDZ","EPSOM AND ST HELIER UNIVERSITY HOSPITALS NHS TRUST"]
[null,null,null,null,null,null,null,null,null,null,null,null,null,null,null,null,null,null,null,null,"Q72","RCB","YORK TEACHING HOSPITAL NHS FOUNDATION TRUST",null,null,null,"RE9","FRIMLEY HEALTH NHS FOUNDATION TRUST"]
[null,null,null,null,null,null,null,null,null,null,null,null,null,null,null,null,null,null,null,null,"Q72","RFR","THE ROTHERHAM NHS FOUNDATION TRUST",null,null,null,"REF","GATESHEAD HEALTH NHS FOUNDATION TRUST"]
[null,null,null,null,null,null,null,null,null,null,null,null,null,null,null,null,null,null,null,null,"Q72","RWY","CALDERDALE AND HUDDERSFIELD NHS FOUNDATION TRUST",null,null,null,"REP","GEORGE ELIOT HOSPITAL NHS TRUST"]
[null,null,null,null,null,null,null,null,null,null,null,null,null,null,null,null,null,null,null,null,"Q74","RLN","CITY HOSPITALS SUNDERLAND NHS FOUNDATION TRUST",null,null,null,"RF4","GLOUCESTERSHIRE HOSPITALS NHS FOUNDATION TRUST"]
[null,null,null,null,null,null,null,null,null,null,null,null,null,null,null,null,null,null,null,null,"Q74","RTR","SOUTH TEES HOSPITALS NHS FOUNDATION TRUST",null,null,null,"RFF","GREAT WESTERN HOSPITALS NHS FOUNDATION TRUST"]
[null,null,null,null,null,null,null,null,null,null,null,null,null,null,null,null,null,null,null,null,"Q74","RTD","THE NEWCASTLE UPON TYNE HOSPITALS NHS FOUNDATION TRUST",null,null,null,"RFR","GUY'S AND ST THOMAS' NHS FOUNDATION TRUST"]
[null,null,null,null,null,null,null,null,null,null,null,null,null,null,null,null,null,null,null,null,"Q74","RE9","SOUTH TYNESIDE NHS FOUNDATION TRUST",null,null,null,"RFS","HAMPSHIRE HOSPITALS NHS FOUNDATION TRUST"]
[null,null,null,null,null,null,null,null,null,null,null,null,null,null,null,null,null,null,null,null,"Q74","RR7","GATESHEAD HEALTH NHS FOUNDATION TRUST",null,null,null,"RGN","HARROGATE AND DISTRICT NHS FOUNDATION TRUST"]
[null,null,null,null,null,null,null,null,null,null,null,null,null,null,null,null,null,null,null,null,"Q74","RNL","NORTH CUMBRIA UNIVERSITY HOSPITALS NHS TRUST",null,null,null,"RGP","HEART OF ENGLAND NHS FOUNDATION TRUST"]
[null,null,null,null,null,null,null,null,null,null,null,null,null,null,null,null,null,null,null,null,"Q74","RXP","COUNTY DURHAM AND DARLINGTON NHS FOUNDATION TRUST",null,null,null,"RGQ","HOMERTON UNIVERSITY HOSPITAL NHS FOUNDATION TRUST"]
[null,null,null,null,null,null,null,null,null,null,null,null,null,null,null,null,null,null,null,null,"Q74","RVW","NORTH TEES AND HARTLEPOOL NHS FOUNDATION TRUST",null,null,null,"RGR","HULL AND EAST YORKSHIRE HOSPITALS NHS TRUST"]
[null,null,null,null,null,null,null,null,null,null,null,null,null,null,null,null,null,null,null,null,"Q74","RTX","UNIVERSITY HOSPITALS OF MORECAMBE BAY NHS FOUNDATION TRUST",null,null,null,"RGT","IMPERIAL COLLEGE HEALTHCARE NHS TRUST"]
[null,null,null,null,null,null,null,null,null,null,null,null,null,null,null,null,null,null,null,null,"Q74","RTF","NORTHUMBRIA HEALTHCARE NHS FOUNDATION TRUST",null,null,null,"RH8","IPSWICH HOSPITAL NHS TRUST"]
[null,null,null,null,null,null,null,null,null,null,null,null,null,null,null,null,null,null,null,null,"Q75","REP","LIVERPOOL WOMEN'S NHS FOUNDATION TRUST",null,null,null,"RHM","ISLE OF WIGHT NHS TRUST"]
[null,null,null,null,null,null,null,null,null,null,null,null,null,null,null,null,null,null,null,null,"Q75","RVY","SOUTHPORT AND ORMSKIRK HOSPITAL NHS TRUST",null,null,null,"RHQ","JAMES PAGET UNIVERSITY HOSPITALS NHS FOUNDATION TRUST"]
[null,null,null,null,null,null,null,null,null,null,null,null,null,null,null,null,null,null,null,null,"Q75","RBL","WIRRAL UNIVERSITY TEACHING HOSPITAL NHS FOUNDATION TRUST",null,null,null,"RHU","KETTERING GENERAL HOSPITAL NHS FOUNDATION TRUST"]
[null,null,null,null,null,null,null,null,null,null,null,null,null,null,null,null,null,null,null,null,"Q75","RBN","ST HELENS AND KNOWSLEY HOSPITAL SERVICES NHS TRUST",null,null,null,"RHW","KING'S COLLEGE HOSPITAL NHS FOUNDATION TRUST"]
[null,null,null,null,null,null,null,null,null,null,null,null,null,null,null,null,null,null,null,null,"Q75","RJN","EAST CHESHIRE NHS TRUST",null,null,null,"RJ1","KINGSTON HOSPITAL NHS FOUNDATION TRUST"]
[null,null,null,null,null,null,null,null,null,null,null,null,null,null,null,null,null,null,null,null,"Q75","RBT","MID CHESHIRE HOSPITALS NHS FOUNDATION TRUST",null,null,null,"RJ2","LANCASHIRE TEACHING HOSPITALS NHS FOUNDATION TRUST"]
[null,null,null,null,null,null,null,null,null,null,null,null,null,null,null,null,null,null,null,null,"Q75","RWW","WARRINGTON AND HALTON HOSPITALS NHS FOUNDATION TRUST",null,null,null,"RJ6","LEEDS TEACHING HOSPITALS NHS TRUST"]
[null,null,null,null,null,null,null,null,null,null,null,null,null,null,null,null,null,null,null,null,"Q75","RJR","COUNTESS OF CHESTER HOSPITAL NHS FOUNDATION TRUST",null,null,null,"RJ7","LEWISHAM AND GREENWICH NHS TRUST"]
[null,null,null,null,null,null,null,null,null,null,null,null,null,null,null,null,null,null,null,null,"Q76","RFS","CHESTERFIELD ROYAL HOSPITAL NHS FOUNDATION TRUST",null,null,null,"RJC","LIVERPOOL WOMEN'S NHS FOUNDATION TRUST"]
[null,null,null,null,null,null,null,null,null,null,null,null,null,null,null,null,null,null,null,null,"Q76","RXW","SHREWSBURY AND TELFORD HOSPITAL NHS TRUST",null,null,null,"RJE","LONDON NORTH WEST HEALTHCARE NHS TRUST"]
[null,null,null,null,null,null,null,null,null,null,null,null,null,null,null,null,null,null,null,null,"Q76","RJF","BURTON HOSPITALS NHS FOUNDATION TRUST",null,null,null,"RJF","LUTON AND DUNSTABLE UNIVERSITY HOSPITAL NHS FOUNDATION TRUST"]
[null,null,null,null,null,null,null,null,null,null,null,null,null,null,null,null,null,null,null,null,"Q76","RK5","SHERWOOD FOREST HOSPITALS NHS FOUNDATION TRUST",null,null,null,"RJL","MAIDSTONE AND TUNBRIDGE WELLS NHS TRUST"]
[null,null,null,null,null,null,null,null,null,null,null,null,null,null,null,null,null,null,null,null,"Q76","RJE","UNIVERSITY HOSPITALS OF NORTH MIDLANDS NHS TRUST",null,null,null,"RJN","MEDWAY NHS FOUNDATION TRUST"]
[null,null,null,null,null,null,null,null,null,null,null,null,null,null,null,null,null,null,null,null,"Q76","RTG","DERBY TEACHING HOSPITALS NHS FOUNDATION TRUST",null,null,null,"RJR","MID CHESHIRE HOSPITALS NHS FOUNDATION TRUST"]
[null,null,null,null,null,null,null,null,null,null,null,null,null,null,null,null,null,null,null,null,"Q76","RX1","NOTTINGHAM UNIVERSITY HOSPITALS NHS TRUST",null,null,null,"RJZ","MID ESSEX HOSPITAL SERVICES NHS TRUST"]
[null,null,null,null,null,null,null,null,null,null,null,null,null,null,null,null,null,null,null,null,"Q77","RR1","HEART OF ENGLAND NHS FOUNDATION TRUST",null,null,null,"RK5","MID YORKSHIRE HOSPITALS NHS TRUST"]
[null,null,null,null,null,null,null,null,null,null,null,null,null,null,null,null,null,null,null,null,"Q77","RXK","SANDWELL AND WEST BIRMINGHAM HOSPITALS NHS TRUST",null,null,null,"RK9","MILTON KEYNES UNIVERSITY HOSPITAL NHS FOUNDATION TRUST"]
[null,null,null,null,null,null,null,null,null,null,null,null,null,null,null,null,null,null,null,null,"Q77","RJC","SOUTH WARWICKSHIRE NHS FOUNDATION TRUST",null,null,null,"RKB","NORFOLK AND NORWICH UNIVERSITY HOSPITALS NHS FOUNDATION TRUST"]
[null,null,null,null,null,null,null,null,null,null,null,null,null,null,null,null,null,null,null,null,"Q77","RBK","WALSALL HEALTHCARE NHS TRUST",null,null,null,"RKE","NORTH BRISTOL NHS TRUST"]
[null,null,null,null,null,null,null,null,null,null,null,null,null,null,null,null,null,null,null,null,"Q77","RL4","THE ROYAL WOLVERHAMPTON NHS TRUST",null,null,null,"RL4","NORTH CUMBRIA UNIVERSITY HOSPITALS NHS TRUST"]
[null,null,null,null,null,null,null,null,null,null,null,null,null,null,null,null,null,null,null,null,"Q77","RLQ","WYE VALLEY NHS TRUST",null,null,null,"RLN","NORTH MIDDLESEX UNIVERSITY HOSPITAL NHS TRUST"]
[null,null,null,null,null,null,null,null,null,null,null,null,null,null,null,null,null,null,null,null,"Q77","RWP","WORCESTERSHIRE ACUTE HOSPITALS NHS TRUST",null,null,null,"RLQ","NORTH TEES AND HARTLEPOOL NHS FOUNDATION TRUST"]
[null,null,null,null,null,null,null,null,null,null,null,null,null,null,null,null,null,null,null,null,"Q77","RLT","GEORGE ELIOT HOSPITAL NHS TRUST",null,null,null,"RLT","NORTH WEST ANGLIA NHS FOUNDATION TRUST"]
[null,null,null,null,null,null,null,null,null,null,null,null,null,null,null,null,null,null,null,null,"Q77","RQ3","BIRMINGHAM WOMEN'S AND CHILDREN'S NHS FOUNDATION TRUST",null,null,null,"RM1","NORTHAMPTON GENERAL HOSPITAL NHS TRUST"]
[null,null,null,null,null,null,null,null,null,null,null,null,null,null,null,null,null,null,null,null,"Q77","RNA","THE DUDLEY GROUP NHS FOUNDATION TRUST",null,null,null,"RM2","NORTHERN DEVON HEALTHCARE NHS TRUST"]
[null,null,null,null,null,null,null,null,null,null,null,null,null,null,null,null,null,null,null,null,"Q77","RKB","UNIVERSITY HOSPITALS COVENTRY AND WARWICKSHIRE NHS TRUST",null,null,null,"RMC","NORTHERN LINCOLNSHIRE AND GOOLE NHS FOUNDATION TRUST"]
[null,null,null,null,null,null,null,null,null,null,null,null,null,null,null,null,null,null,null,null,"Q78","RC9","LUTON AND DUNSTABLE UNIVERSITY HOSPITAL NHS FOUNDATION TRUST",null,null,null,"RMP","NORTHUMBRIA HEALTHCARE NHS FOUNDATION TRUST"]
[null,null,null,null,null,null,null,null,null,null,null,null,null,null,null,null,null,null,null,null,"Q78","RWH","EAST AND NORTH HERTFORDSHIRE NHS TRUST",null,null,null,"RN3","NOTTINGHAM UNIVERSITY HOSPITALS NHS TRUST"]
[null,null,null,null,null,null,null,null,null,null,null,null,null,null,null,null,null,null,null,null,"Q78","RWG","WEST HERTFORDSHIRE HOSPITALS NHS TRUST",null,null,null,"RN5","ONE TO ONE (NORTH WEST) LIMITED"]
[null,null,null,null,null,null,null,null,null,null,null,null,null,null,null,null,null,null,null,null,"Q78","RD8","MILTON KEYNES UNIVERSITY HOSPITAL NHS FOUNDATION TRUST",null,null,null,"RN7","OXFORD UNIVERSITY HOSPITALS NHS FOUNDATION TRUST"]
[null,null,null,null,null,null,null,null,null,null,null,null,null,null,null,null,null,null,null,null,"Q78","RWD","UNITED LINCOLNSHIRE HOSPITALS NHS TRUST",null,null,null,"RNA","PENNINE ACUTE HOSPITALS NHS TRUST"]
[null,null,null,null,null,null,null,null,null,null,null,null,null,null,null,null,null,null,null,null,"Q78","RNQ","KETTERING GENERAL HOSPITAL NHS FOUNDATION TRUST",null,null,null,"RNL","PLYMOUTH HOSPITALS NHS TRUST"]
[null,null,null,null,null,null,null,null,null,null,null,null,null,null,null,null,null,null,null,null,"Q78","RC1","BEDFORD HOSPITAL NHS TRUST",null,null,null,"RNQ","POOLE HOSPITAL NHS FOUNDATION TRUST"]
[null,null,null,null,null,null,null,null,null,null,null,null,null,null,null,null,null,null,null,null,"Q78","RNS","NORTHAMPTON GENERAL HOSPITAL NHS TRUST",null,null,null,"RNS","PORTSMOUTH HOSPITALS NHS TRUST"]
[null,null,null,null,null,null,null,null,null,null,null,null,null,null,null,null,null,null,null,null,"Q78","RWE","UNIVERSITY HOSPITALS OF LEICESTER NHS TRUST",null,null,null,"RNZ","ROYAL BERKSHIRE NHS FOUNDATION TRUST"]
[null,null,null,null,null,null,null,null,null,null,null,null,null,null,null,null,null,null,null,null,"Q79","RDE","COLCHESTER HOSPITAL UNIVERSITY NHS FOUNDATION TRUST",null,null,null,"RP5","ROYAL CORNWALL HOSPITALS NHS TRUST"]
[null,null,null,null,null,null,null,null,null,null,null,null,null,null,null,null,null,null,null,null,"Q79","RAJ","SOUTHEND UNIVERSITY HOSPITAL NHS FOUNDATION TRUST",null,null,null,"RPA","ROYAL DEVON AND EXETER NHS FOUNDATION TRUST"]
[null,null,null,null,null,null,null,null,null,null,null,null,null,null,null,null,null,null,null,null,"Q79","RCX","THE QUEEN ELIZABETH HOSPITAL, KING'S LYNN, NHS FOUNDATION TRUST",null,null,null,"RQ3","ROYAL FREE LONDON NHS FOUNDATION TRUST"]
[null,null,null,null,null,null,null,null,null,null,null,null,null,null,null,null,null,null,null,null,"Q79","RGT","CAMBRIDGE UNIVERSITY HOSPITALS NHS FOUNDATION TRUST",null,null,null,"RQ8","ROYAL SURREY COUNTY HOSPITAL NHS FOUNDATION TRUST"]
[null,null,null,null,null,null,null,null,null,null,null,null,null,null,null,null,null,null,null,null,"Q79","RM1","NORFOLK AND NORWICH UNIVERSITY HOSPITALS NHS FOUNDATION TRUST",null,null,null,"RQM","ROYAL UNITED HOSPITALS BATH NHS FOUNDATION TRUST"]
[null,null,null,null,null,null,null,null,null,null,null,null,null,null,null,null,null,null,null,null,"Q79","RQ8","MID ESSEX HOSPITAL SERVICES NHS TRUST",null,null,null,"RQW","SALISBURY NHS FOUNDATION TRUST"]
[null,null,null,null,null,null,null,null,null,null,null,null,null,null,null,null,null,null,null,null,"Q79","RQW","THE PRINCESS ALEXANDRA HOSPITAL NHS TRUST",null,null,null,"RQX","SANDWELL AND WEST BIRMINGHAM HOSPITALS NHS TRUST"]
[null,null,null,null,null,null,null,null,null,null,null,null,null,null,null,null,null,null,null,null,"Q79","RDD","BASILDON AND THURROCK UNIVERSITY HOSPITALS NHS FOUNDATION TRUST",null,null,null,"RR1","SHEFFIELD TEACHING HOSPITALS NHS FOUNDATION TRUST"]
[null,null,null,null,null,null,null,null,null,null,null,null,null,null,null,null,null,null,null,null,"Q79","RGR","WEST SUFFOLK NHS FOUNDATION TRUST",null,null,null,"RR7","SHERWOOD FOREST HOSPITALS NHS FOUNDATION TRUST"]
[null,null,null,null,null,null,null,null,null,null,null,null,null,null,null,null,null,null,null,null,"Q79","RGP","JAMES PAGET UNIVERSITY HOSPITALS NHS FOUNDATION TRUST",null,null,null,"RR8","SHREWSBURY AND TELFORD HOSPITAL NHS TRUST"]
[null,null,null,null,null,null,null,null,null,null,null,null,null,null,null,null,null,null,null,null,"Q79","RGN","NORTH WEST ANGLIA NHS FOUNDATION TRUST",null,null,null,"RRF","SOUTH TEES HOSPITALS NHS FOUNDATION TRUST"]
[null,null,null,null,null,null,null,null,null,null,null,null,null,null,null,null,null,null,null,null,"Q79","RGQ","IPSWICH HOSPITAL NHS TRUST",null,null,null,"RRV","SOUTH TYNESIDE NHS FOUNDATION TRUST"]
[null,null,null,null,null,null,null,null,null,null,null,null,null,null,null,null,null,null,null,null,"Q80","RA4","YEOVIL DISTRICT HOSPITAL NHS FOUNDATION TRUST",null,null,null,"RTD","SOUTH WARWICKSHIRE NHS FOUNDATION TRUST"]
[null,null,null,null,null,null,null,null,null,null,null,null,null,null,null,null,null,null,null,null,"Q80","RH8","ROYAL DEVON AND EXETER NHS FOUNDATION TRUST",null,null,null,"RTE","SOUTHEND UNIVERSITY HOSPITAL NHS FOUNDATION TRUST"]
[null,null,null,null,null,null,null,null,null,null,null,null,null,null,null,null,null,null,null,null,"Q80","RBZ","NORTHERN DEVON HEALTHCARE NHS TRUST",null,null,null,"RTF","SOUTHPORT AND ORMSKIRK HOSPITAL NHS TRUST"]
[null,null,null,null,null,null,null,null,null,null,null,null,null,null,null,null,null,null,null,null,"Q80","RA9","TORBAY AND SOUTH DEVON NHS FOUNDATION TRUST",null,null,null,"RTG","ST GEORGE'S UNIVERSITY HOSPITALS NHS FOUNDATION TRUST"]
[null,null,null,null,null,null,null,null,null,null,null,null,null,null,null,null,null,null,null,null,"Q80","RBA","TAUNTON AND SOMERSET NHS FOUNDATION TRUST",null,null,null,"RTH","ST HELENS AND KNOWSLEY HOSPITAL SERVICES NHS TRUST"]
[null,null,null,null,null,null,null,null,null,null,null,null,null,null,null,null,null,null,null,null,"Q80","REF","ROYAL CORNWALL HOSPITALS NHS TRUST",null,null,null,"RTK","STOCKPORT NHS FOUNDATION TRUST"]
[null,null,null,null,null,null,null,null,null,null,null,null,null,null,null,null,null,null,null,null,"Q80","RA7","UNIVERSITY HOSPITALS BRISTOL NHS FOUNDATION TRUST",null,null,null,"RTP","SURREY AND SUSSEX HEALTHCARE NHS TRUST"]
[null,null,null,null,null,null,null,null,null,null,null,null,null,null,null,null,null,null,null,null,"Q80","RA3","WESTON AREA HEALTH NHS TRUST",null,null,null,"RTR","TAMESIDE AND GLOSSOP INTEGRATED CARE NHS FOUNDATION TRUST"]
[null,null,null,null,null,null,null,null,null,null,null,null,null,null,null,null,null,null,null,null,"Q80","RK9","PLYMOUTH HOSPITALS NHS TRUST",null,null,null,"RTX","TAUNTON AND SOMERSET NHS FOUNDATION TRUST"]
[null,null,null,null,null,null,null,null,null,null,null,null,null,null,null,null,null,null,null,null,"Q80","RVJ","NORTH BRISTOL NHS TRUST",null,null,null,"RVJ","THE DUDLEY GROUP NHS FOUNDATION TRUST"]
[null,null,null,null,null,null,null,null,null,null,null,null,null,null,null,null,null,null,null,null,"Q81","RN7","DARTFORD AND GRAVESHAM NHS TRUST",null,null,null,"RVR","THE HILLINGDON HOSPITALS NHS FOUNDATION TRUST"]
[null,null,null,null,null,null,null,null,null,null,null,null,null,null,null,null,null,null,null,null,"Q81","RTK","ASHFORD AND ST PETER'S HOSPITALS NHS FOUNDATION TRUST",null,null,null,"RVV","THE NEWCASTLE UPON TYNE HOSPITALS NHS FOUNDATION TRUST"]
[null,null,null,null,null,null,null,null,null,null,null,null,null,null,null,null,null,null,null,null,"Q81","RPA","MEDWAY NHS FOUNDATION TRUST",null,null,null,"RVW","THE PRINCESS ALEXANDRA HOSPITAL NHS TRUST"]
[null,null,null,null,null,null,null,null,null,null,null,null,null,null,null,null,null,null,null,null,"Q81","RWF","MAIDSTONE AND TUNBRIDGE WELLS NHS TRUST",null,null,null,"RVY","THE QUEEN ELIZABETH HOSPITAL, KING'S LYNN, NHS FOUNDATION TRUST"]
[null,null,null,null,null,null,null,null,null,null,null,null,null,null,null,null,null,null,null,null,"Q81","RXC","EAST SUSSEX HEALTHCARE NHS TRUST",null,null,null,"RW3","THE ROTHERHAM NHS FOUNDATION TRUST"]
[null,null,null,null,null,null,null,null,null,null,null,null,null,null,null,null,null,null,null,null,"Q81","RYR","WESTERN SUSSEX HOSPITALS NHS FOUNDATION TRUST",null,null,null,"RW6","THE ROYAL BOURNEMOUTH AND CHRISTCHURCH HOSPITALS NHS FOUNDATION TRUST"]
[null,null,null,null,null,null,null,null,null,null,null,null,null,null,null,null,null,null,null,null,"Q81","RVV","EAST KENT HOSPITALS UNIVERSITY NHS FOUNDATION TRUST",null,null,null,"RWA","THE ROYAL WOLVERHAMPTON NHS TRUST"]
[null,null,null,null,null,null,null,null,null,null,null,null,null,null,null,null,null,null,null,null,"Q81","RXH","BRIGHTON AND SUSSEX UNIVERSITY HOSPITALS NHS TRUST",null,null,null,"RWD","THE WHITTINGTON HOSPITAL NHS TRUST"]
[null,null,null,null,null,null,null,null,null,null,null,null,null,null,null,null,null,null,null,null,"Q81","RA2","ROYAL SURREY COUNTY HOSPITAL NHS FOUNDATION TRUST",null,null,null,"RWE","TORBAY AND SOUTH DEVON NHS FOUNDATION TRUST"]
[null,null,null,null,null,null,null,null,null,null,null,null,null,null,null,null,null,null,null,null,"Q81","RTP","SURREY AND SUSSEX HEALTHCARE NHS TRUST",null,null,null,"RWF","UNITED LINCOLNSHIRE HOSPITALS NHS TRUST"]
[null,null,null,null,null,null,null,null,null,null,null,null,null,null,null,null,null,null,null,null,"Q81","RDU","FRIMLEY HEALTH NHS FOUNDATION TRUST",null,null,null,"RWG","UNIVERSITY COLLEGE LONDON HOSPITALS NHS FOUNDATION TRUST"]
[null,null,null,null,null,null,null,null,null,null,null,null,null,null,null,null,null,null,null,null,"Q82","RTE","GLOUCESTERSHIRE HOSPITALS NHS FOUNDATION TRUST",null,null,null,"RWH","UNIVERSITY HOSPITAL OF SOUTH MANCHESTER NHS FOUNDATION TRUST"]
[null,null,null,null,null,null,null,null,null,null,null,null,null,null,null,null,null,null,null,null,"Q82","RN3","GREAT WESTERN HOSPITALS NHS FOUNDATION TRUST",null,null,null,"RWJ","UNIVERSITY HOSPITAL SOUTHAMPTON NHS FOUNDATION TRUST"]
[null,null,null,null,null,null,null,null,null,null,null,null,null,null,null,null,null,null,null,null,"Q82","RNZ","SALISBURY NHS FOUNDATION TRUST",null,null,null,"RWP","UNIVERSITY HOSPITALS BRISTOL NHS FOUNDATION TRUST"]
[null,null,null,null,null,null,null,null,null,null,null,null,null,null,null,null,null,null,null,null,"Q82","RHW","ROYAL BERKSHIRE NHS FOUNDATION TRUST",null,null,null,"RWW","UNIVERSITY HOSPITALS COVENTRY AND WARWICKSHIRE NHS TRUST"]
[null,null,null,null,null,null,null,null,null,null,null,null,null,null,null,null,null,null,null,null,"Q82","RTH","OXFORD UNIVERSITY HOSPITALS NHS FOUNDATION TRUST",null,null,null,"RWY","UNIVERSITY HOSPITALS OF LEICESTER NHS TRUST"]
[null,null,null,null,null,null,null,null,null,null,null,null,null,null,null,null,null,null,null,null,"Q82","RXQ","BUCKINGHAMSHIRE HEALTHCARE NHS TRUST",null,null,null,"RX1","UNIVERSITY HOSPITALS OF MORECAMBE BAY NHS FOUNDATION TRUST"]
[null,null,null,null,null,null,null,null,null,null,null,null,null,null,null,null,null,null,null,null,"Q82","RD1","ROYAL UNITED HOSPITALS BATH NHS FOUNDATION TRUST",null,null,null,"RXC","UNIVERSITY HOSPITALS OF NORTH MIDLANDS NHS TRUST"]
[null,null,null,null,null,null,null,null,null,null,null,null,null,null,null,null,null,null,null,null,"Q83","RMP","TAMESIDE AND GLOSSOP INTEGRATED CARE NHS FOUNDATION TRUST",null,null,null,"RXF","WALSALL HEALTHCARE NHS TRUST"]
[null,null,null,null,null,null,null,null,null,null,null,null,null,null,null,null,null,null,null,null,"Q83","RW3","CENTRAL MANCHESTER UNIVERSITY HOSPITALS NHS FOUNDATION TRUST",null,null,null,"RXH","WARRINGTON AND HALTON HOSPITALS NHS FOUNDATION TRUST"]
[null,null,null,null,null,null,null,null,null,null,null,null,null,null,null,null,null,null,null,null,"Q83","RWJ","STOCKPORT NHS FOUNDATION TRUST",null,null,null,"RXK","WEST HERTFORDSHIRE HOSPITALS NHS TRUST"]
[null,null,null,null,null,null,null,null,null,null,null,null,null,null,null,null,null,null,null,null,"Q83","RY2","BRIDGEWATER COMMUNITY HEALTHCARE NHS FOUNDATION TRUST",null,null,null,"RXL","WEST SUFFOLK NHS FOUNDATION TRUST"]
[null,null,null,null,null,null,null,null,null,null,null,null,null,null,null,null,null,null,null,null,"Q83","RW6","PENNINE ACUTE HOSPITALS NHS TRUST",null,null,null,"RXN","WESTERN SUSSEX HOSPITALS NHS FOUNDATION TRUST"]
[null,null,null,null,null,null,null,null,null,null,null,null,null,null,null,null,null,null,null,null,"Q83","RRF","WRIGHTINGTON, WIGAN AND LEIGH NHS FOUNDATION TRUST",null,null,null,"RXP","WESTON AREA HEALTH NHS TRUST"]
[null,null,null,null,null,null,null,null,null,null,null,null,null,null,null,null,null,null,null,null,"Q83","RM2","UNIVERSITY HOSPITAL OF SOUTH MANCHESTER NHS FOUNDATION TRUST",null,null,null,"RXQ","WIRRAL UNIVERSITY TEACHING HOSPITAL NHS FOUNDATION TRUST"]
[null,null,null,null,null,null,null,null,null,null,null,null,null,null,null,null,null,null,null,null,"Q83","RMC","BOLTON NHS FOUNDATION TRUST",null,null,null,"RXR","WORCESTERSHIRE ACUTE HOSPITALS NHS TRUST"]
[null,null,null,null,null,null,null,null,null,null,null,null,null,null,null,null,null,null,null,null,"Q84","RXL","BLACKPOOL TEACHING HOSPITALS NHS FOUNDATION TRUST",null,null,null,"RXW","WRIGHTINGTON, WIGAN AND LEIGH NHS FOUNDATION TRUST"]
[null,null,null,null,null,null,null,null,null,null,null,null,null,null,null,null,null,null,null,null,"Q84","RXR","EAST LANCASHIRE HOSPITALS NHS TRUST",null,null,null,"RY2","WYE VALLEY NHS TRUST"]
[null,null,null,null,null,null,null,null,null,null,null,null,null,null,null,null,null,null,null,null,"Q84","RXN","LANCASHIRE TEACHING HOSPITALS NHS FOUNDATION TRUST",null,null,null,"RYJ","YEOVIL DISTRICT HOSPITAL NHS FOUNDATION TRUST"]
[null,null,null,null,null,null,null,null,null,null,null,null,null,null,null,null,null,null,null,null,"zIS1","NDE","ONE TO ONE (NORTH WEST) LIMITED",null,null,null,"RYR","YORK TEACHING HOSPITAL NHS FOUNDATION TRUST"]